Workbook

Sheet RMS-DATA
A1: num-VET | B1: code | E1: Sexe | F1: Idx | G1: Vet | H1: 3n+3p | J1: ="DE DI EL AL" -> DE DI EL AL | L1: prénom | N1: LICENCE | O1: CIVILITE | P1: NOM | Q1: PRENOM | R1: SEXE | S1: NATIONALITE | T1: AGE | U1: DTE_NAISS | V1: CATEGORIE_AGE | W1: IDX | X1: DATE_IDX | Y1: TEST_FEDERAL | Z1: DATE_TEST_FEDERAL | AA1: DATE_CARTE_VERTE | AB1: LIEN | AC1: ADRESSE1 | AD1: ADRESSE2 | AE1: ADRESSE3 | AF1: CP | AG1: VILLE | AH1: PAYS | AI1: EMAIL | AJ1: MOBILE | AK1: DEP_RESIDENCE | AL1: CLUB_LICENCE | AM1: DEP_CLUB | AN1: CODE_LICENCE | AO1: DATE_LICENCE | AP1: CATEGORIE_LICENCE | AQ1: DATE_DERNIERE_LICENCE | AR1: ANNEE_LICENCE | AS1: ANNEE_CREATION | AT1: DATE_CERTIF | AU1: STATUT_SPORTIF | AV1: NATURE | AW1: ACTIF | AX1: DJF_ANNEE | AY1: RATTACHEMENT_WEB | AZ1: EDG | BA1: DATE_FIN_CERTIF | BB1: DTE_QS_ENREG | BC1: LIC_RENEW_AUTO
A2: =IF(G2=1,COUNTIF(G$2:G2,G2),0) -> 1 | B2: =IF(I2=1,H2,CONCATENATE(SUBSTITUTE(SUBSTITUTE(SUBSTITUTE(SUBSTITUTE(LEFT(H2,3),"i",1),"e","€"),"o","0"),"a","@"),RIGHT(H2,3))) -> abbdid | C2: =COUNTIF(B$2:B2,B2) -> 1 | D2: =CONCATENATE(P2," ",Q2) -> ABBADIE Didier | E2: =R2 -> M | F2: =SUBSTITUTE(W2,".",",")*1 -> 11.5 | G2: =IF(T2>49,1,0) -> 1 | H2: =LOWER(CONCATENATE(LEFT(J2,3),LEFT(K2,3))) -> abbdid | I2: =COUNTIF($H$2:H2,H2) -> 1 | J2: =SUBSTITUTE(IF(ISERR(SEARCH(" ",LEFT(P2,3))),P2,CONCATENATE(LEFT(P2,1),MID(P2,4,30)))," ","-") -> ABBADIE | K2: =IF(ISERR(SEARCH("-",L2)),L2,CONCATENATE(LEFT(L2,1),MID(L2,SEARCH("-",L2),30))) -> Didier | L2: =SUBSTITUTE(SUBSTITUTE(SUBSTITUTE(SUBSTITUTE(SUBSTITUTE(Q2," ","-"),".","-"),"é","e"),"ë","e"),"è","e") -> Didier | N2: 539137185 | O2: M. | P2: ABBADIE | Q2: Didier | R2: M | S2: France | T2: 64 | U2: 20141 | V2: SENIOR M | W2: 11.5 | X2: 43730 | Y2: Pas de Drapeau / Opens | AA2: 38452 | AB2: 1 | AC2: 8 RUE BERTHOLLET | AF2: 75005 | AG2: PARIS | AH2: France | AI2: abbadie@hotmail.fr | AJ2: 33683386249 | AK2: 75 - Paris | AL2: 0403 - BLUEGREEN SAINT QUENTIN EN YVELINES | AM2: 78 - Yvelines | AN2: R | AO2: 43480 | AP2: Adulte | AQ2: 43480 | AR2: 2019 | AS2: 2004 | AT2: 43525 | AU2: Classé | AV2: Licencié | AW2: OUI | AX2: 2019 | BA2: 43921 | BC2: NON
A3: =IF(G3=1,COUNTIF(G$2:G3,G3),0) -> 0 | B3: abepat | C3: =COUNTIF(B$2:B3,B3) -> 1 | D3: =CONCATENATE(P3," ",Q3) -> ABENG Patricia | E3: =R3 -> F | F3: =SUBSTITUTE(W3,".",",")*1 -> 54 | G3: 0 | H3: =LOWER(CONCATENATE(LEFT(J3,3),LEFT(K3,3))) -> abepat | I3: =COUNTIF($H$2:H3,H3) -> 1 | J3: ABENG | K3: Patricia | L3: Patricia | N3: 533202329 | O3: Mme | P3: ABENG | Q3: Patricia | R3: F | S3: France | T3: 36 | U3: 30317 | V3: MID AMATEUR F | W3: 54.0 | X3: 43401 | Y3: Pas de Drapeau / Opens | AB3: 2 | AC3: 105 RUE DE CRIMEE | AF3: 75019 | AG3: PARIS | AH3: France | AI3: PATOUZOURIA@HOTMAIL.COM | AK3: 75 - Paris | AL3: 0403 - BLUEGREEN SAINT QUENTIN EN YVELINES | AM3: 78 - Yvelines | AN3: R | AO3: 43439 | AP3: Renouvellement 2018/2019 | AQ3: 43439 | AR3: 2019 | AS3: 2018 | AU3: Non classé | AV3: Licencié | AW3: OUI | BC3: NON
A4: =IF(G4=1,COUNTIF(G$2:G4,G4),0) -> 2 | B4: abipau | C4: =COUNTIF(B$2:B4,B4) -> 1 | D4: ABITEBOUL Paul | E4: M | F4: 27 | G4: 1 | H4: abipau | I4: =COUNTIF($H$2:H4,H4) -> 1 | J4: ABITEBOUL | K4: Paul | L4: Paul | N4: 533019215 | O4: M. | P4: ABITEBOUL | Q4: Paul | R4: M | S4: France | T4: 77 | U4: 15342 | V4: VETERAN M | W4: 27.0 | X4: 43319 | Y4: Pas de Drapeau / Opens | AB4: 3 | AC4: 32 AVENUE VICTOR HUGO | AF4: 75016 | AG4: PARIS | AH4: France | AI4: PAUL.ABITBOUL@-SA.COM | AJ4: 33607707652 | AK4: 75 - Paris | AL4: 0403 - BLUEGREEN SAINT QUENTIN EN YVELINES | AM4: 78 - Yvelines | AN4: Z | AO4: 43511 | AP4: Adulte | AQ4: 43511 | AR4: 2019 | AS4: 2007 | AT4: 40928 | AU4: Classé | AV4: Licencié | AW4: OUI | AY4: NON | BA4: 41364 | BC4: NON
A5: =IF(G5=1,COUNTIF(G$2:G5,G5),0) -> 0 | B5: abrdav | C5: =COUNTIF(B$2:B5,B5) -> 1 | D5: ABRIAL David | E5: M | F5: 30.5 | G5: 0 | H5: abrdav | I5: =COUNTIF($H$2:H5,H5) -> 1 | J5: ABRIAL | K5: David | L5: David | N5: 510784315 | O5: M. | P5: ABRIAL | Q5: David | R5: M | S5: France | T5: 44 | U5: 27692 | V5: MID AMATEUR M | W5: 30.5 | X5: 43660 | Y5: Pas de Drapeau / Opens | AA5: 42905 | AB5: 3 | AC5: 9 RUE JEAN DE LA BRUYERE | AF5: 78000 | AG5: VERSAILLES | AH5: France | AI5: david@jeanabrial.com | AJ5: 33608326539 | AK5: 78 - Yvelines | AL5: 0403 - BLUEGREEN SAINT QUENTIN EN YVELINES | AM5: 78 - Yvelines | AN5: Z | AO5: 43527 | AP5: Adulte | AQ5: 43527 | AR5: 2019 | AS5: 2017 | AT5: 42903 | AU5: Classé | AV5: Licencié | AW5: OUI | AY5: OUI | BA5: 43921 | BB5: 43527 | BC5: NON
A6: =IF(G6=1,COUNTIF(G$2:G6,G6),0) -> 3 | B6: afrguy | C6: =COUNTIF(B$2:B6,B6) -> 1 | D6: AFRIAT Guy | E6: M | F6: 28 | G6: 1 | H6: afrguy | I6: =COUNTIF($H$2:H6,H6) -> 1 | J6: AFRIAT | K6: Guy | L6: Guy | N6: 539474267 | O6: M. | P6: AFRIAT | Q6: Guy | R6: M | S6: France | T6: 67 | U6: 19168 | V6: VETERAN M | W6: 28.0 | X6: 43236 | Y6: Pas de Drapeau / Opens | AA6: 41217 | AB6: 3 | AC6: 20 ROUTE DE VERSAILLES | AF6: 78430 | AG6: LOUVECIENNES | AH6: France | AI6: afriat@hotmail.fr | AJ6: 33777072191 | AK6: 78 - Yvelines | AL6: 0403 - BLUEGREEN SAINT QUENTIN EN YVELINES | AM6: 78 - Yvelines | AN6: Z | AO6: 43483 | AP6: Adulte | AQ6: 43483 | AR6: 2019 | AS6: 2012 | AT6: 43483 | AU6: Classé | AV6: Licencié | AW6: OUI | AY6: NON | BA6: 43921 | BC6: NON
A7: =IF(G7=1,COUNTIF(G$2:G7,G7),0) -> 4 | B7: afrm-l | C7: =COUNTIF(B$2:B7,B7) -> 1 | D7: AFRIAT Marie.Louise | E7: F | F7: 34 | G7: 1 | H7: afrm-l | I7: =COUNTIF($H$2:H7,H7) -> 1 | J7: AFRIAT | K7: M-Louise | L7: Marie-Louise | N7: 539475266 | O7: Mme | P7: AFRIAT | Q7: Marie.Louise | R7: F | S7: France | T7: 66 | U7: 19500 | V7: VETERAN F | W7: 34.0 | X7: 43236 | Y7: Pas de Drapeau / Opens | AA7: 41328 | AB7: 3 | AC7: 20 ROUTE DE VERSAILLES | AF7: 78430 | AG7: LOUVECIENNES | AH7: France | AI7: AFRIA@HOTMAIL.FR | AJ7: 33689743231 | AK7: 78 - Yvelines | AL7: 0403 - BLUEGREEN SAINT QUENTIN EN YVELINES | AM7: 78 - Yvelines | AN7: Z | AO7: 43483 | AP7: Adulte | AQ7: 43483 | AR7: 2019 | AS7: 2012 | AT7: 43483 | AU7: Classé | AV7: Licencié | AW7: OUI | AY7: NON | BA7: 43921 | BC7: NON
A8: =IF(G8=1,COUNTIF(G$2:G8,G8),0) -> 5 | B8: aibkiy | C8: =COUNTIF(B$2:B8,B8) -> 1 | D8: AIBA Kiyoshi | E8: M | F8: 9.6 | G8: 1 | H8: aibkiy | I8: =COUNTIF($H$2:H8,H8) -> 1 | J8: =SUBSTITUTE(IF(ISERR(SEARCH(" ",LEFT(P8,3))),P8,CONCATENATE(LEFT(P8,1),MID(P8,4,30)))," ","-") -> AIBA | K8: Kiyoshi | L8: Kiyoshi | N8: 530621015 | O8: M. | P8: AIBA | Q8: Kiyoshi | R8: M | S8: Japon | T8: 65 | U8: 19998 | V8: SENIOR M | W8: 9.6 | X8: 41469 | Y8: Pas de Drapeau / Opens | AB8: 3 | AC8: 49 AVENUE DE COLMAR | AF8: 92500 | AG8: RUEIL MALMAISON | AH8: France | AI8: aiba.sushi.kiyoshi@gmail.com | AJ8: 330666431970 | AK8: 92 - Hauts-de-Seine | AL8: 0403 - BLUEGREEN SAINT QUENTIN EN YVELINES | AM8: 78 - Yvelines | AN8: R | AO8: 43557 | AP8: Adulte | AQ8: 43557 | AR8: 2019 | AS8: 1987 | AT8: 41469 | AU8: Classé | AV8: Licencié | AW8: OUI | AY8: NON | BA8: 41729 | BC8: NON
A9: =IF(G9=1,COUNTIF(G$2:G9,G9),0) -> 0 | B9: akanat | C9: =COUNTIF(B$2:B9,B9) -> 1 | D9: AKATOVA Nataliya | E9: F | F9: 51 | G9: 0 | H9: akanat | I9: =COUNTIF($H$2:H9,H9) -> 1 | J9: AKATOVA | K9: Nataliya | L9: Nataliya | N9: 523738323 | O9: Mlle | P9: AKATOVA | Q9: Nataliya | R9: F | S9: France | T9: 37 | U9: 30057 | V9: MID AMATEUR F | W9: 51.0 | X9: 43575 | Y9: Pas de Drapeau / Opens | AA9: 43359 | AB9: 2 | AC9: 34 RUE VAUGELAS | AF9: 75015 | AG9: PARIS | AH9: France | AI9: AKATOVA_NATALIYA@YAHOO.FR | AJ9: 650392970 | AK9: 75 - Paris | AL9: 0403 - BLUEGREEN SAINT QUENTIN EN YVELINES | AM9: 78 - Yvelines | AN9: R | AO9: 43439 | AP9: Renouvellement 2018/2019 | AQ9: 43439 | AR9: 2019 | AS9: 2018 | AT9: 43492 | AU9: Classé | AV9: Licencié | AW9: OUI | BA9: 43921 | BC9: NON
A10: =IF(G10=1,COUNTIF(G$2:G10,G10),0) -> 0 | B10: akolou | C10: =COUNTIF(B$2:B10,B10) -> 1 | D10: AKOUETE-AKUE Louis | E10: M | F10: 35 | G10: 0 | H10: akolou | I10: =COUNTIF($H$2:H10,H10) -> 1 | J10: AKOUETE-AKUE | K10: Louis | L10: Louis | N10: 515990315 | O10: M. | P10: AKOUETE-AKUE | Q10: Louis | R10: M | S10: France | T10: 11 | U10: 39498 | V10: POUSSIN 1 | W10: 35.0 | X10: 43673 | Y10: Drapeau Blanc | Z10: 42956 | AA10: 43005 | AB10: 1 | AC10: 5 LE PLANTERRE | AF10: 23800 | AG10: COLONDANNES | AH10: France | AI10: jeanlucak@yahoo.fr | AK10: 23 - Creuse | AL10: 0403 - BLUEGREEN SAINT QUENTIN EN YVELINES | AM10: 78 - Yvelines | AN10: Z | AO10: 43478 | AP10: Enfant | AQ10: 43478 | AR10: 2019 | AS10: 2017 | AT10: 43493 | AU10: Classé | AV10: Licencié | AW10: OUI | BA10: 43921 | BB10: 43492 | BC10: NON
A11: =IF(G11=1,COUNTIF(G$2:G11,G11),0) -> 6 | B11: albfra | C11: =COUNTIF(B$2:B11,B11) -> 1 | D11: ALBESSARD Francois | E11: M | F11: 17 | G11: 1 | H11: albfra | I11: =COUNTIF($H$2:H11,H11) -> 1 | J11: ALBESSARD | K11: Francois | L11: Francois | N11: 512509029 | O11: M. | P11: ALBESSARD | Q11: Francois | R11: M | S11: France | T11: 75 | U11: 16261 | V11: VETERAN M | W11: 17.0 | X11: 42878 | Y11: Pas de Drapeau / Opens | AB11: 1 | AC11: 20 PLACE DU GENERAL DE GAULLE | AF11: 92330 | AG11: SCEAUX | AH11: France | AI11: falbessard@wanadoo.fr | AJ11: 33673317647 | AK11: 92 - Hauts-de-Seine | AL11: 0403 - BLUEGREEN SAINT QUENTIN EN YVELINES | AM11: 78 - Yvelines | AN11: R | AO11: 43472 | AP11: Adulte | AQ11: 43472 | AR11: 2019 | AS11: 1988 | AT11: 43502 | AU11: Classé | AV11: Licencié | AW11: OUI | BA11: 43921 | BC11: NON
A12: =IF(G12=1,COUNTIF(G$2:G12,G12),0) -> 0 | B12: albbap | C12: =COUNTIF(B$2:B12,B12) -> 1 | D12: ALBRAND Baptiste | E12: M | F12: 22 | G12: 0 | H12: albbap | I12: =COUNTIF($H$2:H12,H12) -> 1 | J12: ALBRAND | K12: Baptiste | L12: Baptiste | N12: 41690175 | O12: M. | P12: ALBRAND | Q12: Baptiste | R12: M | S12: France | T12: 26 | U12: 34220 | V12: ADULTE M | W12: 22.0 | X12: 41497 | Y12: Pas de Drapeau / Opens | AB12: 3 | AC12: 24 ALLEE DES HARAS | AF12: 92420 | AG12: VAUCRESSON | AH12: France | AI12: baptiste.albrand@wanadoo.fr | AJ12: 33668029717 | AK12: 92 - Hauts-de-Seine | AL12: 0403 - BLUEGREEN SAINT QUENTIN EN YVELINES | AM12: 78 - Yvelines | AN12: Y | AO12: 43476 | AP12: Adulte | AQ12: 43476 | AR12: 2019 | AS12: 2003 | AT12: 43476 | AU12: Classé | AV12: Licencié | AW12: OUI | AY12: NON | BA12: 43921 | BC12: NON
A13: =IF(G13=1,COUNTIF(G$2:G13,G13),0) -> 0 | B13: albdam | C13: =COUNTIF(B$2:B13,B13) -> 1 | D13: ALBRAND Damien | E13: M | F13: 19.6 | G13: 0 | H13: albdam | I13: =COUNTIF($H$2:H13,H13) -> 1 | J13: ALBRAND | K13: Damien | L13: Damien | N13: 41689178 | O13: M. | P13: ALBRAND | Q13: Damien | R13: M | S13: France | T13: 25 | U13: 34581 | V13: ADULTE M | W13: 19.6 | X13: 43392 | Y13: Pas de Drapeau / Opens | AB13: 3 | AC13: 24 ALLEE DES HARAS | AF13: 92420 | AG13: VAUCRESSON | AH13: France | AI13: damien.albrand@wanadoo.fr | AJ13: 33675292373 | AK13: 92 - Hauts-de-Seine | AL13: 0403 - BLUEGREEN SAINT QUENTIN EN YVELINES | AM13: 78 - Yvelines | AN13: R | AO13: 43476 | AP13: Jeune Adulte | AQ13: 43476 | AR13: 2019 | AS13: 2003 | AT13: 43476 | AU13: Classé | AV13: Licencié | AW13: OUI | AY13: NON | BA13: 43921 | BC13: NON
A14: =IF(G14=1,COUNTIF(G$2:G14,G14),0) -> 7 | B14: albthi | C14: =COUNTIF(B$2:B14,B14) -> 1 | D14: ALBRAND Thierry | E14: M | F14: 17.8 | G14: 1 | H14: albthi | I14: =COUNTIF($H$2:H14,H14) -> 1 | J14: ALBRAND | K14: Thierry | L14: Thierry | N14: 510975038 | O14: M. | P14: ALBRAND | Q14: Thierry | R14: M | S14: France | T14: 60 | U14: 21754 | V14: SENIOR M | W14: 17.8 | X14: 43700 | Y14: Pas de Drapeau / Opens | AB14: 3 | AC14: 24 ALLEE DES HARAS | AF14: 92420 | AG14: VAUCRESSON | AH14: France | AI14: thierry.albrand@wanadoo.fr | AJ14: 33607633741 | AK14: 92 - Hauts-de-Seine | AL14: 0403 - BLUEGREEN SAINT QUENTIN EN YVELINES | AM14: 78 - Yvelines | AN14: R | AO14: 43476 | AP14: Adulte | AQ14: 43476 | AR14: 2019 | AS14: 1989 | AT14: 43476 | AU14: Classé | AV14: Licencié | AW14: OUI | AY14: NON | BA14: 43921 | BC14: NON
A15: =IF(G15=1,COUNTIF(G$2:G15,G15),0) -> 0 | B15: aleaur | C15: =COUNTIF(B$2:B15,B15) -> 1 | D15: ALEGRE Aurelie | E15: F | F15: 54 | G15: 0 | H15: aleaur | I15: =COUNTIF($H$2:H15,H15) -> 1 | J15: ALEGRE | K15: Aurelie | L15: Aurelie | N15: 520587322 | O15: Mme | P15: ALEGRE | Q15: Aurelie | R15: F | S15: France | T15: 37 | U15: 30069 | V15: MID AMATEUR F | W15: 54.0 | X15: 43311 | Y15: Pas de Drapeau / Opens | AA15: 43311 | AB15: 3 | AC15: 4 BIS AVENUE DESPEUX | AF15: 92100 | AG15: BOULOGNE BILLANCOURT | AH15: France | AI15: alegre-aurelie@hotmail.com | AJ15: 33672596517 | AK15: 92 - Hauts-de-Seine | AL15: 0403 - BLUEGREEN SAINT QUENTIN EN YVELINES | AM15: 78 - Yvelines | AN15: Z | AO15: 43523 | AP15: Adulte | AQ15: 43523 | AR15: 2019 | AS15: 2018 | AU15: Non classé | AV15: Licencié | AW15: OUI | AY15: NON | BC15: NON
A16: =IF(G16=1,COUNTIF(G$2:G16,G16),0) -> 0 | B16: alopau | C16: =COUNTIF(B$2:B16,B16) -> 1 | D16: ALORENT Paul | E16: M | F16: 54 | G16: 0 | H16: alopau | I16: =COUNTIF($H$2:H16,H16) -> 1 | J16: ALORENT | K16: Paul | L16: Paul | N16: 527059336 | O16: M. | P16: ALORENT | Q16: Paul | R16: M | S16: France | T16: 28 | U16: 33461 | V16: ADULTE M | W16: 54.0 | X16: 43723 | AA16: 43726 | AB16: 2 | AC16: 250 TER BOULEVARD JEAN JAURES | AF16: 92100 | AG16: BOULOGNE BILLANCOURT | AH16: France | AI16: PAUL.ALORENT@HOTMAIL.FR | AK16: 92 - Hauts-de-Seine | AL16: 0403 - BLUEGREEN SAINT QUENTIN EN YVELINES | AM16: 78 - Yvelines | AN16: C | AO16: 43723 | AP16: Adulte 2019/2020 | AQ16: 43723 | AR16: 2019 | AS16: 2019 | AU16: Non classé | AV16: Licencié | AW16: OUI | BC16: NON
A17: =IF(G17=1,COUNTIF(G$2:G17,G17),0) -> 0 | B17: alvp-e | C17: =COUNTIF(B$2:B17,B17) -> 1 | D17: ALVAREZ-LUEGO Pierre-Etienne | E17: M | F17: 54 | G17: 0 | H17: alvp-e | I17: =COUNTIF($H$2:H17,H17) -> 1 | J17: ALVAREZ-LUEGO | K17: P-Etienne | L17: Pierre-Etienne | N17: 520381320 | O17: M. | P17: ALVAREZ-LUEGO | Q17: Pierre-Etienne | R17: M | S17: France | T17: 36 | U17: 30668 | V17: MID AMATEUR M | W17: 54.0 | X17: 43309 | Y17: Pas de Drapeau / Opens | AA17: 43309 | AB17: 2 | AC17: 112 BOULEVARD GABRIEL PERI | AF17: 92240 | AG17: MALAKOFF | AH17: France | AI17: PE-ALVAREZ@NEUF.FR | AJ17: 33661134046 | AK17: 92 - Hauts-de-Seine | AL17: 0403 - BLUEGREEN SAINT QUENTIN EN YVELINES | AM17: 78 - Yvelines | AN17: R | AO17: 43534 | AP17: Adulte | AQ17: 43534 | AR17: 2019 | AS17: 2018 | AU17: Non classé | AV17: Licencié | AW17: OUI | BC17: NON
A18: =IF(G18=1,COUNTIF(G$2:G18,G18),0) -> 0 | B18: amoisa | C18: =COUNTIF(B$2:B18,B18) -> 1 | D18: AMOROS Isabelle | E18: F | F18: 54 | G18: 0 | H18: amoisa | I18: =COUNTIF($H$2:H18,H18) -> 1 | J18: AMOROS | K18: Isabelle | L18: Isabelle | N18: 511853113 | O18: Mme | P18: AMOROS | Q18: Isabelle | R18: F | S18: France | T18: 49 | U18: 25730 | V18: MID AMATEUR F | W18: 54.0 | X18: 40909 | Y18: Pas de Drapeau / Opens | AA18: 35618 | AB18: 3 | AC18: 30 CHEMIN DE LA SEIGNEURIE | AF18: 78340 | AG18: LES CLAYES SOUS BOIS | AH18: France | AI18: isa.lef.amo@cegetel.net | AJ18: 608942440 | AK18: 78 - Yvelines | AL18: 0403 - BLUEGREEN SAINT QUENTIN EN YVELINES | AM18: 78 - Yvelines | AN18: R | AO18: 43452 | AP18: Adulte | AQ18: 43452 | AR18: 2019 | AS18: 1997 | AU18: Non classé | AV18: Licencié | AW18: OUI | AY18: NON | BC18: OUI
A19: =IF(G19=1,COUNTIF(G$2:G19,G19),0) -> 8 | B19: andpat | C19: =COUNTIF(B$2:B19,B19) -> 1 | D19: ANDRIEU Patrick | E19: M | F19: 54 | G19: 1 | H19: andpat | I19: =COUNTIF($H$2:H19,H19) -> 1 | J19: ANDRIEU | K19: Patrick | L19: Patrick | N19: 525712150 | O19: M. | P19: ANDRIEU | Q19: Patrick | R19: M | S19: France | T19: 61 | U19: 21465 | V19: SENIOR M | W19: 54.0 | X19: 40909 | Y19: Pas de Drapeau / Opens | AA19: 37045 | AB19: 3 | AC19: 3 SQUARE AMPERE | AF19: 78330 | AG19: FONTENAY LE FLEURY | AH19: France | AI19: ANDRIEUPATRICKANDRIEU.0710@GMAIL.COM | AJ19: 33658401512 | AK19: 78 - Yvelines | AL19: 0403 - BLUEGREEN SAINT QUENTIN EN YVELINES | AM19: 78 - Yvelines | AN19: W | AO19: 43510 | AP19: Adulte | AQ19: 43510 | AR19: 2019 | AS19: 2001 | AU19: Non classé | AV19: Licencié | AW19: OUI | AY19: NON | BC19: NON
A20: =IF(G20=1,COUNTIF(G$2:G20,G20),0) -> 9 | B20: angpau | C20: =COUNTIF(B$2:B20,B20) -> 1 | D20: ANGELIER Paul | E20: M | F20: 18.3 | G20: 1 | H20: angpau | I20: =COUNTIF($H$2:H20,H20) -> 1 | J20: ANGELIER | K20: Paul | L20: Paul | N20: 527600017 | O20: M. | P20: ANGELIER | Q20: Paul | R20: M | S20: France | T20: 69 | U20: 18619 | V20: VETERAN M | W20: 18.3 | X20: 43683 | Y20: Pas de Drapeau / Opens | AB20: 1 | AC20: 16 RUE DE LA MAURIENNE | AF20: 78180 | AG20: MONTIGNY LE BRETONNEUX | AH20: France | AI20: paulangelier@wanadoo.fr | AJ20: 33670039870 | AK20: 78 - Yvelines | AL20: 0403 - BLUEGREEN SAINT QUENTIN EN YVELINES | AM20: 78 - Yvelines | AN20: R | AO20: 43468 | AP20: Adulte | AQ20: 43468 | AR20: 2019 | AS20: 1987 | AT20: 43575 | AU20: Classé | AV20: Licencié | AW20: OUI | BA20: 43921 | BB20: 43518 | BC20: NON
A21: =IF(G21=1,COUNTIF(G$2:G21,G21),0) -> 10 | B21: angmic | C21: =COUNTIF(B$2:B21,B21) -> 1 | D21: ANGOUILLANT Michel | E21: M | F21: 54 | G21: 1 | H21: angmic | I21: =COUNTIF($H$2:H21,H21) -> 1 | J21: ANGOUILLANT | K21: Michel | L21: Michel | N21: 515234338 | O21: M. | P21: ANGOUILLANT | Q21: Michel | R21: M | S21: France | T21: 54 | U21: 24066 | V21: SENIOR M | W21: 54.0 | X21: 43596 | AB21: 3 | AC21: 1 RUE D'AUVERGNE | AF21: 92140 | AG21: CLAMART | AH21: France | AI21: MICHEL@TITANEGRAPHIC.FR | AJ21: 330607296868 | AK21: 92 - Hauts-de-Seine | AL21: 0403 - BLUEGREEN SAINT QUENTIN EN YVELINES | AM21: 78 - Yvelines | AN21: C | AO21: 43596 | AP21: Adulte | AQ21: 43596 | AR21: 2019 | AS21: 2019 | AU21: Non classé | AV21: Licencié | AW21: OUI | AY21: NON | BC21: NON
A22: =IF(G22=1,COUNTIF(G$2:G22,G22),0) -> 11 | B22: antann | C22: =COUNTIF(B$2:B22,B22) -> 1 | D22: ANTOINAT Annie | E22: F | F22: 54 | G22: 1 | H22: antann | I22: =COUNTIF($H$2:H22,H22) -> 1 | J22: ANTOINAT | K22: Annie | L22: Annie | N22: 43745332 | O22: Mme | P22: ANTOINAT | Q22: Annie | R22: F | S22: France | T22: 60 | U22: 21847 | V22: SENIOR F | W22: 54.0 | X22: 43478 | AB22: 2 | AC22: 25 RUE DE LA COMMANDERIE | AF22: 78320 | AG22: LE MESNIL ST DENIS | AH22: France | AI22: ANNIE.ANTOINAT@FREE.FR | AJ22: 616400437 | AK22: 78 - Yvelines | AL22: 0403 - BLUEGREEN SAINT QUENTIN EN YVELINES | AM22: 78 - Yvelines | AN22: C | AO22: 43478 | AP22: Adulte | AQ22: 43478 | AR22: 2019 | AS22: 2019 | AU22: Non classé | AV22: Licencié | AW22: OUI | BC22: NON
A23: =IF(G23=1,COUNTIF(G$2:G23,G23),0) -> 12 | B23: antj-p | C23: =COUNTIF(B$2:B23,B23) -> 1 | D23: ANTOINAT Jean-Pascal | E23: M | F23: 54 | G23: 1 | H23: antj-p | I23: =COUNTIF($H$2:H23,H23) -> 1 | J23: ANTOINAT | K23: J-Pascal | L23: Jean-Pascal | N23: 43744334 | O23: M. | P23: ANTOINAT | Q23: Jean-Pascal | R23: M | S23: France | T23: 62 | U23: 21069 | V23: SENIOR M | W23: 54.0 | X23: 43478 | AB23: 2 | AC23: 25 RUE DE LA COMMANDERIE | AF23: 78320 | AG23: LE MESNIL ST DENIS | AH23: France | AI23: JPANTOINAT@GMAIL.COM | AJ23: 620640251 | AK23: 78 - Yvelines | AL23: 0403 - BLUEGREEN SAINT QUENTIN EN YVELINES | AM23: 78 - Yvelines | AN23: C | AO23: 43478 | AP23: Adulte | AQ23: 43478 | AR23: 2019 | AS23: 2019 | AU23: Non classé | AV23: Licencié | AW23: OUI | BC23: NON
A24: =IF(G24=1,COUNTIF(G$2:G24,G24),0) -> 0 | B24: appsyl | C24: =COUNTIF(B$2:B24,B24) -> 1 | D24: APPERT Sylvain | E24: M | F24: 33 | G24: 0 | H24: appsyl | I24: =COUNTIF($H$2:H24,H24) -> 1 | J24: APPERT | K24: Sylvain | L24: Sylvain | N24: 521242317 | O24: M. | P24: APPERT | Q24: Sylvain | R24: M | S24: France | T24: 41 | U24: 28582 | V24: MID AMATEUR M | W24: 33.0 | X24: 43274 | Y24: Pas de Drapeau / Opens | AB24: 2 | AC24: 15 PLACE WICKLOW | AF24: 78180 | AG24: MONTIGNY LE BRETONNEUX | AH24: France | AI24: INNOVATION@HOTMAIL.FR | AJ24: 33682687144 | AK24: 78 - Yvelines | AL24: 0403 - BLUEGREEN SAINT QUENTIN EN YVELINES | AM24: 78 - Yvelines | AN24: R | AO24: 43513 | AP24: Adulte | AQ24: 43513 | AR24: 2019 | AS24: 2017 | AT24: 43147 | AU24: Classé | AV24: Licencié | AW24: OUI | BA24: 43921 | BB24: 43545 | BC24: NON
A25: =IF(G25=1,COUNTIF(G$2:G25,G25),0) -> 13 | B25: arajac | C25: =COUNTIF(B$2:B25,B25) -> 1 | D25: ARAGOU Jacques | E25: M | F25: 19 | G25: 1 | H25: arajac | I25: =COUNTIF($H$2:H25,H25) -> 1 | J25: ARAGOU | K25: Jacques | L25: Jacques | N25: 48559100 | O25: M. | P25: ARAGOU | Q25: Jacques | R25: M | S25: France | T25: 75 | U25: 16380 | V25: VETERAN M | W25: 19.0 | X25: 43725 | Y25: Pas de Drapeau / Opens | AB25: 1 | AC25: 12 RUE DU POIRIER SAINT MARTIN | AF25: 78180 | AG25: MONTIGNY LE BRETONNEUX | AH25: France | AI25: AJIC@NUMERICABLE.FR | AJ25: 33608311418 | AK25: 78 - Yvelines | AL25: 0403 - BLUEGREEN SAINT QUENTIN EN YVELINES | AM25: 78 - Yvelines | AN25: R | AO25: 43468 | AP25: Adulte | AQ25: 43468 | AR25: 2019 | AS25: 1996 | AT25: 43515 | AU25: Classé | AV25: Licencié | AW25: OUI | BA25: 43921 | BC25: NON
A26: =IF(G26=1,COUNTIF(G$2:G26,G26),0) -> 14 | B26: argant | C26: =COUNTIF(B$2:B26,B26) -> 1 | D26: ARGOUD Antoine | E26: M | F26: 10.3 | G26: 1 | H26: argant | I26: =COUNTIF($H$2:H26,H26) -> 1 | J26: ARGOUD | K26: Antoine | L26: Antoine | N26: 512791045 | O26: M. | P26: ARGOUD | Q26: Antoine | R26: M | S26: France | T26: 67 | U26: 19108 | V26: VETERAN M | W26: 10.3 | X26: 43719 | Y26: Pas de Drapeau / Opens | AB26: 1 | AC26: 25 AVENUE DE BEAUJEU | AF26: 78990 | AG26: ELANCOURT | AH26: France | AI26: antoine.argoud@wanadoo.fr | AJ26: 33681554462 | AK26: 78 - Yvelines | AL26: 0403 - BLUEGREEN SAINT QUENTIN EN YVELINES | AM26: 78 - Yvelines | AN26: R | AO26: 43475 | AP26: Adulte | AQ26: 43475 | AR26: 2019 | AS26: 1990 | AT26: 43538 | AU26: Classé | AV26: Licencié | AW26: OUI | BA26: 43921 | BC26: NON
A27: =IF(G27=1,COUNTIF(G$2:G27,G27),0) -> 15 | B27: arnf-r | C27: =COUNTIF(B$2:B27,B27) -> 1 | D27: ARNOULT François Régis | E27: M | F27: 12.1 | G27: 1 | H27: arnf-r | I27: =COUNTIF($H$2:H27,H27) -> 1 | J27: ARNOULT | K27: F-Regis | L27: François-Regis | N27: 530152077 | O27: M. | P27: ARNOULT | Q27: François Régis | R27: M | S27: France | T27: 62 | U27: 21077 | V27: SENIOR M | W27: 12.1 | X27: 43379 | Y27: Pas de Drapeau / Opens | AA27: 34652 | AB27: 1 | AC27: 17 CHEMIN VERT | AF27: 78610 | AG27: LES BREVIAIRES | AH27: France | AI27: FR.ARNOULT@ORANGE.FR | AJ27: 33666798144 | AK27: 78 - Yvelines | AL27: 0403 - BLUEGREEN SAINT QUENTIN EN YVELINES | AM27: 78 - Yvelines | AN27: R | AO27: 43520 | AP27: Adulte | AQ27: 43520 | AR27: 2019 | AS27: 1993 | AT27: 42838 | AU27: Classé | AV27: Licencié | AW27: OUI | BA27: 43921 | BB27: 43528 | BC27: NON
A28: =IF(G28=1,COUNTIF(G$2:G28,G28),0) -> 16 | B28: assach | C28: =COUNTIF(B$2:B28,B28) -> 1 | D28: ASSOULINE Acher | E28: M | F28: 21.7 | G28: 1 | H28: assach | I28: =COUNTIF($H$2:H28,H28) -> 1 | J28: ASSOULINE | K28: Acher | L28: Acher | N28: 524355217 | O28: M. | P28: ASSOULINE | Q28: Acher | R28: M | S28: France | T28: 65 | U28: 20006 | V28: SENIOR M | W28: 21.7 | X28: 43625 | Y28: Pas de Drapeau / Opens | AA28: 39238 | AB28: 3 | AC28: 23 AVENUE NIEL | AF28: 75017 | AG28: PARIS | AH28: France | AI28: ACHER54@FREE.FR | AJ28: 607228013 | AK28: 75 - Paris | AL28: 0403 - BLUEGREEN SAINT QUENTIN EN YVELINES | AM28: 78 - Yvelines | AN28: Z | AO28: 43518 | AP28: Adulte | AQ28: 43518 | AR28: 2019 | AS28: 2007 | AT28: 43620 | AU28: Classé | AV28: Licencié | AW28: OUI | AY28: NON | BA28: 43921 | BC28: NON
A29: =IF(G29=1,COUNTIF(G$2:G29,G29),0) -> 17 | B29: attisa | C29: =COUNTIF(B$2:B29,B29) -> 1 | D29: ATTIAS Isabelle | E29: F | F29: 27.8 | G29: 1 | H29: attisa | I29: =COUNTIF($H$2:H29,H29) -> 1 | J29: ATTIAS | K29: Isabelle | L29: Isabelle | N29: 49614028 | O29: Mme | P29: ATTIAS | Q29: Isabelle | R29: F | S29: France | T29: 69 | U29: 18547 | V29: VETERAN F | W29: 27.8 | X29: 41931 | Y29: Pas de Drapeau / Opens | AB29: 3 | AC29: 15 ROUTE DES GARDES | AF29: 92190 | AG29: MEUDON | AH29: France | AI29: isa.attias@free.fr | AJ29: 663126768 | AK29: 92 - Hauts-de-Seine | AL29: 0403 - BLUEGREEN SAINT QUENTIN EN YVELINES | AM29: 78 - Yvelines | AN29: R | AO29: 43452 | AP29: Adulte | AQ29: 43452 | AR29: 2019 | AS29: 1988 | AT29: 42520 | AU29: Classé | AV29: Licencié | AW29: OUI | AY29: NON | BA29: 42825 | BC29: OUI
A30: =IF(G30=1,COUNTIF(G$2:G30,G30),0) -> 18 | B30: aubdan | C30: =COUNTIF(B$2:B30,B30) -> 1 | D30: AUBERT Daniel | E30: M | F30: 46 | G30: 1 | H30: aubdan | I30: =COUNTIF($H$2:H30,H30) -> 1 | J30: AUBERT | K30: Daniel | L30: Daniel | N30: 42841305 | O30: M. | P30: AUBERT | Q30: Daniel | R30: M | S30: France | T30: 67 | U30: 19171 | V30: VETERAN M | W30: 46.0 | X30: 42854 | Y30: Pas de Drapeau / Opens | AA30: 42394 | AB30: 2 | AC30: 32 RUE DU SAGITTAIRE | AF30: 78990 | AG30: ELANCOURT | AH30: France | AI30: DAN.AUBERT@ORANGE.FR | AJ30: 33668230252 | AK30: 78 - Yvelines | AL30: 0403 - BLUEGREEN SAINT QUENTIN EN YVELINES | AM30: 78 - Yvelines | AN30: R | AO30: 43468 | AP30: Adulte | AQ30: 43468 | AR30: 2019 | AS30: 2016 | AT30: 42788 | AU30: Classé | AV30: Licencié | AW30: OUI | BA30: 43555 | BC30: NON
A31: =IF(G31=1,COUNTIF(G$2:G31,G31),0) -> 0 | B31: audgui | C31: =COUNTIF(B$2:B31,B31) -> 1 | D31: AUDIER Guillaume | E31: M | F31: 11 | G31: 0 | H31: audgui | I31: =COUNTIF($H$2:H31,H31) -> 1 | J31: AUDIER | K31: Guillaume | L31: Guillaume | N31: 529528254 | O31: M. | P31: AUDIER | Q31: Guillaume | R31: M | S31: France | T31: 38 | U31: 29776 | V31: MID AMATEUR M | W31: 11.0 | X31: 43723 | Y31: Pas de Drapeau / Opens | AA31: 40839 | AB31: 3 | AC31: 2 RUE DE LA PRINCESSE DE CLEVES | AF31: 78280 | AG31: GUYANCOURT | AH31: France | AI31: guillaumeaudier@hotmail.com | AJ31: 33632735703 | AK31: 78 - Yvelines | AL31: 0403 - BLUEGREEN SAINT QUENTIN EN YVELINES | AM31: 78 - Yvelines | AN31: Z | AO31: 43462 | AP31: Adulte | AQ31: 43462 | AR31: 2019 | AS31: 2011 | AT31: 42891 | AU31: Classé | AV31: Licencié | AW31: OUI | AY31: OUI | BA31: 43921 | BB31: 43462 | BC31: NON
A32: =IF(G32=1,COUNTIF(G$2:G32,G32),0) -> 0 | B32: audchr | C32: =COUNTIF(B$2:B32,B32) -> 1 | D32: AUDOUY Christelle | E32: F | F32: 54 | G32: 0 | H32: audchr | I32: =COUNTIF($H$2:H32,H32) -> 1 | J32: AUDOUY | K32: Christelle | L32: Christelle | N32: 522351331 | O32: Mme | P32: AUDOUY | Q32: Christelle | R32: F | S32: France | T32: 49 | U32: 25623 | V32: MID AMATEUR F | W32: 54.0 | X32: 43674 | AB32: 2 | AC32: 1 RUE ALFRED SISLEY | AF32: 78370 | AG32: PLAISIR | AH32: France | AI32: CHRISTELLE.AUDOUY@LAPOSTE.FR | AJ32: 607421333 | AK32: 78 - Yvelines | AL32: 0403 - BLUEGREEN SAINT QUENTIN EN YVELINES | AM32: 78 - Yvelines | AN32: C | AO32: 43674 | AP32: Adulte | AQ32: 43674 | AR32: 2019 | AS32: 2019 | AU32: Non classé | AV32: Licencié | AW32: OUI | BC32: NON
A33: =IF(G33=1,COUNTIF(G$2:G33,G33),0) -> 19 | B33: audxav | C33: =COUNTIF(B$2:B33,B33) -> 1 | D33: AUDOUY Xavier | E33: M | F33: 54 | G33: 1 | H33: audxav | I33: =COUNTIF($H$2:H33,H33) -> 1 | J33: AUDOUY | K33: Xavier | L33: Xavier | N33: 522352330 | O33: M. | P33: AUDOUY | Q33: Xavier | R33: M | S33: France | T33: 53 | U33: 24282 | V33: SENIOR M | W33: 54.0 | X33: 43674 | AB33: 2 | AC33: 1 RUE ALFRED SISLEY | AF33: 78370 | AG33: PLAISIR | AH33: France | AI33: CYMEN66@GMAIL.COM | AJ33: 672870587 | AK33: 78 - Yvelines | AL33: 0403 - BLUEGREEN SAINT QUENTIN EN YVELINES | AM33: 78 - Yvelines | AN33: C | AO33: 43674 | AP33: Adulte | AQ33: 43674 | AR33: 2019 | AS33: 2019 | AU33: Non classé | AV33: Licencié | AW33: OUI | BC33: NON
A34: =IF(G34=1,COUNTIF(G$2:G34,G34),0) -> 20 | B34: audlud | C34: =COUNTIF(B$2:B34,B34) -> 1 | D34: AUDOYER Ludovic | E34: M | F34: 54 | G34: 1 | H34: audlud | I34: =COUNTIF($H$2:H34,H34) -> 1 | J34: AUDOYER | K34: Ludovic | L34: Ludovic | N34: 520508336 | O34: M. | P34: AUDOYER | Q34: Ludovic | R34: M | S34: France | T34: 56 | U34: 23129 | V34: SENIOR M | W34: 54.0 | X34: 43652 | AA34: 43652 | AB34: 2 | AC34: 46 AVENUE PIERRE CURIE | AF34: 78210 | AG34: ST CYR L ECOLE | AH34: France | AI34: I-QI@ORANGE.FR | AK34: 78 - Yvelines | AL34: 0403 - BLUEGREEN SAINT QUENTIN EN YVELINES | AM34: 78 - Yvelines | AN34: C | AO34: 43652 | AP34: Adulte | AQ34: 43652 | AR34: 2019 | AS34: 2019 | AU34: Non classé | AV34: Licencié | AW34: OUI | BC34: NON
A35: =IF(G35=1,COUNTIF(G$2:G35,G35),0) -> 21 | B35: aupfra | C35: =COUNTIF(B$2:B35,B35) -> 1 | D35: AUPIED Françoise | E35: F | F35: 30 | G35: 1 | H35: aupfra | I35: =COUNTIF($H$2:H35,H35) -> 1 | J35: AUPIED | K35: Françoise | L35: Françoise | N35: 533185018 | O35: Mme | P35: AUPIED | Q35: Françoise | R35: F | S35: France | T35: 71 | U35: 17568 | V35: VETERAN F | W35: 30.0 | X35: 40909 | Y35: Pas de Drapeau / Opens | AB35: 3 | AC35: 39 RUE D'ESTIENNE D'ORVES | AF35: 78220 | AG35: VIROFLAY | AH35: France | AI35: yvon.aupied@laposte.net | AJ35: 33680459285 | AK35: 78 - Yvelines | AL35: 0403 - BLUEGREEN SAINT QUENTIN EN YVELINES | AM35: 78 - Yvelines | AN35: R | AO35: 43469 | AP35: Adulte | AQ35: 43469 | AR35: 2019 | AS35: 1987 | AU35: Classé | AV35: Licencié | AW35: OUI | AY35: NON | BC35: NON
A36: =IF(G36=1,COUNTIF(G$2:G36,G36),0) -> 22 | B36: aupyvo | C36: =COUNTIF(B$2:B36,B36) -> 1 | D36: AUPIED Yvon | E36: M | F36: 27.6 | G36: 1 | H36: aupyvo | I36: =COUNTIF($H$2:H36,H36) -> 1 | J36: AUPIED | K36: Yvon | L36: Yvon | N36: 533184019 | O36: M. | P36: AUPIED | Q36: Yvon | R36: M | S36: France | T36: 70 | U36: 18031 | V36: VETERAN M | W36: 27.6 | X36: 42126 | Y36: Pas de Drapeau / Opens | AB36: 3 | AC36: 39 RUE D'ESTIENNE D'ORVES | AF36: 78220 | AG36: VIROFLAY | AH36: France | AI36: aupied.yvon@orange.fr | AJ36: 33680459285 | AK36: 78 - Yvelines | AL36: 0403 - BLUEGREEN SAINT QUENTIN EN YVELINES | AM36: 78 - Yvelines | AN36: R | AO36: 43469 | AP36: Adulte | AQ36: 43469 | AR36: 2019 | AS36: 1987 | AT36: 43481 | AU36: Classé | AV36: Licencié | AW36: OUI | AY36: NON | BA36: 43921 | BC36: NON
A37: =IF(G37=1,COUNTIF(G$2:G37,G37),0) -> 23 | B37: avepas | C37: =COUNTIF(B$2:B37,B37) -> 1 | D37: AVEILLAN Pascal | E37: M | F37: 11.7 | G37: 1 | H37: avepas | I37: =COUNTIF($H$2:H37,H37) -> 1 | J37: AVEILLAN | K37: Pascal | L37: Pascal | N37: 535276112 | O37: M. | P37: AVEILLAN | Q37: Pascal | R37: M | S37: France | T37: 61 | U37: 21534 | V37: SENIOR M | W37: 11.7 | X37: 43601 | Y37: Pas de Drapeau / Opens | AB37: 1 | AC37: 15 AVENUE ADRIENNE LECOUVREUR | AF37: 78600 | AG37: MAISONS LAFFITTE | AH37: France | AI37: paveillan@avaconseil.net | AJ37: 33609913285 | AK37: 78 - Yvelines | AL37: 0403 - BLUEGREEN SAINT QUENTIN EN YVELINES | AM37: 78 - Yvelines | AN37: W | AO37: 43477 | AP37: Adulte | AQ37: 43477 | AR37: 2019 | AS37: 1997 | AT37: 43218 | AU37: Classé | AV37: Licencié | AW37: OUI | AX37: 2019 | BA37: 43921 | BB37: 43484 | BC37: NON
A38: =IF(G38=1,COUNTIF(G$2:G38,G38),0) -> 24 | B38: babpat | C38: =COUNTIF(B$2:B38,B38) -> 1 | D38: BABLON Patrice | E38: M | F38: 32.5 | G38: 1 | H38: babpat | I38: =COUNTIF($H$2:H38,H38) -> 1 | J38: BABLON | K38: Patrice | L38: Patrice | N38: 44932326 | O38: M. | P38: BABLON | Q38: Patrice | R38: M | S38: France | T38: 61 | U38: 21253 | V38: SENIOR M | W38: 32.5 | X38: 43543 | Y38: Pas de Drapeau / Opens | AA38: 43188 | AB38: 1 | AC38: 18 RUE DE LA GRANDE BRIERE | AF38: 78180 | AG38: MONTIGNY LE BRETONNEUX | AH38: France | AI38: GOLF.PATRICE@YAHOO.COM | AJ38: 751613597 | AK38: 78 - Yvelines | AL38: 0403 - BLUEGREEN SAINT QUENTIN EN YVELINES | AM38: 78 - Yvelines | AN38: Z | AO38: 43491 | AP38: Adulte | AQ38: 43491 | AR38: 2019 | AS38: 2018 | AT38: 43575 | AU38: Classé | AV38: Licencié | AW38: OUI | BA38: 43921 | BB38: 43533 | BC38: NON
A39: =IF(G39=1,COUNTIF(G$2:G39,G39),0) -> 0 | B39: bafced | C39: =COUNTIF(B$2:B39,B39) -> 1 | D39: BAFFERT Cedric | E39: M | F39: 35.5 | G39: 0 | H39: bafced | I39: =COUNTIF($H$2:H39,H39) -> 1 | J39: BAFFERT | K39: Cedric | L39: Cedric | N39: 524004239 | O39: M. | P39: BAFFERT | Q39: Cedric | R39: M | S39: France | T39: 46 | U39: 26812 | V39: MID AMATEUR M | W39: 35.5 | X39: 40820 | Y39: Pas de Drapeau / Opens | AA39: 40020 | AB39: 3 | AC39: 58 RUE DE MONTREUIL | AF39: 78000 | AG39: VERSAILLES | AH39: France | AI39: CEDRIC_BAFFERT@YAHOO.COM | AJ39: 33632375964 | AK39: 78 - Yvelines | AL39: 0403 - BLUEGREEN SAINT QUENTIN EN YVELINES | AM39: 78 - Yvelines | AN39: Z | AO39: 43507 | AP39: Adulte | AQ39: 43507 | AR39: 2019 | AS39: 2009 | AT39: 40903 | AU39: Classé | AV39: Licencié | AW39: OUI | AY39: NON | BA39: 41364 | BC39: NON
A40: =IF(G40=1,COUNTIF(G$2:G40,G40),0) -> 25 | B40: baichr | C40: =COUNTIF(B$2:B40,B40) -> 1 | D40: BAILLY Christophe | E40: M | F40: 54 | G40: 1 | H40: baichr | I40: =COUNTIF($H$2:H40,H40) -> 1 | J40: BAILLY | K40: Christophe | L40: Christophe | N40: 42843335 | O40: M. | P40: BAILLY | Q40: Christophe | R40: M | S40: France | T40: 51 | U40: 25159 | V40: SENIOR M | W40: 54.0 | X40: 43471 | AB40: 2 | AC40: 2 BIS RUE DU PETIT PORT | AF40: 78690 | AG40: LES ESSARTS LE ROI | AH40: France | AI40: CHRISTOPHE.BAILLY@AMUNDI.COM | AK40: 78 - Yvelines | AL40: 0403 - BLUEGREEN SAINT QUENTIN EN YVELINES | AM40: 78 - Yvelines | AN40: C | AO40: 43471 | AP40: Adulte | AQ40: 43471 | AR40: 2019 | AS40: 2019 | AU40: Non classé | AV40: Licencié | AW40: OUI | BC40: NON
A41: =IF(G41=1,COUNTIF(G$2:G41,G41),0) -> 26 | B41: balger | C41: =COUNTIF(B$2:B41,B41) -> 1 | D41: BALLAND Gerard | E41: M | F41: 31.5 | G41: 1 | H41: balger | I41: =COUNTIF($H$2:H41,H41) -> 1 | J41: BALLAND | K41: Gerard | L41: Gerard | N41: 42597289 | O41: M. | P41: BALLAND | Q41: Gerard | R41: M | S41: France | T41: 73 | U41: 17125 | V41: VETERAN M | W41: 31.5 | X41: 43725 | Y41: Pas de Drapeau / Opens | AA41: 41983 | AB41: 2 | AC41: 154 AVENUE DE WAGRAM | AF41: 75017 | AG41: PARIS | AH41: France | AI41: ggballand@free.fr | AJ41: 33610180512 | AK41: 75 - Paris | AL41: 0403 - BLUEGREEN SAINT QUENTIN EN YVELINES | AM41: 78 - Yvelines | AN41: R | AO41: 43561 | AP41: Adulte | AQ41: 43561 | AR41: 2019 | AS41: 2014 | AT41: 43203 | AU41: Classé | AV41: Licencié | AW41: OUI | BA41: 43921 | BB41: 43561 | BC41: NON
A42: =IF(G42=1,COUNTIF(G$2:G42,G42),0) -> 27 | B42: banyve | C42: =COUNTIF(B$2:B42,B42) -> 1 | D42: BANCTEL Yves | E42: M | F42: 27.3 | G42: 1 | H42: banyve | I42: =COUNTIF($H$2:H42,H42) -> 1 | J42: BANCTEL | K42: Yves | L42: Yves | N42: 543575195 | O42: M. | P42: BANCTEL | Q42: Yves | R42: M | S42: France | T42: 68 | U42: 18632 | V42: VETERAN M | W42: 27.3 | X42: 42280 | Y42: Pas de Drapeau / Opens | AB42: 2 | AC42: 107 AVENUE SIMON BOLIVAR | AF42: 75019 | AG42: PARIS | AH42: France | AI42: YVES.BANCTEL@BBOX.FR | AJ42: 33660093606 | AK42: 75 - Paris | AL42: 0403 - BLUEGREEN SAINT QUENTIN EN YVELINES | AM42: 78 - Yvelines | AN42: Z | AO42: 43548 | AP42: Adulte | AQ42: 43548 | AR42: 2019 | AS42: 2005 | AT42: 42673 | AU42: Classé | AV42: Licencié | AW42: OUI | BA42: 42825 | BC42: NON
A43: =IF(G43=1,COUNTIF(G$2:G43,G43),0) -> 0 | B43: banric | C43: =COUNTIF(B$2:B43,B43) -> 1 | D43: BANOVIC Richard | E43: M | F43: 12.5 | G43: 0 | H43: banric | I43: =COUNTIF($H$2:H43,H43) -> 1 | J43: BANOVIC | K43: Richard | L43: Richard | N43: 43569295 | O43: M. | P43: BANOVIC | Q43: Richard | R43: M | S43: France | T43: 40 | U43: 29075 | V43: MID AMATEUR M | W43: 12.5 | X43: 43337 | Y43: Pas de Drapeau / Opens | AA43: 42016 | AB43: 3 | AC43: 86 RUE DE LA BONNE AVENTURE | AF43: 78000 | AG43: VERSAILLES | AH43: France | AI43: richardb12@hotmail.fr | AJ43: 33630552458 | AK43: 78 - Yvelines | AL43: 0403 - BLUEGREEN SAINT QUENTIN EN YVELINES | AM43: 78 - Yvelines | AN43: Z | AO43: 43585 | AP43: Adulte | AQ43: 43585 | AR43: 2019 | AS43: 2015 | AT43: 42911 | AU43: Classé | AV43: Licencié | AW43: OUI | AY43: OUI | BA43: 43921 | BB43: 43585 | BC43: NON
A44: =IF(G44=1,COUNTIF(G$2:G44,G44),0) -> 0 | B44: barl-w | C44: =COUNTIF(B$2:B44,B44) -> 1 | D44: BARBIER Leo William | E44: M | F44: 54 | G44: 0 | H44: barl-w | I44: =COUNTIF($H$2:H44,H44) -> 1 | J44: BARBIER | K44: L-William | L44: Leo-William | N44: 513574331 | O44: M. | P44: BARBIER | Q44: Leo William | R44: M | S44: France | T44: 13 | U44: 38838 | V44: BENJAMIN 1 | W44: 54.0 | X44: 43579 | AB44: 1 | AC44: 44 RUE ALEXANDRE TURPAULT | AF44: 78390 | AG44: BOIS D ARCY | AH44: France | AI44: LEO.BARBIER@BBOX.FR | AJ44: 665216798 | AK44: 78 - Yvelines | AL44: 0403 - BLUEGREEN SAINT QUENTIN EN YVELINES | AM44: 78 - Yvelines | AN44: C | AO44: 43579 | AP44: Jeune | AQ44: 43579 | AR44: 2019 | AS44: 2019 | AT44: 43640 | AU44: Non classé | AV44: Licencié | AW44: OUI | BA44: 43921 | BC44: NON
A45: =IF(G45=1,COUNTIF(G$2:G45,G45),0) -> 28 | B45: baroli | C45: =COUNTIF(B$2:B45,B45) -> 1 | D45: BARBIER Olivier | E45: M | F45: 18.2 | G45: 1 | H45: baroli | I45: =COUNTIF($H$2:H45,H45) -> 1 | J45: BARBIER | K45: Olivier | L45: Olivier | N45: 526499103 | O45: M. | P45: BARBIER | Q45: Olivier | R45: M | S45: France | T45: 52 | U45: 24619 | V45: SENIOR M | W45: 18.2 | X45: 43730 | Y45: Pas de Drapeau / Opens | AA45: 39600 | AB45: 1 | AC45: 44 RUE ALEXANDRE TURPAULT | AF45: 78390 | AG45: BOIS D ARCY | AH45: France | AI45: olivier.barbier@bbox.fr | AJ45: 33660314330 | AK45: 78 - Yvelines | AL45: 0403 - BLUEGREEN SAINT QUENTIN EN YVELINES | AM45: 78 - Yvelines | AN45: R | AO45: 43471 | AP45: Adulte | AQ45: 43471 | AR45: 2019 | AS45: 1996 | AT45: 42996 | AU45: Classé | AV45: Licencié | AW45: OUI | BA45: 43921 | BB45: 43505 | BC45: NON
A46: =IF(G46=1,COUNTIF(G$2:G46,G46),0) -> 0 | B46: barval | C46: =COUNTIF(B$2:B46,B46) -> 1 | D46: BARBIER Valentin | E46: M | F46: 54 | G46: 0 | H46: barval | I46: =COUNTIF($H$2:H46,H46) -> 1 | J46: BARBIER | K46: Valentin | L46: Valentin | N46: 534657328 | O46: M. | P46: BARBIER | Q46: Valentin | R46: M | S46: France | T46: 22 | U46: 35760 | V46: ADULTE M | W46: 54.0 | X46: 43419 | Y46: Pas de Drapeau / Opens | AB46: 3 | AC46: 49 RUE DU MOULIN | AF46: 60000 | AG46: TILLE | AH46: France | AI46: VALENTINBARBIER@ORANGE.FR | AJ46: 677447411 | AK46: 60 - Oise | AL46: 0403 - BLUEGREEN SAINT QUENTIN EN YVELINES | AM46: 78 - Yvelines | AN46: R | AO46: 43439 | AP46: Renouvellement 2018/2019 | AQ46: 43439 | AR46: 2019 | AS46: 2018 | AU46: Non classé | AV46: Licencié | AW46: OUI | AY46: NON | BC46: NON
A47: =IF(G47=1,COUNTIF(G$2:G47,G47),0) -> 29 | B47: bareug | C47: =COUNTIF(B$2:B47,B47) -> 1 | D47: BARBO Eugène | E47: M | F47: 25.2 | G47: 1 | H47: bareug | I47: =COUNTIF($H$2:H47,H47) -> 1 | J47: BARBO | K47: Eugene | L47: Eugene | N47: 527941015 | O47: M. | P47: BARBO | Q47: Eugène | R47: M | S47: France | T47: 76 | U47: 15987 | V47: VETERAN M | W47: 25.2 | X47: 40909 | Y47: Pas de Drapeau / Opens | AB47: 2 | AC47: 44 AVENUE DU PARC | AF47: 78340 | AG47: LES CLAYES SOUS BOIS | AH47: France | AI47: claudette.barbo@gmail.com | AJ47: 33668383868 | AK47: 78 - Yvelines | AL47: 0403 - BLUEGREEN SAINT QUENTIN EN YVELINES | AM47: 78 - Yvelines | AN47: R | AO47: 43502 | AP47: Adulte | AQ47: 43502 | AR47: 2019 | AS47: 1987 | AT47: 43232 | AU47: Classé | AV47: Licencié | AW47: OUI | BA47: 43555 | BC47: NON
A48: =IF(G48=1,COUNTIF(G$2:G48,G48),0) -> 30 | B48: barj-a | C48: =COUNTIF(B$2:B48,B48) -> 1 | D48: BARDEAU Jean-Arthur | E48: M | F48: 21.2 | G48: 1 | H48: barj-a | I48: =COUNTIF($H$2:H48,H48) -> 1 | J48: BARDEAU | K48: J-Arthur | L48: Jean-Arthur | N48: 49303100 | O48: M. | P48: BARDEAU | Q48: Jean-Arthur | R48: M | S48: France | T48: 75 | U48: 16121 | V48: VETERAN M | W48: 21.2 | X48: 40909 | Y48: Pas de Drapeau / Opens | AA48: 35148 | AB48: 2 | AC48: 23 RUE DES JARDINS | AF48: 92380 | AG48: GARCHES | AH48: France | AJ48: 33607531414 | AK48: 92 - Hauts-de-Seine | AL48: 0403 - BLUEGREEN SAINT QUENTIN EN YVELINES | AM48: 78 - Yvelines | AN48: R | AO48: 43469 | AP48: Adulte | AQ48: 43469 | AR48: 2019 | AS48: 1996 | AT48: 43191 | AU48: Classé | AV48: Licencié | AW48: OUI | BA48: 43555 | BC48: NON
A49: =IF(G49=1,COUNTIF(G$2:G49,G49),0) -> 31 | B49: barand | C49: =COUNTIF(B$2:B49,B49) -> 1 | D49: BARRAL Andre | E49: M | F49: 45 | G49: 1 | H49: barand | I49: =COUNTIF($H$2:H49,H49) -> 1 | J49: BARRAL | K49: Andre | L49: Andre | N49: 526801123 | O49: M. | P49: BARRAL | Q49: Andre | R49: M | S49: France | T49: 83 | U49: 13240 | V49: VETERAN M | W49: 45.0 | X49: 40909 | Y49: Pas de Drapeau / Opens | AA49: 36371 | AB49: 3 | AC49: 4 RUE LA BRUYERE | AF49: 78640 | AG49: ST GERMAIN DE LA GRANGE | AH49: France | AI49: barral.andre@wanadoo.fr | AJ49: 33608710766 | AK49: 78 - Yvelines | AL49: 0403 - BLUEGREEN SAINT QUENTIN EN YVELINES | AM49: 78 - Yvelines | AN49: R | AO49: 43501 | AP49: Adulte | AQ49: 43501 | AR49: 2019 | AS49: 1998 | AU49: Classé | AV49: Licencié | AW49: OUI | AY49: NON | BC49: NON
A50: =IF(G50=1,COUNTIF(G$2:G50,G50),0) -> 0 | B50: barlau | C50: =COUNTIF(B$2:B50,B50) -> 1 | D50: BARREAU Laurence | E50: F | F50: 54 | G50: 0 | H50: barlau | I50: =COUNTIF($H$2:H50,H50) -> 1 | J50: BARREAU | K50: Laurence | L50: Laurence | N50: 544263163 | O50: Mme | P50: BARREAU | Q50: Laurence | R50: F | S50: France | T50: 48 | U50: 26030 | V50: MID AMATEUR F | W50: 54.0 | X50: 40909 | Y50: Pas de Drapeau / Opens | AA50: 42987 | AB50: 3 | AC50: 6 RUE HENRI COCHET | AF50: 78180 | AG50: MONTIGNY LE BRETONNEUX | AH50: France | AI50: laurencebarreau@yahoo.fr | AJ50: 33662759325 | AK50: 78 - Yvelines | AL50: 0403 - BLUEGREEN SAINT QUENTIN EN YVELINES | AM50: 78 - Yvelines | AN50: R | AO50: 43468 | AP50: Adulte | AQ50: 43468 | AR50: 2019 | AS50: 2002 | AU50: Non classé | AV50: Licencié | AW50: OUI | AY50: NON | BC50: NON
A51: =IF(G51=1,COUNTIF(G$2:G51,G51),0) -> 0 | B51: basoli | C51: =COUNTIF(B$2:B51,B51) -> 1 | D51: BASSO Olivier | E51: M | F51: 20 | G51: 0 | H51: basoli | I51: =COUNTIF($H$2:H51,H51) -> 1 | J51: BASSO | K51: =IF(ISERR(SEARCH("-",L51)),L51,CONCATENATE(LEFT(L51,1),MID(L51,SEARCH("-",L51),30))) -> Olivier | L51: Olivier | N51: 527670308 | O51: M. | P51: BASSO | Q51: Olivier | R51: M | S51: France | T51: 34 | U51: 31308 | V51: MID AMATEUR M | W51: 20.0 | X51: 43660 | Y51: Pas de Drapeau / Opens | AA51: 42651 | AB51: 2 | AC51: 9 ALLEE DES BIGARDIERS | AF51: 78640 | AG51: NEAUPHLE LE CHATEAU | AH51: France | AI51: OLIVIERBASSO@ORANGE.FR | AJ51: 33664754300 | AK51: 78 - Yvelines | AL51: 0403 - BLUEGREEN SAINT QUENTIN EN YVELINES | AM51: 78 - Yvelines | AN51: R | AO51: 43583 | AP51: Adulte | AQ51: 43583 | AR51: 2019 | AS51: 2016 | AT51: 43275 | AU51: Classé | AV51: Licencié | AW51: OUI | BA51: 43921 | BB51: 43618 | BC51: NON
A52: =IF(G52=1,COUNTIF(G$2:G52,G52),0) -> 32 | B52: bauj-p | C52: =COUNTIF(B$2:B52,B52) -> 1 | D52: BAUDIFFIER Jean-Pierre | E52: M | F52: 25.8 | G52: 1 | H52: bauj-p | I52: =COUNTIF($H$2:H52,H52) -> 1 | J52: BAUDIFFIER | K52: =IF(ISERR(SEARCH("-",L52)),L52,CONCATENATE(LEFT(L52,1),MID(L52,SEARCH("-",L52),30))) -> J-Pierre | L52: Jean-Pierre | N52: 512989172 | O52: M. | P52: BAUDIFFIER | Q52: Jean-Pierre | R52: M | S52: France | T52: 75 | U52: 16154 | V52: VETERAN M | W52: 25.8 | X52: 43725 | Y52: Pas de Drapeau / Opens | AA52: 37689 | AB52: 1 | AC52: 22 CHEMIN DU VIVIER | AF52: 78310 | AG52: MAUREPAS | AH52: France | AI52: jeanpierre.baudiffier@sfr.fr | AJ52: 33665693988 | AK52: 78 - Yvelines | AL52: 0403 - BLUEGREEN SAINT QUENTIN EN YVELINES | AM52: 78 - Yvelines | AN52: R | AO52: 43468 | AP52: Adulte | AQ52: 43468 | AR52: 2019 | AS52: 2003 | AT52: 43482 | AU52: Classé | AV52: Licencié | AW52: OUI | BA52: 43921 | BC52: NON
A53: =IF(G53=1,COUNTIF(G$2:G53,G53),0) -> 33 | B53: beap-h | C53: =COUNTIF(B$2:B53,B53) -> 1 | D53: BEAUCHAMP Paul Henri | E53: M | F53: 29.5 | G53: 1 | H53: beap-h | I53: =COUNTIF($H$2:H53,H53) -> 1 | J53: BEAUCHAMP | K53: P-Henri | L53: Paul-Henri | N53: 42822305 | O53: M. | P53: BEAUCHAMP | Q53: Paul Henri | R53: M | S53: France | T53: 63 | U53: 20776 | V53: SENIOR M | W53: 29.5 | X53: 43393 | Y53: Pas de Drapeau / Opens | AA53: 42401 | AB53: 2 | AC53: 23 RUE CHAMPS LA GARDE | AD53: BAT 9 | AF53: 78000 | AG53: VERSAILLES | AH53: France | AI53: phbeauchamp@cnim.com | AJ53: 638387579 | AK53: 78 - Yvelines | AL53: 0403 - BLUEGREEN SAINT QUENTIN EN YVELINES | AM53: 78 - Yvelines | AN53: R | AO53: 43478 | AP53: Adulte | AQ53: 43478 | AR53: 2019 | AS53: 2016 | AT53: 43513 | AU53: Classé | AV53: Licencié | AW53: OUI | BA53: 43921 | BC53: NON
A54: =IF(G54=1,COUNTIF(G$2:G54,G54),0) -> 34 | B54: beadid | C54: =COUNTIF(B$2:B54,B54) -> 1 | D54: BEAUTEMPS Didier | E54: M | F54: 37 | G54: 1 | H54: beadid | I54: =COUNTIF($H$2:H54,H54) -> 1 | J54: BEAUTEMPS | K54: Didier | L54: Didier | N54: 524117260 | O54: M. | P54: BEAUTEMPS | Q54: Didier | R54: M | S54: France | T54: 60 | U54: 21657 | V54: SENIOR M | W54: 37.0 | X54: 43648 | Y54: Pas de Drapeau / Opens | AA54: 41104 | AB54: 3 | AC54: 3 VILLA DU BOIS D'ORME | AF54: 75019 | AG54: PARIS | AH54: France | AI54: d.beautemps@ateliercos.com | AJ54: 688691762 | AK54: 75 - Paris | AL54: 0403 - BLUEGREEN SAINT QUENTIN EN YVELINES | AM54: 78 - Yvelines | AN54: R | AO54: 43452 | AP54: Adulte | AQ54: 43452 | AR54: 2019 | AS54: 2012 | AT54: 43647 | AU54: Classé | AV54: Licencié | AW54: OUI | AY54: NON | BA54: 43921 | BC54: OUI
A55: =IF(G55=1,COUNTIF(G$2:G55,G55),0) -> 35 | B55: belmic | C55: =COUNTIF(B$2:B55,B55) -> 1 | D55: BELEY Michel | E55: M | F55: 15.9 | G55: 1 | H55: belmic | I55: =COUNTIF($H$2:H55,H55) -> 1 | J55: BELEY | K55: Michel | L55: Michel | N55: 517483066 | O55: M. | P55: BELEY | Q55: Michel | R55: M | S55: France | T55: 82 | U55: 13843 | V55: VETERAN M | W55: 15.9 | X55: 42115 | Y55: Pas de Drapeau / Opens | AB55: 1 | AC55: 110 RUE PIERRE BROSSOLETTE | AF55: 92320 | AG55: CHATILLON | AH55: France | AI55: MICHEL.BELEY@NUMERICALBE.FR | AJ55: 689396307 | AK55: 92 - Hauts-de-Seine | AL55: 0403 - BLUEGREEN SAINT QUENTIN EN YVELINES | AM55: 78 - Yvelines | AN55: R | AO55: 43472 | AP55: Adulte | AQ55: 43472 | AR55: 2019 | AS55: 1992 | AT55: 42784 | AU55: Classé | AV55: Licencié | AW55: OUI | BA55: 43921 | BB55: 43522 | BC55: NON
A56: =IF(G56=1,COUNTIF(G$2:G56,G56),0) -> 0 | B56: belale | C56: =COUNTIF(B$2:B56,B56) -> 1 | D56: BELLAMY-BROWN Alexis | E56: M | F56: 54 | G56: 0 | H56: belale | I56: =COUNTIF($H$2:H56,H56) -> 1 | J56: BELLAMY-BROWN | K56: Alexis | L56: Alexis | N56: 3796272 | O56: M. | P56: BELLAMY-BROWN | Q56: Alexis | R56: M | S56: France | T56: 42 | U56: 28379 | V56: MID AMATEUR M | W56: 54.0 | X56: 41275 | Y56: Pas de Drapeau / Opens | AA56: 41252 | AB56: 3 | AC56: 3 BOULEVARD PERSHING | AF56: 75017 | AG56: PARIS | AH56: France | AI56: ALEXIS.BELLAMYBROWN@GMAIL.COM | AJ56: 33661347607 | AK56: 75 - Paris | AL56: 0403 - BLUEGREEN SAINT QUENTIN EN YVELINES | AM56: 78 - Yvelines | AN56: Z | AO56: 43533 | AP56: Adulte | AQ56: 43533 | AR56: 2019 | AS56: 2013 | AU56: Non classé | AV56: Licencié | AW56: OUI | AY56: NON | BC56: NON
A57: =IF(G57=1,COUNTIF(G$2:G57,G57),0) -> 36 | B57: belber | C57: =COUNTIF(B$2:B57,B57) -> 1 | D57: BELLAN Bernard | E57: M | F57: 17.5 | G57: 1 | H57: belber | I57: =COUNTIF($H$2:H57,H57) -> 1 | J57: BELLAN | K57: Bernard | L57: Bernard | N57: 45419307 | O57: M. | P57: BELLAN | Q57: Bernard | R57: M | S57: France | T57: 61 | U57: 21237 | V57: SENIOR M | W57: 17.5 | X57: 43729 | Y57: Pas de Drapeau / Opens | AA57: 42427 | AB57: 2 | AC57: 11 RUE LOUISE MICHEL | AF57: 78280 | AG57: GUYANCOURT | AH57: France | AI57: BRENARD.BELLAN@WSP.COM | AJ57: 33687247956 | AK57: 78 - Yvelines | AL57: 0403 - BLUEGREEN SAINT QUENTIN EN YVELINES | AM57: 78 - Yvelines | AN57: R | AO57: 43503 | AP57: Adulte | AQ57: 43503 | AR57: 2019 | AS57: 2016 | AT57: 43544 | AU57: Classé | AV57: Licencié | AW57: OUI | BA57: 43921 | BC57: NON
A58: =IF(G58=1,COUNTIF(G$2:G58,G58),0) -> 0 | B58: belcha | C58: =COUNTIF(B$2:B58,B58) -> 1 | D58: BELLE Charlotte | E58: F | F58: 54 | G58: 0 | H58: belcha | I58: =COUNTIF($H$2:H58,H58) -> 1 | J58: BELLE | K58: Charlotte | L58: Charlotte | N58: 45057339 | O58: Mlle | P58: BELLE | Q58: Charlotte | R58: F | S58: France | T58: 7 | U58: 40981 | V58: ENFANT | W58: 54.0 | X58: 43491 | Y58: Drapeau Rouge | Z58: 43555 | AB58: 1 | AC58: 35 RUE DE BELLEVUE | AF58: 92100 | AG58: BOULOGNE BILLANCOURT | AH58: France | AI58: SEB.BELLE@WANADOO.FR | AK58: 92 - Hauts-de-Seine | AL58: 0403 - BLUEGREEN SAINT QUENTIN EN YVELINES | AM58: 78 - Yvelines | AN58: C | AO58: 43491 | AP58: Enfant | AQ58: 43491 | AR58: 2019 | AS58: 2019 | AT58: 43499 | AU58: Non classé | AV58: Licencié | AW58: OUI | BA58: 43921 | BC58: NON
A59: =IF(G59=1,COUNTIF(G$2:G59,G59),0) -> 0 | B59: beljul | C59: =COUNTIF(B$2:B59,B59) -> 1 | D59: BELLE Julien | E59: M | F59: 47 | G59: 0 | H59: beljul | I59: =COUNTIF($H$2:H59,H59) -> 1 | J59: BELLE | K59: Julien | L59: Julien | N59: 44604305 | O59: M. | P59: BELLE | Q59: Julien | R59: M | S59: France | T59: 10 | U59: 39836 | V59: POUCET 2 | W59: 47.0 | X59: 42903 | Y59: Drapeau de Bronze | Z59: 43622 | AB59: 1 | AC59: 35 RUE DE BELLEVUE | AF59: 92100 | AG59: BOULOGNE BILLANCOURT | AH59: France | AI59: SEB.BELLE@WANADOO.FR | AJ59: 685308195 | AK59: 92 - Hauts-de-Seine | AL59: 0403 - BLUEGREEN SAINT QUENTIN EN YVELINES | AM59: 78 - Yvelines | AN59: W | AO59: 43491 | AP59: Enfant | AQ59: 43491 | AR59: 2019 | AS59: 2016 | AT59: 43499 | AU59: Classé | AV59: Licencié | AW59: OUI | BA59: 43921 | BC59: NON
A60: =IF(G60=1,COUNTIF(G$2:G60,G60),0) -> 37 | B60: belseb | C60: =COUNTIF(B$2:B60,B60) -> 1 | D60: BELLE Sébastien | E60: M | F60: 54 | G60: 1 | H60: belseb | I60: =COUNTIF($H$2:H60,H60) -> 1 | J60: BELLE | K60: Sebastien | L60: Sebastien | N60: 47376323 | O60: M. | P60: BELLE | Q60: Sébastien | R60: M | S60: France | T60: 52 | U60: 24489 | V60: SENIOR M | W60: 54.0 | X60: 43164 | Y60: Pas de Drapeau / Opens | AB60: 3 | AC60: 35 RUE DE BELLEVUE | AF60: 92100 | AG60: BOULOGNE BILLANCOURT | AH60: France | AI60: SEB.BELLE@WANADOO.FR | AJ60: 33685308195 | AK60: 92 - Hauts-de-Seine | AL60: 0403 - BLUEGREEN SAINT QUENTIN EN YVELINES | AM60: 78 - Yvelines | AN60: Z | AO60: 43499 | AP60: Adulte | AQ60: 43499 | AR60: 2019 | AS60: 2018 | AU60: Non classé | AV60: Licencié | AW60: OUI | AY60: NON | BC60: NON
A61: =IF(G61=1,COUNTIF(G$2:G61,G61),0) -> 38 | B61: belpie | C61: =COUNTIF(B$2:B61,B61) -> 1 | D61: BELLON-SERRE Pierre | E61: M | F61: 23.9 | G61: 1 | H61: belpie | I61: =COUNTIF($H$2:H61,H61) -> 1 | J61: BELLON-SERRE | K61: Pierre | L61: Pierre | N61: 515539027 | O61: M. | P61: BELLON-SERRE | Q61: Pierre | R61: M | S61: France | T61: 70 | U61: 18090 | V61: VETERAN M | W61: 23.9 | X61: 40909 | Y61: Pas de Drapeau / Opens | AB61: 2 | AC61: 104 RUE D AGUESSEAU | AF61: 92100 | AG61: BOULOGNE BILLANCOURT | AH61: France | AI61: PIERRE.BELLONSERRE@yahoo.fr | AK61: 92 - Hauts-de-Seine | AL61: 0403 - BLUEGREEN SAINT QUENTIN EN YVELINES | AM61: 78 - Yvelines | AN61: W | AO61: 43483 | AP61: Adulte | AQ61: 43483 | AR61: 2019 | AS61: 1988 | AU61: Classé | AV61: Licencié | AW61: OUI | BC61: NON
A62: =IF(G62=1,COUNTIF(G$2:G62,G62),0) -> 39 | B62: belnic | C62: =COUNTIF(B$2:B62,B62) -> 1 | D62: BELONIA Nicolas | E62: M | F62: 11.1 | G62: 1 | H62: belnic | I62: =COUNTIF($H$2:H62,H62) -> 1 | J62: BELONIA | K62: Nicolas | L62: Nicolas | N62: 513010225 | O62: M. | P62: BELONIA | Q62: Nicolas | R62: M | S62: France | T62: 60 | U62: 21693 | V62: SENIOR M | W62: 11.1 | X62: 42547 | Y62: Pas de Drapeau / Opens | AB62: 2 | AC62: 223 AVENUE CHARLES DE GAULLE | AF62: 92200 | AG62: NEUILLY SUR SEINE | AH62: France | AI62: BELONIA.NICOLAS8@GMAIL.COM | AJ62: 33686393274 | AK62: 92 - Hauts-de-Seine | AL62: 0403 - BLUEGREEN SAINT QUENTIN EN YVELINES | AM62: 78 - Yvelines | AN62: R | AO62: 43505 | AP62: Adulte | AQ62: 43505 | AR62: 2019 | AS62: 2008 | AT62: 42415 | AU62: Classé | AV62: Licencié | AW62: OUI | BA62: 42825 | BC62: NON
A63: =IF(G63=1,COUNTIF(G$2:G63,G63),0) -> 0 | B63: benlou | C63: =COUNTIF(B$2:B63,B63) -> 1 | D63: BENAZETH Lou | E63: F | F63: 54 | G63: 0 | H63: benlou | I63: =COUNTIF($H$2:H63,H63) -> 1 | J63: BENAZETH | K63: Lou | L63: Lou | N63: 46031332 | O63: Mme | P63: BENAZETH | Q63: Lou | R63: F | S63: France | T63: 24 | U63: 34998 | V63: ADULTE F | W63: 54.0 | X63: 43504 | AB63: 2 | AC63: 6 PLACE OVALE | AF63: 78190 | AG63: TRAPPES | AH63: France | AI63: LOU.BENAZETH@ORANGE.FR | AK63: 78 - Yvelines | AL63: 0403 - BLUEGREEN SAINT QUENTIN EN YVELINES | AM63: 78 - Yvelines | AN63: C | AO63: 43504 | AP63: Jeune Adulte | AQ63: 43504 | AR63: 2019 | AS63: 2019 | AU63: Non classé | AV63: Licencié | AW63: OUI | BC63: NON
A64: =IF(G64=1,COUNTIF(G$2:G64,G64),0) -> 0 | B64: benced | C64: =COUNTIF(B$2:B64,B64) -> 1 | D64: BENMEGAL Cédric | E64: M | F64: 18.3 | G64: 0 | H64: benced | I64: =COUNTIF($H$2:H64,H64) -> 1 | J64: BENMEGAL | K64: Cedric | L64: Cedric | N64: 512497211 | O64: M. | P64: BENMEGAL | Q64: Cédric | R64: M | S64: France | T64: 49 | U64: 25889 | V64: MID AMATEUR M | W64: 18.3 | X64: 43730 | Y64: Pas de Drapeau / Opens | AA64: 39055 | AB64: 3 | AC64: 11 SQUARE DE LA THELLE | AF64: 78310 | AG64: MAUREPAS | AH64: France | AI64: cedricben@yahoo.fr | AJ64: 33610161107 | AK64: 78 - Yvelines | AL64: 0403 - BLUEGREEN SAINT QUENTIN EN YVELINES | AM64: 78 - Yvelines | AN64: R | AO64: 43508 | AP64: Adulte | AQ64: 43508 | AR64: 2019 | AS64: 2007 | AT64: 43658 | AU64: Classé | AV64: Licencié | AW64: OUI | AY64: NON | BA64: 43921 | BC64: NON
A65: =IF(G65=1,COUNTIF(G$2:G65,G65),0) -> 40 | B65: benpie | C65: =COUNTIF(B$2:B65,B65) -> 1 | D65: BENOIT Pierre | E65: M | F65: 54 | G65: 1 | H65: benpie | I65: =COUNTIF($H$2:H65,H65) -> 1 | J65: BENOIT | K65: Pierre | L65: Pierre | N65: 47948320 | O65: M. | P65: BENOIT | Q65: Pierre | R65: M | S65: France | T65: 68 | U65: 18970 | V65: VETERAN M | W65: 54.0 | X65: 43172 | Y65: Pas de Drapeau / Opens | AA65: 43297 | AB65: 2 | AC65: 3 SQUARE DE SARDAIGNE | AF65: 78180 | AG65: MONTIGNY LE BRETONNEUX | AH65: France | AI65: pbenoit@wanadoo.fr | AJ65: 33603982726 | AK65: 78 - Yvelines | AL65: 0403 - BLUEGREEN SAINT QUENTIN EN YVELINES | AM65: 78 - Yvelines | AN65: R | AO65: 43529 | AP65: Adulte | AQ65: 43529 | AR65: 2019 | AS65: 2018 | AT65: 43179 | AU65: Non classé | AV65: Licencié | AW65: OUI | BA65: 43555 | BC65: NON
A66: =IF(G66=1,COUNTIF(G$2:G66,G66),0) -> 41 | B66: =IF(I66=1,H66,CONCATENATE(SUBSTITUTE(SUBSTITUTE(SUBSTITUTE(SUBSTITUTE(LEFT(H66,3),"i",1),"e","€"),"o","0"),"a","@"),RIGHT(H66,3))) -> bentao | C66: =COUNTIF(B$2:B66,B66) -> 1 | D66: BENSALAH Taoufik | E66: M | F66: 22.3 | G66: =IF(T66>49,1,0) -> 1 | H66: bentao | I66: =COUNTIF($H$2:H66,H66) -> 1 | J66: BENSALAH | K66: Taoufik | L66: =SUBSTITUTE(SUBSTITUTE(SUBSTITUTE(SUBSTITUTE(SUBSTITUTE(Q66," ","-"),".","-"),"é","e"),"ë","e"),"è","e") -> Taoufik | N66: 43086299 | O66: M. | P66: BENSALAH | Q66: Taoufik | R66: M | S66: France | T66: 56 | U66: 23089 | V66: SENIOR M | W66: 22.3 | X66: 43639 | Y66: Pas de Drapeau / Opens | AA66: 42016 | AB66: 3 | AC66: 27 AVENUE AUGUSTE RENOIR | AF66: 78160 | AG66: MARLY LE ROI | AH66: France | AI66: taoufik.bensalah@free.fr | AJ66: 33674406577 | AK66: 78 - Yvelines | AL66: 0403 - BLUEGREEN SAINT QUENTIN EN YVELINES | AM66: 78 - Yvelines | AN66: Z | AO66: 43498 | AP66: Adulte | AQ66: 43498 | AR66: 2019 | AS66: 2015 | AT66: 43500 | AU66: Classé | AV66: Licencié | AW66: OUI | AY66: OUI | BA66: 43921 | BC66: NON
A67: =IF(G67=1,COUNTIF(G$2:G67,G67),0) -> 0 | B67: bercar | C67: =COUNTIF(B$2:B67,B67) -> 1 | D67: =CONCATENATE(P67," ",Q67) -> BERGER Caroline | E67: =R67 -> F | F67: =SUBSTITUTE(W67,".",",")*1 -> 54 | G67: 0 | H67: =LOWER(CONCATENATE(LEFT(J67,3),LEFT(K67,3))) -> bercar | I67: =COUNTIF($H$2:H67,H67) -> 1 | J67: BERGER | K67: Caroline | L67: Caroline | N67: 519317330 | O67: Mme | P67: BERGER | Q67: Caroline | R67: F | S67: France | T67: 23 | U67: 35125 | V67: ADULTE F | W67: 54.0 | X67: 43639 | AA67: 43639 | AB67: 2 | AC67: 47 RUE DE LA PROCESSION | AF67: 75015 | AG67: PARIS 15 | AH67: France | AI67: BERGER_CAROLINE@HOTMAIL.FR | AK67: 75 - Paris | AL67: 0403 - BLUEGREEN SAINT QUENTIN EN YVELINES | AM67: 78 - Yvelines | AN67: C | AO67: 43639 | AP67: Jeune Adulte | AQ67: 43639 | AR67: 2019 | AS67: 2019 | AU67: Non classé | AV67: Licencié | AW67: OUI | BC67: NON
A68: =IF(G68=1,COUNTIF(G$2:G68,G68),0) -> 0 | B68: berjul | C68: =COUNTIF(B$2:B68,B68) -> 1 | D68: BERGER Julie | E68: F | F68: 54 | G68: 0 | H68: berjul | I68: =COUNTIF($H$2:H68,H68) -> 1 | J68: BERGER | K68: Julie | L68: Julie | N68: 519313334 | O68: Mme | P68: BERGER | Q68: Julie | R68: F | S68: France | T68: 27 | U68: 33901 | V68: ADULTE F | W68: 54.0 | X68: 43639 | AA68: 43639 | AB68: 2 | AC68: 20 RUE DE LA MICHODIERE | AF68: 75002 | AG68: PARIS 02 | AH68: France | AI68: JLE.BERGER@GMAIL.COM | AK68: 75 - Paris | AL68: 0403 - BLUEGREEN SAINT QUENTIN EN YVELINES | AM68: 78 - Yvelines | AN68: C | AO68: 43639 | AP68: Adulte | AQ68: 43639 | AR68: 2019 | AS68: 2019 | AU68: Non classé | AV68: Licencié | AW68: OUI | BC68: NON
A69: =IF(G69=1,COUNTIF(G$2:G69,G69),0) -> 42 | B69: beroli | C69: =COUNTIF(B$2:B69,B69) -> 1 | D69: BERGER Olivier | E69: M | F69: 54 | G69: 1 | H69: beroli | I69: =COUNTIF($H$2:H69,H69) -> 1 | J69: BERGER | K69: Olivier | L69: Olivier | N69: 43957177 | O69: M. | P69: BERGER | Q69: Olivier | R69: M | S69: France | T69: 53 | U69: 24378 | V69: SENIOR M | W69: 54.0 | X69: 40909 | Y69: Pas de Drapeau / Opens | AB69: 3 | AC69: 87 RUE PASTEUR MARTIN LUTHER | AD69: KING | AF69: 28500 | AG69: VERNOUILLET | AH69: France | AI69: oliver2878@gmail.com | AJ69: 33686145045 | AK69: 28 - Eure-et-Loir | AL69: 0403 - BLUEGREEN SAINT QUENTIN EN YVELINES | AM69: 78 - Yvelines | AN69: Z | AO69: 43526 | AP69: Adulte | AQ69: 43526 | AR69: 2019 | AS69: 2003 | AT69: 42902 | AU69: Non classé | AV69: Licencié | AW69: OUI | AY69: OUI | BA69: 43555 | BC69: NON
A70: =IF(G70=1,COUNTIF(G$2:G70,G70),0) -> 43 | B70: berluc | C70: =COUNTIF(B$2:B70,B70) -> 1 | D70: BERGERON Lucie | E70: F | F70: 54 | G70: 1 | H70: berluc | I70: =COUNTIF($H$2:H70,H70) -> 1 | J70: BERGERON | K70: Lucie | L70: Lucie | N70: 532851273 | O70: Mme | P70: BERGERON | Q70: Lucie | R70: F | S70: France | T70: 60 | U70: 21643 | V70: SENIOR F | W70: 54.0 | X70: 41537 | Y70: Pas de Drapeau / Opens | AA70: 41554 | AB70: 2 | AC70: 7 BIS RUE PAUL CEZANNE | AF70: 78370 | AG70: PLAISIR | AH70: France | AI70: LUCIE.BERGERON@LIBERTYSURF.FR | AJ70: 33614906341 | AK70: 78 - Yvelines | AL70: 0403 - BLUEGREEN SAINT QUENTIN EN YVELINES | AM70: 78 - Yvelines | AN70: R | AO70: 43541 | AP70: Adulte | AQ70: 43541 | AR70: 2019 | AS70: 2013 | AU70: Non classé | AV70: Licencié | AW70: OUI | BC70: NON
A71: =IF(G71=1,COUNTIF(G$2:G71,G71),0) -> 44 | B71: berrob | C71: =COUNTIF(B$2:B71,B71) -> 1 | D71: BERGERON Robert | E71: M | F71: 22.4 | G71: 1 | H71: berrob | I71: =COUNTIF($H$2:H71,H71) -> 1 | J71: BERGERON | K71: Robert | L71: Robert | N71: 528971259 | O71: M. | P71: BERGERON | Q71: Robert | R71: M | S71: France | T71: 70 | U71: 18037 | V71: VETERAN M | W71: 22.4 | X71: 43725 | Y71: Pas de Drapeau / Opens | AA71: 40845 | AB71: 1 | AC71: 7 BIS RUE PAUL CÉZANNE | AF71: 78370 | AG71: PLAISIR | AH71: France | AI71: robert.bergeron@libertysurf.fr | AJ71: 33603067525 | AK71: 78 - Yvelines | AL71: 0403 - BLUEGREEN SAINT QUENTIN EN YVELINES | AM71: 78 - Yvelines | AN71: R | AO71: 43469 | AP71: Adulte | AQ71: 43469 | AR71: 2019 | AS71: 2011 | AT71: 43511 | AU71: Classé | AV71: Licencié | AW71: OUI | BA71: 43921 | BC71: NON
A72: =IF(G72=1,COUNTIF(G$2:G72,G72),0) -> 0 | B72: berbap | C72: =COUNTIF(B$2:B72,B72) -> 1 | D72: BERNARD Baptiste | E72: M | F72: 54 | G72: 0 | H72: berbap | I72: =COUNTIF($H$2:H72,H72) -> 1 | J72: =SUBSTITUTE(IF(ISERR(SEARCH(" ",LEFT(P72,3))),P72,CONCATENATE(LEFT(P72,1),MID(P72,4,30)))," ","-") -> BERNARD | K72: Baptiste | L72: Baptiste | N72: 45031333 | O72: M. | P72: BERNARD | Q72: Baptiste | R72: M | S72: France | T72: 8 | U72: 40712 | V72: ENFANT | W72: 54.0 | X72: 43617 | Y72: Drapeau Bleu | Z72: 43652 | AB72: 1 | AC72: 11 ALLEE DE COTTAGE | AF72: 78210 | AG72: ST CYR L ECOLE | AH72: France | AI72: FREDBERNARD@ME.COM | AK72: 78 - Yvelines | AL72: 0403 - BLUEGREEN SAINT QUENTIN EN YVELINES | AM72: 78 - Yvelines | AN72: C | AO72: 43491 | AP72: Enfant | AQ72: 43491 | AR72: 2019 | AS72: 2019 | AT72: 43534 | AU72: Non classé | AV72: Licencié | AW72: OUI | BA72: 43921 | BC72: NON
A73: =IF(G73=1,COUNTIF(G$2:G73,G73),0) -> 0 | B73: berfre | C73: =COUNTIF(B$2:B73,B73) -> 1 | D73: BERNARD Frederic | E73: M | F73: 54 | G73: 0 | H73: berfre | I73: =COUNTIF($H$2:H73,H73) -> 1 | J73: BERNARD | K73: Frederic | L73: Frederic | N73: 539942199 | O73: M. | P73: BERNARD | Q73: Frederic | R73: M | S73: France | T73: 41 | U73: 28524 | V73: MID AMATEUR M | W73: 54.0 | X73: 40909 | Y73: Pas de Drapeau / Opens | AA73: 38817 | AB73: 3 | AC73: 11 ALLEE DES COTTAGES | AF73: 78210 | AG73: ST CYR L ECOLE | AH73: France | AI73: frederic.bernard@mailhec.com | AJ73: 33609034013 | AK73: 78 - Yvelines | AL73: 0403 - BLUEGREEN SAINT QUENTIN EN YVELINES | AM73: 78 - Yvelines | AN73: Z | AO73: 43512 | AP73: Adulte | AQ73: 43512 | AR73: 2019 | AS73: 2005 | AU73: Non classé | AV73: Licencié | AW73: OUI | AY73: NON | BC73: NON
A74: =IF(G74=1,COUNTIF(G$2:G74,G74),0) -> 0 | B74: bergab | C74: =COUNTIF(B$2:B74,B74) -> 1 | D74: BERNARD Gabriel | E74: M | F74: 54 | G74: 0 | H74: bergab | I74: =COUNTIF($H$2:H74,H74) -> 1 | J74: BERNARD | K74: Gabriel | L74: Gabriel | N74: 45023330 | O74: M. | P74: BERNARD | Q74: Gabriel | R74: M | S74: France | T74: 9 | U74: 40180 | V74: POUCET 1 | W74: 54.0 | X74: 43617 | Y74: Drapeau Bleu | Z74: 43652 | AB74: 1 | AC74: 6 RUE ALBERT ROUSSEL | AF74: 78370 | AG74: PLAISIR | AH74: France | AI74: LOIC.BERNARD15@YAHOO.FR | AJ74: 649681823 | AK74: 78 - Yvelines | AL74: 0403 - BLUEGREEN SAINT QUENTIN EN YVELINES | AM74: 78 - Yvelines | AN74: C | AO74: 43491 | AP74: Enfant | AQ74: 43491 | AR74: 2019 | AS74: 2019 | AT74: 43491 | AU74: Non classé | AV74: Licencié | AW74: OUI | BA74: 43921 | BC74: NON
A75: =IF(G75=1,COUNTIF(G$2:G75,G75),0) -> 0 | B75: berjor | C75: =COUNTIF(B$2:B75,B75) -> 1 | D75: BERNARD Jordan | E75: M | F75: 54 | G75: 0 | H75: berjor | I75: =COUNTIF($H$2:H75,H75) -> 1 | J75: BERNARD | K75: Jordan | L75: Jordan | N75: 46906337 | O75: M. | P75: BERNARD | Q75: Jordan | R75: M | S75: France | T75: 33 | U75: 31464 | V75: MID AMATEUR M | W75: 54.0 | X75: 43513 | AA75: 43525 | AB75: 3 | AC75: 48 RUE PERNETY | AF75: 75012 | AG75: PARIS | AH75: France | AI75: JOBERNARD@HOTMAIL.FR | AJ75: 761615968 | AK75: 75 - Paris | AL75: 0403 - BLUEGREEN SAINT QUENTIN EN YVELINES | AM75: 78 - Yvelines | AN75: C | AO75: 43513 | AP75: Adulte | AQ75: 43513 | AR75: 2019 | AS75: 2019 | AT75: 43629 | AU75: Non classé | AV75: Licencié | AW75: OUI | AY75: NON | BA75: 43921 | BC75: NON
A76: =IF(G76=1,COUNTIF(G$2:G76,G76),0) -> 45 | B76: berloi | C76: =COUNTIF(B$2:B76,B76) -> 1 | D76: BERNARD Loic | E76: M | F76: 54 | G76: 1 | H76: berloi | I76: =COUNTIF($H$2:H76,H76) -> 1 | J76: BERNARD | K76: Loic | L76: Loic | N76: 525720338 | O76: M. | P76: BERNARD | Q76: Loic | R76: M | S76: France | T76: 62 | U76: 21006 | V76: SENIOR M | W76: 54.0 | X76: 43716 | AA76: 43716 | AB76: 2 | AC76: 6 RUE ALBERT ROUSSEL | AF76: 78370 | AG76: PLAISIR | AH76: France | AI76: LOIC.BERNARD@YAHOO.FR | AK76: 78 - Yvelines | AL76: 0403 - BLUEGREEN SAINT QUENTIN EN YVELINES | AM76: 78 - Yvelines | AN76: C | AO76: 43716 | AP76: Adulte 2019/2020 | AQ76: 43716 | AR76: 2019 | AS76: 2019 | AU76: Non classé | AV76: Licencié | AW76: OUI | BC76: NON
A77: =IF(G77=1,COUNTIF(G$2:G77,G77),0) -> 0 | B77: bervin | C77: =COUNTIF(B$2:B77,B77) -> 1 | D77: BERTET Vincent | E77: M | F77: 10.6 | G77: 0 | H77: bervin | I77: =COUNTIF($H$2:H77,H77) -> 1 | J77: BERTET | K77: Vincent | L77: Vincent | N77: 541051110 | O77: M. | P77: BERTET | Q77: Vincent | R77: M | S77: France | T77: 31 | U77: 32307 | V77: MID AMATEUR M | W77: 10.6 | X77: 43240 | Y77: Pas de Drapeau / Opens | AB77: 3 | AC77: 7 RUE BERANGER | AF77: 92100 | AG77: BOULOGNE BILLANCOURT | AH77: France | AI77: vbertet@gmail.com | AK77: 92 - Hauts-de-Seine | AL77: 0403 - BLUEGREEN SAINT QUENTIN EN YVELINES | AM77: 78 - Yvelines | AN77: Z | AO77: 43615 | AP77: Personnel golf | AQ77: 43615 | AR77: 2019 | AS77: 1997 | AT77: 42905 | AU77: Classé | AV77: Licencié | AW77: OUI | AY77: NON | BA77: 43555 | BC77: NON
A78: =IF(G78=1,COUNTIF(G$2:G78,G78),0) -> 46 | B78: berjan | C78: =COUNTIF(B$2:B78,B78) -> 1 | D78: BERTHIAS Janine | E78: F | F78: 27.4 | G78: 1 | H78: berjan | I78: =COUNTIF($H$2:H78,H78) -> 1 | J78: BERTHIAS | K78: Janine | L78: Janine | N78: 514071097 | O78: Mme | P78: BERTHIAS | Q78: Janine | R78: F | S78: France | T78: 74 | U78: 16681 | V78: VETERAN F | W78: 27.4 | X78: 40909 | Y78: Pas de Drapeau / Opens | AB78: 3 | AC78: 15/17 RUE DES FRÈRES MORANE | AF78: 75015 | AG78: PARIS | AH78: France | AI78: janyne.berthias@orange.fr | AJ78: 33672426683 | AK78: 75 - Paris | AL78: 0403 - BLUEGREEN SAINT QUENTIN EN YVELINES | AM78: 78 - Yvelines | AN78: R | AO78: 43468 | AP78: Adulte | AQ78: 43468 | AR78: 2019 | AS78: 1995 | AT78: 43130 | AU78: Classé | AV78: Licencié | AW78: OUI | AY78: NON | BA78: 43921 | BB78: 43478 | BC78: NON
A79: =IF(G79=1,COUNTIF(G$2:G79,G79),0) -> 47 | B79: b€rrob | C79: =COUNTIF(B$2:B79,B79) -> 1 | D79: BERTHIAS Robert | E79: M | F79: 22.4 | G79: 1 | H79: berrob | I79: =COUNTIF($H$2:H79,H79) -> 2 | J79: BERTHIAS | K79: Robert | L79: Robert | N79: 513788093 | O79: M. | P79: BERTHIAS | Q79: Robert | R79: M | S79: France | T79: 74 | U79: 16463 | V79: VETERAN M | W79: 22.4 | X79: 43725 | Y79: Pas de Drapeau / Opens | AB79: 1 | AC79: 15/17 RUE DES FRÈRES MORANE | AF79: 75015 | AG79: PARIS | AH79: France | AI79: robert.berthias@orange.fr | AJ79: 33608225843 | AK79: 75 - Paris | AL79: 0403 - BLUEGREEN SAINT QUENTIN EN YVELINES | AM79: 78 - Yvelines | AN79: R | AO79: 43468 | AP79: Adulte | AQ79: 43468 | AR79: 2019 | AS79: 1995 | AT79: 43130 | AU79: Classé | AV79: Licencié | AW79: OUI | BA79: 43921 | BB79: 43478 | BC79: NON
A80: =IF(G80=1,COUNTIF(G$2:G80,G80),0) -> 0 | B80: bercle | C80: =COUNTIF(B$2:B80,B80) -> 1 | D80: BERTHOUMIEU Clément | E80: M | F80: 39 | G80: 0 | H80: bercle | I80: =COUNTIF($H$2:H80,H80) -> 1 | J80: BERTHOUMIEU | K80: Clement | L80: Clement | N80: 539692094 | O80: M. | P80: BERTHOUMIEU | Q80: Clément | R80: M | S80: France | T80: 36 | U80: 30477 | V80: MID AMATEUR M | W80: 39.0 | X80: 40909 | Y80: Pas de Drapeau / Opens | AA80: 36324 | AB80: 3 | AC80: 1 RUE TREBOIS | AF80: 92300 | AG80: LEVALLOIS PERRET | AH80: France | AI80: CLEMENTBERTHOUMIEU@HOTMAIL.COM | AJ80: 33614762587 | AK80: 92 - Hauts-de-Seine | AL80: 0403 - BLUEGREEN SAINT QUENTIN EN YVELINES | AM80: 78 - Yvelines | AN80: R | AO80: 43475 | AP80: Adulte | AQ80: 43475 | AR80: 2019 | AS80: 1995 | AU80: Classé | AV80: Licencié | AW80: OUI | AY80: NON | BC80: NON
A81: =IF(G81=1,COUNTIF(G$2:G81,G81),0) -> 48 | B81: berj-h | C81: =COUNTIF(B$2:B81,B81) -> 1 | D81: BERTHOUMIEU Jean-Herve | E81: M | F81: 30.4 | G81: 1 | H81: berj-h | I81: =COUNTIF($H$2:H81,H81) -> 1 | J81: BERTHOUMIEU | K81: J-Herve | L81: Jean-Herve | N81: 514491053 | O81: M. | P81: BERTHOUMIEU | Q81: Jean-Herve | R81: M | S81: France | T81: 76 | U81: 15749 | V81: VETERAN M | W81: 30.4 | X81: 40909 | Y81: Pas de Drapeau / Opens | AB81: 3 | AC81: 30 A RUE MOXOURIS | AF81: 78150 | AG81: LE CHESNAY | AH81: France | AI81: JHBERTHOUMIEU@ORANGE.FR | AJ81: 33612808703 | AK81: 78 - Yvelines | AL81: 0403 - BLUEGREEN SAINT QUENTIN EN YVELINES | AM81: 78 - Yvelines | AN81: R | AO81: 43475 | AP81: Adulte | AQ81: 43475 | AR81: 2019 | AS81: 1991 | AT81: 41045 | AU81: Classé | AV81: Licencié | AW81: OUI | AY81: NON | BA81: 41364 | BC81: NON
A82: =IF(G82=1,COUNTIF(G$2:G82,G82),0) -> 49 | B82: berbru | C82: =COUNTIF(B$2:B82,B82) -> 1 | D82: BERTINETTI Bruno | E82: M | F82: 54 | G82: 1 | H82: berbru | I82: =COUNTIF($H$2:H82,H82) -> 1 | J82: BERTINETTI | K82: Bruno | L82: Bruno | N82: 42850330 | O82: M. | P82: BERTINETTI | Q82: Bruno | R82: M | S82: France | T82: 64 | U82: 20299 | V82: SENIOR M | W82: 54.0 | X82: 43471 | AB82: 2 | AC82: 8 ALLEE ANNE DE NOAILLES | AF82: 78180 | AG82: MONTIGNY LE BRETONNEUX | AH82: France | AI82: MYIAGGI@GMAIL.COM | AJ82: 659503690 | AK82: 78 - Yvelines | AL82: 0403 - BLUEGREEN SAINT QUENTIN EN YVELINES | AM82: 78 - Yvelines | AN82: C | AO82: 43471 | AP82: Adulte | AQ82: 43471 | AR82: 2019 | AS82: 2019 | AT82: 43472 | AU82: Non classé | AV82: Licencié | AW82: OUI | BA82: 43921 | BC82: NON
A83: =IF(G83=1,COUNTIF(G$2:G83,G83),0) -> 0 | B83: b€rjul | C83: =COUNTIF(B$2:B83,B83) -> 1 | D83: BERTRANDY Juliette | E83: F | F83: 37 | G83: 0 | H83: berjul | I83: =COUNTIF($H$2:H83,H83) -> 2 | J83: BERTRANDY | K83: Juliette | L83: Juliette | N83: 518281308 | O83: Mme | P83: BERTRANDY | Q83: Juliette | R83: F | S83: France | T83: 46 | U83: 26910 | V83: MID AMATEUR F | W83: 37.0 | X83: 43624 | Y83: Pas de Drapeau / Opens | AA83: 42582 | AB83: 3 | AC83: 11 A RUE LOUISE DE VILMORIN | AF83: 78760 | AG83: JOUARS PONTCHARTRAIN | AH83: France | AI83: juliette.bertrandy@gmail.com | AJ83: 33680373800 | AK83: 78 - Yvelines | AL83: 0403 - BLUEGREEN SAINT QUENTIN EN YVELINES | AM83: 78 - Yvelines | AN83: Z | AO83: 43545 | AP83: Adulte | AQ83: 43545 | AR83: 2019 | AS83: 2016 | AT83: 42934 | AU83: Classé | AV83: Licencié | AW83: OUI | AY83: OUI | BA83: 43921 | BB83: 43547 | BC83: NON
A84: =IF(G84=1,COUNTIF(G$2:G84,G84),0) -> 50 | B84: beshab | C84: =COUNTIF(B$2:B84,B84) -> 1 | D84: BESBES Habib | E84: M | F84: 54 | G84: 1 | H84: beshab | I84: =COUNTIF($H$2:H84,H84) -> 1 | J84: BESBES | K84: Habib | L84: Habib | N84: 523574321 | O84: M. | P84: BESBES | Q84: Habib | R84: M | S84: France | T84: 56 | U84: 23220 | V84: SENIOR M | W84: 54.0 | X84: 43350 | Y84: Pas de Drapeau / Opens | AA84: 43359 | AB84: 2 | AC84: 50 BOULEVARD VAUBAN | AF84: 78180 | AG84: MONTIGNY LE BRETONNEUX | AH84: France | AI84: HBESBES@FREE.FR | AJ84: 33686948339 | AK84: 78 - Yvelines | AL84: 0403 - BLUEGREEN SAINT QUENTIN EN YVELINES | AM84: 78 - Yvelines | AN84: R | AO84: 43439 | AP84: Renouvellement 2018/2019 | AQ84: 43439 | AR84: 2019 | AS84: 2018 | AT84: 43362 | AU84: Non classé | AV84: Licencié | AW84: OUI | BA84: 43555 | BC84: NON
A85: =IF(G85=1,COUNTIF(G$2:G85,G85),0) -> 51 | B85: besais | C85: =COUNTIF(B$2:B85,B85) -> 1 | D85: BESSIS Aissa | E85: M | F85: 40 | G85: 1 | H85: besais | I85: =COUNTIF($H$2:H85,H85) -> 1 | J85: BESSIS | K85: Aissa | L85: Aissa | N85: 544124250 | O85: M. | P85: BESSIS | Q85: Aissa | R85: M | S85: France | T85: 59 | U85: 22062 | V85: SENIOR M | W85: 40.0 | X85: 41553 | Y85: Pas de Drapeau / Opens | AA85: 41070 | AB85: 3 | AC85: 25 T RUE LUCIEN SAMPAIX | AF85: 78210 | AG85: ST CYR L ECOLE | AH85: France | AI85: BESSISAISSA@HOTMAIL.FR | AJ85: 33622277722 | AK85: 78 - Yvelines | AL85: 0403 - BLUEGREEN SAINT QUENTIN EN YVELINES | AM85: 78 - Yvelines | AN85: Z | AO85: 43585 | AP85: Adulte | AQ85: 43585 | AR85: 2019 | AS85: 2011 | AT85: 42074 | AU85: Classé | AV85: Licencié | AW85: OUI | AY85: NON | BA85: 42460 | BC85: NON
A86: =IF(G86=1,COUNTIF(G$2:G86,G86),0) -> 52 | B86: betann | C86: =COUNTIF(B$2:B86,B86) -> 1 | D86: BETOUIN Annie | E86: F | F86: 54 | G86: 1 | H86: betann | I86: =COUNTIF($H$2:H86,H86) -> 1 | J86: BETOUIN | K86: Annie | L86: Annie | N86: 48556271 | O86: Mme | P86: BETOUIN | Q86: Annie | R86: F | S86: France | T86: 69 | U86: 18564 | V86: VETERAN F | W86: 54.0 | X86: 41323 | Y86: Pas de Drapeau / Opens | AB86: 3 | AC86: 1 SQUARE LAVOISIER | AF86: 78330 | AG86: FONTENAY LE FLEURY | AH86: France | AI86: abetouin@gmail.com | AJ86: 680843710 | AK86: 78 - Yvelines | AL86: 0403 - BLUEGREEN SAINT QUENTIN EN YVELINES | AM86: 78 - Yvelines | AN86: R | AO86: 43523 | AP86: Adulte | AQ86: 43523 | AR86: 2019 | AS86: 2013 | AT86: 42790 | AU86: Non classé | AV86: Licencié | AW86: OUI | AY86: NON | BA86: 43190 | BC86: NON
A87: =IF(G87=1,COUNTIF(G$2:G87,G87),0) -> 53 | B87: betchr | C87: =COUNTIF(B$2:B87,B87) -> 1 | D87: BETOUIN Christian | E87: M | F87: 31 | G87: 1 | H87: betchr | I87: =COUNTIF($H$2:H87,H87) -> 1 | J87: BETOUIN | K87: Christian | L87: Christian | N87: 510162193 | O87: M. | P87: BETOUIN | Q87: Christian | R87: M | S87: France | T87: 71 | U87: 17854 | V87: VETERAN M | W87: 31.0 | X87: 42150 | Y87: Pas de Drapeau / Opens | AA87: 38459 | AB87: 3 | AC87: 1 SQUARE LAVOISIER | AF87: 78330 | AG87: FONTENAY LE FLEURY | AH87: France | AI87: cbetouin@gmail.com | AJ87: 33632756733 | AK87: 78 - Yvelines | AL87: 0403 - BLUEGREEN SAINT QUENTIN EN YVELINES | AM87: 78 - Yvelines | AN87: W | AO87: 43468 | AP87: Adulte | AQ87: 43468 | AR87: 2019 | AS87: 2005 | AT87: 43507 | AU87: Classé | AV87: Licencié | AW87: OUI | AY87: NON | BA87: 43921 | BC87: NON
A88: =IF(G88=1,COUNTIF(G$2:G88,G88),0) -> 54 | B88: bevjac | C88: =COUNTIF(B$2:B88,B88) -> 1 | D88: BEVILIS Jacky | E88: M | F88: 28 | G88: 1 | H88: bevjac | I88: =COUNTIF($H$2:H88,H88) -> 1 | J88: BEVILIS | K88: Jacky | L88: Jacky | N88: 529224019 | O88: M. | P88: BEVILIS | Q88: Jacky | R88: M | S88: France | T88: 76 | U88: 15943 | V88: VETERAN M | W88: 28.0 | X88: 40909 | Y88: Pas de Drapeau / Opens | AB88: 3 | AC88: RES DAUPHINE DE ST SIMON | AF88: 78430 | AG88: LOUVECIENNES | AH88: France | AI88: BEVILIS.JACKY@NEUF.FR | AJ88: 33630982878 | AK88: 78 - Yvelines | AL88: 0403 - BLUEGREEN SAINT QUENTIN EN YVELINES | AM88: 78 - Yvelines | AN88: R | AO88: 43439 | AP88: Renouvellement 2018/2019 | AQ88: 43439 | AR88: 2019 | AS88: 1987 | AT88: 43575 | AU88: Classé | AV88: Licencié | AW88: OUI | AY88: NON | BA88: 43921 | BC88: NON
A89: =IF(G89=1,COUNTIF(G$2:G89,G89),0) -> 0 | B89: bibtho | C89: =COUNTIF(B$2:B89,B89) -> 1 | D89: BIBBEAU Thomas | E89: M | F89: 25.4 | G89: 0 | H89: bibtho | I89: =COUNTIF($H$2:H89,H89) -> 1 | J89: BIBBEAU | K89: Thomas | L89: Thomas | N89: 47398195 | O89: M. | P89: BIBBEAU | Q89: Thomas | R89: M | S89: France | T89: 44 | U89: 27682 | V89: MID AMATEUR M | W89: 25.4 | X89: 43728 | Y89: Pas de Drapeau / Opens | AB89: 3 | AC89: 90 CHEMIN DES COQUELICOTS | AF89: 78370 | AG89: PLAISIR | AH89: France | AI89: TOM.BIBBEAU@FREE.FR | AJ89: 660311656 | AK89: 78 - Yvelines | AL89: 0403 - BLUEGREEN SAINT QUENTIN EN YVELINES | AM89: 78 - Yvelines | AN89: Z | AO89: 43724 | AP89: Adulte 2019/2020 | AQ89: 43724 | AR89: 2019 | AS89: 2005 | AU89: Classé | AV89: Licencié | AW89: OUI | AY89: NON | BC89: NON
A90: =IF(G90=1,COUNTIF(G$2:G90,G90),0) -> 55 | B90: bidpas | C90: =COUNTIF(B$2:B90,B90) -> 1 | D90: BIDET Pascale | E90: F | F90: 22.4 | G90: 1 | H90: bidpas | I90: =COUNTIF($H$2:H90,H90) -> 1 | J90: BIDET | K90: Pascale | L90: Pascale | N90: 527248186 | O90: Mme | P90: BIDET | Q90: Pascale | R90: F | S90: France | T90: 55 | U90: 23403 | V90: SENIOR F | W90: 22.4 | X90: 43709 | Y90: Pas de Drapeau / Opens | AB90: 1 | AC90: 7 RUE DES BRIERES | AF90: 78113 | AG90: CONDE SUR VESGRE | AH90: France | AI90: pascalou.bidet@medline.com | AJ90: 33626635861 | AK90: 78 - Yvelines | AL90: 0403 - BLUEGREEN SAINT QUENTIN EN YVELINES | AM90: 78 - Yvelines | AN90: R | AO90: 43491 | AP90: Adulte | AQ90: 43491 | AR90: 2019 | AS90: 2004 | AT90: 43177 | AU90: Classé | AV90: Licencié | AW90: OUI | BA90: 43921 | BB90: 43546 | BC90: NON
A91: =IF(G91=1,COUNTIF(G$2:G91,G91),0) -> 56 | B91: bidsyl | C91: =COUNTIF(B$2:B91,B91) -> 1 | D91: BIDET Sylvain | E91: M | F91: 6.3 | G91: 1 | H91: bidsyl | I91: =COUNTIF($H$2:H91,H91) -> 1 | J91: BIDET | K91: Sylvain | L91: Sylvain | N91: 45047108 | O91: M. | P91: BIDET | Q91: Sylvain | R91: M | S91: France | T91: 54 | U91: 24103 | V91: SENIOR M | W91: 6.3 | X91: 43730 | Y91: Pas de Drapeau / Opens | AB91: 1 | AC91: 7 RUE DES BRIERES | AF91: 78113 | AG91: CONDE SUR VESGRE | AH91: France | AJ91: 33612969209 | AK91: 78 - Yvelines | AL91: 0403 - BLUEGREEN SAINT QUENTIN EN YVELINES | AM91: 78 - Yvelines | AN91: R | AO91: 43471 | AP91: Adulte | AQ91: 43471 | AR91: 2019 | AS91: 1996 | AT91: 43170 | AU91: Classé | AV91: Licencié | AW91: OUI | BA91: 43921 | BB91: 43521 | BC91: NON
A92: =IF(G92=1,COUNTIF(G$2:G92,G92),0) -> 57 | B92: bilcla | C92: =COUNTIF(B$2:B92,B92) -> 1 | D92: BILLARD Claude | E92: M | F92: 18.6 | G92: 1 | H92: bilcla | I92: =COUNTIF($H$2:H92,H92) -> 1 | J92: BILLARD | K92: Claude | L92: Claude | N92: 525767075 | O92: M. | P92: BILLARD | Q92: Claude | R92: M | S92: France | T92: 82 | U92: 13794 | V92: VETERAN M | W92: 18.6 | X92: 43389 | Y92: Pas de Drapeau / Opens | AB92: 1 | AC92: 14 RESIDENCE DES 3 FORETS | AD92: 23 RUE CLAUDE MONET | AF92: 78380 | AG92: BOUGIVAL | AH92: France | AI92: CL.BILLARD@ORANGE.FR | AJ92: 33676660648 | AK92: 78 - Yvelines | AL92: 0403 - BLUEGREEN SAINT QUENTIN EN YVELINES | AM92: 78 - Yvelines | AN92: R | AO92: 43473 | AP92: Adulte | AQ92: 43473 | AR92: 2019 | AS92: 1993 | AT92: 43553 | AU92: Classé | AV92: Licencié | AW92: OUI | BA92: 43921 | BC92: NON
A93: =IF(G93=1,COUNTIF(G$2:G93,G93),0) -> 58 | B93: bilj-m | C93: =COUNTIF(B$2:B93,B93) -> 1 | D93: BILLAUDEL Jean-Marc | E93: M | F93: 54 | G93: 1 | H93: bilj-m | I93: =COUNTIF($H$2:H93,H93) -> 1 | J93: BILLAUDEL | K93: J-Marc | L93: Jean-Marc | N93: 43991331 | O93: M. | P93: BILLAUDEL | Q93: Jean-Marc | R93: M | S93: France | T93: 66 | U93: 19584 | V93: VETERAN M | W93: 54.0 | X93: 43481 | AB93: 2 | AC93: 38 RUE MAURICE RAVEL | AF93: 78280 | AG93: GUYANCOURT | AH93: France | AI93: VINCENZO.FELDMANN@GMAIM.COM | AK93: 78 - Yvelines | AL93: 0403 - BLUEGREEN SAINT QUENTIN EN YVELINES | AM93: 78 - Yvelines | AN93: C | AO93: 43481 | AP93: Adulte | AQ93: 43481 | AR93: 2019 | AS93: 2019 | AU93: Non classé | AV93: Licencié | AW93: OUI | BC93: NON
A94: =IF(G94=1,COUNTIF(G$2:G94,G94),0) -> 0 | B94: bilseb | C94: =COUNTIF(B$2:B94,B94) -> 1 | D94: BILLER Sebastien | E94: M | F94: 54 | G94: 0 | H94: bilseb | I94: =COUNTIF($H$2:H94,H94) -> 1 | J94: BILLER | K94: Sebastien | L94: Sebastien | N94: 48362313 | O94: M. | P94: BILLER | Q94: Sebastien | R94: M | S94: France | T94: 49 | U94: 25786 | V94: MID AMATEUR M | W94: 54.0 | X94: 42802 | Y94: Pas de Drapeau / Opens | AA94: 42870 | AB94: 3 | AC94: 27 AVENUE DU FOREZ | AF94: 78310 | AG94: MAUREPAS | AH94: France | AI94: PATCH2011@HOTMAIL.FR | AK94: 78 - Yvelines | AL94: 0403 - BLUEGREEN SAINT QUENTIN EN YVELINES | AM94: 78 - Yvelines | AN94: R | AO94: 43452 | AP94: Adulte | AQ94: 43452 | AR94: 2019 | AS94: 2017 | AT94: 42826 | AU94: Non classé | AV94: Licencié | AW94: OUI | AY94: NON | BA94: 43555 | BC94: OUI
A95: =IF(G95=1,COUNTIF(G$2:G95,G95),0) -> 59 | B95: blafra | C95: =COUNTIF(B$2:B95,B95) -> 1 | D95: BLAIS Francoise | E95: F | F95: 54 | G95: 1 | H95: blafra | I95: =COUNTIF($H$2:H95,H95) -> 1 | J95: BLAIS | K95: Francoise | L95: Francoise | N95: 528714312 | O95: Mme | P95: BLAIS | Q95: Francoise | R95: F | S95: France | T95: 54 | U95: 23993 | V95: SENIOR F | W95: 54.0 | X95: 43003 | Y95: Pas de Drapeau / Opens | AA95: 43079 | AB95: 2 | AC95: 46 BOULEVARD PEREIRE | AF95: 75017 | AG95: PARIS | AH95: France | AI95: FRAMBLAIS1@GMAIL.COM | AJ95: 33609797215 | AK95: 75 - Paris | AL95: 0403 - BLUEGREEN SAINT QUENTIN EN YVELINES | AM95: 78 - Yvelines | AN95: Y | AO95: 43528 | AP95: Adulte | AQ95: 43528 | AR95: 2019 | AS95: 2017 | AT95: 43180 | AU95: Non classé | AV95: Licencié | AW95: OUI | BA95: 43921 | BB95: 43533 | BC95: NON
A96: =IF(G96=1,COUNTIF(G$2:G96,G96),0) -> 60 | B96: blaala | C96: =COUNTIF(B$2:B96,B96) -> 1 | D96: BLAISE Alain | E96: M | F96: 54 | G96: 1 | H96: blaala | I96: =COUNTIF($H$2:H96,H96) -> 1 | J96: BLAISE | K96: Alain | L96: Alain | N96: 43963257 | O96: M. | P96: BLAISE | Q96: Alain | R96: M | S96: France | T96: 67 | U96: 19316 | V96: VETERAN M | W96: 54.0 | X96: 41930 | Y96: Pas de Drapeau / Opens | AA96: 40723 | AB96: 2 | AC96: 3 ALLEE PASTEUR | AF96: 78330 | AG96: FONTENAY LE FLEURY | AH96: France | AI96: ablaise78@gmail.com | AJ96: 33613622816 | AK96: 78 - Yvelines | AL96: 0403 - BLUEGREEN SAINT QUENTIN EN YVELINES | AM96: 78 - Yvelines | AN96: R | AO96: 43517 | AP96: Adulte | AQ96: 43517 | AR96: 2019 | AS96: 2011 | AT96: 42445 | AU96: Non classé | AV96: Licencié | AW96: OUI | BA96: 42825 | BC96: NON
A97: =IF(G97=1,COUNTIF(G$2:G97,G97),0) -> 61 | B97: blaflo | C97: =COUNTIF(B$2:B97,B97) -> 1 | D97: BLAISE Florence | E97: F | F97: 35 | G97: 1 | H97: blaflo | I97: =COUNTIF($H$2:H97,H97) -> 1 | J97: BLAISE | K97: Florence | L97: Florence | N97: 514736253 | O97: Mme | P97: BLAISE | Q97: Florence | R97: F | S97: France | T97: 65 | U97: 19918 | V97: VETERAN F | W97: 35.0 | X97: 43327 | Y97: Pas de Drapeau / Opens | AA97: 40734 | AB97: 2 | AC97: 3 ALLEE PASTEUR | AF97: 78330 | AG97: FONTENAY LE FLEURY | AH97: France | AI97: flo.blaise@laposte.net | AJ97: 33615174919 | AK97: 78 - Yvelines | AL97: 0403 - BLUEGREEN SAINT QUENTIN EN YVELINES | AM97: 78 - Yvelines | AN97: R | AO97: 43477 | AP97: Adulte | AQ97: 43477 | AR97: 2019 | AS97: 2011 | AT97: 43220 | AU97: Classé | AV97: Licencié | AW97: OUI | BA97: 43555 | BC97: NON
A98: =IF(G98=1,COUNTIF(G$2:G98,G98),0) -> 0 | B98: blatho | C98: =COUNTIF(B$2:B98,B98) -> 1 | D98: BLAIZE Thomas | E98: M | F98: 54 | G98: 0 | H98: blatho | I98: =COUNTIF($H$2:H98,H98) -> 1 | J98: BLAIZE | K98: Thomas | L98: Thomas | N98: 523363308 | O98: M. | P98: BLAIZE | Q98: Thomas | R98: M | S98: France | T98: 29 | U98: 32976 | V98: ADULTE M | W98: 54.0 | X98: 42589 | Y98: Pas de Drapeau / Opens | AA98: 42589 | AB98: 3 | AC98: 67 RUE MONTREUIL | AF98: 78000 | AG98: VERSAILLES | AH98: France | AI98: THOMAS.BLAIZE@OUTLOOK.COM | AJ98: 33662621113 | AK98: 78 - Yvelines | AL98: 0403 - BLUEGREEN SAINT QUENTIN EN YVELINES | AM98: 78 - Yvelines | AN98: Z | AO98: 43597 | AP98: Adulte | AQ98: 43597 | AR98: 2019 | AS98: 2016 | AT98: 43605 | AU98: Non classé | AV98: Licencié | AW98: OUI | AY98: NON | BA98: 43921 | BC98: NON
A99: =IF(G99=1,COUNTIF(G$2:G99,G99),0) -> 0 | B99: blaj-b | C99: =COUNTIF(B$2:B99,B99) -> 1 | D99: BLANC Jean Baptiste | E99: M | F99: 54 | G99: 0 | H99: blaj-b | I99: =COUNTIF($H$2:H99,H99) -> 1 | J99: BLANC | K99: J-Baptiste | L99: Jean-Baptiste | N99: 534649328 | O99: M. | P99: BLANC | Q99: Jean Baptiste | R99: M | S99: France | T99: 40 | U99: 29139 | V99: MID AMATEUR M | W99: 54.0 | X99: 43419 | Y99: Pas de Drapeau / Opens | AA99: 43412 | AB99: 3 | AC99: CLOS ST VIGOR BAT 4 APT 319 | AF99: 78220 | AG99: VIROFLAY | AH99: France | AI99: JEANBAPTISTE.BLANC.MAILING@GMAIL.COM | AJ99: 664708811 | AK99: 78 - Yvelines | AL99: 0403 - BLUEGREEN SAINT QUENTIN EN YVELINES | AM99: 78 - Yvelines | AN99: R | AO99: 43439 | AP99: Renouvellement 2018/2019 | AQ99: 43439 | AR99: 2019 | AS99: 2018 | AT99: 43419 | AU99: Non classé | AV99: Licencié | AW99: OUI | AY99: NON | BA99: 43921 | BB99: 43443 | BC99: NON
A100: =IF(G100=1,COUNTIF(G$2:G100,G100),0) -> 0 | B100: blaaur | C100: =COUNTIF(B$2:B100,B100) -> 1 | D100: BLANCHET Aurelien | E100: M | F100: 54 | G100: 0 | H100: blaaur | I100: =COUNTIF($H$2:H100,H100) -> 1 | J100: BLANCHET | K100: Aurelien | L100: Aurelien | N100: 43728338 | O100: M. | P100: BLANCHET | Q100: Aurelien | R100: M | S100: France | T100: 23 | U100: 35186 | V100: ADULTE M | W100: 54.0 | X100: 43478 | AB100: 2 | AC100: 3 RUE DE BUDAPEST | AF100: 94140 | AG100: ALFORTVILLE | AH100: France | AI100: BLANCHET.AURELIEN94@GMAIL.COM | AJ100: 33660137964 | AK100: 94 - Val-de-Marne | AL100: 0403 - BLUEGREEN SAINT QUENTIN EN YVELINES | AM100: 78 - Yvelines | AN100: C | AO100: 43478 | AP100: Jeune Adulte | AQ100: 43478 | AR100: 2019 | AS100: 2019 | AU100: Non classé | AV100: Licencié | AW100: OUI | BC100: NON
A101: =IF(G101=1,COUNTIF(G$2:G101,G101),0) -> 62 | B101: blechr | C101: =COUNTIF(B$2:B101,B101) -> 1 | D101: BLERY Christophe | E101: M | F101: 54 | G101: 1 | H101: blechr | I101: =COUNTIF($H$2:H101,H101) -> 1 | J101: BLERY | K101: Christophe | L101: Christophe | N101: 517908320 | O101: M. | P101: BLERY | Q101: Christophe | R101: M | S101: France | T101: 53 | U101: 24174 | V101: SENIOR M | W101: 54.0 | X101: 43279 | Y101: Pas de Drapeau / Opens | AA101: 43275 | AB101: 2 | AC101: 10 RUE DE LA CAVEE | AF101: 78113 | AG101: CONDE SUR VESGRE | AH101: France | AI101: CBYAVISS@SFR.FR | AJ101: 33607646859 | AK101: 78 - Yvelines | AL101: 0403 - BLUEGREEN SAINT QUENTIN EN YVELINES | AM101: 78 - Yvelines | AN101: R | AO101: 43604 | AP101: Adulte | AQ101: 43604 | AR101: 2019 | AS101: 2018 | AU101: Non classé | AV101: Licencié | AW101: OUI | BC101: NON
A102: =IF(G102=1,COUNTIF(G$2:G102,G102),0) -> 63 | B102: blofra | C102: =COUNTIF(B$2:B102,B102) -> 1 | D102: BLONDOT Francois | E102: M | F102: 21.8 | G102: 1 | H102: blofra | I102: =COUNTIF($H$2:H102,H102) -> 1 | J102: BLONDOT | K102: Francois | L102: Francois | N102: 514001108 | O102: M. | P102: BLONDOT | Q102: Francois | R102: M | S102: France | T102: 77 | U102: 15526 | V102: VETERAN M | W102: 21.8 | X102: 43630 | Y102: Pas de Drapeau / Opens | AA102: 35231 | AB102: 1 | AC102: 8 RUE DES CONDAMINES | AF102: 78310 | AG102: MAUREPAS | AH102: France | AI102: monobl@neuf.fr | AK102: 78 - Yvelines | AL102: 0403 - BLUEGREEN SAINT QUENTIN EN YVELINES | AM102: 78 - Yvelines | AN102: Z | AO102: 43502 | AP102: Adulte | AQ102: 43502 | AR102: 2019 | AS102: 1996 | AT102: 42810 | AU102: Classé | AV102: Licencié | AW102: OUI | BA102: 43921 | BB102: 43502 | BC102: NON
A103: =IF(G103=1,COUNTIF(G$2:G103,G103),0) -> 64 | B103: bloghi | C103: =COUNTIF(B$2:B103,B103) -> 1 | D103: BLONDOT Ghislaine | E103: F | F103: 26.4 | G103: 1 | H103: bloghi | I103: =COUNTIF($H$2:H103,H103) -> 1 | J103: BLONDOT | K103: Ghislaine | L103: Ghislaine | N103: 514000109 | O103: Mme | P103: BLONDOT | Q103: Ghislaine | R103: F | S103: France | T103: 77 | U103: 15505 | V103: VETERAN F | W103: 26.4 | X103: 43630 | Y103: Pas de Drapeau / Opens | AA103: 35532 | AB103: 1 | AC103: 8 RUE DES CONDAMINES | AF103: 78310 | AG103: MAUREPAS | AH103: France | AI103: monobl@neuf.fr | AK103: 78 - Yvelines | AL103: 0403 - BLUEGREEN SAINT QUENTIN EN YVELINES | AM103: 78 - Yvelines | AN103: Z | AO103: 43502 | AP103: Adulte | AQ103: 43502 | AR103: 2019 | AS103: 1996 | AT103: 42810 | AU103: Classé | AV103: Licencié | AW103: OUI | BA103: 43921 | BB103: 43502 | BC103: NON
A104: =IF(G104=1,COUNTIF(G$2:G104,G104),0) -> 0 | B104: boiseb | C104: =COUNTIF(B$2:B104,B104) -> 1 | D104: BOITTIN Sebastien | E104: M | F104: 54 | G104: 0 | H104: boiseb | I104: =COUNTIF($H$2:H104,H104) -> 1 | J104: BOITTIN | K104: Sebastien | L104: Sebastien | N104: 523549322 | O104: M. | P104: BOITTIN | Q104: Sebastien | R104: M | S104: France | T104: 43 | U104: 28116 | V104: MID AMATEUR M | W104: 54.0 | X104: 43350 | Y104: Pas de Drapeau / Opens | AB104: 2 | AC104: 12 ROUTE D'AUFFARGIS | AF104: 78125 | AG104: VIEILLE EGLISE EN YVELINES | AH104: France | AI104: SBOITTIN@HOTMAIL.FR | AK104: 78 - Yvelines | AL104: 0403 - BLUEGREEN SAINT QUENTIN EN YVELINES | AM104: 78 - Yvelines | AN104: R | AO104: 43439 | AP104: Renouvellement 2018/2019 | AQ104: 43439 | AR104: 2019 | AS104: 2018 | AU104: Non classé | AV104: Licencié | AW104: OUI | BC104: NON
A105: =IF(G105=1,COUNTIF(G$2:G105,G105),0) -> 65 | B105: bolric | C105: =COUNTIF(B$2:B105,B105) -> 1 | D105: BOLAND Richard | E105: M | F105: 24.9 | G105: 1 | H105: bolric | I105: =COUNTIF($H$2:H105,H105) -> 1 | J105: BOLAND | K105: Richard | L105: Richard | N105: 520764078 | O105: M. | P105: BOLAND | Q105: Richard | R105: M | S105: France | T105: 51 | U105: 24916 | V105: SENIOR M | W105: 24.9 | X105: 43716 | Y105: Pas de Drapeau / Opens | AB105: 3 | AC105: 88 RUE DU PETIT PONT | AF105: 78180 | AG105: MONTIGNY LE BRETONNEUX | AH105: France | AI105: richardboland78@gmail.com | AJ105: 33613012555 | AK105: 78 - Yvelines | AL105: 0403 - BLUEGREEN SAINT QUENTIN EN YVELINES | AM105: 78 - Yvelines | AN105: R | AO105: 43619 | AP105: Adulte | AQ105: 43619 | AR105: 2019 | AS105: 1993 | AT105: 43716 | AU105: Classé | AV105: Licencié | AW105: OUI | AY105: OUI | BA105: 43921 | BC105: NON
A106: =IF(G106=1,COUNTIF(G$2:G106,G106),0) -> 0 | B106: boncle | C106: =COUNTIF(B$2:B106,B106) -> 1 | D106: BONNAMY Clemence | E106: F | F106: 54 | G106: 0 | H106: boncle | I106: =COUNTIF($H$2:H106,H106) -> 1 | J106: BONNAMY | K106: Clemence | L106: Clemence | N106: 45510337 | O106: Mme | P106: BONNAMY | Q106: Clemence | R106: F | S106: France | T106: 28 | U106: 33583 | V106: ADULTE F | W106: 54.0 | X106: 43498 | AB106: 2 | AC106: 4 BOULEVARD FELIX FAURE | AF106: 92320 | AG106: CHATILLON | AH106: France | AI106: clemence.bonnmy@gmail.com | AK106: 92 - Hauts-de-Seine | AL106: 0403 - BLUEGREEN SAINT QUENTIN EN YVELINES | AM106: 78 - Yvelines | AN106: C | AO106: 43498 | AP106: Adulte | AQ106: 43498 | AR106: 2019 | AS106: 2019 | AT106: 43498 | AU106: Non classé | AV106: Licencié | AW106: OUI | BA106: 43921 | BC106: NON
A107: =IF(G107=1,COUNTIF(G$2:G107,G107),0) -> 66 | B107: bonm-a | C107: =COUNTIF(B$2:B107,B107) -> 1 | D107: BONNET Marie-Ange | E107: F | F107: 54 | G107: 1 | H107: bonm-a | I107: =COUNTIF($H$2:H107,H107) -> 1 | J107: BONNET | K107: M-Ange | L107: Marie-Ange | N107: 535482327 | O107: Mme | P107: BONNET | Q107: Marie-Ange | R107: F | S107: France | T107: 56 | U107: 23169 | V107: SENIOR F | W107: 54.0 | X107: 43434 | Y107: Pas de Drapeau / Opens | AA107: 43614 | AB107: 2 | AC107: 6 RUE DU CAP FREHEL | AF107: 78180 | AG107: MONTIGNY LE BRETONNEUX | AH107: France | AI107: MA.BONNET@HOTMAIL.FR | AJ107: 674939718 | AK107: 78 - Yvelines | AL107: 0403 - BLUEGREEN SAINT QUENTIN EN YVELINES | AM107: 78 - Yvelines | AN107: R | AO107: 43439 | AP107: Renouvellement 2018/2019 | AQ107: 43439 | AR107: 2019 | AS107: 2018 | AT107: 43517 | AU107: Non classé | AV107: Licencié | AW107: OUI | BA107: 43921 | BC107: NON
A108: =IF(G108=1,COUNTIF(G$2:G108,G108),0) -> 0 | B108: bonsan | C108: =COUNTIF(B$2:B108,B108) -> 1 | D108: BONNET Sandrine | E108: F | F108: 51 | G108: 0 | H108: bonsan | I108: =COUNTIF($H$2:H108,H108) -> 1 | J108: BONNET | K108: Sandrine | L108: Sandrine | N108: 517790304 | O108: Mme | P108: BONNET | Q108: Sandrine | R108: F | S108: France | T108: 48 | U108: 26082 | V108: MID AMATEUR F | W108: 51.0 | X108: 42903 | Y108: Pas de Drapeau / Opens | AA108: 42818 | AB108: 2 | AC108: 20 BIS RUE DES BAS FONCEAUX | AF108: 78910 | AG108: TACOIGNIERES | AH108: France | AI108: SANDRINE290571@GMAIL.COM | AJ108: 33622863529 | AK108: 78 - Yvelines | AL108: 0403 - BLUEGREEN SAINT QUENTIN EN YVELINES | AM108: 78 - Yvelines | AN108: R | AO108: 43632 | AP108: Adulte | AQ108: 43632 | AR108: 2019 | AS108: 2016 | AT108: 42875 | AU108: Classé | AV108: Licencié | AW108: OUI | BA108: 43190 | BC108: NON
A109: =IF(G109=1,COUNTIF(G$2:G109,G109),0) -> 0 | B109: bongur | C109: =COUNTIF(B$2:B109,B109) -> 1 | D109: BONNY Gurvann | E109: M | F109: 6.3 | G109: 0 | H109: bongur | I109: =COUNTIF($H$2:H109,H109) -> 1 | J109: BONNY | K109: Gurvann | L109: Gurvann | N109: 528311122 | O109: M. | P109: BONNY | Q109: Gurvann | R109: M | S109: France | T109: 41 | U109: 28504 | V109: MID AMATEUR M | W109: 6.3 | X109: 43730 | Y109: Pas de Drapeau / Opens | AB109: 1 | AC109: 3 PLACE DE LA PAIX | AF109: 78190 | AG109: TRAPPES | AH109: France | AI109: gbonny1@gmail.com | AK109: 78 - Yvelines | AL109: 0403 - BLUEGREEN SAINT QUENTIN EN YVELINES | AM109: 78 - Yvelines | AN109: Z | AO109: 43439 | AP109: Adulte | AQ109: 43439 | AR109: 2019 | AS109: 1998 | AT109: 42803 | AU109: Classé | AV109: Licencié | AW109: OUI | AX109: 2019 | BA109: 43921 | BB109: 43473 | BC109: NON
A110: =IF(G110=1,COUNTIF(G$2:G110,G110),0) -> 67 | B110: boqgeo | C110: =COUNTIF(B$2:B110,B110) -> 1 | D110: BOQUET Georges | E110: M | F110: 45 | G110: 1 | H110: boqgeo | I110: =COUNTIF($H$2:H110,H110) -> 1 | J110: BOQUET | K110: Georges | L110: Georges | N110: 535328164 | O110: M. | P110: BOQUET | Q110: Georges | R110: M | S110: France | T110: 77 | U110: 15401 | V110: VETERAN M | W110: 45.0 | X110: 40909 | Y110: Pas de Drapeau / Opens | AB110: 2 | AC110: 11 RUE DE LA FORET | AF110: 78690 | AG110: LES ESSARTS LE ROI | AH110: France | AI110: boquetg@yahoo.fr | AJ110: 33679356519 | AK110: 78 - Yvelines | AL110: 0403 - BLUEGREEN SAINT QUENTIN EN YVELINES | AM110: 78 - Yvelines | AN110: R | AO110: 43479 | AP110: Adulte | AQ110: 43479 | AR110: 2019 | AS110: 2002 | AU110: Classé | AV110: Licencié | AW110: OUI | BC110: NON
A111: =IF(G111=1,COUNTIF(G$2:G111,G111),0) -> 68 | B111: botber | C111: =COUNTIF(B$2:B111,B111) -> 1 | D111: BOTALLA GAMBETTA Bernard | E111: M | F111: 40 | G111: 1 | H111: botber | I111: =COUNTIF($H$2:H111,H111) -> 1 | J111: BOTALLA-GAMBETTA | K111: Bernard | L111: Bernard | N111: 48432124 | O111: M. | P111: BOTALLA GAMBETTA | Q111: Bernard | R111: M | S111: France | T111: 74 | U111: 16438 | V111: VETERAN M | W111: 40.0 | X111: 43725 | Y111: Pas de Drapeau / Opens | AB111: 3 | AC111: 3 BIS AVENUE GALOTS | AF111: 92340 | AG111: BOURG LA REINE | AH111: France | AI111: rbotalla@orange.fr | AJ111: 662923259 | AK111: 92 - Hauts-de-Seine | AL111: 0403 - BLUEGREEN SAINT QUENTIN EN YVELINES | AM111: 78 - Yvelines | AN111: R | AO111: 43482 | AP111: Adulte | AQ111: 43482 | AR111: 2019 | AS111: 1998 | AT111: 43482 | AU111: Classé | AV111: Licencié | AW111: OUI | AY111: NON | BA111: 43921 | BC111: NON
A112: =IF(G112=1,COUNTIF(G$2:G112,G112),0) -> 69 | B112: botcha | C112: =COUNTIF(B$2:B112,B112) -> 1 | D112: BOTTERO Charles | E112: M | F112: 24.2 | G112: 1 | H112: botcha | I112: =COUNTIF($H$2:H112,H112) -> 1 | J112: BOTTERO | K112: Charles | L112: Charles | N112: 49455026 | O112: M. | P112: BOTTERO | Q112: Charles | R112: M | S112: France | T112: 87 | U112: 12038 | V112: VETERAN M | W112: 24.2 | X112: 43374 | Y112: Pas de Drapeau / Opens | AB112: 3 | AC112: 33 RUE CARTAULT | AF112: 92800 | AG112: PUTEAUX | AH112: France | AI112: chaboleo16@sfr.fr | AJ112: 33658560178 | AK112: 92 - Hauts-de-Seine | AL112: 0403 - BLUEGREEN SAINT QUENTIN EN YVELINES | AM112: 78 - Yvelines | AN112: Z | AO112: 43469 | AP112: Adulte | AQ112: 43469 | AR112: 2019 | AS112: 1988 | AT112: 43500 | AU112: Classé | AV112: Licencié | AW112: OUI | AY112: OUI | BA112: 43921 | BC112: NON
A113: =IF(G113=1,COUNTIF(G$2:G113,G113),0) -> 70 | B113: boulau | C113: =COUNTIF(B$2:B113,B113) -> 1 | D113: BOUCROT Laure | E113: F | F113: 54 | G113: 1 | H113: boulau | I113: =COUNTIF($H$2:H113,H113) -> 1 | J113: BOUCROT | K113: Laure | L113: Laure | N113: 527971331 | O113: Mme | P113: BOUCROT | Q113: Laure | R113: F | S113: France | T113: 63 | U113: 20506 | V113: SENIOR F | W113: 54.0 | X113: 43727 | AB113: 2 | AC113: 20 TER RUE DE LA MAIRE | AD113: 78490 | AF113: 78490 | AG113: GALLUIS | AH113: France | AI113: LAURE.BOUCROT@LAPOSTE.NET | AJ113: 699632385 | AK113: 78 - Yvelines | AL113: 0403 - BLUEGREEN SAINT QUENTIN EN YVELINES | AM113: 78 - Yvelines | AN113: C | AO113: 43727 | AP113: Adulte 2019/2020 | AQ113: 43727 | AR113: 2019 | AS113: 2019 | AU113: Non classé | AV113: Licencié | AW113: OUI | BC113: NON
A114: =IF(G114=1,COUNTIF(G$2:G114,G114),0) -> 71 | B114: bouedw | C114: =COUNTIF(B$2:B114,B114) -> 1 | D114: BOUGUYON Edwige | E114: F | F114: 54 | G114: 1 | H114: bouedw | I114: =COUNTIF($H$2:H114,H114) -> 1 | J114: BOUGUYON | K114: Edwige | L114: Edwige | N114: 49721021 | O114: Mme | P114: BOUGUYON | Q114: Edwige | R114: F | S114: France | T114: 60 | U114: 21587 | V114: SENIOR F | W114: 54.0 | X114: 40909 | Y114: Pas de Drapeau / Opens | AB114: 3 | AC114: 25 AVENUE P.A. BARTHOLOMÉ | AF114: 78370 | AG114: PLAISIR | AH114: France | AI114: bouguyonedwige@gmail.com | AJ114: 336.11.46.34.90 | AK114: 78 - Yvelines | AL114: 0403 - BLUEGREEN SAINT QUENTIN EN YVELINES | AM114: 78 - Yvelines | AN114: R | AO114: 43483 | AP114: Adulte | AQ114: 43483 | AR114: 2019 | AS114: 1988 | AU114: Non classé | AV114: Licencié | AW114: OUI | AY114: NON | BC114: NON
A115: =IF(G115=1,COUNTIF(G$2:G115,G115),0) -> 72 | B115: boupat | C115: =COUNTIF(B$2:B115,B115) -> 1 | D115: BOUGUYON Patrick | E115: M | F115: 33 | G115: 1 | H115: boupat | I115: =COUNTIF($H$2:H115,H115) -> 1 | J115: BOUGUYON | K115: Patrick | L115: Patrick | N115: 49720023 | O115: M. | P115: BOUGUYON | Q115: Patrick | R115: M | S115: France | T115: 67 | U115: 19083 | V115: VETERAN M | W115: 33.0 | X115: 40909 | Y115: Pas de Drapeau / Opens | AB115: 3 | AC115: 25 AVENUE P.A BARTHOLOMÉ | AF115: 78370 | AG115: PLAISIR | AH115: France | AI115: patrickbouguyon@aol.com | AJ115: 336.25.82.47.28 | AK115: 78 - Yvelines | AL115: 0403 - BLUEGREEN SAINT QUENTIN EN YVELINES | AM115: 78 - Yvelines | AN115: R | AO115: 43483 | AP115: Adulte | AQ115: 43483 | AR115: 2019 | AS115: 1988 | AU115: Classé | AV115: Licencié | AW115: OUI | AY115: NON | BC115: NON
A116: =IF(G116=1,COUNTIF(G$2:G116,G116),0) -> 0 | B116: bouami | C116: =COUNTIF(B$2:B116,B116) -> 1 | D116: BOUIRDEN Amira | E116: F | F116: 54 | G116: 0 | H116: bouami | I116: =COUNTIF($H$2:H116,H116) -> 1 | J116: BOUIRDEN | K116: =IF(ISERR(SEARCH("-",L116)),L116,CONCATENATE(LEFT(L116,1),MID(L116,SEARCH("-",L116),30))) -> Amira | L116: Amira | N116: 510299331 | O116: Mme | P116: BOUIRDEN | Q116: Amira | R116: F | S116: France | T116: 33 | U116: 31638 | V116: MID AMATEUR F | W116: 54.0 | X116: 43548 | AA116: 43558 | AB116: 2 | AC116: 6 SQUARE GEORGES SAND | AF116: 78190 | AG116: TRAPPES | AH116: France | AI116: AMIRA.JOUBI@HOTMAIL.FR | AJ116: 645183092 | AK116: 78 - Yvelines | AL116: 0403 - BLUEGREEN SAINT QUENTIN EN YVELINES | AM116: 78 - Yvelines | AN116: C | AO116: 43548 | AP116: Adulte | AQ116: 43548 | AR116: 2019 | AS116: 2019 | AU116: Non classé | AV116: Licencié | AW116: OUI | BC116: NON
A117: =IF(G117=1,COUNTIF(G$2:G117,G117),0) -> 0 | B117: boum-l | C117: =COUNTIF(B$2:B117,B117) -> 1 | D117: BOUIRDEN Mertel, Lmkhta | E117: M | F117: 54 | G117: 0 | H117: boum-l | I117: =COUNTIF($H$2:H117,H117) -> 1 | J117: BOUIRDEN | K117: M-Lmkhta | L117: Mertel,-Lmkhta | N117: 46941333 | O117: M. | P117: BOUIRDEN | Q117: Mertel, Lmkhta | R117: M | S117: France | T117: 36 | U117: 30643 | V117: MID AMATEUR M | W117: 54.0 | X117: 43513 | AA117: 43517 | AB117: 2 | AC117: 6 SQUARE GEORGE SAND | AF117: 78190 | AG117: TRAPPES | AH117: France | AI117: MERTEL.BOUIRDEN@GMAIL.COM | AJ117: 767648071 | AK117: 78 - Yvelines | AL117: 0403 - BLUEGREEN SAINT QUENTIN EN YVELINES | AM117: 78 - Yvelines | AN117: C | AO117: 43513 | AP117: Adulte | AQ117: 43513 | AR117: 2019 | AS117: 2019 | AU117: Non classé | AV117: Licencié | AW117: OUI | BC117: NON
A118: =IF(G118=1,COUNTIF(G$2:G118,G118),0) -> 73 | B118: bouber | C118: =COUNTIF(B$2:B118,B118) -> 1 | D118: BOULENGUIEZ Bernard | E118: M | F118: 11.1 | G118: 1 | H118: bouber | I118: =COUNTIF($H$2:H118,H118) -> 1 | J118: BOULENGUIEZ | K118: Bernard | L118: Bernard | N118: 512368039 | O118: M. | P118: BOULENGUIEZ | Q118: Bernard | R118: M | S118: France | T118: 76 | U118: 15846 | V118: VETERAN M | W118: 11.1 | X118: 43564 | Y118: Pas de Drapeau / Opens | AB118: 1 | AC118: 7 AVENUE BOSQUET | AF118: 75007 | AG118: PARIS | AH118: France | AI118: bernard.boulenguiez@orange.fr | AJ118: 626361147 | AK118: 75 - Paris | AL118: 0403 - BLUEGREEN SAINT QUENTIN EN YVELINES | AM118: 78 - Yvelines | AN118: R | AO118: 43493 | AP118: Adulte | AQ118: 43493 | AR118: 2019 | AS118: 1989 | AT118: 42773 | AU118: Classé | AV118: Licencié | AW118: OUI | BA118: 43921 | BB118: 43538 | BC118: NON
A119: =IF(G119=1,COUNTIF(G$2:G119,G119),0) -> 74 | B119: boujac | C119: =COUNTIF(B$2:B119,B119) -> 1 | D119: BOULET Jacques | E119: M | F119: 25 | G119: 1 | H119: boujac | I119: =COUNTIF($H$2:H119,H119) -> 1 | J119: BOULET | K119: Jacques | L119: Jacques | N119: 518884087 | O119: M. | P119: BOULET | Q119: Jacques | R119: M | S119: France | T119: 68 | U119: 18824 | V119: VETERAN M | W119: 25.0 | X119: 40909 | Y119: Pas de Drapeau / Opens | AA119: 40183 | AB119: 3 | AC119: 34 AVENUE DE CLICHY | AF119: 75018 | AG119: PARIS | AH119: France | AI119: DOCTEUR.BOULET@ORANGE.FR | AJ119: 33679591396 | AK119: 75 - Paris | AL119: 0403 - BLUEGREEN SAINT QUENTIN EN YVELINES | AM119: 78 - Yvelines | AN119: R | AO119: 43524 | AP119: Adulte | AQ119: 43524 | AR119: 2019 | AS119: 1994 | AT119: 43202 | AU119: Classé | AV119: Licencié | AW119: OUI | AY119: NON | BA119: 43555 | BC119: NON
A120: =IF(G120=1,COUNTIF(G$2:G120,G120),0) -> 75 | B120: boufra | C120: =COUNTIF(B$2:B120,B120) -> 1 | D120: BOULIOU Francois | E120: M | F120: 21 | G120: 1 | H120: boufra | I120: =COUNTIF($H$2:H120,H120) -> 1 | J120: BOULIOU | K120: Francois | L120: Francois | N120: 515958146 | O120: M. | P120: BOULIOU | Q120: Francois | R120: M | S120: France | T120: 74 | U120: 16448 | V120: VETERAN M | W120: 21.0 | X120: 43725 | Y120: Pas de Drapeau / Opens | AA120: 36873 | AB120: 1 | AC120: 2147 AV ROGER SALENGRO | AF120: 92370 | AG120: CHAVILLE | AH120: France | AI120: bouliou.francois@bbox.fr | AJ120: 33661500145 | AK120: 92 - Hauts-de-Seine | AL120: 0403 - BLUEGREEN SAINT QUENTIN EN YVELINES | AM120: 78 - Yvelines | AN120: R | AO120: 43468 | AP120: Adulte | AQ120: 43468 | AR120: 2019 | AS120: 2000 | AT120: 43508 | AU120: Classé | AV120: Licencié | AW120: OUI | BA120: 43921 | BC120: NON
A121: =IF(G121=1,COUNTIF(G$2:G121,G121),0) -> 0 | B121: bouama | C121: =COUNTIF(B$2:B121,B121) -> 1 | D121: BOULLE Amaury | E121: M | F121: 33.5 | G121: 0 | H121: bouama | I121: =COUNTIF($H$2:H121,H121) -> 1 | J121: BOULLE | K121: Amaury | L121: Amaury | N121: 526053316 | O121: M. | P121: BOULLE | Q121: Amaury | R121: M | S121: France | T121: 35 | U121: 30913 | V121: MID AMATEUR M | W121: 33.5 | X121: 43351 | Y121: Pas de Drapeau / Opens | AA121: 42988 | AB121: 3 | AC121: 80 CHEMIN DE LA RELATIVITE | AF121: 78370 | AG121: PLAISIR | AH121: France | AI121: amauryboulle@yahoo.fr | AJ121: 33629683502 | AK121: 78 - Yvelines | AL121: 0403 - BLUEGREEN SAINT QUENTIN EN YVELINES | AM121: 78 - Yvelines | AN121: Z | AO121: 43493 | AP121: Adulte | AQ121: 43493 | AR121: 2019 | AS121: 2017 | AT121: 43103 | AU121: Classé | AV121: Licencié | AW121: OUI | AY121: OUI | BA121: 43555 | BC121: NON
A122: =IF(G122=1,COUNTIF(G$2:G122,G122),0) -> 76 | B122: boubri | C122: =COUNTIF(B$2:B122,B122) -> 1 | D122: BOULLE Brigitte | E122: F | F122: 20.8 | G122: 1 | H122: boubri | I122: =COUNTIF($H$2:H122,H122) -> 1 | J122: BOULLE | K122: Brigitte | L122: Brigitte | N122: 520325293 | O122: Mme | P122: BOULLE | Q122: Brigitte | R122: F | S122: France | T122: 64 | U122: 20385 | V122: SENIOR F | W122: 20.8 | X122: 43729 | Y122: Pas de Drapeau / Opens | AA122: 42193 | AB122: 1 | AC122: 80 CHEMIN DE LA RELATIVITE | AF122: 78370 | AG122: PLAISIR | AH122: France | AI122: brigitteboulle@gmail.com | AK122: 78 - Yvelines | AL122: 0403 - BLUEGREEN SAINT QUENTIN EN YVELINES | AM122: 78 - Yvelines | AN122: Z | AO122: 43471 | AP122: Adulte | AQ122: 43471 | AR122: 2019 | AS122: 2015 | AT122: 42803 | AU122: Classé | AV122: Licencié | AW122: OUI | BA122: 43921 | BB122: 43471 | BC122: NON
A123: =IF(G123=1,COUNTIF(G$2:G123,G123),0) -> 77 | B123: bouser | C123: =COUNTIF(B$2:B123,B123) -> 1 | D123: BOULLE Serge | E123: M | F123: 25.2 | G123: 1 | H123: bouser | I123: =COUNTIF($H$2:H123,H123) -> 1 | J123: BOULLE | K123: Serge | L123: Serge | N123: 520324294 | O123: M. | P123: BOULLE | Q123: Serge | R123: M | S123: France | T123: 70 | U123: 18194 | V123: VETERAN M | W123: 25.2 | X123: 43729 | Y123: Pas de Drapeau / Opens | AA123: 42193 | AB123: 1 | AC123: 80 CHEMIN DE LA RELATIVITE | AF123: 78370 | AG123: PLAISIR | AH123: France | AI123: sboulle@yahoo.fr | AK123: 78 - Yvelines | AL123: 0403 - BLUEGREEN SAINT QUENTIN EN YVELINES | AM123: 78 - Yvelines | AN123: Z | AO123: 43470 | AP123: Adulte | AQ123: 43470 | AR123: 2019 | AS123: 2015 | AT123: 42803 | AU123: Classé | AV123: Licencié | AW123: OUI | BA123: 43921 | BB123: 43470 | BC123: NON
A124: =IF(G124=1,COUNTIF(G$2:G124,G124),0) -> 78 | B124: bouste | C124: =COUNTIF(B$2:B124,B124) -> 1 | D124: BOUQUET Stephane | E124: M | F124: 51 | G124: 1 | H124: bouste | I124: =COUNTIF($H$2:H124,H124) -> 1 | J124: BOUQUET | K124: Stephane | L124: Stephane | N124: 546999231 | O124: M. | P124: BOUQUET | Q124: Stephane | R124: M | S124: France | T124: 54 | U124: 23896 | V124: SENIOR M | W124: 51.0 | X124: 41056 | Y124: Pas de Drapeau / Opens | AA124: 40139 | AB124: 3 | AC124: 8 RUE DU BEL AIR | AF124: 92190 | AG124: MEUDON | AH124: France | AI124: sbouquet@free.fr | AJ124: 608746925 | AK124: 92 - Hauts-de-Seine | AL124: 0403 - BLUEGREEN SAINT QUENTIN EN YVELINES | AM124: 78 - Yvelines | AN124: R | AO124: 43452 | AP124: Adulte | AQ124: 43452 | AR124: 2019 | AS124: 2009 | AT124: 41718 | AU124: Classé | AV124: Licencié | AW124: OUI | AY124: NON | BA124: 42094 | BC124: OUI
A125: =IF(G125=1,COUNTIF(G$2:G125,G125),0) -> 79 | B125: boufar | C125: =COUNTIF(B$2:B125,B125) -> 1 | D125: BOURAKKADI Farid | E125: M | F125: 21.4 | G125: 1 | H125: boufar | I125: =COUNTIF($H$2:H125,H125) -> 1 | J125: BOURAKKADI | K125: Farid | L125: Farid | N125: 512623057 | O125: M. | P125: BOURAKKADI | Q125: Farid | R125: M | S125: France | T125: 68 | U125: 18629 | V125: VETERAN M | W125: 21.4 | X125: 40909 | Y125: Pas de Drapeau / Opens | AB125: 2 | AC125: 6 RUE GEORGES MILLANDY | AF125: 92360 | AG125: MEUDON LA FORET | AH125: France | AI125: F.BOURAKKADI@GMAIL.COM | AJ125: 33673399423 | AK125: 92 - Hauts-de-Seine | AL125: 0403 - BLUEGREEN SAINT QUENTIN EN YVELINES | AM125: 78 - Yvelines | AN125: R | AO125: 43479 | AP125: Adulte | AQ125: 43479 | AR125: 2019 | AS125: 1991 | AU125: Classé | AV125: Licencié | AW125: OUI | BC125: NON
... 156 more rows

Sheet RMS-EXT
A1: LICENCE | B1: CIVILITE | C1: NOM | D1: PRENOM | E1: SEXE | F1: NATIONALITE | G1: AGE | H1: DTE_NAISS | I1: CATEGORIE_AGE | J1: IDX | K1: DATE_IDX | L1: TEST_FEDERAL | M1: DATE_TEST_FEDERAL | N1: DATE_CARTE_VERTE | O1: LIEN | P1: ADRESSE1 | Q1: ADRESSE2 | R1: ADRESSE3 | S1: CP | T1: VILLE | U1: PAYS | V1: EMAIL | W1: MOBILE | X1: DEP_RESIDENCE | Y1: CLUB_LICENCE | Z1: DEP_CLUB | AA1: CODE_LICENCE | AB1: DATE_LICENCE | AC1: CATEGORIE_LICENCE | AD1: DATE_DERNIERE_LICENCE | AE1: ANNEE_LICENCE | AF1: ANNEE_CREATION | AG1: DATE_CERTIF | AH1: STATUT_SPORTIF | AI1: NATURE | AJ1: ACTIF | AK1: DJF_ANNEE | AL1: RATTACHEMENT_WEB | AM1: EDG | AN1: DATE_FIN_CERTIF | AO1: DTE_QS_ENREG | AP1: LIC_RENEW_AUTO
A2: 549065216 | B2: bouoli | C2: BOULZE-AYME | D2: Olivier | E2: M | F2: =IF(C2="",0,CONCATENATE(C2," ",D2)) -> BOULZE-AYME Olivier | I2: SENIOR M | J2: 17.7
A3: 544163164 | B3: charay | C3: CHAPUT | D3: Raymond | E3: M | F3: CHAPUT Raymond | I3: SENIOR M | J3: 24
A4: 542405209 | B4: couj-f | C4: COULON | D4: J-Francois | E4: M | F4: COULON J-Francois | I4: SENIOR M | J4: 18.5
A5: 518440065 | B5: geoger | C5: GEORGE | D5: Gerard | E5: M | F5: GEORGE Gerard | I5: SENIOR M | J5: 10.3
A6: 49880025 | B6: lanj-l | C6: LANAUTE | D6: J-Louis | E6: M | F6: LANAUTE J-Louis | I6: SENIOR M | J6: 14.1
A7: 48972211 | B7: laujoe | C7: LAUNAY | D7: Joel | E7: M | F7: LAUNAY Joel | I7: SENIOR M | J7: 13.3
A8: 521132123 | B8: r0upat | C8: ROUX | D8: Patrick | E8: M | F8: ROUX Patrick | I8: SENIOR M | J8: 15.8
A9: 524855221 | B9: mamdid | C9: MAMET | D9: Didier | E9: M | F9: MAMET Didier | I9: SENIOR M | J9: 10.3
A10: 539950162 | B10: micpat | C10: MICHELIN | D10: Patrick | E10: M | F10: MICHELIN Patrick | I10: SENIOR M | J10: 24.8
A11: 527873143 | B11: robfre | C11: ROBERT | D11: Frederic | E11: M | F11: ROBERT Frederic | I11: SENIOR M | J11: 14.1
A12: 44860098 | B12: rocfra | C12: ROCHE | D12: Francoise | E12: F | F12: ROCHE Francoise | I12: SENIOR F | J12: 11.5
A13: 519335025 | B13: rocnoe | C13: ROCHE | D13: Noel | E13: M | F13: =IF(C13="",0,CONCATENATE(C13," ",D13)) -> ROCHE Noel | I13: SENIOR M | J13: 30
A14: 0 | F14: =IF(C14="",0,CONCATENATE(C14," ",D14)) -> 0
A15: 0 | F15: 0
A16: 0 | F16: 0
A17: 0 | F17: 0
A18: 0 | F18: 0
A19: 0 | F19: 0
A20: 0 | F20: 0
A21: 0 | F21: 0
A22: 0 | F22: 0
A23: 0 | F23: 0
A24: 0 | F24: 0
A25: 0 | F25: 0
A26: 0 | F26: 0
A27: 0 | F27: 0
A28: 0 | F28: 0
A29: 0 | F29: 0
A30: 0 | F30: 0

Sheet BAD_LAU
C1: BADEN / ST LAURENT | E1: Juillet/aout 20118 | K1: ='DATA-WE'!A2 -> 2019 | L1: NUM OI | M1: Index | N1: Nom Prenom | O1: =CONCATENATE(COUNTIF(U:U,"OIR"),"R & ",COUNTIF(U:U,"OIB"),"B") -> 15R & 14B | P1: BRUT | Q1: NET | R1: Delta | S1: Nidx | U1: Qualif | V1: * | W1: Valide | X1: OI | Y1: Parcours | Z1: VALID | AA1: =COUNTIF(#REF!,">0") ->  | AB1: CODE RES | AC1: Participation | AD1: Cod-adh | AE1: Adh | AF1: Idx | AG1: Sex | AH1: Série jeu | AI1: Serie figée | AK1: H-R | AL1: D-R | AM1: H-B | AN1: D-B | AO1: H-Q | AP1: D-Q | AQ1: H-Y | AR1: D-Y | AS1: HS1 | AT1: HS2 | AU1: HS3 | AV1: HS4 | AW1: DS1 | AX1: DS2 | AY1: DS3 | AZ1: DS4 | BB1: Statistiques BZH 2018 | BC1: Hommes | BD1: Dames | BE1: ST Laurent | BG1: Hommes | BH1: Dames | BI1: BADEN | BK1: Hommes | BL1: Dames | BM1: VAL Queven | BO1: Hommes | BP1: Dames | BQ1: RHUYS
K2: =$X$1 -> OI | L2: NUM | M2: Ter | O2: Sexe | P2: BRUT | Q2: NET | R2: Delta | S2: Nidx | X2: =IF(Z2=-2,IF(K2="MP",99,L2),"*") -> NUM | Y2: =IF(Z2=-2,M2,"*") -> Ter | Z2: -2 | AA2: =IF(Z2<2,"*",code_ext(N2)) -> * | AB2: =IF(W2,X2*1000+Q2,"*") -> * | AC2: =IF(AA2="*",0,COUNTIF($AA2:AA$3,AA2)) -> 0 | AD2: =IF(AC2=0,"*",AA2) -> * | AE2: =IF(AC2=0,"*",N2) -> * | AF2: =IF(AC2=0,"*",SUBSTITUTE(M2,".",",")*1) -> * | AG2: =IF(AC2=0,"*",IF(O2="M","H","D")) -> * | AH2: =IF(AC2>0,IF(AF2<18.5,1,IF(AF2<26.5,2,IF(AF2>36,4,3))),"*") -> * | AI2: =IF(AC2=0,"*",AH2) -> * | AK2: =IF($AC2=0,0,IF(CONCATENATE($AG2,"-",$Y2)=AK$1,$Q2,0)) -> 0 | AL2: =IF($AC2=0,0,IF(CONCATENATE($AG2,"-",$Y2)=AL$1,$Q2,0)) -> 0 | AM2: =IF($AC2=0,0,IF(CONCATENATE($AG2,"-",$Y2)=AM$1,$Q2,0)) -> 0 | AN2: 0 | AO2: 0 | AP2: =IF($AC2=0,0,IF(CONCATENATE($AG2,"-",$Y2)=AP$1,$Q2,0)) -> 0 | AQ2: 0 | AR2: 0 | AS2: =IF($AC2=0,0,IF(CONCATENATE($AG2,"S",$AH2)=AS$1,$Q2,0)) -> 0 | AT2: =IF($AC2=0,0,IF(CONCATENATE($AG2,"S",$AH2)=AT$1,$Q2,0)) -> 0 | AU2: 0 | AV2: 0 | AW2: 0 | AX2: 0 | AY2: 0 | AZ2: 0 | BB2: Nb tours | BC2: =COUNTIF(AK:AK,">0") -> 927 | BD2: =COUNTIF(AL:AL,">0") -> 429 | BE2: =SUM(BC2:BD2) -> 1356 | BG2: =COUNTIF(AM:AM,">0") -> 1166 | BH2: =COUNTIF(AN:AN,">0") -> 574 | BI2: =SUM(BG2:BH2) -> 1740 | BK2: =COUNTIF(AO:AO,">0") -> 0 | BL2: =COUNTIF(AP:AP,">0") -> 0 | BM2: =SUM(BK2:BL2) -> 0 | BO2: =COUNTIF(AQ:AQ,">0") -> 0 | BP2: =COUNTIF(AR:AR,">0") -> 0 | BQ2: =SUM(BO2:BP2) -> 0
A3: BAD | B3: =COUNTIF(A$2:A3,A3) -> 1 | C3: bg 29-08 | K3: =A3 -> BAD | L3: =B3 -> 1 | M3: =IF(K3="BAD","B",IF(K3="STL","R",IF(K3="RHY","Y",IF(K3="VAQ","Q","?")))) -> B | N3: =C3 -> bg 29-08 | O3: =IF(AF3=0,0,IF(LEFT(A3,3)="Rés",IF(ISNUMBER(SEARCH("Mess",A3)),"M","D"),O2)) -> Sexe | P3: =IF(K3="OI",P$1) -> FALSE | Q3: =IF(K3="OI",Q$1) -> FALSE | R3: =IF(K3="OI",R$1) -> FALSE | S3: =IF(K3="OI",S$1) -> FALSE | T3: ZTA | U3: =CONCATENATE("OI",M3) -> OIB | W3: =AND(NOT(LEFT(O3,5)="Non c"),(LEFT(L3,4)="Norm")) -> FALSE | X3: =IF(Z3=-2,IF(K3="MP",99,L3),X2) -> 1 | Y3: =IF(Z3=-2,M3,Y1) -> B | Z3: =IF(K3="",0,IF(LEFT(U3,2)="OI",-2,IF(LEFT(L3,4)="Norm",2,1))) -> -2 | AA3: =IF(Z3<2,"*",code_ext(N3)) -> * | AB3: * | AC3: =IF(AA3="*",0,COUNTIF($AA$3:AA3,AA3)) -> 0 | AD3: * | AE3: =IF(AC3=0,"*",O3) -> * | AF3: * | AG3: =IF(AC3=0,"*",IF(O3="M","H","D")) -> * | AH3: * | AI3: * | AK3: 0 | AL3: 0 | AM3: 0 | AN3: 0 | AO3: 0 | AP3: 0 | AQ3: 0 | AR3: 0 | AS3: =IF($AC3=0,0,IF(CONCATENATE($AG3,"S",$AH3)=AS$1,$Q3,0)) -> 0 | AT3: 0 | AU3: 0 | AV3: 0 | AW3: 0 | AX3: 0 | AY3: 0 | AZ3: 0 | BB3: Pts NET | BC3: =SUM(AK:AK) -> 27683 | BD3: =SUM(AL:AL) -> 13023 | BE3: =SUM(BC3:BD3) -> 40706 | BG3: =SUM(AM:AM) -> 35590 | BH3: =SUM(AN:AN) -> 17363 | BI3: =SUM(BG3:BH3) -> 52953 | BK3: =SUM(AO:AO) -> 0 | BL3: =SUM(AP:AP) -> 0 | BM3: =SUM(BK3:BL3) -> 0 | BO3: =SUM(AQ:AQ) -> 0 | BP3: =SUM(AR:AR) -> 0 | BQ3: =SUM(BO3:BP3) -> 0
A4: Résultat Net, 1ère Série Messieurs, Simple Stableford | K4: =A4 -> Résultat Net, 1ère Série Messieurs, Simple Stableford | L4: =IF(AND(A4<>"Clt",F4>0),"Norm","*") -> * | M4: =IF(A4="Clt",0,D4) -> 0 | N4: =IF(A4="Clt",0,C4) -> 0 | O4: M | Q4: =IF(A4="Clt",0,J4) -> 0 | W4: =AND(NOT(LEFT(N4,5)="Non c"),(LEFT(L4,4)="Norm")) -> FALSE | X4: 1 | Y4: =IF(Z4=-2,M4,Y3) -> B | Z4: 1 | AA4: =IF(Z4<2,"*",code_ext(N4)) -> * | AB4: * | AC4: =IF(AA4="*",0,COUNTIF($AA$3:AA4,AA4)) -> 0 | AD4: * | AE4: =IF(AC4=0,"*",M4) -> * | AF4: * | AG4: * | AH4: * | AI4: * | AK4: 0 | AL4: 0 | AM4: 0 | AN4: 0 | AO4: 0 | AP4: 0 | AQ4: 0 | AR4: 0 | AS4: 0 | AT4: 0 | AU4: 0 | AV4: 0 | AW4: 0 | AX4: 0 | AY4: 0 | AZ4: 0 | BB4: Net Moy | BC4: =IF(BC2=0,0,BC3/BC2) -> 29.86299892 | BD4: =IF(BD2=0,0,BD3/BD2) -> 30.35664336 | BE4: =IF(BE2=0,0,BE3/BE2) -> 30.01917404 | BG4: =IF(BG2=0,0,BG3/BG2) -> 30.52315609 | BH4: =IF(BH2=0,0,BH3/BH2) -> 30.24912892 | BI4: =IF(BI2=0,0,BI3/BI2) -> 30.43275862 | BK4: =IF(BK2=0,0,BK3/BK2) -> 0 | BL4: =IF(BL2=0,0,BL3/BL2) -> 0 | BM4: =IF(BM2=0,0,BM3/BM2) -> 0 | BO4: =IF(BO2=0,0,BO3/BO2) -> 0 | BP4: =IF(BP2=0,0,BP3/BP2) -> 0 | BQ4: =IF(BQ2=0,0,BQ3/BQ2) -> 0
A5: (FFG) Baden | K5: =A5 -> (FFG) Baden | L5: =IF(AND(A5<>"Clt",F5>0),"Norm","*") -> * | M5: 0 | N5: =IF(A5="Clt",0,C5) -> 0 | O5: M | Q5: =IF(A5="Clt",0,J5) -> 0 | W5: FALSE | X5: 1 | Y5: B | Z5: 1 | AA5: =IF(Z5<2,"*",code_ext(N5)) -> * | AB5: * | AC5: =IF(AA5="*",0,COUNTIF($AA$3:AA5,AA5)) -> 0 | AD5: * | AE5: =IF(AC5=0,"*",N5) -> * | AF5: * | AG5: * | AH5: * | AI5: * | AK5: 0 | AL5: 0 | AM5: 0 | AN5: 0 | AO5: 0 | AP5: 0 | AQ5: 0 | AR5: 0 | AS5: 0 | AT5: 0 | AU5: 0 | AV5: 0 | AW5: 0 | AX5: 0 | AY5: 0 | AZ5: 0
A6: Clt | B6: Nat. | C6: Prenom et Nom | D6: Idx | E6: Club | F6: T1 | G6: T2 | H6: T3 | I6: T4 | J6: Total | K6: =IF(A6="Clt",0,A6) -> 0 | L6: =IF(AND(A6<>"Clt",F6>0),"Norm","*") -> * | M6: 0 | N6: =IF(A6="Clt",0,C6) -> 0 | O6: M | Q6: =IF(A6="Clt",0,J6) -> 0 | W6: FALSE | X6: 1 | Y6: B | Z6: 1 | AA6: =IF(Z6<2,"*",code_ext(N6)) -> * | AB6: * | AC6: =IF(AA6="*",0,COUNTIF($AA$3:AA6,AA6)) -> 0 | AD6: * | AE6: * | AF6: * | AG6: * | AH6: * | AI6: * | AK6: 0 | AL6: 0 | AM6: 0 | AN6: 0 | AO6: 0 | AP6: 0 | AQ6: 0 | AR6: 0 | AS6: 0 | AT6: 0 | AU6: 0 | AV6: 0 | AW6: 0 | AX6: 0 | AY6: 0 | AZ6: 0 | BB6: perf >36 | BC6: =COUNTIF(AK:AK,">36") -> 98 | BD6: =COUNTIF(AL:AL,">36") -> 54 | BE6: =SUM(BC6:BD6) -> 152 | BG6: =COUNTIF(AM:AM,">36") -> 187 | BH6: =COUNTIF(AN:AN,">36") -> 117 | BI6: =SUM(BG6:BH6) -> 304 | BK6: =COUNTIF(AO:AO,">36") -> 0 | BL6: =COUNTIF(AP:AP,">36") -> 0 | BM6: =SUM(BK6:BL6) -> 0 | BO6: =COUNTIF(AQ:AQ,">36") -> 0 | BP6: =COUNTIF(AR:AR,">36") -> 0 | BQ6: =SUM(BO6:BP6) -> 0
A7: 1 | C7: Troadec Alexandre | D7: 13.8 | E7: St Laurent | F7: 45 | G7: - | H7: - | I7: - | J7: 45 | K7: =A7 -> 1 | L7: =IF(AND(A7<>"Clt",F7>0),"Norm","*") -> Norm | M7: 13.8 | N7: =IF(A7="Clt",0,C7) -> Troadec Alexandre | O7: M | Q7: =IF(A7="Clt",0,J7) -> 45 | W7: TRUE | X7: 1 | Y7: B | Z7: 2 | AA7: =IF(Z7<2,"*",code_ext(N7)) -> troale | AB7: 1045 | AC7: =IF(AA7="*",0,COUNTIF($AA$3:AA7,AA7)) -> 1 | AD7: troale | AE7: Troadec Alexandre | AF7: 13.8 | AG7: H | AH7: 1 | AI7: 1 | AK7: 0 | AL7: 0 | AM7: 45 | AN7: 0 | AO7: 0 | AP7: 0 | AQ7: 0 | AR7: 0 | AS7: 45 | AT7: 0 | AU7: 0 | AV7: 0 | AW7: 0 | AX7: 0 | AY7: 0 | AZ7: 0 | BB7: % | BC7: =IF(BC2=0,0,(BC6/BC2)) -> 0.1057173679 | BD7: =IF(BD2=0,0,(BD6/BD2)) -> 0.1258741259 | BE7: =IF(BE2=0,0,(BE6/BE2)) -> 0.1120943953 | BG7: =IF(BG2=0,0,(BG6/BG2)) -> 0.1603773585 | BH7: =IF(BH2=0,0,(BH6/BH2)) -> 0.2038327526 | BI7: =IF(BI2=0,0,(BI6/BI2)) -> 0.1747126437 | BK7: =IF(BK2=0,0,(BK6/BK2)) -> 0 | BL7: =IF(BL2=0,0,(BL6/BL2)) -> 0 | BM7: =IF(BM2=0,0,(BM6/BM2)) -> 0 | BO7: =IF(BO2=0,0,(BO6/BO2)) -> 0 | BP7: =IF(BP2=0,0,(BP6/BP2)) -> 0 | BQ7: =IF(BQ2=0,0,(BQ6/BQ2)) -> 0
A8: 2 | C8: Grigny Olivier | D8: 9.4 | E8: Baden | F8: 44 | G8: - | H8: - | I8: - | J8: 44 | K8: =A8 -> 2 | L8: Norm | M8: 9.4 | N8: Grigny Olivier | O8: M | Q8: 44 | W8: TRUE | X8: 1 | Y8: B | Z8: 2 | AA8: =IF(Z8<2,"*",code_ext(N8)) -> grioli | AB8: =IF(W8,X8*1000+Q8,"*") -> 1044 | AC8: =IF(AA8="*",0,COUNTIF($AA$3:AA8,AA8)) -> 1 | AD8: grioli | AE8: Grigny Olivier | AF8: 9.4 | AG8: H | AH8: 1 | AI8: 1 | AK8: 0 | AL8: 0 | AM8: 44 | AN8: 0 | AO8: 0 | AP8: 0 | AQ8: 0 | AR8: 0 | AS8: 44 | AT8: 0 | AU8: 0 | AV8: 0 | AW8: 0 | AX8: 0 | AY8: 0 | AZ8: 0
A9: 3 | C9: Cadoret J-Paul | D9: 12.7 | E9: Baden | F9: 41 | G9: - | H9: - | I9: - | J9: 41 | K9: 3 | L9: Norm | M9: 12.7 | N9: Cadoret J-Paul | O9: M | Q9: 41 | W9: TRUE | X9: 1 | Y9: B | Z9: 2 | AA9: =IF(Z9<2,"*",code_ext(N9)) -> cadj-p | AB9: 1041 | AC9: =IF(AA9="*",0,COUNTIF($AA$3:AA9,AA9)) -> 1 | AD9: cadj-p | AE9: Cadoret J-Paul | AF9: 12.7 | AG9: H | AH9: 1 | AI9: 1 | AK9: 0 | AL9: 0 | AM9: 41 | AN9: 0 | AO9: 0 | AP9: 0 | AQ9: 0 | AR9: 0 | AS9: 41 | AT9: 0 | AU9: 0 | AV9: 0 | AW9: 0 | AX9: 0 | AY9: 0 | AZ9: 0 | BC9: H<18,5 | BD9: H<26,5 | BE9: H<36 | BG9: D<18,5 | BH9: D<26,5 | BI9: D<36
A10: 4 | C10: Sommer Clement | D10: 4.8 | E10: Baden | F10: 37 | G10: - | H10: - | I10: - | J10: 37 | K10: 4 | L10: Norm | M10: 4.8 | N10: Sommer Clement | O10: M | Q10: 37 | W10: TRUE | X10: 1 | Y10: B | Z10: 2 | AA10: =IF(Z10<2,"*",code_ext(N10)) -> somcle | AB10: 1037 | AC10: =IF(AA10="*",0,COUNTIF($AA$3:AA10,AA10)) -> 1 | AD10: somcle | AE10: Sommer Clement | AF10: 4.8 | AG10: H | AH10: 1 | AI10: 1 | AK10: 0 | AL10: 0 | AM10: 37 | AN10: 0 | AO10: 0 | AP10: 0 | AQ10: 0 | AR10: 0 | AS10: 37 | AT10: 0 | AU10: 0 | AV10: 0 | AW10: 0 | AX10: 0 | AY10: 0 | AZ10: 0 | BB10: =BB2 -> Nb tours | BC10: =COUNTIF(AS:AS,">0") -> 1241 | BD10: 639 | BE10: 158 | BG10: 357 | BH10: 441 | BI10: 153
A11: 5 | C11: Jacq Gilles | D11: 8.9 | E11: Lac Au Duc | F11: 37 | G11: - | H11: - | I11: - | J11: 37 | K11: 5 | L11: Norm | M11: 8.9 | N11: Jacq Gilles | O11: M | Q11: 37 | W11: TRUE | X11: 1 | Y11: B | Z11: 2 | AA11: =IF(Z11<2,"*",code_ext(N11)) -> jacgil | AB11: 1037 | AC11: =IF(AA11="*",0,COUNTIF($AA$3:AA11,AA11)) -> 1 | AD11: jacgil | AE11: Jacq Gilles | AF11: 8.9 | AG11: H | AH11: 1 | AI11: 1 | AK11: 0 | AL11: 0 | AM11: 37 | AN11: 0 | AO11: 0 | AP11: 0 | AQ11: 0 | AR11: 0 | AS11: 37 | AT11: 0 | AU11: 0 | AV11: 0 | AW11: 0 | AX11: 0 | AY11: 0 | AZ11: 0 | BB11: =BB3 -> Pts NET | BC11: =SUM(AS:AS) -> 37906 | BD11: 18338 | BE11: 4901 | BG11: 11090 | BH11: 13199 | BI11: 4405
A12: 6 | C12: Montassier Evrard | D12: 12.2 | E12: Baden | F12: 36 | G12: - | H12: - | I12: - | J12: 36 | K12: 6 | L12: Norm | M12: 12.2 | N12: Montassier Evrard | O12: M | Q12: 36 | W12: TRUE | X12: 1 | Y12: B | Z12: 2 | AA12: =IF(Z12<2,"*",code_ext(N12)) -> monevr | AB12: 1036 | AC12: =IF(AA12="*",0,COUNTIF($AA$3:AA12,AA12)) -> 1 | AD12: monevr | AE12: Montassier Evrard | AF12: 12.2 | AG12: H | AH12: 1 | AI12: 1 | AK12: 0 | AL12: 0 | AM12: 36 | AN12: 0 | AO12: 0 | AP12: 0 | AQ12: 0 | AR12: 0 | AS12: 36 | AT12: 0 | AU12: 0 | AV12: 0 | AW12: 0 | AX12: 0 | AY12: 0 | AZ12: 0 | BB12: =BB4 -> Net Moy | BC12: =IF(BC10=0,"na",BC11/BC10) -> 30.544722 | BD12: =IF(BD10=0,0,BD11/BD10) -> 28.69796557 | BE12: =IF(BE10=0,0,BE11/BE10) -> 31.01898734 | BG12: =IF(BG10=0,0,BG11/BG10) -> 31.06442577 | BH12: =IF(BH10=0,0,BH11/BH10) -> 29.92970522 | BI12: =IF(BI10=0,0,BI11/BI10) -> 28.79084967
A13: 7 | C13: Quere Florian | D13: 12.4 | E13: St Laurent | F13: 36 | G13: - | H13: - | I13: - | J13: 36 | K13: 7 | L13: Norm | M13: 12.4 | N13: Quere Florian | O13: M | Q13: 36 | W13: TRUE | X13: 1 | Y13: B | Z13: 2 | AA13: =IF(Z13<2,"*",code_ext(N13)) -> queflo | AB13: 1036 | AC13: =IF(AA13="*",0,COUNTIF($AA$3:AA13,AA13)) -> 1 | AD13: queflo | AE13: Quere Florian | AF13: 12.4 | AG13: H | AH13: 1 | AI13: 1 | AK13: 0 | AL13: 0 | AM13: 36 | AN13: 0 | AO13: 0 | AP13: 0 | AQ13: 0 | AR13: 0 | AS13: 36 | AT13: 0 | AU13: 0 | AV13: 0 | AW13: 0 | AX13: 0 | AY13: 0 | AZ13: 0
A14: 8 | C14: Le_Ret Thierry | D14: 9.9 | E14: Baden | F14: 36 | G14: - | H14: - | I14: - | J14: 36 | K14: 8 | L14: Norm | M14: 9.9 | N14: Le_Ret Thierry | O14: M | Q14: 36 | W14: TRUE | X14: 1 | Y14: B | Z14: 2 | AA14: =IF(Z14<2,"*",code_ext(N14)) -> retthi | AB14: 1036 | AC14: =IF(AA14="*",0,COUNTIF($AA$3:AA14,AA14)) -> 1 | AD14: retthi | AE14: Le_Ret Thierry | AF14: 9.9 | AG14: H | AH14: 1 | AI14: 1 | AK14: 0 | AL14: 0 | AM14: 36 | AN14: 0 | AO14: 0 | AP14: 0 | AQ14: 0 | AR14: 0 | AS14: 36 | AT14: 0 | AU14: 0 | AV14: 0 | AW14: 0 | AX14: 0 | AY14: 0 | AZ14: 0 | BB14: =BB6 -> perf >36 | BC14: =COUNTIF(AS:AS,">36") -> 165 | BD14: 52 | BE14: 41 | BG14: 66 | BH14: 62 | BI14: 26
A15: 9 | C15: Lebret Pierre | D15: 11.2 | E15: Baden | F15: 35 | G15: - | H15: - | I15: - | J15: 35 | K15: 9 | L15: Norm | M15: 11.2 | N15: Lebret Pierre | O15: M | Q15: 35 | W15: TRUE | X15: 1 | Y15: B | Z15: 2 | AA15: =IF(Z15<2,"*",code_ext(N15)) -> lebpie | AB15: 1035 | AC15: =IF(AA15="*",0,COUNTIF($AA$3:AA15,AA15)) -> 1 | AD15: lebpie | AE15: Lebret Pierre | AF15: 11.2 | AG15: H | AH15: 1 | AI15: 1 | AK15: 0 | AL15: 0 | AM15: 35 | AN15: 0 | AO15: 0 | AP15: 0 | AQ15: 0 | AR15: 0 | AS15: 35 | AT15: 0 | AU15: 0 | AV15: 0 | AW15: 0 | AX15: 0 | AY15: 0 | AZ15: 0 | BB15: =BB7 -> % | BC15: =IF(BC10=0,"na",(BC14/BC10)) -> 0.1329572925 | BD15: =IF(BD10=0,"na",(BD14/BD10)) -> 0.0813771518 | BE15: =IF(BE10=0,"na",(BE14/BE10)) -> 0.2594936709 | BG15: =IF(BG10=0,0,(BG14/BG10)) -> 0.1848739496 | BH15: =IF(BH10=0,0,(BH14/BH10)) -> 0.1405895692 | BI15: =IF(BI10=0,0,(BI14/BI10)) -> 0.1699346405
A16: 10 | C16: Le_Gall Titouan | D16: 4.1 | E16: Baden | F16: 35 | G16: - | H16: - | I16: - | J16: 35 | K16: 10 | L16: Norm | M16: 4.1 | N16: Le_Gall Titouan | O16: M | Q16: 35 | W16: TRUE | X16: 1 | Y16: B | Z16: 2 | AA16: =IF(Z16<2,"*",code_ext(N16)) -> galtit | AB16: 1035 | AC16: =IF(AA16="*",0,COUNTIF($AA$3:AA16,AA16)) -> 1 | AD16: galtit | AE16: Le_Gall Titouan | AF16: 4.1 | AG16: H | AH16: 1 | AI16: 1 | AK16: 0 | AL16: 0 | AM16: 35 | AN16: 0 | AO16: 0 | AP16: 0 | AQ16: 0 | AR16: 0 | AS16: 35 | AT16: 0 | AU16: 0 | AV16: 0 | AW16: 0 | AX16: 0 | AY16: 0 | AZ16: 0
A17: 11 | C17: Leroux Pierre Yves | D17: 14.1 | E17: Baden | F17: 33 | G17: - | H17: - | I17: - | J17: 33 | K17: 11 | L17: Norm | M17: 14.1 | N17: Leroux Pierre Yves | O17: M | Q17: 33 | W17: TRUE | X17: 1 | Y17: B | Z17: 2 | AA17: =IF(Z17<2,"*",code_ext(N17)) -> lerpie | AB17: 1033 | AC17: =IF(AA17="*",0,COUNTIF($AA$3:AA17,AA17)) -> 1 | AD17: lerpie | AE17: Leroux Pierre Yves | AF17: 14.1 | AG17: H | AH17: 1 | AI17: 1 | AK17: 0 | AL17: 0 | AM17: 33 | AN17: 0 | AO17: 0 | AP17: 0 | AQ17: 0 | AR17: 0 | AS17: 33 | AT17: 0 | AU17: 0 | AV17: 0 | AW17: 0 | AX17: 0 | AY17: 0 | AZ17: 0
A18: 12 | C18: Faure Bernard | D18: 13.4 | E18: Baden | F18: 33 | G18: - | H18: - | I18: - | J18: 33 | K18: 12 | L18: Norm | M18: 13.4 | N18: Faure Bernard | O18: M | Q18: 33 | W18: TRUE | X18: 1 | Y18: B | Z18: 2 | AA18: =IF(Z18<2,"*",code_ext(N18)) -> fauber | AB18: 1033 | AC18: =IF(AA18="*",0,COUNTIF($AA$3:AA18,AA18)) -> 1 | AD18: fauber | AE18: Faure Bernard | AF18: 13.4 | AG18: H | AH18: 1 | AI18: 1 | AK18: 0 | AL18: 0 | AM18: 33 | AN18: 0 | AO18: 0 | AP18: 0 | AQ18: 0 | AR18: 0 | AS18: 33 | AT18: 0 | AU18: 0 | AV18: 0 | AW18: 0 | AX18: 0 | AY18: 0 | AZ18: 0
A19: 13 | C19: Le_Lorec Theo | D19: 9.5 | E19: Baden | F19: 33 | G19: - | H19: - | I19: - | J19: 33 | K19: 13 | L19: Norm | M19: 9.5 | N19: Le_Lorec Theo | O19: M | Q19: 33 | W19: TRUE | X19: 1 | Y19: B | Z19: 2 | AA19: =IF(Z19<2,"*",code_ext(N19)) -> lorthe | AB19: 1033 | AC19: =IF(AA19="*",0,COUNTIF($AA$3:AA19,AA19)) -> 1 | AD19: lorthe | AE19: Le_Lorec Theo | AF19: 9.5 | AG19: H | AH19: 1 | AI19: 1 | AK19: 0 | AL19: 0 | AM19: 33 | AN19: 0 | AO19: 0 | AP19: 0 | AQ19: 0 | AR19: 0 | AS19: 33 | AT19: 0 | AU19: 0 | AV19: 0 | AW19: 0 | AX19: 0 | AY19: 0 | AZ19: 0
A20: 14 | C20: Ballot J-François | D20: 14.2 | E20: Baden | F20: 33 | G20: - | H20: - | I20: - | J20: 33 | K20: 14 | L20: Norm | M20: 14.2 | N20: Ballot J-François | O20: M | Q20: 33 | W20: TRUE | X20: 1 | Y20: B | Z20: 2 | AA20: =IF(Z20<2,"*",code_ext(N20)) -> balj-f | AB20: 1033 | AC20: =IF(AA20="*",0,COUNTIF($AA$3:AA20,AA20)) -> 1 | AD20: balj-f | AE20: Ballot J-François | AF20: 14.2 | AG20: H | AH20: 1 | AI20: 1 | AK20: 0 | AL20: 0 | AM20: 33 | AN20: 0 | AO20: 0 | AP20: 0 | AQ20: 0 | AR20: 0 | AS20: 33 | AT20: 0 | AU20: 0 | AV20: 0 | AW20: 0 | AX20: 0 | AY20: 0 | AZ20: 0
A21: 15 | C21: Olivo Thierry | D21: 11.5 | E21: Baden | F21: 33 | G21: - | H21: - | I21: - | J21: 33 | K21: 15 | L21: Norm | M21: 11.5 | N21: Olivo Thierry | O21: M | Q21: 33 | W21: TRUE | X21: 1 | Y21: B | Z21: 2 | AA21: =IF(Z21<2,"*",code_ext(N21)) -> olithi | AB21: 1033 | AC21: =IF(AA21="*",0,COUNTIF($AA$3:AA21,AA21)) -> 1 | AD21: olithi | AE21: Olivo Thierry | AF21: 11.5 | AG21: H | AH21: 1 | AI21: 1 | AK21: 0 | AL21: 0 | AM21: 33 | AN21: 0 | AO21: 0 | AP21: 0 | AQ21: 0 | AR21: 0 | AS21: 33 | AT21: 0 | AU21: 0 | AV21: 0 | AW21: 0 | AX21: 0 | AY21: 0 | AZ21: 0
A22: 16 | C22: Danne Patrick | D22: 5.5 | E22: Baden | F22: 32 | G22: - | H22: - | I22: - | J22: 32 | K22: 16 | L22: Norm | M22: 5.5 | N22: Danne Patrick | O22: M | Q22: 32 | W22: TRUE | X22: 1 | Y22: B | Z22: 2 | AA22: =IF(Z22<2,"*",code_ext(N22)) -> danpat | AB22: 1032 | AC22: =IF(AA22="*",0,COUNTIF($AA$3:AA22,AA22)) -> 1 | AD22: danpat | AE22: Danne Patrick | AF22: 5.5 | AG22: H | AH22: 1 | AI22: 1 | AK22: =IF($AC22=0,0,IF(CONCATENATE($AG22,"-",$Y22)=AK$1,$Q22,0)) -> 0 | AL22: 0 | AM22: 32 | AN22: 0 | AO22: 0 | AP22: 0 | AQ22: 0 | AR22: 0 | AS22: 32 | AT22: 0 | AU22: 0 | AV22: 0 | AW22: 0 | AX22: 0 | AY22: 0 | AZ22: 0
A23: 17 | C23: Piner Bernard | D23: 10.4 | E23: Saint Cloud | F23: 32 | G23: - | H23: - | I23: - | J23: 32 | K23: 17 | L23: Norm | M23: 10.4 | N23: Piner Bernard | O23: M | Q23: 32 | W23: TRUE | X23: 1 | Y23: B | Z23: 2 | AA23: =IF(Z23<2,"*",code_ext(N23)) -> pinber | AB23: 1032 | AC23: =IF(AA23="*",0,COUNTIF($AA$3:AA23,AA23)) -> 1 | AD23: pinber | AE23: Piner Bernard | AF23: 10.4 | AG23: H | AH23: 1 | AI23: 1 | AK23: 0 | AL23: 0 | AM23: 32 | AN23: 0 | AO23: 0 | AP23: 0 | AQ23: 0 | AR23: 0 | AS23: 32 | AT23: 0 | AU23: 0 | AV23: 0 | AW23: 0 | AX23: 0 | AY23: 0 | AZ23: 0
A24: 18 | C24: Le_Golvan Charles | D24: 9.4 | E24: Baden | F24: 32 | G24: - | H24: - | I24: - | J24: 32 | K24: 18 | L24: Norm | M24: 9.4 | N24: Le_Golvan Charles | O24: M | Q24: 32 | W24: TRUE | X24: 1 | Y24: B | Z24: 2 | AA24: =IF(Z24<2,"*",code_ext(N24)) -> golcha | AB24: 1032 | AC24: =IF(AA24="*",0,COUNTIF($AA$3:AA24,AA24)) -> 1 | AD24: golcha | AE24: Le_Golvan Charles | AF24: 9.4 | AG24: H | AH24: 1 | AI24: 1 | AK24: 0 | AL24: 0 | AM24: 32 | AN24: 0 | AO24: 0 | AP24: 0 | AQ24: 0 | AR24: 0 | AS24: 32 | AT24: 0 | AU24: 0 | AV24: 0 | AW24: 0 | AX24: 0 | AY24: 0 | AZ24: 0
A25: 19 | C25: Pichon Stephane | D25: 4.2 | E25: Baden | F25: 32 | G25: - | H25: - | I25: - | J25: 32 | K25: 19 | L25: Norm | M25: 4.2 | N25: Pichon Stephane | O25: M | Q25: 32 | W25: TRUE | X25: 1 | Y25: B | Z25: 2 | AA25: =IF(Z25<2,"*",code_ext(N25)) -> picste | AB25: 1032 | AC25: =IF(AA25="*",0,COUNTIF($AA$3:AA25,AA25)) -> 1 | AD25: picste | AE25: Pichon Stephane | AF25: 4.2 | AG25: H | AH25: 1 | AI25: 1 | AK25: 0 | AL25: 0 | AM25: 32 | AN25: 0 | AO25: 0 | AP25: 0 | AQ25: 0 | AR25: 0 | AS25: 32 | AT25: 0 | AU25: 0 | AV25: 0 | AW25: 0 | AX25: 0 | AY25: 0 | AZ25: 0
A26: 20 | C26: Urvois Patrice | D26: 3.3 | E26: Lac Au Duc | F26: 32 | G26: - | H26: - | I26: - | J26: 32 | K26: 20 | L26: Norm | M26: 3.3 | N26: Urvois Patrice | O26: M | Q26: 32 | W26: TRUE | X26: 1 | Y26: B | Z26: 2 | AA26: =IF(Z26<2,"*",code_ext(N26)) -> urvpat | AB26: 1032 | AC26: =IF(AA26="*",0,COUNTIF($AA$3:AA26,AA26)) -> 1 | AD26: urvpat | AE26: Urvois Patrice | AF26: 3.3 | AG26: H | AH26: 1 | AI26: 1 | AK26: 0 | AL26: 0 | AM26: 32 | AN26: 0 | AO26: 0 | AP26: 0 | AQ26: 0 | AR26: 0 | AS26: 32 | AT26: 0 | AU26: 0 | AV26: 0 | AW26: 0 | AX26: 0 | AY26: 0 | AZ26: 0
A27: 21 | C27: Aumont Damien | D27: 9.8 | E27: Baden | F27: 31 | G27: - | H27: - | I27: - | J27: 31 | K27: 21 | L27: Norm | M27: 9.8 | N27: Aumont Damien | O27: M | Q27: 31 | W27: TRUE | X27: 1 | Y27: B | Z27: 2 | AA27: =IF(Z27<2,"*",code_ext(N27)) -> aumdam | AB27: 1031 | AC27: =IF(AA27="*",0,COUNTIF($AA$3:AA27,AA27)) -> 1 | AD27: aumdam | AE27: Aumont Damien | AF27: 9.8 | AG27: H | AH27: 1 | AI27: 1 | AK27: 0 | AL27: 0 | AM27: 31 | AN27: 0 | AO27: 0 | AP27: 0 | AQ27: 0 | AR27: 0 | AS27: 31 | AT27: 0 | AU27: 0 | AV27: 0 | AW27: 0 | AX27: 0 | AY27: 0 | AZ27: 0
A28: 22 | C28: Jolu Frederic | D28: 12.9 | E28: Baden | F28: 31 | G28: - | H28: - | I28: - | J28: 31 | K28: 22 | L28: Norm | M28: 12.9 | N28: Jolu Frederic | O28: M | Q28: 31 | W28: TRUE | X28: 1 | Y28: B | Z28: 2 | AA28: =IF(Z28<2,"*",code_ext(N28)) -> jolfre | AB28: 1031 | AC28: =IF(AA28="*",0,COUNTIF($AA$3:AA28,AA28)) -> 1 | AD28: jolfre | AE28: Jolu Frederic | AF28: 12.9 | AG28: H | AH28: 1 | AI28: 1 | AK28: 0 | AL28: 0 | AM28: 31 | AN28: 0 | AO28: 0 | AP28: 0 | AQ28: 0 | AR28: 0 | AS28: 31 | AT28: 0 | AU28: 0 | AV28: 0 | AW28: 0 | AX28: 0 | AY28: 0 | AZ28: 0
A29: 23 | C29: Lachaux Joel | D29: 14.7 | E29: Baden | F29: 30 | G29: - | H29: - | I29: - | J29: 30 | K29: 23 | L29: Norm | M29: 14.7 | N29: Lachaux Joel | O29: M | Q29: 30 | W29: TRUE | X29: 1 | Y29: B | Z29: 2 | AA29: =IF(Z29<2,"*",code_ext(N29)) -> lacjoe | AB29: 1030 | AC29: =IF(AA29="*",0,COUNTIF($AA$3:AA29,AA29)) -> 1 | AD29: lacjoe | AE29: Lachaux Joel | AF29: 14.7 | AG29: H | AH29: 1 | AI29: 1 | AK29: 0 | AL29: 0 | AM29: 30 | AN29: 0 | AO29: 0 | AP29: 0 | AQ29: 0 | AR29: 0 | AS29: 30 | AT29: 0 | AU29: 0 | AV29: 0 | AW29: 0 | AX29: 0 | AY29: 0 | AZ29: 0
A30: 24 | C30: Savidan J-Claude | D30: 9.1 | E30: Ploemeur | F30: 28 | G30: - | H30: - | I30: - | J30: 28 | K30: 24 | L30: Norm | M30: 9.1 | N30: Savidan J-Claude | O30: M | Q30: 28 | W30: TRUE | X30: 1 | Y30: B | Z30: 2 | AA30: =IF(Z30<2,"*",code_ext(N30)) -> savj-c | AB30: 1028 | AC30: =IF(AA30="*",0,COUNTIF($AA$3:AA30,AA30)) -> 1 | AD30: savj-c | AE30: Savidan J-Claude | AF30: 9.1 | AG30: H | AH30: 1 | AI30: 1 | AK30: 0 | AL30: 0 | AM30: 28 | AN30: 0 | AO30: 0 | AP30: 0 | AQ30: 0 | AR30: 0 | AS30: 28 | AT30: 0 | AU30: 0 | AV30: 0 | AW30: 0 | AX30: 0 | AY30: 0 | AZ30: 0
A31: 25 | C31: Joffredo J-François | D31: 11.0 | E31: Val Queven | F31: 28 | G31: - | H31: - | I31: - | J31: 28 | K31: 25 | L31: Norm | M31: 11.0 | N31: Joffredo J-François | O31: M | Q31: 28 | W31: TRUE | X31: 1 | Y31: B | Z31: 2 | AA31: =IF(Z31<2,"*",code_ext(N31)) -> jofj-f | AB31: 1028 | AC31: =IF(AA31="*",0,COUNTIF($AA$3:AA31,AA31)) -> 1 | AD31: jofj-f | AE31: Joffredo J-François | AF31: 11 | AG31: H | AH31: 1 | AI31: 1 | AK31: 0 | AL31: 0 | AM31: 28 | AN31: 0 | AO31: 0 | AP31: 0 | AQ31: 0 | AR31: 0 | AS31: 28 | AT31: 0 | AU31: 0 | AV31: 0 | AW31: 0 | AX31: 0 | AY31: 0 | AZ31: 0
A32: 26 | C32: MolLe Roland | D32: 14.0 | E32: Baden | F32: 28 | G32: - | H32: - | I32: - | J32: 28 | K32: 26 | L32: Norm | M32: 14.0 | N32: MolLe Roland | O32: M | Q32: 28 | W32: TRUE | X32: 1 | Y32: B | Z32: 2 | AA32: =IF(Z32<2,"*",code_ext(N32)) -> molrol | AB32: 1028 | AC32: =IF(AA32="*",0,COUNTIF($AA$3:AA32,AA32)) -> 1 | AD32: molrol | AE32: MolLe Roland | AF32: 14 | AG32: H | AH32: 1 | AI32: 1 | AK32: 0 | AL32: 0 | AM32: 28 | AN32: 0 | AO32: 0 | AP32: 0 | AQ32: 0 | AR32: 0 | AS32: 28 | AT32: 0 | AU32: 0 | AV32: 0 | AW32: 0 | AX32: 0 | AY32: 0 | AZ32: 0
A33: 27 | C33: Delpy Dominique | D33: 10.4 | E33: Baden | F33: 27 | G33: - | H33: - | I33: - | J33: 27 | K33: 27 | L33: Norm | M33: 10.4 | N33: Delpy Dominique | O33: M | Q33: 27 | W33: TRUE | X33: 1 | Y33: B | Z33: 2 | AA33: =IF(Z33<2,"*",code_ext(N33)) -> deldom | AB33: 1027 | AC33: =IF(AA33="*",0,COUNTIF($AA$3:AA33,AA33)) -> 1 | AD33: deldom | AE33: Delpy Dominique | AF33: 10.4 | AG33: H | AH33: 1 | AI33: 1 | AK33: 0 | AL33: 0 | AM33: 27 | AN33: 0 | AO33: 0 | AP33: 0 | AQ33: 0 | AR33: 0 | AS33: 27 | AT33: 0 | AU33: 0 | AV33: 0 | AW33: 0 | AX33: 0 | AY33: 0 | AZ33: 0
A34: 28 | C34: Dutertre Yann | D34: 13.1 | E34: Baden | F34: 27 | G34: - | H34: - | I34: - | J34: 27 | K34: 28 | L34: Norm | M34: 13.1 | N34: Dutertre Yann | O34: M | Q34: 27 | W34: TRUE | X34: 1 | Y34: B | Z34: 2 | AA34: =IF(Z34<2,"*",code_ext(N34)) -> dutyan | AB34: 1027 | AC34: =IF(AA34="*",0,COUNTIF($AA$3:AA34,AA34)) -> 1 | AD34: dutyan | AE34: Dutertre Yann | AF34: 13.1 | AG34: H | AH34: 1 | AI34: 1 | AK34: 0 | AL34: 0 | AM34: 27 | AN34: 0 | AO34: 0 | AP34: 0 | AQ34: 0 | AR34: 0 | AS34: 27 | AT34: 0 | AU34: 0 | AV34: 0 | AW34: 0 | AX34: 0 | AY34: 0 | AZ34: 0
A35: 29 | C35: Truffaut Didier | D35: 13.9 | E35: Baden | F35: 27 | G35: - | H35: - | I35: - | J35: 27 | K35: 29 | L35: Norm | M35: 13.9 | N35: Truffaut Didier | O35: M | Q35: 27 | W35: TRUE | X35: 1 | Y35: B | Z35: 2 | AA35: =IF(Z35<2,"*",code_ext(N35)) -> trudid | AB35: 1027 | AC35: =IF(AA35="*",0,COUNTIF($AA$3:AA35,AA35)) -> 1 | AD35: trudid | AE35: Truffaut Didier | AF35: 13.9 | AG35: H | AH35: 1 | AI35: 1 | AK35: 0 | AL35: 0 | AM35: 27 | AN35: 0 | AO35: 0 | AP35: 0 | AQ35: 0 | AR35: 0 | AS35: 27 | AT35: 0 | AU35: 0 | AV35: 0 | AW35: 0 | AX35: 0 | AY35: 0 | AZ35: 0
A36: 30 | C36: Genevrier Jules | D36: 11.7 | E36: Baden | F36: 26 | G36: - | H36: - | I36: - | J36: 26 | K36: 30 | L36: Norm | M36: 11.7 | N36: Genevrier Jules | O36: M | Q36: 26 | W36: TRUE | X36: 1 | Y36: B | Z36: 2 | AA36: =IF(Z36<2,"*",code_ext(N36)) -> genjul | AB36: 1026 | AC36: =IF(AA36="*",0,COUNTIF($AA$3:AA36,AA36)) -> 1 | AD36: genjul | AE36: Genevrier Jules | AF36: 11.7 | AG36: =IF(AC36=0,"*",IF(O36="M","H","D")) -> H | AH36: 1 | AI36: 1 | AK36: 0 | AL36: 0 | AM36: 26 | AN36: 0 | AO36: 0 | AP36: 0 | AQ36: 0 | AR36: 0 | AS36: 26 | AT36: 0 | AU36: 0 | AV36: 0 | AW36: 0 | AX36: 0 | AY36: 0 | AZ36: 0
A37: 31 | C37: Pedezert Richard | D37: 11.7 | E37: Baden | F37: 25 | G37: - | H37: - | I37: - | J37: 25 | K37: 31 | L37: Norm | M37: 11.7 | N37: Pedezert Richard | O37: M | Q37: 25 | W37: TRUE | X37: 1 | Y37: B | Z37: 2 | AA37: =IF(Z37<2,"*",code_ext(N37)) -> pedric | AB37: 1025 | AC37: =IF(AA37="*",0,COUNTIF($AA$3:AA37,AA37)) -> 1 | AD37: pedric | AE37: Pedezert Richard | AF37: 11.7 | AG37: H | AH37: 1 | AI37: 1 | AK37: 0 | AL37: 0 | AM37: 25 | AN37: 0 | AO37: 0 | AP37: 0 | AQ37: 0 | AR37: 0 | AS37: 25 | AT37: 0 | AU37: 0 | AV37: 0 | AW37: 0 | AX37: 0 | AY37: 0 | AZ37: 0
A38: 32 | C38: Moulin J-Pierre | D38: 14.4 | E38: Baden | F38: 24 | G38: - | H38: - | I38: - | J38: 24 | K38: 32 | L38: Norm | M38: 14.4 | N38: Moulin J-Pierre | O38: M | Q38: 24 | W38: TRUE | X38: 1 | Y38: B | Z38: 2 | AA38: =IF(Z38<2,"*",code_ext(N38)) -> mouj-p | AB38: 1024 | AC38: =IF(AA38="*",0,COUNTIF($AA$3:AA38,AA38)) -> 1 | AD38: mouj-p | AE38: Moulin J-Pierre | AF38: 14.4 | AG38: H | AH38: 1 | AI38: 1 | AK38: 0 | AL38: 0 | AM38: 24 | AN38: 0 | AO38: 0 | AP38: 0 | AQ38: 0 | AR38: 0 | AS38: 24 | AT38: 0 | AU38: 0 | AV38: 0 | AW38: 0 | AX38: 0 | AY38: 0 | AZ38: 0
A39: 33 | C39: Wadoux J-Pierre | D39: 4.7 | E39: Baden | F39: 23 | G39: - | H39: - | I39: - | J39: 23 | K39: 33 | L39: Norm | M39: 4.7 | N39: Wadoux J-Pierre | O39: M | Q39: 23 | W39: TRUE | X39: 1 | Y39: B | Z39: 2 | AA39: =IF(Z39<2,"*",code_ext(N39)) -> wadj-p | AB39: 1023 | AC39: =IF(AA39="*",0,COUNTIF($AA$3:AA39,AA39)) -> 1 | AD39: wadj-p | AE39: Wadoux J-Pierre | AF39: 4.7 | AG39: H | AH39: 1 | AI39: 1 | AK39: 0 | AL39: 0 | AM39: 23 | AN39: 0 | AO39: 0 | AP39: 0 | AQ39: 0 | AR39: 0 | AS39: 23 | AT39: 0 | AU39: 0 | AV39: 0 | AW39: 0 | AX39: 0 | AY39: 0 | AZ39: 0
A40: 34 | C40: Mauger Denis | D40: 11.2 | E40: Baden | F40: 22 | G40: - | H40: - | I40: - | J40: 22 | K40: 34 | L40: Norm | M40: 11.2 | N40: Mauger Denis | O40: M | Q40: 22 | W40: TRUE | X40: 1 | Y40: B | Z40: 2 | AA40: =IF(Z40<2,"*",code_ext(N40)) -> mauden | AB40: 1022 | AC40: =IF(AA40="*",0,COUNTIF($AA$3:AA40,AA40)) -> 1 | AD40: mauden | AE40: Mauger Denis | AF40: 11.2 | AG40: H | AH40: 1 | AI40: 1 | AK40: 0 | AL40: 0 | AM40: 22 | AN40: 0 | AO40: 0 | AP40: 0 | AQ40: 0 | AR40: 0 | AS40: 22 | AT40: 0 | AU40: 0 | AV40: 0 | AW40: 0 | AX40: 0 | AY40: 0 | AZ40: 0
A41: 35 | C41: Le_Quillec P-Louis | D41: 11.7 | E41: Baden | F41: 21 | G41: - | H41: - | I41: - | J41: 21 | K41: 35 | L41: Norm | M41: 11.7 | N41: Le_Quillec P-Louis | O41: M | Q41: 21 | W41: TRUE | X41: 1 | Y41: B | Z41: 2 | AA41: =IF(Z41<2,"*",code_ext(N41)) -> quip-l | AB41: 1021 | AC41: =IF(AA41="*",0,COUNTIF($AA$3:AA41,AA41)) -> 1 | AD41: quip-l | AE41: Le_Quillec P-Louis | AF41: 11.7 | AG41: H | AH41: 1 | AI41: 1 | AK41: 0 | AL41: 0 | AM41: 21 | AN41: 0 | AO41: 0 | AP41: 0 | AQ41: 0 | AR41: 0 | AS41: 21 | AT41: 0 | AU41: 0 | AV41: 0 | AW41: 0 | AX41: 0 | AY41: 0 | AZ41: 0
A42: 36 | C42: Le_Guern Michel | D42: 11.8 | E42: Baden | F42: FOR | G42: - | H42: - | I42: - | K42: 36 | L42: Norm | M42: 11.8 | N42: Le_Guern Michel | O42: M | Q42: 0 | W42: TRUE | X42: 1 | Y42: B | Z42: 2 | AA42: =IF(Z42<2,"*",code_ext(N42)) -> guemic | AB42: 1000 | AC42: =IF(AA42="*",0,COUNTIF($AA$3:AA42,AA42)) -> 1 | AD42: guemic | AE42: Le_Guern Michel | AF42: 11.8 | AG42: H | AH42: 1 | AI42: 1 | AK42: =IF($AC42=0,0,IF(CONCATENATE($AG42,"-",$Y42)=AK$1,$Q42,0)) -> 0 | AL42: 0 | AM42: 0 | AN42: 0 | AO42: 0 | AP42: 0 | AQ42: 0 | AR42: 0 | AS42: 0 | AT42: 0 | AU42: 0 | AV42: 0 | AW42: 0 | AX42: 0 | AY42: 0 | AZ42: 0
A43: Résultat Net, 2ème Série Messieurs, Simple Stableford | K43: Résultat Net, 2ème Série Messieurs, Simple Stableford | L43: * | M43: 0 | N43: 0 | O43: M | Q43: 0 | W43: FALSE | X43: 1 | Y43: B | Z43: 1 | AA43: =IF(Z43<2,"*",code_ext(N43)) -> * | AB43: * | AC43: =IF(AA43="*",0,COUNTIF($AA$3:AA43,AA43)) -> 0 | AD43: * | AE43: * | AF43: * | AG43: * | AH43: * | AI43: * | AK43: 0 | AL43: 0 | AM43: 0 | AN43: 0 | AO43: 0 | AP43: 0 | AQ43: 0 | AR43: 0 | AS43: 0 | AT43: 0 | AU43: 0 | AV43: 0 | AW43: 0 | AX43: 0 | AY43: 0 | AZ43: 0
A44: (FFG) Baden | K44: (FFG) Baden | L44: * | M44: 0 | N44: 0 | O44: M | Q44: 0 | W44: FALSE | X44: 1 | Y44: B | Z44: 1 | AA44: =IF(Z44<2,"*",code_ext(N44)) -> * | AB44: * | AC44: =IF(AA44="*",0,COUNTIF($AA$3:AA44,AA44)) -> 0 | AD44: * | AE44: * | AF44: * | AG44: * | AH44: * | AI44: * | AK44: 0 | AL44: 0 | AM44: 0 | AN44: 0 | AO44: 0 | AP44: 0 | AQ44: 0 | AR44: 0 | AS44: 0 | AT44: 0 | AU44: 0 | AV44: 0 | AW44: 0 | AX44: 0 | AY44: 0 | AZ44: 0
A45: Clt | B45: Nat. | C45: Prenom et Nom | D45: Idx | E45: Club | F45: T1 | G45: T2 | H45: T3 | I45: T4 | J45: Total | K45: Clt | L45: * | M45: 0 | N45: 0 | O45: M | Q45: 0 | W45: FALSE | X45: 1 | Y45: B | Z45: 1 | AA45: =IF(Z45<2,"*",code_ext(N45)) -> * | AB45: * | AC45: =IF(AA45="*",0,COUNTIF($AA$3:AA45,AA45)) -> 0 | AD45: * | AE45: * | AF45: * | AG45: * | AH45: * | AI45: * | AK45: 0 | AL45: 0 | AM45: 0 | AN45: 0 | AO45: 0 | AP45: 0 | AQ45: 0 | AR45: 0 | AS45: 0 | AT45: 0 | AU45: 0 | AV45: 0 | AW45: 0 | AX45: 0 | AY45: 0 | AZ45: 0
A46: 1 | C46: Gourin Gilles | D46: 17.3 | E46: Val Queven | F46: 39 | G46: - | H46: - | I46: - | J46: 39 | K46: 1 | L46: Norm | M46: 17.3 | N46: Gourin Gilles | O46: M | Q46: 39 | W46: TRUE | X46: 1 | Y46: B | Z46: 2 | AA46: =IF(Z46<2,"*",code_ext(N46)) -> gougil | AB46: 1039 | AC46: =IF(AA46="*",0,COUNTIF($AA$3:AA46,AA46)) -> 1 | AD46: gougil | AE46: Gourin Gilles | AF46: 17.3 | AG46: H | AH46: 1 | AI46: 1 | AK46: 0 | AL46: 0 | AM46: 39 | AN46: 0 | AO46: 0 | AP46: 0 | AQ46: 0 | AR46: 0 | AS46: 39 | AT46: 0 | AU46: 0 | AV46: 0 | AW46: 0 | AX46: 0 | AY46: 0 | AZ46: 0
A47: 2 | C47: Goraguer Mickael | D47: 19.3 | E47: Baden | F47: 39 | G47: - | H47: - | I47: - | J47: 39 | K47: 2 | L47: Norm | M47: 19.3 | N47: Goraguer Mickael | O47: M | Q47: 39 | W47: TRUE | X47: 1 | Y47: B | Z47: 2 | AA47: =IF(Z47<2,"*",code_ext(N47)) -> gormic | AB47: 1039 | AC47: =IF(AA47="*",0,COUNTIF($AA$3:AA47,AA47)) -> 1 | AD47: gormic | AE47: Goraguer Mickael | AF47: 19.3 | AG47: H | AH47: 2 | AI47: 2 | AK47: 0 | AL47: 0 | AM47: 39 | AN47: 0 | AO47: 0 | AP47: 0 | AQ47: 0 | AR47: 0 | AS47: 0 | AT47: 39 | AU47: 0 | AV47: 0 | AW47: 0 | AX47: 0 | AY47: 0 | AZ47: 0
A48: 3 | C48: Dessapt Franck | D48: 15.6 | E48: Baden | F48: 38 | G48: - | H48: - | I48: - | J48: 38 | K48: 3 | L48: Norm | M48: 15.6 | N48: Dessapt Franck | O48: M | Q48: 38 | W48: TRUE | X48: 1 | Y48: B | Z48: 2 | AA48: =IF(Z48<2,"*",code_ext(N48)) -> desfra | AB48: 1038 | AC48: =IF(AA48="*",0,COUNTIF($AA$3:AA48,AA48)) -> 1 | AD48: desfra | AE48: Dessapt Franck | AF48: 15.6 | AG48: H | AH48: 1 | AI48: 1 | AK48: 0 | AL48: 0 | AM48: 38 | AN48: 0 | AO48: 0 | AP48: 0 | AQ48: 0 | AR48: 0 | AS48: =IF($AC48=0,0,IF(CONCATENATE($AG48,"S",$AH48)=AS$1,$Q48,0)) -> 38 | AT48: 0 | AU48: 0 | AV48: 0 | AW48: 0 | AX48: 0 | AY48: 0 | AZ48: 0
A49: 4 | C49: Jehanno Bernard | D49: 16.1 | E49: Baden | F49: 37 | G49: - | H49: - | I49: - | J49: 37 | K49: 4 | L49: Norm | M49: 16.1 | N49: Jehanno Bernard | O49: M | Q49: 37 | W49: TRUE | X49: 1 | Y49: B | Z49: 2 | AA49: =IF(Z49<2,"*",code_ext(N49)) -> jehber | AB49: 1037 | AC49: =IF(AA49="*",0,COUNTIF($AA$3:AA49,AA49)) -> 1 | AD49: jehber | AE49: Jehanno Bernard | AF49: 16.1 | AG49: H | AH49: 1 | AI49: 1 | AK49: 0 | AL49: 0 | AM49: 37 | AN49: 0 | AO49: 0 | AP49: 0 | AQ49: 0 | AR49: 0 | AS49: 37 | AT49: 0 | AU49: 0 | AV49: 0 | AW49: 0 | AX49: 0 | AY49: 0 | AZ49: 0
A50: 5 | C50: Galais Jean | D50: 17.0 | E50: St Laurent | F50: 36 | G50: - | H50: - | I50: - | J50: 36 | K50: 5 | L50: Norm | M50: 17.0 | N50: Galais Jean | O50: M | Q50: 36 | W50: TRUE | X50: 1 | Y50: B | Z50: 2 | AA50: =IF(Z50<2,"*",code_ext(N50)) -> galjea | AB50: 1036 | AC50: =IF(AA50="*",0,COUNTIF($AA$3:AA50,AA50)) -> 1 | AD50: galjea | AE50: Galais Jean | AF50: 17 | AG50: H | AH50: 1 | AI50: 1 | AK50: 0 | AL50: 0 | AM50: 36 | AN50: 0 | AO50: 0 | AP50: 0 | AQ50: 0 | AR50: 0 | AS50: 36 | AT50: 0 | AU50: 0 | AV50: 0 | AW50: 0 | AX50: 0 | AY50: 0 | AZ50: 0
A51: 6 | C51: Le_Gall Alain | D51: 15.6 | E51: St Laurent | F51: 36 | G51: - | H51: - | I51: - | J51: 36 | K51: 6 | L51: Norm | M51: 15.6 | N51: Le_Gall Alain | O51: M | Q51: 36 | W51: TRUE | X51: 1 | Y51: B | Z51: 2 | AA51: =IF(Z51<2,"*",code_ext(N51)) -> galala | AB51: 1036 | AC51: =IF(AA51="*",0,COUNTIF($AA$3:AA51,AA51)) -> 1 | AD51: galala | AE51: Le_Gall Alain | AF51: 15.6 | AG51: H | AH51: 1 | AI51: 1 | AK51: 0 | AL51: 0 | AM51: 36 | AN51: 0 | AO51: 0 | AP51: 0 | AQ51: 0 | AR51: 0 | AS51: 36 | AT51: 0 | AU51: 0 | AV51: 0 | AW51: 0 | AX51: 0 | AY51: 0 | AZ51: 0
A52: 7 | C52: Wiart Alain | D52: 17.6 | E52: Baden | F52: 36 | G52: - | H52: - | I52: - | J52: 36 | K52: 7 | L52: Norm | M52: 17.6 | N52: Wiart Alain | O52: M | Q52: 36 | W52: TRUE | X52: 1 | Y52: B | Z52: 2 | AA52: =IF(Z52<2,"*",code_ext(N52)) -> wiaala | AB52: 1036 | AC52: =IF(AA52="*",0,COUNTIF($AA$3:AA52,AA52)) -> 1 | AD52: wiaala | AE52: Wiart Alain | AF52: 17.6 | AG52: H | AH52: 1 | AI52: 1 | AK52: 0 | AL52: 0 | AM52: 36 | AN52: 0 | AO52: 0 | AP52: 0 | AQ52: 0 | AR52: 0 | AS52: 36 | AT52: 0 | AU52: 0 | AV52: 0 | AW52: 0 | AX52: 0 | AY52: 0 | AZ52: 0
A53: 8 | C53: Pierre Claude | D53: 15.8 | E53: Baden | F53: 35 | G53: - | H53: - | I53: - | J53: 35 | K53: 8 | L53: Norm | M53: 15.8 | N53: Pierre Claude | O53: M | Q53: 35 | W53: TRUE | X53: 1 | Y53: B | Z53: 2 | AA53: =IF(Z53<2,"*",code_ext(N53)) -> piecla | AB53: 1035 | AC53: =IF(AA53="*",0,COUNTIF($AA$3:AA53,AA53)) -> 1 | AD53: piecla | AE53: Pierre Claude | AF53: 15.8 | AG53: H | AH53: 1 | AI53: 1 | AK53: 0 | AL53: 0 | AM53: 35 | AN53: 0 | AO53: 0 | AP53: 0 | AQ53: 0 | AR53: 0 | AS53: 35 | AT53: 0 | AU53: 0 | AV53: 0 | AW53: 0 | AX53: 0 | AY53: 0 | AZ53: 0
A54: 9 | C54: Cheutin Patrick | D54: 18.7 | E54: Baden | F54: 35 | G54: - | H54: - | I54: - | J54: 35 | K54: 9 | L54: Norm | M54: 18.7 | N54: Cheutin Patrick | O54: M | Q54: 35 | W54: TRUE | X54: 1 | Y54: B | Z54: 2 | AA54: =IF(Z54<2,"*",code_ext(N54)) -> chepat | AB54: 1035 | AC54: =IF(AA54="*",0,COUNTIF($AA$3:AA54,AA54)) -> 1 | AD54: chepat | AE54: Cheutin Patrick | AF54: 18.7 | AG54: H | AH54: 2 | AI54: 2 | AK54: 0 | AL54: 0 | AM54: 35 | AN54: 0 | AO54: 0 | AP54: 0 | AQ54: 0 | AR54: 0 | AS54: 0 | AT54: 35 | AU54: 0 | AV54: 0 | AW54: 0 | AX54: 0 | AY54: 0 | AZ54: 0
A55: 10 | C55: Dupont Dominique | D55: 16.5 | E55: Baden | F55: 34 | G55: - | H55: - | I55: - | J55: 34 | K55: 10 | L55: Norm | M55: 16.5 | N55: Dupont Dominique | O55: M | Q55: 34 | W55: TRUE | X55: 1 | Y55: B | Z55: 2 | AA55: =IF(Z55<2,"*",code_ext(N55)) -> dupdom | AB55: 1034 | AC55: =IF(AA55="*",0,COUNTIF($AA$3:AA55,AA55)) -> 1 | AD55: dupdom | AE55: Dupont Dominique | AF55: 16.5 | AG55: H | AH55: 1 | AI55: 1 | AK55: 0 | AL55: 0 | AM55: 34 | AN55: 0 | AO55: 0 | AP55: 0 | AQ55: 0 | AR55: 0 | AS55: 34 | AT55: 0 | AU55: 0 | AV55: 0 | AW55: 0 | AX55: 0 | AY55: 0 | AZ55: 0
A56: 11 | C56: LeveilLe Bruno | D56: 18.5 | E56: Baden | F56: 34 | G56: - | H56: - | I56: - | J56: 34 | K56: 11 | L56: Norm | M56: 18.5 | N56: LeveilLe Bruno | O56: M | Q56: 34 | W56: TRUE | X56: 1 | Y56: B | Z56: 2 | AA56: =IF(Z56<2,"*",code_ext(N56)) -> levbru | AB56: 1034 | AC56: =IF(AA56="*",0,COUNTIF($AA$3:AA56,AA56)) -> 1 | AD56: levbru | AE56: LeveilLe Bruno | AF56: 18.5 | AG56: H | AH56: 2 | AI56: 2 | AK56: 0 | AL56: 0 | AM56: 34 | AN56: 0 | AO56: 0 | AP56: 0 | AQ56: 0 | AR56: 0 | AS56: 0 | AT56: 34 | AU56: 0 | AV56: 0 | AW56: 0 | AX56: 0 | AY56: 0 | AZ56: 0
A57: 12 | C57: CarLe J-Marie | D57: 17.6 | E57: Aix Les Bains | F57: 34 | G57: - | H57: - | I57: - | J57: 34 | K57: 12 | L57: Norm | M57: 17.6 | N57: CarLe J-Marie | O57: M | Q57: 34 | W57: TRUE | X57: 1 | Y57: B | Z57: 2 | AA57: =IF(Z57<2,"*",code_ext(N57)) -> carj-m | AB57: 1034 | AC57: =IF(AA57="*",0,COUNTIF($AA$3:AA57,AA57)) -> 1 | AD57: carj-m | AE57: CarLe J-Marie | AF57: 17.6 | AG57: H | AH57: 1 | AI57: 1 | AK57: 0 | AL57: 0 | AM57: 34 | AN57: 0 | AO57: 0 | AP57: 0 | AQ57: 0 | AR57: 0 | AS57: 34 | AT57: 0 | AU57: 0 | AV57: 0 | AW57: 0 | AX57: 0 | AY57: 0 | AZ57: 0
A58: 13 | C58: Rambaud Emmanuel | D58: 18.3 | E58: Baden | F58: 33 | G58: - | H58: - | I58: - | J58: 33 | K58: 13 | L58: Norm | M58: 18.3 | N58: Rambaud Emmanuel | O58: M | Q58: 33 | W58: TRUE | X58: 1 | Y58: B | Z58: 2 | AA58: =IF(Z58<2,"*",code_ext(N58)) -> ramemm | AB58: 1033 | AC58: =IF(AA58="*",0,COUNTIF($AA$3:AA58,AA58)) -> 1 | AD58: ramemm | AE58: Rambaud Emmanuel | AF58: 18.3 | AG58: =IF(AC58=0,"*",IF(M58="M","H","D")) -> D | AH58: 1 | AI58: 1 | AK58: 0 | AL58: 0 | AM58: 0 | AN58: 33 | AO58: 0 | AP58: 0 | AQ58: 0 | AR58: 0 | AS58: 0 | AT58: 0 | AU58: 0 | AV58: 0 | AW58: 33 | AX58: 0 | AY58: 0 | AZ58: 0
A59: 14 | C59: Cadoret Herve | D59: 20.2 | E59: Gazelec Angoule | F59: 32 | G59: - | H59: - | I59: - | J59: 32 | K59: 14 | L59: Norm | M59: 20.2 | N59: Cadoret Herve | O59: M | Q59: 32 | W59: TRUE | X59: 1 | Y59: B | Z59: 2 | AA59: =IF(Z59<2,"*",code_ext(N59)) -> cadher | AB59: 1032 | AC59: =IF(AA59="*",0,COUNTIF($AA$3:AA59,AA59)) -> 1 | AD59: cadher | AE59: Cadoret Herve | AF59: 20.2 | AG59: =IF(AC59=0,"*",IF(O59="M","H","D")) -> H | AH59: 2 | AI59: 2 | AK59: 0 | AL59: 0 | AM59: 32 | AN59: 0 | AO59: 0 | AP59: 0 | AQ59: 0 | AR59: 0 | AS59: 0 | AT59: 32 | AU59: 0 | AV59: 0 | AW59: 0 | AX59: 0 | AY59: 0 | AZ59: 0
A60: 15 | C60: Gigot Alain | D60: 26.0 | E60: Baden | F60: 32 | G60: - | H60: - | I60: - | J60: 32 | K60: 15 | L60: Norm | M60: 26.0 | N60: Gigot Alain | O60: M | Q60: 32 | W60: TRUE | X60: 1 | Y60: B | Z60: 2 | AA60: =IF(Z60<2,"*",code_ext(N60)) -> gigala | AB60: 1032 | AC60: =IF(AA60="*",0,COUNTIF($AA$3:AA60,AA60)) -> 1 | AD60: gigala | AE60: Gigot Alain | AF60: 26 | AG60: H | AH60: 2 | AI60: 2 | AK60: 0 | AL60: 0 | AM60: 32 | AN60: 0 | AO60: 0 | AP60: 0 | AQ60: 0 | AR60: 0 | AS60: 0 | AT60: 32 | AU60: 0 | AV60: 0 | AW60: 0 | AX60: 0 | AY60: 0 | AZ60: 0
A61: 16 | C61: Clement Patrice | D61: 25.9 | E61: Baden | F61: 32 | G61: - | H61: - | I61: - | J61: 32 | K61: 16 | L61: Norm | M61: 25.9 | N61: Clement Patrice | O61: M | Q61: 32 | W61: TRUE | X61: 1 | Y61: B | Z61: 2 | AA61: =IF(Z61<2,"*",code_ext(N61)) -> clepat | AB61: 1032 | AC61: =IF(AA61="*",0,COUNTIF($AA$3:AA61,AA61)) -> 1 | AD61: clepat | AE61: Clement Patrice | AF61: 25.9 | AG61: H | AH61: 2 | AI61: 2 | AK61: 0 | AL61: 0 | AM61: 32 | AN61: 0 | AO61: 0 | AP61: 0 | AQ61: 0 | AR61: 0 | AS61: 0 | AT61: 32 | AU61: 0 | AV61: 0 | AW61: 0 | AX61: 0 | AY61: 0 | AZ61: 0
A62: 17 | C62: Maringe Philippe | D62: 17.4 | E62: Baden | F62: 32 | G62: - | H62: - | I62: - | J62: 32 | K62: 17 | L62: Norm | M62: 17.4 | N62: Maringe Philippe | O62: M | Q62: 32 | W62: TRUE | X62: 1 | Y62: B | Z62: 2 | AA62: =IF(Z62<2,"*",code_ext(N62)) -> marphi | AB62: 1032 | AC62: =IF(AA62="*",0,COUNTIF($AA$3:AA62,AA62)) -> 1 | AD62: marphi | AE62: Maringe Philippe | AF62: 17.4 | AG62: H | AH62: 1 | AI62: 1 | AK62: =IF($AC62=0,0,IF(CONCATENATE($AG62,"-",$Y62)=AK$1,$Q62,0)) -> 0 | AL62: 0 | AM62: 32 | AN62: 0 | AO62: 0 | AP62: 0 | AQ62: 0 | AR62: 0 | AS62: 32 | AT62: 0 | AU62: 0 | AV62: 0 | AW62: 0 | AX62: 0 | AY62: 0 | AZ62: 0
A63: 18 | C63: Fournet Marc | D63: 25.6 | E63: Baden | F63: 31 | G63: - | H63: - | I63: - | J63: 31 | K63: 18 | L63: Norm | M63: 25.6 | N63: Fournet Marc | O63: M | Q63: 31 | W63: TRUE | X63: 1 | Y63: B | Z63: 2 | AA63: =IF(Z63<2,"*",code_ext(N63)) -> foumar | AB63: 1031 | AC63: =IF(AA63="*",0,COUNTIF($AA$3:AA63,AA63)) -> 1 | AD63: foumar | AE63: Fournet Marc | AF63: 25.6 | AG63: H | AH63: 2 | AI63: 2 | AK63: 0 | AL63: 0 | AM63: 31 | AN63: 0 | AO63: 0 | AP63: 0 | AQ63: 0 | AR63: 0 | AS63: 0 | AT63: 31 | AU63: 0 | AV63: 0 | AW63: 0 | AX63: 0 | AY63: 0 | AZ63: 0
A64: 19 | C64: Le_Port Alexandre | D64: 18.2 | E64: Baden | F64: 31 | G64: - | H64: - | I64: - | J64: 31 | K64: 19 | L64: Norm | M64: 18.2 | N64: Le_Port Alexandre | O64: M | Q64: 31 | W64: TRUE | X64: 1 | Y64: B | Z64: 2 | AA64: =IF(Z64<2,"*",code_ext(N64)) -> porale | AB64: 1031 | AC64: =IF(AA64="*",0,COUNTIF($AA$3:AA64,AA64)) -> 1 | AD64: porale | AE64: Le_Port Alexandre | AF64: 18.2 | AG64: H | AH64: 1 | AI64: 1 | AK64: 0 | AL64: 0 | AM64: 31 | AN64: 0 | AO64: 0 | AP64: 0 | AQ64: 0 | AR64: 0 | AS64: 31 | AT64: 0 | AU64: 0 | AV64: 0 | AW64: 0 | AX64: 0 | AY64: 0 | AZ64: 0
A65: 20 | C65: Japy Olivier | D65: 15.6 | E65: Baden | F65: 30 | G65: - | H65: - | I65: - | J65: 30 | K65: 20 | L65: Norm | M65: 15.6 | N65: Japy Olivier | O65: M | Q65: 30 | W65: TRUE | X65: 1 | Y65: B | Z65: 2 | AA65: =IF(Z65<2,"*",code_ext(N65)) -> japoli | AB65: 1030 | AC65: =IF(AA65="*",0,COUNTIF($AA$3:AA65,AA65)) -> 1 | AD65: japoli | AE65: Japy Olivier | AF65: 15.6 | AG65: H | AH65: 1 | AI65: 1 | AK65: 0 | AL65: 0 | AM65: 30 | AN65: 0 | AO65: 0 | AP65: 0 | AQ65: 0 | AR65: 0 | AS65: 30 | AT65: 0 | AU65: 0 | AV65: 0 | AW65: 0 | AX65: 0 | AY65: 0 | AZ65: 0
A66: 21 | C66: Le_Morillon Rodolphe | D66: 18.5 | E66: Baden | F66: 30 | G66: - | H66: - | I66: - | J66: 30 | K66: 21 | L66: Norm | M66: 18.5 | N66: Le_Morillon Rodolphe | O66: M | Q66: 30 | W66: TRUE | X66: =IF(Z66=-2,IF(K66="MP",99,L66),X65) -> 1 | Y66: B | Z66: 2 | AA66: =IF(Z66<2,"*",code_ext(N66)) -> morrod | AB66: 1030 | AC66: =IF(AA66="*",0,COUNTIF($AA$3:AA66,AA66)) -> 1 | AD66: =IF(AC66=0,"*",AA66) -> morrod | AE66: Le_Morillon Rodolphe | AF66: =IF(AC66=0,"*",SUBSTITUTE(M66,".",",")*1) -> 18.5 | AG66: H | AH66: =IF(AC66>0,IF(AF66<18.5,1,IF(AF66<26.5,2,IF(AF66>36,4,3))),"*") -> 2 | AI66: =IF(AC66=0,"*",AH66) -> 2 | AK66: 0 | AL66: 0 | AM66: 30 | AN66: 0 | AO66: 0 | AP66: 0 | AQ66: 0 | AR66: 0 | AS66: 0 | AT66: 30 | AU66: 0 | AV66: 0 | AW66: 0 | AX66: 0 | AY66: 0 | AZ66: 0
A67: 22 | C67: Cottu François | D67: 17.6 | E67: Baden | F67: 30 | G67: - | H67: - | I67: - | J67: 30 | K67: 22 | L67: Norm | M67: 17.6 | N67: Cottu François | O67: =IF(AF67=0,0,IF(LEFT(A67,3)="Rés",IF(ISNUMBER(SEARCH("Mess",A67)),"M","D"),O66)) -> M | Q67: 30 | W67: TRUE | X67: 1 | Y67: B | Z67: =IF(K67="",0,IF(LEFT(U67,2)="OI",-2,IF(LEFT(L67,4)="Norm",2,1))) -> 2 | AA67: =IF(Z67<2,"*",code_ext(N67)) -> cotfra | AB67: 1030 | AC67: =IF(AA67="*",0,COUNTIF($AA$3:AA67,AA67)) -> 1 | AD67: cotfra | AE67: Cottu François | AF67: 17.6 | AG67: H | AH67: 1 | AI67: 1 | AK67: 0 | AL67: 0 | AM67: 30 | AN67: 0 | AO67: 0 | AP67: 0 | AQ67: 0 | AR67: 0 | AS67: 30 | AT67: 0 | AU67: 0 | AV67: 0 | AW67: 0 | AX67: 0 | AY67: 0 | AZ67: 0
A68: 23 | C68: Chantraine Claude | D68: 18.5 | E68: Baden | F68: 30 | G68: - | H68: - | I68: - | J68: 30 | K68: 23 | L68: Norm | M68: =IF(A68="Clt",0,D68) -> 18.5 | N68: Chantraine Claude | O68: M | Q68: 30 | W68: =AND(NOT(LEFT(N68,5)="Non c"),(LEFT(L68,4)="Norm")) -> TRUE | X68: 1 | Y68: =IF(Z68=-2,M68,Y67) -> B | Z68: 2 | AA68: =IF(Z68<2,"*",code_ext(N68)) -> chacla | AB68: 1030 | AC68: =IF(AA68="*",0,COUNTIF($AA$3:AA68,AA68)) -> 1 | AD68: chacla | AE68: Chantraine Claude | AF68: 18.5 | AG68: H | AH68: 2 | AI68: 2 | AK68: 0 | AL68: 0 | AM68: 30 | AN68: 0 | AO68: 0 | AP68: 0 | AQ68: 0 | AR68: 0 | AS68: 0 | AT68: 30 | AU68: 0 | AV68: 0 | AW68: 0 | AX68: 0 | AY68: 0 | AZ68: 0
A69: 24 | C69: Guillotel J-Marc | D69: 19.2 | E69: Baden | F69: 30 | G69: - | H69: - | I69: - | J69: 30 | K69: 24 | L69: Norm | M69: 19.2 | N69: Guillotel J-Marc | O69: M | Q69: 30 | W69: TRUE | X69: 1 | Y69: B | Z69: 2 | AA69: =IF(Z69<2,"*",code_ext(N69)) -> guij-m | AB69: 1030 | AC69: =IF(AA69="*",0,COUNTIF($AA$3:AA69,AA69)) -> 1 | AD69: guij-m | AE69: =IF(AC69=0,"*",N69) -> Guillotel J-Marc | AF69: 19.2 | AG69: H | AH69: 2 | AI69: 2 | AK69: 0 | AL69: 0 | AM69: 30 | AN69: 0 | AO69: 0 | AP69: 0 | AQ69: 0 | AR69: 0 | AS69: 0 | AT69: 30 | AU69: 0 | AV69: 0 | AW69: 0 | AX69: 0 | AY69: 0 | AZ69: 0
A70: 25 | C70: Pittie Bernard | D70: 18.5 | E70: Isabella | F70: 30 | G70: - | H70: - | I70: - | J70: 30 | K70: 25 | L70: Norm | M70: 18.5 | N70: Pittie Bernard | O70: M | Q70: 30 | W70: TRUE | X70: 1 | Y70: B | Z70: 2 | AA70: =IF(Z70<2,"*",code_ext(N70)) -> pitber | AB70: 1030 | AC70: =IF(AA70="*",0,COUNTIF($AA$3:AA70,AA70)) -> 1 | AD70: pitber | AE70: Pittie Bernard | AF70: 18.5 | AG70: H | AH70: 2 | AI70: 2 | AK70: 0 | AL70: 0 | AM70: 30 | AN70: 0 | AO70: 0 | AP70: 0 | AQ70: 0 | AR70: 0 | AS70: 0 | AT70: 30 | AU70: 0 | AV70: 0 | AW70: 0 | AX70: 0 | AY70: 0 | AZ70: 0
A71: 26 | C71: Allain Raymond | D71: 19.3 | E71: Baden | F71: 29 | G71: - | H71: - | I71: - | J71: 29 | K71: 26 | L71: =IF(AND(A71<>"Clt",F71>0),"Norm","*") -> Norm | M71: 19.3 | N71: =IF(A71="Clt",0,C71) -> Allain Raymond | O71: M | Q71: =IF(A71="Clt",0,J71) -> 29 | W71: TRUE | X71: 1 | Y71: B | Z71: 2 | AA71: =IF(Z71<2,"*",code_ext(N71)) -> allray | AB71: 1029 | AC71: =IF(AA71="*",0,COUNTIF($AA$3:AA71,AA71)) -> 1 | AD71: allray | AE71: Allain Raymond | AF71: 19.3 | AG71: H | AH71: 2 | AI71: 2 | AK71: 0 | AL71: 0 | AM71: 29 | AN71: 0 | AO71: 0 | AP71: 0 | AQ71: 0 | AR71: 0 | AS71: 0 | AT71: 29 | AU71: 0 | AV71: 0 | AW71: 0 | AX71: 0 | AY71: 0 | AZ71: 0
A72: 27 | C72: Ars Patrice | D72: 17.6 | E72: Baden | F72: 29 | G72: - | H72: - | I72: - | J72: 29 | K72: =A72 -> 27 | L72: Norm | M72: 17.6 | N72: Ars Patrice | O72: M | Q72: 29 | W72: TRUE | X72: 1 | Y72: B | Z72: 2 | AA72: =IF(Z72<2,"*",code_ext(N72)) -> arspat | AB72: =IF(W72,X72*1000+Q72,"*") -> 1029 | AC72: =IF(AA72="*",0,COUNTIF($AA$3:AA72,AA72)) -> 1 | AD72: arspat | AE72: Ars Patrice | AF72: 17.6 | AG72: H | AH72: 1 | AI72: 1 | AK72: 0 | AL72: 0 | AM72: 29 | AN72: 0 | AO72: 0 | AP72: 0 | AQ72: 0 | AR72: 0 | AS72: 29 | AT72: 0 | AU72: 0 | AV72: 0 | AW72: 0 | AX72: 0 | AY72: 0 | AZ72: 0
A73: 28 | C73: Le_Mirronet J-Yves | D73: 17.0 | E73: Baden | F73: 29 | G73: - | H73: - | I73: - | J73: 29 | K73: 28 | L73: Norm | M73: 17.0 | N73: Le_Mirronet J-Yves | O73: M | Q73: 29 | W73: TRUE | X73: 1 | Y73: B | Z73: 2 | AA73: =IF(Z73<2,"*",code_ext(N73)) -> mirj-y | AB73: 1029 | AC73: =IF(AA73="*",0,COUNTIF($AA$3:AA73,AA73)) -> 1 | AD73: mirj-y | AE73: Le_Mirronet J-Yves | AF73: 17 | AG73: H | AH73: 1 | AI73: 1 | AK73: 0 | AL73: 0 | AM73: 29 | AN73: 0 | AO73: 0 | AP73: 0 | AQ73: 0 | AR73: 0 | AS73: 29 | AT73: 0 | AU73: 0 | AV73: 0 | AW73: 0 | AX73: 0 | AY73: 0 | AZ73: 0
A74: 29 | C74: Heliard Michel | D74: 17.3 | E74: Baden | F74: 29 | G74: - | H74: - | I74: - | J74: 29 | K74: 29 | L74: Norm | M74: 17.3 | N74: Heliard Michel | O74: M | Q74: 29 | W74: TRUE | X74: 1 | Y74: B | Z74: 2 | AA74: =IF(Z74<2,"*",code_ext(N74)) -> helmic | AB74: 1029 | AC74: =IF(AA74="*",0,COUNTIF($AA$3:AA74,AA74)) -> 1 | AD74: helmic | AE74: Heliard Michel | AF74: 17.3 | AG74: H | AH74: 1 | AI74: 1 | AK74: 0 | AL74: 0 | AM74: 29 | AN74: 0 | AO74: 0 | AP74: 0 | AQ74: 0 | AR74: 0 | AS74: 29 | AT74: 0 | AU74: 0 | AV74: 0 | AW74: 0 | AX74: 0 | AY74: 0 | AZ74: 0
A75: 30 | C75: Marcel J-Marie | D75: 21.6 | E75: Baden | F75: 29 | G75: - | H75: - | I75: - | J75: 29 | K75: 30 | L75: Norm | M75: 21.6 | N75: Marcel J-Marie | O75: M | Q75: 29 | W75: TRUE | X75: 1 | Y75: B | Z75: 2 | AA75: =IF(Z75<2,"*",code_ext(N75)) -> marj-m | AB75: 1029 | AC75: =IF(AA75="*",0,COUNTIF($AA$3:AA75,AA75)) -> 1 | AD75: marj-m | AE75: Marcel J-Marie | AF75: 21.6 | AG75: H | AH75: 2 | AI75: 2 | AK75: 0 | AL75: 0 | AM75: 29 | AN75: 0 | AO75: 0 | AP75: 0 | AQ75: 0 | AR75: 0 | AS75: 0 | AT75: 29 | AU75: 0 | AV75: 0 | AW75: 0 | AX75: 0 | AY75: 0 | AZ75: 0
A76: 31 | C76: Jacq Guy | D76: 19.4 | E76: Bretagne | F76: 28 | G76: - | H76: - | I76: - | J76: 28 | K76: 31 | L76: Norm | M76: 19.4 | N76: Jacq Guy | O76: M | Q76: 28 | W76: TRUE | X76: 1 | Y76: B | Z76: 2 | AA76: =IF(Z76<2,"*",code_ext(N76)) -> jacguy | AB76: 1028 | AC76: =IF(AA76="*",0,COUNTIF($AA$3:AA76,AA76)) -> 1 | AD76: jacguy | AE76: Jacq Guy | AF76: 19.4 | AG76: H | AH76: 2 | AI76: 2 | AK76: 0 | AL76: 0 | AM76: 28 | AN76: 0 | AO76: 0 | AP76: 0 | AQ76: 0 | AR76: 0 | AS76: 0 | AT76: 28 | AU76: 0 | AV76: 0 | AW76: 0 | AX76: 0 | AY76: 0 | AZ76: 0
A77: 32 | C77: Monnet J-Luc | D77: 18.3 | E77: Baden | F77: 28 | G77: - | H77: - | I77: - | J77: 28 | K77: 32 | L77: Norm | M77: 18.3 | N77: Monnet J-Luc | O77: M | Q77: 28 | W77: TRUE | X77: 1 | Y77: B | Z77: 2 | AA77: =IF(Z77<2,"*",code_ext(N77)) -> monj-l | AB77: 1028 | AC77: =IF(AA77="*",0,COUNTIF($AA$3:AA77,AA77)) -> 1 | AD77: monj-l | AE77: Monnet J-Luc | AF77: 18.3 | AG77: H | AH77: 1 | AI77: 1 | AK77: 0 | AL77: 0 | AM77: 28 | AN77: 0 | AO77: 0 | AP77: 0 | AQ77: 0 | AR77: 0 | AS77: 28 | AT77: 0 | AU77: 0 | AV77: 0 | AW77: 0 | AX77: 0 | AY77: 0 | AZ77: 0
A78: 33 | C78: Prieur Yves | D78: 19.2 | E78: St Laurent | F78: 28 | G78: - | H78: - | I78: - | J78: 28 | K78: 33 | L78: Norm | M78: 19.2 | N78: Prieur Yves | O78: M | Q78: 28 | W78: TRUE | X78: 1 | Y78: B | Z78: 2 | AA78: =IF(Z78<2,"*",code_ext(N78)) -> priyve | AB78: 1028 | AC78: =IF(AA78="*",0,COUNTIF($AA$3:AA78,AA78)) -> 1 | AD78: priyve | AE78: Prieur Yves | AF78: 19.2 | AG78: H | AH78: 2 | AI78: 2 | AK78: 0 | AL78: 0 | AM78: 28 | AN78: 0 | AO78: 0 | AP78: 0 | AQ78: 0 | AR78: 0 | AS78: 0 | AT78: 28 | AU78: 0 | AV78: 0 | AW78: 0 | AX78: 0 | AY78: 0 | AZ78: 0
A79: 34 | C79: Panon Xavier | D79: 19.1 | E79: Baden | F79: 28 | G79: - | H79: - | I79: - | J79: 28 | K79: 34 | L79: Norm | M79: 19.1 | N79: Panon Xavier | O79: M | Q79: 28 | W79: TRUE | X79: 1 | Y79: B | Z79: 2 | AA79: =IF(Z79<2,"*",code_ext(N79)) -> panxav | AB79: 1028 | AC79: =IF(AA79="*",0,COUNTIF($AA$3:AA79,AA79)) -> 1 | AD79: panxav | AE79: Panon Xavier | AF79: 19.1 | AG79: H | AH79: 2 | AI79: 2 | AK79: 0 | AL79: 0 | AM79: 28 | AN79: 0 | AO79: 0 | AP79: 0 | AQ79: 0 | AR79: 0 | AS79: 0 | AT79: 28 | AU79: 0 | AV79: 0 | AW79: 0 | AX79: 0 | AY79: 0 | AZ79: =IF($AC79=0,0,IF(CONCATENATE($AG79,"S",$AH79)=AZ$1,$Q79,0)) -> 0
A80: 35 | C80: Calloc-H Yvon | D80: 20.5 | E80: Baden | F80: 28 | G80: - | H80: - | I80: - | J80: 28 | K80: 35 | L80: Norm | M80: 20.5 | N80: Calloc-H Yvon | O80: M | Q80: 28 | W80: TRUE | X80: 1 | Y80: B | Z80: 2 | AA80: =IF(Z80<2,"*",code_ext(N80)) -> calyvo | AB80: 1028 | AC80: =IF(AA80="*",0,COUNTIF($AA$3:AA80,AA80)) -> 1 | AD80: calyvo | AE80: Calloc-H Yvon | AF80: 20.5 | AG80: H | AH80: 2 | AI80: 2 | AK80: 0 | AL80: 0 | AM80: 28 | AN80: 0 | AO80: 0 | AP80: 0 | AQ80: 0 | AR80: 0 | AS80: =IF($AC80=0,0,IF(CONCATENATE($AG80,"S",$AH80)=AS$1,$Q80,0)) -> 0 | AT80: 28 | AU80: 0 | AV80: 0 | AW80: 0 | AX80: 0 | AY80: 0 | AZ80: 0
A81: 36 | C81: Lefort J-Marie | D81: 22.6 | E81: Baden | F81: 27 | G81: - | H81: - | I81: - | J81: 27 | K81: 36 | L81: Norm | M81: 22.6 | N81: Lefort J-Marie | O81: M | Q81: 27 | W81: TRUE | X81: 1 | Y81: B | Z81: 2 | AA81: =IF(Z81<2,"*",code_ext(N81)) -> lefj-m | AB81: 1027 | AC81: =IF(AA81="*",0,COUNTIF($AA$3:AA81,AA81)) -> 1 | AD81: lefj-m | AE81: Lefort J-Marie | AF81: 22.6 | AG81: H | AH81: 2 | AI81: 2 | AK81: 0 | AL81: 0 | AM81: 27 | AN81: 0 | AO81: 0 | AP81: 0 | AQ81: 0 | AR81: 0 | AS81: 0 | AT81: 27 | AU81: 0 | AV81: 0 | AW81: 0 | AX81: 0 | AY81: 0 | AZ81: 0
A82: 37 | C82: Battavoine Robert | D82: 17.4 | E82: Bretagne | F82: 27 | G82: - | H82: - | I82: - | J82: 27 | K82: 37 | L82: Norm | M82: 17.4 | N82: Battavoine Robert | O82: M | Q82: 27 | W82: TRUE | X82: 1 | Y82: B | Z82: 2 | AA82: =IF(Z82<2,"*",code_ext(N82)) -> batrob | AB82: 1027 | AC82: =IF(AA82="*",0,COUNTIF($AA$3:AA82,AA82)) -> 1 | AD82: batrob | AE82: Battavoine Robert | AF82: 17.4 | AG82: H | AH82: 1 | AI82: 1 | AK82: =IF($AC82=0,0,IF(CONCATENATE($AG82,"-",$Y82)=AK$1,$Q82,0)) -> 0 | AL82: 0 | AM82: 27 | AN82: 0 | AO82: 0 | AP82: 0 | AQ82: 0 | AR82: 0 | AS82: 27 | AT82: 0 | AU82: 0 | AV82: 0 | AW82: 0 | AX82: 0 | AY82: 0 | AZ82: 0
A83: 38 | C83: Chopin Bernard | D83: 18.5 | E83: Baden | F83: 26 | G83: - | H83: - | I83: - | J83: 26 | K83: 38 | L83: Norm | M83: 18.5 | N83: Chopin Bernard | O83: M | Q83: 26 | W83: TRUE | X83: 1 | Y83: B | Z83: 2 | AA83: =IF(Z83<2,"*",code_ext(N83)) -> chober | AB83: 1026 | AC83: =IF(AA83="*",0,COUNTIF($AA$3:AA83,AA83)) -> 1 | AD83: chober | AE83: Chopin Bernard | AF83: 18.5 | AG83: H | AH83: 2 | AI83: 2 | AK83: 0 | AL83: 0 | AM83: 26 | AN83: 0 | AO83: 0 | AP83: 0 | AQ83: 0 | AR83: 0 | AS83: 0 | AT83: 26 | AU83: 0 | AV83: 0 | AW83: 0 | AX83: 0 | AY83: 0 | AZ83: 0
A84: 39 | C84: Le_Bellour Yann | D84: 17.1 | E84: Baden | F84: 26 | G84: - | H84: - | I84: - | J84: 26 | K84: 39 | L84: Norm | M84: 17.1 | N84: Le_Bellour Yann | O84: M | Q84: 26 | W84: TRUE | X84: 1 | Y84: B | Z84: 2 | AA84: =IF(Z84<2,"*",code_ext(N84)) -> belyan | AB84: 1026 | AC84: =IF(AA84="*",0,COUNTIF($AA$3:AA84,AA84)) -> 1 | AD84: belyan | AE84: Le_Bellour Yann | AF84: 17.1 | AG84: H | AH84: 1 | AI84: 1 | AK84: 0 | AL84: 0 | AM84: 26 | AN84: 0 | AO84: 0 | AP84: 0 | AQ84: 0 | AR84: 0 | AS84: 26 | AT84: 0 | AU84: 0 | AV84: 0 | AW84: 0 | AX84: 0 | AY84: 0 | AZ84: 0
A85: 40 | C85: De_Dieuleveult Serge | D85: 18.5 | E85: Baden | F85: 25 | G85: - | H85: - | I85: - | J85: 25 | K85: 40 | L85: Norm | M85: 18.5 | N85: De_Dieuleveult Serge | O85: M | Q85: 25 | W85: TRUE | X85: 1 | Y85: B | Z85: 2 | AA85: =IF(Z85<2,"*",code_ext(N85)) -> dieser | AB85: 1025 | AC85: =IF(AA85="*",0,COUNTIF($AA$3:AA85,AA85)) -> 1 | AD85: dieser | AE85: De_Dieuleveult Serge | AF85: 18.5 | AG85: H | AH85: 2 | AI85: 2 | AK85: 0 | AL85: 0 | AM85: 25 | AN85: 0 | AO85: 0 | AP85: 0 | AQ85: 0 | AR85: 0 | AS85: 0 | AT85: 25 | AU85: 0 | AV85: 0 | AW85: 0 | AX85: 0 | AY85: 0 | AZ85: 0
A86: 41 | C86: Le_Mene J-Yves | D86: 20.8 | E86: Baden | F86: 25 | G86: - | H86: - | I86: - | J86: 25 | K86: 41 | L86: Norm | M86: 20.8 | N86: Le_Mene J-Yves | O86: M | Q86: 25 | W86: TRUE | X86: 1 | Y86: B | Z86: 2 | AA86: =IF(Z86<2,"*",code_ext(N86)) -> menj-y | AB86: 1025 | AC86: =IF(AA86="*",0,COUNTIF($AA$3:AA86,AA86)) -> 1 | AD86: menj-y | AE86: Le_Mene J-Yves | AF86: 20.8 | AG86: H | AH86: 2 | AI86: 2 | AK86: 0 | AL86: 0 | AM86: 25 | AN86: 0 | AO86: 0 | AP86: 0 | AQ86: 0 | AR86: 0 | AS86: 0 | AT86: 25 | AU86: 0 | AV86: 0 | AW86: 0 | AX86: 0 | AY86: 0 | AZ86: 0
A87: 42 | C87: Le_Breton Bernard | D87: 16.7 | E87: Baden | F87: 25 | G87: - | H87: - | I87: - | J87: 25 | K87: 42 | L87: Norm | M87: 16.7 | N87: Le_Breton Bernard | O87: M | Q87: 25 | W87: TRUE | X87: 1 | Y87: B | Z87: 2 | AA87: =IF(Z87<2,"*",code_ext(N87)) -> breber | AB87: 1025 | AC87: =IF(AA87="*",0,COUNTIF($AA$3:AA87,AA87)) -> 1 | AD87: breber | AE87: Le_Breton Bernard | AF87: 16.7 | AG87: H | AH87: 1 | AI87: 1 | AK87: 0 | AL87: 0 | AM87: 25 | AN87: 0 | AO87: 0 | AP87: 0 | AQ87: 0 | AR87: 0 | AS87: 25 | AT87: 0 | AU87: 0 | AV87: 0 | AW87: 0 | AX87: 0 | AY87: 0 | AZ87: 0
A88: 43 | C88: Dusseux Hubert | D88: 18.6 | E88: Baden | F88: 24 | G88: - | H88: - | I88: - | J88: 24 | K88: 43 | L88: Norm | M88: 18.6 | N88: Dusseux Hubert | O88: M | Q88: 24 | W88: TRUE | X88: 1 | Y88: B | Z88: 2 | AA88: =IF(Z88<2,"*",code_ext(N88)) -> dushub | AB88: 1024 | AC88: =IF(AA88="*",0,COUNTIF($AA$3:AA88,AA88)) -> 1 | AD88: dushub | AE88: Dusseux Hubert | AF88: 18.6 | AG88: H | AH88: 2 | AI88: 2 | AK88: 0 | AL88: 0 | AM88: 24 | AN88: 0 | AO88: 0 | AP88: 0 | AQ88: 0 | AR88: 0 | AS88: 0 | AT88: 24 | AU88: 0 | AV88: 0 | AW88: 0 | AX88: 0 | AY88: 0 | AZ88: 0
A89: 44 | C89: Landowski Michel | D89: 22.4 | E89: Paris | F89: 24 | G89: - | H89: - | I89: - | J89: 24 | K89: 44 | L89: Norm | M89: 22.4 | N89: Landowski Michel | O89: M | Q89: 24 | W89: TRUE | X89: 1 | Y89: B | Z89: 2 | AA89: =IF(Z89<2,"*",code_ext(N89)) -> lanmic | AB89: 1024 | AC89: =IF(AA89="*",0,COUNTIF($AA$3:AA89,AA89)) -> 1 | AD89: lanmic | AE89: Landowski Michel | AF89: 22.4 | AG89: H | AH89: 2 | AI89: 2 | AK89: 0 | AL89: 0 | AM89: 24 | AN89: 0 | AO89: 0 | AP89: 0 | AQ89: 0 | AR89: 0 | AS89: 0 | AT89: 24 | AU89: 0 | AV89: 0 | AW89: 0 | AX89: 0 | AY89: 0 | AZ89: 0
A90: 45 | C90: Du_Jeu P.Emmanuel | D90: 19.0 | E90: Baden | F90: 23 | G90: - | H90: - | I90: - | J90: 23 | K90: 45 | L90: Norm | M90: 19.0 | N90: Du_Jeu P.Emmanuel | O90: M | Q90: 23 | W90: TRUE | X90: 1 | Y90: B | Z90: 2 | AA90: =IF(Z90<2,"*",code_ext(N90)) -> jeup.e | AB90: 1023 | AC90: =IF(AA90="*",0,COUNTIF($AA$3:AA90,AA90)) -> 1 | AD90: jeup.e | AE90: Du_Jeu P.Emmanuel | AF90: 19 | AG90: H | AH90: 2 | AI90: 2 | AK90: 0 | AL90: 0 | AM90: 23 | AN90: 0 | AO90: 0 | AP90: 0 | AQ90: 0 | AR90: 0 | AS90: 0 | AT90: 23 | AU90: 0 | AV90: 0 | AW90: 0 | AX90: 0 | AY90: 0 | AZ90: 0
A91: 46 | C91: Grellet J-Paul | D91: 21.8 | E91: Baden | F91: 21 | G91: - | H91: - | I91: - | J91: 21 | K91: 46 | L91: Norm | M91: 21.8 | N91: Grellet J-Paul | O91: M | Q91: 21 | W91: TRUE | X91: 1 | Y91: B | Z91: 2 | AA91: =IF(Z91<2,"*",code_ext(N91)) -> grej-p | AB91: 1021 | AC91: =IF(AA91="*",0,COUNTIF($AA$3:AA91,AA91)) -> 1 | AD91: grej-p | AE91: Grellet J-Paul | AF91: 21.8 | AG91: H | AH91: 2 | AI91: 2 | AK91: 0 | AL91: 0 | AM91: 21 | AN91: 0 | AO91: 0 | AP91: 0 | AQ91: 0 | AR91: 0 | AS91: 0 | AT91: 21 | AU91: 0 | AV91: 0 | AW91: 0 | AX91: 0 | AY91: 0 | AZ91: 0
A92: 47 | C92: Hanse Didier | D92: 17.2 | E92: Baden | F92: 21 | G92: - | H92: - | I92: - | J92: 21 | K92: 47 | L92: Norm | M92: 17.2 | N92: Hanse Didier | O92: M | Q92: 21 | W92: TRUE | X92: 1 | Y92: B | Z92: 2 | AA92: =IF(Z92<2,"*",code_ext(N92)) -> handid | AB92: 1021 | AC92: =IF(AA92="*",0,COUNTIF($AA$3:AA92,AA92)) -> 1 | AD92: handid | AE92: Hanse Didier | AF92: 17.2 | AG92: H | AH92: 1 | AI92: 1 | AK92: 0 | AL92: 0 | AM92: 21 | AN92: 0 | AO92: 0 | AP92: 0 | AQ92: 0 | AR92: 0 | AS92: 21 | AT92: 0 | AU92: 0 | AV92: 0 | AW92: 0 | AX92: 0 | AY92: 0 | AZ92: 0
A93: Résultat Net, 3ème Série Messieurs, Simple Stableford | K93: Résultat Net, 3ème Série Messieurs, Simple Stableford | L93: * | M93: 0 | N93: 0 | O93: M | Q93: 0 | W93: FALSE | X93: 1 | Y93: B | Z93: 1 | AA93: =IF(Z93<2,"*",code_ext(N93)) -> * | AB93: * | AC93: =IF(AA93="*",0,COUNTIF($AA$3:AA93,AA93)) -> 0 | AD93: * | AE93: * | AF93: * | AG93: * | AH93: * | AI93: * | AK93: 0 | AL93: 0 | AM93: 0 | AN93: 0 | AO93: 0 | AP93: 0 | AQ93: 0 | AR93: 0 | AS93: 0 | AT93: 0 | AU93: 0 | AV93: 0 | AW93: 0 | AX93: 0 | AY93: 0 | AZ93: 0
A94: (FFG) Baden | K94: (FFG) Baden | L94: * | M94: 0 | N94: 0 | O94: M | Q94: 0 | W94: FALSE | X94: 1 | Y94: B | Z94: 1 | AA94: =IF(Z94<2,"*",code_ext(N94)) -> * | AB94: * | AC94: =IF(AA94="*",0,COUNTIF($AA$3:AA94,AA94)) -> 0 | AD94: * | AE94: * | AF94: * | AG94: * | AH94: * | AI94: * | AK94: 0 | AL94: 0 | AM94: 0 | AN94: 0 | AO94: 0 | AP94: 0 | AQ94: 0 | AR94: 0 | AS94: 0 | AT94: 0 | AU94: 0 | AV94: 0 | AW94: 0 | AX94: 0 | AY94: 0 | AZ94: 0
A95: Clt | B95: Nat. | C95: Prenom et Nom | D95: Idx | E95: Club | F95: T1 | G95: T2 | H95: T3 | I95: T4 | J95: Total | K95: Clt | L95: * | M95: 0 | N95: 0 | O95: M | Q95: 0 | W95: FALSE | X95: 1 | Y95: B | Z95: 1 | AA95: =IF(Z95<2,"*",code_ext(N95)) -> * | AB95: * | AC95: =IF(AA95="*",0,COUNTIF($AA$3:AA95,AA95)) -> 0 | AD95: * | AE95: * | AF95: * | AG95: * | AH95: * | AI95: * | AK95: 0 | AL95: 0 | AM95: 0 | AN95: 0 | AO95: 0 | AP95: 0 | AQ95: 0 | AR95: 0 | AS95: 0 | AT95: 0 | AU95: 0 | AV95: 0 | AW95: 0 | AX95: 0 | AY95: 0 | AZ95: 0
A96: 1 | C96: Poisson Jacques | D96: 34.5 | E96: Baden | F96: 40 | G96: - | H96: - | I96: - | J96: 40 | K96: 1 | L96: Norm | M96: 34.5 | N96: Poisson Jacques | O96: M | Q96: 40 | W96: TRUE | X96: 1 | Y96: B | Z96: 2 | AA96: =IF(Z96<2,"*",code_ext(N96)) -> poijac | AB96: 1040 | AC96: =IF(AA96="*",0,COUNTIF($AA$3:AA96,AA96)) -> 1 | AD96: poijac | AE96: Poisson Jacques | AF96: 34.5 | AG96: H | AH96: 3 | AI96: 3 | AK96: 0 | AL96: 0 | AM96: 40 | AN96: 0 | AO96: 0 | AP96: 0 | AQ96: 0 | AR96: 0 | AS96: 0 | AT96: 0 | AU96: 40 | AV96: 0 | AW96: 0 | AX96: 0 | AY96: 0 | AZ96: 0
A97: 2 | C97: Le_Bourvellec Gilles | D97: 35.0 | E97: Baden | F97: 38 | G97: - | H97: - | I97: - | J97: 38 | K97: 2 | L97: Norm | M97: 35.0 | N97: Le_Bourvellec Gilles | O97: M | Q97: 38 | W97: TRUE | X97: 1 | Y97: B | Z97: 2 | AA97: =IF(Z97<2,"*",code_ext(N97)) -> bougil | AB97: 1038 | AC97: =IF(AA97="*",0,COUNTIF($AA$3:AA97,AA97)) -> 1 | AD97: bougil | AE97: Le_Bourvellec Gilles | AF97: 35 | AG97: H | AH97: 3 | AI97: 3 | AK97: 0 | AL97: 0 | AM97: 38 | AN97: 0 | AO97: 0 | AP97: 0 | AQ97: 0 | AR97: 0 | AS97: 0 | AT97: 0 | AU97: 38 | AV97: 0 | AW97: 0 | AX97: 0 | AY97: 0 | AZ97: 0
A98: 3 | C98: Dord Dominique | D98: 27.0 | E98: Auvergne-Rhône-Alpes | F98: 35 | G98: - | H98: - | I98: - | J98: 35 | K98: 3 | L98: Norm | M98: 27.0 | N98: Dord Dominique | O98: M | Q98: 35 | W98: TRUE | X98: 1 | Y98: B | Z98: 2 | AA98: =IF(Z98<2,"*",code_ext(N98)) -> dordom | AB98: 1035 | AC98: =IF(AA98="*",0,COUNTIF($AA$3:AA98,AA98)) -> 1 | AD98: dordom | AE98: Dord Dominique | AF98: 27 | AG98: H | AH98: 3 | AI98: 3 | AK98: 0 | AL98: 0 | AM98: 35 | AN98: 0 | AO98: 0 | AP98: 0 | AQ98: 0 | AR98: 0 | AS98: 0 | AT98: 0 | AU98: 35 | AV98: 0 | AW98: 0 | AX98: 0 | AY98: 0 | AZ98: 0
A99: 4 | C99: Dupin Gerard | D99: 27.0 | E99: Baden | F99: 35 | G99: - | H99: - | I99: - | J99: 35 | K99: 4 | L99: Norm | M99: 27.0 | N99: Dupin Gerard | O99: M | Q99: 35 | W99: TRUE | X99: 1 | Y99: B | Z99: 2 | AA99: =IF(Z99<2,"*",code_ext(N99)) -> dupger | AB99: 1035 | AC99: =IF(AA99="*",0,COUNTIF($AA$3:AA99,AA99)) -> 1 | AD99: dupger | AE99: Dupin Gerard | AF99: 27 | AG99: H | AH99: 3 | AI99: 3 | AK99: 0 | AL99: 0 | AM99: 35 | AN99: 0 | AO99: 0 | AP99: 0 | AQ99: 0 | AR99: 0 | AS99: 0 | AT99: 0 | AU99: 35 | AV99: 0 | AW99: 0 | AX99: 0 | AY99: 0 | AZ99: 0
A100: 5 | C100: Guillope Paul | D100: 29.0 | E100: Baden | F100: 34 | G100: - | H100: - | I100: - | J100: 34 | K100: 5 | L100: Norm | M100: 29.0 | N100: Guillope Paul | O100: M | Q100: 34 | W100: TRUE | X100: 1 | Y100: B | Z100: 2 | AA100: =IF(Z100<2,"*",code_ext(N100)) -> guipau | AB100: 1034 | AC100: =IF(AA100="*",0,COUNTIF($AA$3:AA100,AA100)) -> 1 | AD100: guipau | AE100: Guillope Paul | AF100: 29 | AG100: H | AH100: 3 | AI100: 3 | AK100: 0 | AL100: 0 | AM100: 34 | AN100: 0 | AO100: 0 | AP100: 0 | AQ100: 0 | AR100: 0 | AS100: 0 | AT100: 0 | AU100: 34 | AV100: 0 | AW100: 0 | AX100: 0 | AY100: 0 | AZ100: 0
A101: 6 | C101: Le_Fur Alain | D101: 28.0 | E101: Baden | F101: 32 | G101: - | H101: - | I101: - | J101: 32 | K101: 6 | L101: Norm | M101: 28.0 | N101: Le_Fur Alain | O101: M | Q101: 32 | W101: TRUE | X101: 1 | Y101: B | Z101: 2 | AA101: =IF(Z101<2,"*",code_ext(N101)) -> furala | AB101: 1032 | AC101: =IF(AA101="*",0,COUNTIF($AA$3:AA101,AA101)) -> 1 | AD101: furala | AE101: Le_Fur Alain | AF101: 28 | AG101: H | AH101: 3 | AI101: 3 | AK101: 0 | AL101: 0 | AM101: 32 | AN101: 0 | AO101: 0 | AP101: 0 | AQ101: 0 | AR101: 0 | AS101: 0 | AT101: 0 | AU101: 32 | AV101: 0 | AW101: 0 | AX101: 0 | AY101: 0 | AZ101: 0
A102: 7 | C102: Didier Herve | D102: 34.4 | E102: St Laurent | F102: 29 | G102: - | H102: - | I102: - | J102: 29 | K102: 7 | L102: Norm | M102: 34.4 | N102: Didier Herve | O102: M | Q102: 29 | W102: TRUE | X102: 1 | Y102: B | Z102: 2 | AA102: =IF(Z102<2,"*",code_ext(N102)) -> didher | AB102: 1029 | AC102: =IF(AA102="*",0,COUNTIF($AA$3:AA102,AA102)) -> 1 | AD102: didher | AE102: Didier Herve | AF102: 34.4 | AG102: H | AH102: 3 | AI102: 3 | AK102: =IF($AC102=0,0,IF(CONCATENATE($AG102,"-",$Y102)=AK$1,$Q102,0)) -> 0 | AL102: 0 | AM102: 29 | AN102: 0 | AO102: 0 | AP102: 0 | AQ102: 0 | AR102: 0 | AS102: 0 | AT102: 0 | AU102: 29 | AV102: 0 | AW102: 0 | AX102: 0 | AY102: 0 | AZ102: 0
A103: 8 | C103: Pasdeloup Marc | D103: 38.0 | E103: Baden | F103: 27 | G103: - | H103: - | I103: - | J103: 27 | K103: 8 | L103: Norm | M103: 38.0 | N103: Pasdeloup Marc | O103: M | Q103: 27 | W103: TRUE | X103: 1 | Y103: B | Z103: 2 | AA103: =IF(Z103<2,"*",code_ext(N103)) -> pasmar | AB103: 1027 | AC103: =IF(AA103="*",0,COUNTIF($AA$3:AA103,AA103)) -> 1 | AD103: pasmar | AE103: Pasdeloup Marc | AF103: 38 | AG103: H | AH103: 4 | AI103: 4 | AK103: 0 | AL103: 0 | AM103: 27 | AN103: 0 | AO103: 0 | AP103: 0 | AQ103: 0 | AR103: 0 | AS103: 0 | AT103: 0 | AU103: 0 | AV103: 27 | AW103: 0 | AX103: 0 | AY103: 0 | AZ103: 0
A104: 9 | C104: Bertin J-Jacques | D104: 29.2 | E104: Baden | F104: 26 | G104: - | H104: - | I104: - | J104: 26 | K104: 9 | L104: Norm | M104: 29.2 | N104: Bertin J-Jacques | O104: M | Q104: 26 | W104: TRUE | X104: 1 | Y104: B | Z104: 2 | AA104: =IF(Z104<2,"*",code_ext(N104)) -> berj-j | AB104: 1026 | AC104: =IF(AA104="*",0,COUNTIF($AA$3:AA104,AA104)) -> 1 | AD104: berj-j | AE104: Bertin J-Jacques | AF104: 29.2 | AG104: H | AH104: 3 | AI104: 3 | AK104: 0 | AL104: 0 | AM104: 26 | AN104: 0 | AO104: 0 | AP104: 0 | AQ104: 0 | AR104: 0 | AS104: 0 | AT104: 0 | AU104: 26 | AV104: 0 | AW104: 0 | AX104: 0 | AY104: 0 | AZ104: 0
A105: 10 | C105: Lenoir Christian | D105: 30.0 | E105: Baden | F105: 23 | G105: - | H105: - | I105: - | J105: 23 | K105: 10 | L105: Norm | M105: 30.0 | N105: Lenoir Christian | O105: M | Q105: 23 | W105: TRUE | X105: 1 | Y105: B | Z105: 2 | AA105: =IF(Z105<2,"*",code_ext(N105)) -> lenchr | AB105: 1023 | AC105: =IF(AA105="*",0,COUNTIF($AA$3:AA105,AA105)) -> 1 | AD105: lenchr | AE105: Lenoir Christian | AF105: 30 | AG105: H | AH105: 3 | AI105: 3 | AK105: 0 | AL105: 0 | AM105: 23 | AN105: 0 | AO105: 0 | AP105: 0 | AQ105: 0 | AR105: 0 | AS105: 0 | AT105: 0 | AU105: 23 | AV105: 0 | AW105: 0 | AX105: 0 | AY105: 0 | AZ105: 0
A106: 11 | C106: Malefant Philippe | D106: 41.0 | E106: Baden | F106: FOR | G106: - | H106: - | I106: - | K106: 11 | L106: Norm | M106: 41.0 | N106: Malefant Philippe | O106: M | Q106: 0 | W106: TRUE | X106: 1 | Y106: B | Z106: 2 | AA106: =IF(Z106<2,"*",code_ext(N106)) -> malphi | AB106: 1000 | AC106: =IF(AA106="*",0,COUNTIF($AA$3:AA106,AA106)) -> 1 | AD106: malphi | AE106: Malefant Philippe | AF106: 41 | AG106: H | AH106: 4 | AI106: 4 | AK106: 0 | AL106: 0 | AM106: 0 | AN106: 0 | AO106: 0 | AP106: 0 | AQ106: 0 | AR106: 0 | AS106: 0 | AT106: 0 | AU106: 0 | AV106: 0 | AW106: 0 | AX106: 0 | AY106: 0 | AZ106: 0
A107: Résultat Brut, 1ère Série Dames, Simple Stableford | K107: =A107 -> Résultat Brut, 1ère Série Dames, Simple Stableford | L107: =IF(AND(A107<>"Clt",F107>0),"Norm","*") -> * | M107: =IF(A107="Clt",0,D107) -> 0 | N107: =IF(A107="Clt",0,C107) -> 0 | O107: D | Q107: =IF(A107="Clt",0,J107) -> 0 | W107: FALSE | X107: =IF(Z107=-2,IF(K107="MP",99,L107),X106) -> 1 | Y107: =IF(Z107=-2,M107,Y106) -> B | Z107: 1 | AA107: =IF(Z107<2,"*",code_ext(N107)) -> * | AB107: * | AC107: =IF(AA107="*",0,COUNTIF($AA$3:AA107,AA107)) -> 0 | AD107: * | AE107: * | AF107: * | AG107: * | AH107: * | AI107: * | AK107: 0 | AL107: 0 | AM107: 0 | AN107: 0 | AO107: 0 | AP107: 0 | AQ107: 0 | AR107: 0 | AS107: 0 | AT107: 0 | AU107: 0 | AV107: 0 | AW107: 0 | AX107: 0 | AY107: 0 | AZ107: 0
A108: (FFG) Baden | K108: (FFG) Baden | L108: * | M108: 0 | N108: 0 | O108: D | Q108: 0 | W108: FALSE | X108: 1 | Y108: B | Z108: 1 | AA108: =IF(Z108<2,"*",code_ext(N108)) -> * | AB108: * | AC108: =IF(AA108="*",0,COUNTIF($AA$3:AA108,AA108)) -> 0 | AD108: * | AE108: * | AF108: * | AG108: * | AH108: * | AI108: * | AK108: 0 | AL108: 0 | AM108: 0 | AN108: 0 | AO108: 0 | AP108: 0 | AQ108: 0 | AR108: 0 | AS108: 0 | AT108: 0 | AU108: 0 | AV108: 0 | AW108: 0 | AX108: 0 | AY108: 0 | AZ108: 0
A109: Clt | B109: Nat. | C109: Prenom et Nom | D109: Idx | E109: Club | F109: T1 | G109: T2 | H109: T3 | I109: T4 | J109: Total | K109: Clt | L109: * | M109: 0 | N109: 0 | O109: D | Q109: 0 | W109: FALSE | X109: 1 | Y109: B | Z109: 1 | AA109: =IF(Z109<2,"*",code_ext(N109)) -> * | AB109: * | AC109: =IF(AA109="*",0,COUNTIF($AA$3:AA109,AA109)) -> 0 | AD109: * | AE109: * | AF109: * | AG109: * | AH109: * | AI109: * | AK109: 0 | AL109: 0 | AM109: 0 | AN109: 0 | AO109: 0 | AP109: 0 | AQ109: 0 | AR109: 0 | AS109: 0 | AT109: 0 | AU109: 0 | AV109: 0 | AW109: 0 | AX109: 0 | AY109: 0 | AZ109: 0
A110: 1 | C110: Thuillier Veronique | D110: 5.6 | E110: Baden | F110: 31 | G110: - | H110: - | I110: - | J110: 31 | K110: 1 | L110: Norm | M110: 5.6 | N110: Thuillier Veronique | O110: D | Q110: 31 | W110: TRUE | X110: 1 | Y110: B | Z110: 2 | AA110: =IF(Z110<2,"*",code_ext(N110)) -> thuver | AB110: 1031 | AC110: =IF(AA110="*",0,COUNTIF($AA$3:AA110,AA110)) -> 1 | AD110: thuver | AE110: Thuillier Veronique | AF110: 5.6 | AG110: D | AH110: 1 | AI110: 1 | AK110: 0 | AL110: 0 | AM110: 0 | AN110: 31 | AO110: 0 | AP110: 0 | AQ110: 0 | AR110: 0 | AS110: 0 | AT110: 0 | AU110: 0 | AV110: 0 | AW110: 31 | AX110: 0 | AY110: 0 | AZ110: 0
A111: 2 | C111: Goullet Catherine | D111: 4.4 | E111: Baden | F111: 26 | G111: - | H111: - | I111: - | J111: 26 | K111: 2 | L111: Norm | M111: 4.4 | N111: Goullet Catherine | O111: D | Q111: 26 | W111: TRUE | X111: 1 | Y111: B | Z111: 2 | AA111: =IF(Z111<2,"*",code_ext(N111)) -> goucat | AB111: 1026 | AC111: =IF(AA111="*",0,COUNTIF($AA$3:AA111,AA111)) -> 1 | AD111: goucat | AE111: Goullet Catherine | AF111: 4.4 | AG111: D | AH111: 1 | AI111: 1 | AK111: 0 | AL111: 0 | AM111: 0 | AN111: 26 | AO111: 0 | AP111: 0 | AQ111: 0 | AR111: 0 | AS111: 0 | AT111: 0 | AU111: 0 | AV111: 0 | AW111: 26 | AX111: 0 | AY111: 0 | AZ111: 0
A112: 3 | C112: Le_Mene Nadine | D112: 10.7 | E112: Baden | F112: 22 | G112: - | H112: - | I112: - | J112: 22 | K112: 3 | L112: Norm | M112: 10.7 | N112: Le_Mene Nadine | O112: D | Q112: 22 | W112: TRUE | X112: 1 | Y112: B | Z112: 2 | AA112: =IF(Z112<2,"*",code_ext(N112)) -> mennad | AB112: 1022 | AC112: =IF(AA112="*",0,COUNTIF($AA$3:AA112,AA112)) -> 1 | AD112: mennad | AE112: Le_Mene Nadine | AF112: 10.7 | AG112: D | AH112: 1 | AI112: 1 | AK112: 0 | AL112: 0 | AM112: 0 | AN112: 22 | AO112: 0 | AP112: 0 | AQ112: 0 | AR112: 0 | AS112: 0 | AT112: 0 | AU112: 0 | AV112: 0 | AW112: 22 | AX112: 0 | AY112: 0 | AZ112: 0
A113: 4 | C113: Urvois Christelle | D113: 4.1 | E113: Lac Au Duc | F113: 22 | G113: - | H113: - | I113: - | J113: 22 | K113: 4 | L113: Norm | M113: 4.1 | N113: Urvois Christelle | O113: D | Q113: 22 | W113: TRUE | X113: 1 | Y113: B | Z113: 2 | AA113: =IF(Z113<2,"*",code_ext(N113)) -> urvchr | AB113: 1022 | AC113: =IF(AA113="*",0,COUNTIF($AA$3:AA113,AA113)) -> 1 | AD113: urvchr | AE113: Urvois Christelle | AF113: 4.1 | AG113: D | AH113: 1 | AI113: 1 | AK113: 0 | AL113: 0 | AM113: 0 | AN113: 22 | AO113: 0 | AP113: 0 | AQ113: 0 | AR113: 0 | AS113: 0 | AT113: 0 | AU113: 0 | AV113: 0 | AW113: 22 | AX113: 0 | AY113: 0 | AZ113: 0
A114: 5 | C114: Non communique | D114: 14.6 | E114: Baden | F114: 21 | G114: - | H114: - | I114: - | J114: 21 | K114: 5 | L114: Norm | M114: 14.6 | N114: Non communique | O114: D | Q114: 21 | W114: FALSE | X114: 1 | Y114: B | Z114: 2 | AA114: =IF(Z114<2,"*",code_ext(N114)) -> noncom | AB114: * | AC114: =IF(AA114="*",0,COUNTIF($AA$3:AA114,AA114)) -> 1 | AD114: noncom | AE114: Non communique | AF114: 14.6 | AG114: D | AH114: 1 | AI114: 1 | AK114: 0 | AL114: 0 | AM114: 0 | AN114: 21 | AO114: 0 | AP114: 0 | AQ114: 0 | AR114: 0 | AS114: 0 | AT114: 0 | AU114: 0 | AV114: 0 | AW114: 21 | AX114: 0 | AY114: 0 | AZ114: 0
A115: 6 | C115: Kinikbenhek Ngo Mayi Matip | D115: 9.5 | E115: Baden | F115: 20 | G115: - | H115: - | I115: - | J115: 20 | K115: 6 | L115: Norm | M115: 9.5 | N115: Kinikbenhek Ngo Mayi Matip | O115: D | Q115: 20 | W115: TRUE | X115: 1 | Y115: B | Z115: 2 | AA115: =IF(Z115<2,"*",code_ext(N115)) -> kinngo | AB115: 1020 | AC115: =IF(AA115="*",0,COUNTIF($AA$3:AA115,AA115)) -> 1 | AD115: kinngo | AE115: Kinikbenhek Ngo Mayi Matip | AF115: 9.5 | AG115: D | AH115: 1 | AI115: 1 | AK115: 0 | AL115: 0 | AM115: 0 | AN115: 20 | AO115: 0 | AP115: 0 | AQ115: 0 | AR115: 0 | AS115: 0 | AT115: 0 | AU115: 0 | AV115: 0 | AW115: 20 | AX115: 0 | AY115: 0 | AZ115: 0
A116: 7 | C116: Duruy Cathy | D116: 14.5 | E116: Baden | F116: 19 | G116: - | H116: - | I116: - | J116: 19 | K116: 7 | L116: Norm | M116: 14.5 | N116: Duruy Cathy | O116: D | Q116: 19 | W116: TRUE | X116: 1 | Y116: B | Z116: 2 | AA116: =IF(Z116<2,"*",code_ext(N116)) -> durcat | AB116: 1019 | AC116: =IF(AA116="*",0,COUNTIF($AA$3:AA116,AA116)) -> 1 | AD116: durcat | AE116: Duruy Cathy | AF116: 14.5 | AG116: D | AH116: 1 | AI116: 1 | AK116: 0 | AL116: 0 | AM116: 0 | AN116: 19 | AO116: 0 | AP116: 0 | AQ116: 0 | AR116: 0 | AS116: 0 | AT116: 0 | AU116: 0 | AV116: =IF($AC116=0,0,IF(CONCATENATE($AG116,"S",$AH116)=AV$1,$Q116,0)) -> 0 | AW116: 19 | AX116: 0 | AY116: 0 | AZ116: 0
A117: 8 | C117: Le_Lorec Agathe | D117: 17.2 | E117: Baden | F117: 19 | G117: - | H117: - | I117: - | J117: 19 | K117: 8 | L117: Norm | M117: 17.2 | N117: Le_Lorec Agathe | O117: D | Q117: 19 | W117: TRUE | X117: 1 | Y117: B | Z117: 2 | AA117: =IF(Z117<2,"*",code_ext(N117)) -> loraga | AB117: 1019 | AC117: =IF(AA117="*",0,COUNTIF($AA$3:AA117,AA117)) -> 1 | AD117: loraga | AE117: Le_Lorec Agathe | AF117: 17.2 | AG117: D | AH117: 1 | AI117: 1 | AK117: 0 | AL117: 0 | AM117: 0 | AN117: 19 | AO117: 0 | AP117: 0 | AQ117: 0 | AR117: 0 | AS117: 0 | AT117: 0 | AU117: 0 | AV117: 0 | AW117: 19 | AX117: 0 | AY117: 0 | AZ117: 0
A118: 9 | C118: Cuvelier Anne | D118: 11.0 | E118: Baden | F118: 19 | G118: - | H118: - | I118: - | J118: 19 | K118: 9 | L118: Norm | M118: 11.0 | N118: Cuvelier Anne | O118: D | Q118: 19 | W118: TRUE | X118: 1 | Y118: B | Z118: 2 | AA118: =IF(Z118<2,"*",code_ext(N118)) -> cuvann | AB118: 1019 | AC118: =IF(AA118="*",0,COUNTIF($AA$3:AA118,AA118)) -> 1 | AD118: cuvann | AE118: Cuvelier Anne | AF118: 11 | AG118: D | AH118: 1 | AI118: 1 | AK118: 0 | AL118: 0 | AM118: 0 | AN118: 19 | AO118: 0 | AP118: 0 | AQ118: 0 | AR118: 0 | AS118: 0 | AT118: 0 | AU118: 0 | AV118: 0 | AW118: 19 | AX118: 0 | AY118: 0 | AZ118: 0
A119: 10 | C119: Leveque Annie | D119: 17.0 | E119: Baden | F119: 16 | G119: - | H119: - | I119: - | J119: 16 | K119: 10 | L119: Norm | M119: 17.0 | N119: Leveque Annie | O119: D | Q119: 16 | W119: TRUE | X119: 1 | Y119: B | Z119: 2 | AA119: =IF(Z119<2,"*",code_ext(N119)) -> levann | AB119: 1016 | AC119: =IF(AA119="*",0,COUNTIF($AA$3:AA119,AA119)) -> 1 | AD119: levann | AE119: Leveque Annie | AF119: 17 | AG119: D | AH119: 1 | AI119: 1 | AK119: 0 | AL119: 0 | AM119: 0 | AN119: 16 | AO119: 0 | AP119: 0 | AQ119: 0 | AR119: 0 | AS119: 0 | AT119: 0 | AU119: 0 | AV119: 0 | AW119: 16 | AX119: 0 | AY119: 0 | AZ119: 0
A120: 11 | C120: Leguidard Laurence | D120: 17.2 | E120: St Laurent | F120: 16 | G120: - | H120: - | I120: - | J120: 16 | K120: 11 | L120: Norm | M120: 17.2 | N120: Leguidard Laurence | O120: D | Q120: 16 | W120: TRUE | X120: 1 | Y120: B | Z120: 2 | AA120: =IF(Z120<2,"*",code_ext(N120)) -> leglau | AB120: 1016 | AC120: =IF(AA120="*",0,COUNTIF($AA$3:AA120,AA120)) -> 1 | AD120: leglau | AE120: Leguidard Laurence | AF120: 17.2 | AG120: D | AH120: 1 | AI120: 1 | AK120: 0 | AL120: 0 | AM120: 0 | AN120: 16 | AO120: 0 | AP120: 0 | AQ120: 0 | AR120: 0 | AS120: 0 | AT120: 0 | AU120: 0 | AV120: 0 | AW120: 16 | AX120: 0 | AY120: 0 | AZ120: 0
A121: 12 | C121: Tryer Chantal | D121: 18.1 | E121: Baden | F121: 14 | G121: - | H121: - | I121: - | J121: 14 | K121: 12 | L121: Norm | M121: 18.1 | N121: Tryer Chantal | O121: D | Q121: 14 | W121: TRUE | X121: 1 | Y121: B | Z121: 2 | AA121: =IF(Z121<2,"*",code_ext(N121)) -> trycha | AB121: 1014 | AC121: =IF(AA121="*",0,COUNTIF($AA$3:AA121,AA121)) -> 1 | AD121: trycha | AE121: Tryer Chantal | AF121: 18.1 | AG121: D | AH121: 1 | AI121: 1 | AK121: 0 | AL121: 0 | AM121: 0 | AN121: 14 | AO121: 0 | AP121: 0 | AQ121: 0 | AR121: 0 | AS121: 0 | AT121: 0 | AU121: 0 | AV121: 0 | AW121: 14 | AX121: 0 | AY121: 0 | AZ121: 0
A122: 13 | C122: Genevrier Elisabeth | D122: 17.6 | E122: Baden | F122: 14 | G122: - | H122: - | I122: - | J122: 14 | K122: 13 | L122: Norm | M122: 17.6 | N122: Genevrier Elisabeth | O122: D | Q122: 14 | W122: TRUE | X122: 1 | Y122: B | Z122: 2 | AA122: =IF(Z122<2,"*",code_ext(N122)) -> geneli | AB122: 1014 | AC122: =IF(AA122="*",0,COUNTIF($AA$3:AA122,AA122)) -> 1 | AD122: geneli | AE122: Genevrier Elisabeth | AF122: 17.6 | AG122: D | AH122: 1 | AI122: 1 | AK122: =IF($AC122=0,0,IF(CONCATENATE($AG122,"-",$Y122)=AK$1,$Q122,0)) -> 0 | AL122: 0 | AM122: 0 | AN122: 14 | AO122: 0 | AP122: 0 | AQ122: 0 | AR122: 0 | AS122: 0 | AT122: 0 | AU122: 0 | AV122: 0 | AW122: 14 | AX122: 0 | AY122: 0 | AZ122: 0
A123: 14 | C123: Dupont Nicole | D123: 15.1 | E123: Rennes St Jacques | F123: 13 | G123: - | H123: - | I123: - | J123: 13 | K123: 14 | L123: Norm | M123: 15.1 | N123: Dupont Nicole | O123: D | Q123: 13 | W123: TRUE | X123: 1 | Y123: B | Z123: 2 | AA123: =IF(Z123<2,"*",code_ext(N123)) -> dupnic | AB123: 1013 | AC123: =IF(AA123="*",0,COUNTIF($AA$3:AA123,AA123)) -> 1 | AD123: dupnic | AE123: Dupont Nicole | AF123: 15.1 | AG123: =IF(AC123=0,"*",IF(O123="M","H","D")) -> D | AH123: 1 | AI123: 1 | AK123: 0 | AL123: 0 | AM123: 0 | AN123: 13 | AO123: 0 | AP123: 0 | AQ123: 0 | AR123: 0 | AS123: 0 | AT123: 0 | AU123: 0 | AV123: 0 | AW123: 13 | AX123: 0 | AY123: 0 | AZ123: 0
A124: 15 | C124: Legrand Veronique | D124: 15.6 | E124: Lac Au Duc | F124: 12 | G124: - | H124: - | I124: - | J124: 12 | K124: 15 | L124: Norm | M124: 15.6 | N124: Legrand Veronique | O124: D | Q124: 12 | W124: TRUE | X124: 1 | Y124: B | Z124: 2 | AA124: =IF(Z124<2,"*",code_ext(N124)) -> legver | AB124: 1012 | AC124: =IF(AA124="*",0,COUNTIF($AA$3:AA124,AA124)) -> 1 | AD124: legver | AE124: Legrand Veronique | AF124: 15.6 | AG124: D | AH124: 1 | AI124: 1 | AK124: 0 | AL124: 0 | AM124: 0 | AN124: 12 | AO124: 0 | AP124: 0 | AQ124: 0 | AR124: 0 | AS124: 0 | AT124: 0 | AU124: 0 | AV124: 0 | AW124: 12 | AX124: 0 | AY124: 0 | AZ124: 0
A125: 16 | C125: Du_Jeu M-Claude | D125: 17.2 | E125: Baden | F125: 12 | G125: - | H125: - | I125: - | J125: 12 | K125: 16 | L125: Norm | M125: 17.2 | N125: Du_Jeu M-Claude | O125: D | Q125: 12 | W125: TRUE | X125: 1 | Y125: B | Z125: 2 | AA125: =IF(Z125<2,"*",code_ext(N125)) -> jeum-c | AB125: 1012 | AC125: =IF(AA125="*",0,COUNTIF($AA$3:AA125,AA125)) -> 1 | AD125: jeum-c | AE125: Du_Jeu M-Claude | AF125: 17.2 | AG125: D | AH125: 1 | AI125: 1 | AK125: 0 | AL125: 0 | AM125: 0 | AN125: 12 | AO125: 0 | AP125: 0 | AQ125: 0 | AR125: 0 | AS125: 0 | AT125: 0 | AU125: 0 | AV125: 0 | AW125: 12 | AX125: 0 | AY125: 0 | AZ125: 0
... 156 more rows

Sheet DATA-WE
A1: Année | C1: Trous | D1: Bleu Par | E1: Bleu Hcp | F1: Rouge Par | G1: Rouge Hcp | H1: TROU | I1: Code | J1: FFG | K1: Simple | L1: Double | M1: Code | N1: INTER BG | O1: 5 | Q1: Clsst | R1: Pts BRUT | S1: Pts NET | T1: Tour | U1: CHAMP SQY | W1: HIVER MP3 WE CUP | AA1: Séries | AB1: HCP | AC1: HCP1 | AD1: HCP2 | AF1: Marques | AG1: Code Couleur | AH1: slope D Bleu | AI1: SSS D Bleu | AJ1: slope H Bleu | AK1: SSS H Bleu | AL1: slope D Rouge | AM1: SSS D Rouge | AN1: slope Hrouge | AO1: SSS H Rouge | AQ1: HDCP Equipe | AR1: =IF(AQ7>0,AP7,IF(AQ6>0,AP6,IF(AQ5>0,AP5,IF(AQ4>0,AP4,AP3)))) -> 4 | AT1: Place | AU1: Points SQYExCup | AX1: M_BLANCS | AY1: M_JAUNES | AZ1: D_BLEUS | BA1: D_ROUGES | BB1: M_BLANCS | BC1: M_JAUNES | BD1: D_BLEUS | BE1: D_ROUGES | BF1: HDCP_J
A2: 2019 | C2: T1 | D2: 4 | E2: 4 | F2: 5 | G2: 12 | H2: 1 | I2: 8 | J2: Bellefontaine | K2: =I2*10+2 -> 82 | L2: =I2*10+1 -> 81 | M2: BLF | N2: BELLEFONTAINE | O2: =I2 -> 8 | Q2: 1 | R2: 20 | S2: 15 | T2: =Q2 -> 1 | U2: 42910 | W2: 43086 | AA2: 1 | AB2: 4.5 | AC2: 18.5 | AD2: 18.5 | AF2: Noir | AG2: N | AH2: 0 | AI2: 72 | AJ2: 0 | AK2: 72 | AL2: 0 | AM2: 72 | AN2: 0 | AO2: 72 | AP2: 1 | AQ2: 18.6 | AR2: =AQ2*(CHOOSE($AR$1,100,35,30,20,15,10)/100) -> 3.72 | AT2: 1 | AU2: 1000 | AY2: -0.8 | BF2: -4
A3: Categories : | C3: T2 | D3: 3 | E3: 14 | F3: 4 | G3: 4 | H3: 2 | I3: 7 | J3: guerville | K3: 72 | L3: 71 | M3: GRV | N3: GUERVILLE | O3: 7 | Q3: =Q2+1 -> 2 | R3: 15 | S3: 11 | T3: 2 | U3: 42911 | W3: 43121 | AA3: 2 | AB3: 11.5 | AC3: 26.5 | AD3: 26.5 | AF3: Blanc | AG3: C | AH3: 0 | AI3: 72 | AJ3: 125 | AK3: 71.4 | AL3: 128 | AM3: 76.3 | AN3: 125 | AO3: 70.2 | AP3: 2 | AQ3: 23.7 | AR3: =AQ3*(CHOOSE($AR$1,100,15,15,15,10,10)/100) -> 3.555 | AT3: 2 | AU3: 850 | AV3: =AU2-AU3 -> 150 | AX3: -1 | AY3: 0.1 | BA3: -1 | BB3: -2.6 | BC3: -0.7 | BF3: -3
A4: =" H5H4H3H2H1D5D4D3D2D1MX" -> H5H4H3H2H1D5D4D3D2D1MX | C4: T3 | D4: 4 | E4: 10 | F4: 3 | G4: 18 | H4: 3 | I4: 6 | J4: marolles | K4: 62 | L4: 61 | M4: MRL | N4: MAROLLES | O4: 6 | Q4: 3 | R4: 10 | S4: 8 | T4: 3 | W4: 43149 | AA4: 3 | AB4: 18.5 | AC4: 36 | AD4: 54 | AF4: Jaune | AG4: J | AH4: 134 | AI4: 75.3 | AJ4: 122 | AK4: 69.3 | AL4: 124 | AM4: 74.3 | AN4: 122 | AO4: 68.4 | AP4: 3 | AQ4: 23.7 | AR4: =AQ4*(CHOOSE($AR$1,100,35,15,10,10,10)/100) -> 2.37 | AT4: 3 | AU4: 750 | AV4: 100 | AX4: -0.6 | AY4: 1.1 | BA4: 0 | BB4: -1.7 | BC4: 0.2 | BE4: -0.8 | BF4: -2
A5: Forme de jeu : | C5: T4 | D5: 4 | E5: 2 | F5: 5 | G5: 14 | H5: 4 | I5: 5 | J5: St Aubin | K5: 52 | L5: 51 | M5: STA | N5: ST AUBIN | O5: 5 | Q5: 4 | R5: 7 | S5: 5 | T5: 4 | W5: 43170 | AA5: 4 | AB5: 26.5 | AC5: 54 | AF5: Bleu | AG5: B | AH5: 129 | AI5: 72.9 | AJ5: 118 | AK5: 67.3 | AL5: 119 | AM5: 71.8 | AN5: 118 | AO5: 66.4 | AP5: 4 | AQ5: 23.9 | AR5: =AQ5*(CHOOSE($AR$1,0,0,0,5,10,10)/100) -> 1.195 | AT5: 4 | AU5: 675 | AV5: 75 | AX5: 0.3 | AY5: 2 | AZ5: -1 | BA5: 0.9 | BB5: -0.8 | BC5: 1.2 | BD5: -2.1 | BE5: 0.1 | BF5: -1
A6: http://www.ffgolf.org/index.aspx?news=10933 | C6: T5 | D6: 3 | E6: 16 | F6: 4 | G6: 2 | H6: 5 | I6: 4 | J6: Base De Loisirs Sqy | K6: 42 | L6: 41 | M6: SQY | N6: ST QUENTIN R | O6: 4 | Q6: 5 | R6: 7 | S6: 5 | T6: 5 | AA6: 5 | AB6: 36 | AF6: Rouge | AG6: R | AH6: 123 | AI6: 70.4 | AJ6: 115 | AK6: 65.5 | AL6: 121 | AM6: 69.6 | AN6: 115 | AO6: 65 | AP6: 5 | AR6: =AQ6*(CHOOSE($AR$1,0,0,0,0,5,5)/100) -> 0 | AT6: 5 | AU6: 625 | AV6: 50 | AX6: 1.2 | AY6: 2.9 | AZ6: -0.2 | BA6: 1.8 | BB6: 0.1 | BC6: 2.1 | BD6: -1.2 | BE6: 1.1 | BF6: 0
A7: BASE DE LOISIRS SQY | C7: T6 | D7: 4 | E7: 18 | F7: 4 | G7: 10 | H7: 6 | I7: 3 | J7: Base De Loisirs Sqy | K7: 32 | L7: 31 | M7: SQY | N7: ST QUENTIN B | O7: 3 | Q7: 6 | R7: 5 | S7: 4 | T7: 6 | AB7: 54 | AF7: =CONCATENATE(AH7,AJ7,AL7,AN7) -> BDBHRDRH | AG7: =CONCATENATE($AG$2,$AG$3,$AG$4,$AG$5,$AG$6) -> NCJBR | AH7: BD | AJ7: BH | AL7: RD | AN7: RH | AP7: 6 | AR7: =AQ7*(CHOOSE($AR$1,0,0,0,0,0,5)/100) -> 0 | AT7: 6 | AU7: 575 | AV7: 50 | AX7: 2.1 | AY7: 3.8 | AZ7: 0.7 | BA7: 2.8 | BB7: 1 | BC7: 3 | BD7: -0.3 | BE7: 2 | BF7: 1
A8: 6 | C8: T7 | D8: 5 | E8: 12 | F8: 3 | G8: 8 | H8: 7 | I8: 2 | J8: Villennes | K8: 22 | L8: 21 | M8: VLN | N8: VILLENNES | O8: 2 | Q8: 7 | R8: 5 | S8: 4 | T8: 7 | AQ8: HDCJ = | AR8: =SUM(AR2:AR7) -> 10.84 | AT8: 7 | AU8: 525 | AV8: 50 | AX8: 3 | AY8: 4.8 | AZ8: 1.7 | BA8: 3.7 | BB8: 1.9 | BC8: 3.9 | BD8: 0.6 | BE8: 2.9 | BF8: 2
A9: 10 | C9: T8 | D9: 5 | E9: 8 | F9: 4 | G9: 6 | H9: 8 | I9: 1 | J9: Villeray | K9: 12 | L9: 11 | M9: VLR | N9: VILLERAY | O9: 1 | Q9: 8 | R9: 4 | S9: 3 | T9: 8 | AI9: R | AJ9: ADH | AK9: Idx | AL9: Sex | AM9: Ser | AN9: Mark | AO9: HDCJ | AT9: 8 | AU9: 500 | AV9: 25 | AX9: 3.9 | AY9: 5.7 | AZ9: 2.6 | BA9: 4.6 | BB9: 2.9 | BC9: 4.9 | BD9: 1.5 | BE9: 3 | BF9: 3
C10: T9 | D10: 4 | E10: 6 | F10: 4 | G10: 16 | H10: 9 | Q10: 9 | R10: 4 | S10: 3 | T10: 9 | AG10: 5 | AI10: Parc | AJ10: =AG10 -> 5 | AK10: 18.5 | AL10: H | AM10: =IF(AJ10="","",IF(AK10<AD2,1,IF(AK10<AD2,2,3))) -> 3 | AN10: =IF(AJ10="","",IF(AL10="H",IF(AM2=1,"C","J"),IF(AM2=1,"B","R"))) -> J | AO10: =IF(AJ10=0,"",ROUND(AK10*(INDEX('DATA-WE'!$AH$2:$AO$6,SEARCH(AN10,'DATA-WE'!$AG$7),SEARCH(CONCATENATE(AI$9,AL10),'DATA-WE'!$AF$7))/113)+(INDEX('DATA-WE'!$AH$2:$AO$6,SEARCH(AN10,'DATA-WE'!$AG$7),1+SEARCH(CONCATENATE(AI$9,AL10),'DATA-WE'!$AF$7))-72),0)) -> 16 | AT10: 9 | AU10: 475 | AV10: 25 | AX10: 4.8 | AY10: 6.6 | AZ10: 3.6 | BA10: 5.6 | BB10: 3.8 | BC10: 5.8 | BD10: 2.3 | BE10: 4.7 | BF10: 4
C11: T10 | D11: 3 | E11: 15 | F11: 3 | G11: 15 | H11: 10 | Q11: 10 | R11: 4 | S11: 3 | T11: 10 | AG11: albfra | AI11: ALBESSARD Francois | AT11: 10 | AU11: 450 | AV11: 25 | AX11: 5.7 | AY11: 7.6 | AZ11: 4.5 | BA11: 6.5 | BB11: 4.7 | BC11: 6.7 | BD11: 3.2 | BE11: 5.7 | BF11: 5
C12: T11 | D12: 4 | E12: 13 | F12: 4 | G12: 13 | H12: 11 | Q12: 11 | R12: 3 | S12: 2 | AT12: 11 | AU12: 425 | AV12: 25 | AX12: 6.6 | AY12: 8.5 | AZ12: 5.5 | BA12: 7.4 | BB12: 5.6 | BC12: 7.6 | BD12: 4.1 | BE12: 6.6 | BF12: 6
C13: T12 | D13: 5 | E13: 1 | F13: 4 | G13: 3 | H13: 12 | Q13: 12 | R13: 3 | S13: 2 | AT13: 12 | AU13: 400 | AV13: 25 | AX13: 7.6 | AY13: 9.4 | AZ13: 6.4 | BA13: 8.4 | BB13: 6.5 | BC13: 8.6 | BD13: 5 | BE13: 7.5 | BF13: 7
C14: T13 | D14: 5 | E14: 5 | F14: 4 | G14: 1 | H14: 13 | Q14: 13 | R14: 3 | S14: 2 | AT14: 13 | AU14: 380 | AV14: 20 | AX14: 8.5 | AY14: 10.3 | AZ14: 7.4 | BA14: 9.3 | BB14: 7.4 | BC14: 9.5 | BD14: 5.8 | BE14: 8.4 | BF14: 8
C15: T14 | D15: 3 | E15: 11 | F15: 5 | G15: 7 | H15: 14 | Q15: 14 | R15: 2 | S15: 2 | AT15: 14 | AU15: 360 | AV15: 20 | AX15: 9.4 | AY15: 11.3 | AZ15: 8.3 | BA15: 10.2 | BB15: 8.3 | BC15: 10.4 | BD15: 6.7 | BE15: 9.3 | BF15: 9
C16: T15 | D16: 4 | E16: 3 | F16: 4 | G16: 5 | H16: 15 | Q16: 15 | R16: 2 | S16: 2 | AT16: 15 | AU16: 340 | AV16: 20 | AX16: 10.3 | AY16: 12.2 | AZ16: 9.3 | BA16: 11.2 | BB16: 9.2 | BC16: 11.3 | BD16: 7.6 | BE16: 10.2 | BF16: 10
C17: T16 | D17: 4 | E17: 7 | F17: 3 | G17: 17 | H17: 16 | Q17: 16 | R17: 2 | S17: 2 | AT17: 16 | AU17: 320 | AV17: 20 | AX17: 11.2 | AY17: 13.1 | AZ17: 10.2 | BA17: 12.1 | BB17: 10.1 | BC17: 12.3 | BD17: 8.5 | BE17: 11.2 | BF17: 11
C18: T17 | D18: 4 | E18: 17 | F18: 4 | G18: 9 | H18: 17 | Q18: 17 | R18: 1 | S18: 1 | AT18: 17 | AU18: 300 | AV18: 20 | AX18: 12.1 | AY18: 14 | AZ18: 11.2 | BA18: 13 | BB18: 11 | BC18: 13.2 | BD18: 9.3 | BE18: 12.1 | BF18: 12
C19: T18 | D19: 4 | E19: 9 | F19: 5 | G19: 11 | H19: 18 | Q19: 18 | R19: 1 | S19: 1 | AT19: 18 | AU19: 285 | AV19: 15 | AX19: 13 | AY19: 15 | AZ19: 12.1 | BA19: 14 | BB19: 11.9 | BC19: 14.1 | BD19: 10.2 | BE19: 13 | BF19: 13
C20: A | D20: =SUM(D2:D10) -> 36 | F20: =SUM(F2:F10) -> 36 | Q20: 19 | R20: 1 | S20: 1 | AT20: 19 | AU20: 270 | AV20: 15 | AX20: 13 | AY20: 15.9 | AZ20: 13.1 | BA20: 14.9 | BB20: 12.8 | BC20: 15.1 | BD20: 11.1 | BE20: 13.9 | BF20: 14
C21: R | D21: =SUM(D11:D19) -> 36 | F21: =SUM(F11:F19) -> 36 | Q21: 20 | R21: 1 | S21: 1 | AT21: 20 | AU21: 255 | AV21: 15 | AX21: 14.8 | AY21: 16.8 | AZ21: 14 | BA21: 15.8 | BB21: 13.7 | BC21: 16 | BD21: 12 | BE21: 14.8 | BF21: 15
C22: T | D22: =SUM(D20:D21) -> 72 | F22: =SUM(F20:F21) -> 72 | AT22: 21 | AU22: 240 | AV22: 15 | AX22: 15.7 | AY22: 17.7 | AZ22: 15 | BA22: 16.8 | BB22: 14.6 | BC22: 16.9 | BD22: 12.8 | BE22: 15.8 | BF22: 16
AT23: 22 | AU23: 230 | AV23: 10 | AX23: 16.6 | AY23: 18.7 | AZ23: 15.9 | BA23: 17.7 | BB23: 15.5 | BC23: 17.8 | BD23: 13.7 | BE23: 16.7 | BF23: 17
AT24: 23 | AU24: 220 | AV24: 10 | AX24: 17.5 | AY24: 19.6 | AZ24: 16.9 | BA24: 18.6 | BB24: 16.4 | BC24: 18.8 | BD24: 14.6 | BE24: 17.6 | BF24: 18
AT25: 24 | AU25: 210 | AV25: 10 | AX25: 18.4 | AY25: 20.5 | AZ25: 17.8 | BA25: 19.6 | BB25: 17.3 | BC25: 19.7 | BD25: 15.5 | BE25: 18.5 | BF25: 19
AX26: 19.3 | AY26: 21.4 | AZ26: 18.8 | BA26: 20.5 | BB26: 18.2 | BC26: 20.6 | BD26: 16.3 | BE26: 19.4 | BF26: 20
AX27: 20.2 | AY27: 22.4 | AZ27: 19.7 | BA27: 21.4 | BB27: 19.1 | BC27: 21.5 | BD27: 17.2 | BE27: 20.4 | BF27: 21
AX28: 21.1 | AY28: 23.3 | AZ28: 20.7 | BA28: 22.4 | BB28: 20 | BC28: 22.5 | BD28: 18.1 | BE28: 21.3 | BF28: 22
AX29: 22 | AY29: 24.2 | AZ29: 21.6 | BA29: 23.3 | BB29: 20.9 | BC29: 23.4 | BD29: 19 | BE29: 22.2 | BF29: 23
AX30: 22.9 | AY30: 25.2 | AZ30: 22.6 | BA30: 24.2 | BB30: 21.8 | BC30: 24.3 | BD30: 19.8 | BE30: 23.1 | BF30: 24
AX31: 23.8 | AY31: 26 | AZ31: 23.5 | BA31: 25.2 | BB31: 22.7 | BC31: 25.2 | BD31: 20.7 | BE31: 24 | BF31: 25
AX32: 24.7 | AY32: 27 | AZ32: 24.5 | BA32: 26.1 | BB32: 23.6 | BC32: 26.2 | BD32: 21.6 | BE32: 24.9 | BF32: 26
AX33: 25.6 | AY33: 27.9 | AZ33: 25.4 | BA33: 27 | BB33: 24.5 | BC33: 27.1 | BD33: 22.5 | BE33: 25.9 | BF33: 27
AX34: 26.5 | AY34: 28.9 | AZ34: 26.4 | BA34: 28 | BB34: 25.5 | BC34: 28 | BD34: 23.4 | BE34: 26.8 | BF34: 28
AX35: 27.4 | AY35: 29.8 | AZ35: 27.3 | BA35: 28.9 | BB35: 26.4 | BC35: 28.9 | BD35: 24.2 | BE35: 27.7 | BF35: 29
AX36: 28.3 | AY36: 30.7 | AZ36: 28.3 | BA36: 29.8 | BB36: 27.3 | BC36: 29.9 | BD36: 25.1 | BE36: 28.6 | BF36: 30
AX37: 29.2 | AY37: 31.6 | AZ37: 29.2 | BA37: 30.8 | BB37: 28.2 | BC37: 30.8 | BD37: 26 | BE37: 29.5 | BF37: 31
AX38: 30.2 | AY38: 32.6 | AZ38: 30.2 | BA38: 31.7 | BB38: 29.1 | BC38: 31.7 | BD38: 26.9 | BE38: 30.5 | BF38: 32
AX39: 31.1 | AY39: 33.5 | AZ39: 31.1 | BA39: 32.6 | BB39: 30 | BC39: 32.7 | BD39: 27.7 | BE39: 31.4 | BF39: 33
AX40: 32 | AY40: 34.4 | AZ40: 32.1 | BA40: 33.6 | BB40: 30.9 | BC40: 33.6 | BD40: 28.6 | BE40: 32.3 | BF40: 34
AX41: 32.9 | AY41: 35.3 | AZ41: 33 | BA41: 34.5 | BB41: 31.8 | BC41: 34.5 | BD41: 29.5 | BE41: 33.2 | BF41: 35
AX42: 33.8 | AY42: 36.3 | AZ42: 33.9 | BA42: 35.4 | BB42: 32.7 | BC42: 35.4 | BD42: 30.4 | BE42: 34.1 | BF42: 36
AX43: 34.7 | AY43: 37.2 | AZ43: 34.9 | BA43: 36.4 | BB43: 33.6 | BC43: 36.4 | BD43: 31.2 | BE43: 35.1 | BF43: 37
AX44: 35.6 | AY44: 38.1 | AZ44: 35.8 | BA44: 37.3 | BB44: 34.5 | BC44: 37.3 | BD44: 32.1 | BE44: 36 | BF44: 38
AX45: 36.5 | AY45: 39 | AZ45: 36.8 | BA45: 38.2 | BB45: 35.4 | BC45: 38.2 | BD45: 33 | BE45: 36.9 | BF45: 39
AX46: 37.4 | AY46: 40 | AZ46: 37.7 | BA46: 39.2 | BB46: 36.3 | BC46: 39.1 | BD46: 33.9 | BE46: 37.8 | BF46: 40
AX47: 38.3 | AY47: 40.9 | AZ47: 38.7 | BA47: 40.1 | BB47: 37.2 | BC47: 40.1 | BD47: 34.7 | BE47: 38.7 | BF47: 41
AX48: 39.2 | AY48: 41.8 | AZ48: 39.6 | BA48: 41 | BB48: 38.1 | BC48: 41 | BD48: 35.6 | BE48: 39.6 | BF48: 42
AX49: 40.1 | AY49: 42.7 | AZ49: 40.6 | BA49: 42 | BB49: 39 | BC49: 41.9 | BD49: 36.5 | BE49: 40.6 | BF49: 43
AX50: 41 | AY50: 43.7 | AZ50: 41.5 | BA50: 42.9 | BB50: 39.9 | BC50: 42.8 | BD50: 37.4 | BE50: 41.5 | BF50: 44
AX51: 41.9 | AY51: 44.6 | AZ51: 42.5 | BA51: 43.8 | BB51: 40.8 | BC51: 43.8 | BD51: 38.2 | BE51: 42.4 | BF51: 45
AX52: 42.8 | AY52: 45.5 | AZ52: 43.4 | BA52: 44.8 | BB52: 41.7 | BC52: 44.7 | BD52: 39.1 | BE52: 43.3 | BF52: 46
AX53: 43.7 | AY53: 46.5 | AZ53: 44.4 | BA53: 45.7 | BB53: 42.6 | BC53: 45.6 | BD53: 40 | BE53: 44.2 | BF53: 47
AX54: 44.6 | AY54: 47.4 | AZ54: 45.3 | BA54: 46.7 | BB54: 43.5 | BC54: 46.5 | BD54: 40.9 | BE54: 45.2 | BF54: 48
AX55: 45.5 | AY55: 48.3 | AZ55: 46.3 | BA55: 47.6 | BB55: 44.4 | BC55: 47.5 | BD55: 41.7 | BE55: 46.1 | BF55: 49
AX56: 46.4 | AY56: 49.2 | AZ56: 47.2 | BA56: 48.5 | BB56: 45.3 | BC56: 48.4 | BD56: 42.6 | BE56: 47 | BF56: 50
AX57: 47.3 | AY57: 50.2 | AZ57: 48.2 | BA57: 49.5 | BB57: 46.2 | BC57: 49.3 | BD57: 43.5 | BE57: 47.9 | BF57: 51
AX58: 48.2 | AY58: 51.1 | AZ58: 49.1 | BA58: 50.4 | BB58: 47.1 | BC58: 50.3 | BD58: 44.4 | BE58: 48.8 | BF58: 52
AX59: 49.1 | AY59: 52 | AZ59: 50.1 | BA59: 51.3 | BB59: 48.1 | BC59: 51.2 | BD59: 45.2 | BE59: 49.8 | BF59: 53
AX60: 50 | AY60: 52.9 | AZ60: 51 | BA60: 52.3 | BB60: 49 | BC60: 52.1 | BD60: 46.1 | BE60: 50.7 | BF60: 54
AX61: 50.9 | AY61: 53.6 | AZ61: 52 | BA61: 53.2 | BB61: 49.9 | BC61: 53 | BD61: 47 | BE61: 51.6 | BF61: 55
AX62: 51.8 | AZ62: 52.9 | BA62: 53.6 | BB62: 50.8 | BC62: 53.6 | BD62: 47.9 | BE62: 52.5 | BF62: 56
AX63: 52.8 | AZ63: 53.6 | BB63: 51.7 | BD63: 48.8 | BE63: 53.4 | BF63: 57
AX64: 53.6 | BB64: 52.6 | BE64: 53.6 | BF64: 58
BB65: 53.5 | BF65: 59

Sheet SIMPLES_WE
BN1: Dames | BO1: Hommes
G2: =CONCATENATE("Qualifié(e)s au Championnat Open individuel SQY ",'DATA-WE'!A2,) -> Qualifié(e)s au Championnat Open individuel SQY 2019 | M2: =COLUMN(D3)-COLUMN(C3)+1 -> 2 | R2: 1er Tour | S2: 8 Q | W2: 1er Tour | AB2: 1/8 FINALE | AG2: 1/4 FINALE | AL2: 1/2 FINALE | AQ2: Messieurs | AX2: =COUNTIF(AY4:AY19,">0")+COUNTIF(AV4:AV19,">0") -> 21 | AY2: H | BN2: =LARGE(OI_FFG!BH:BH,ROW()-1) -> 4214182940 | BO2: =LARGE(OI_FFG!BI:BI,ROW()-1) -> 4244161858
D3: =AY2 -> H | E3: Res 1 | F3: Res 2 | I3: =AY21 -> D | J3: =E3 -> Res 1 | K3: =F3 -> Res 2 | M3: =AY2 -> H | N3: Adh | P3: Adh | R3: =W3 -> Rouge avant le 9 juin | W3: =CONCATENATE("Rouge avant le ","9 juin") -> Rouge avant le 9 juin | AB3: =CONCATENATE("Rouge avant le ","29 juin") -> Rouge avant le 29 juin | AG3: =CONCATENATE("le ","29 juin") -> le 29 juin | AU3: 32 | AV3: Qual | AX3: 32 | AY3: Qual | BA3: =AX3/2 -> 16 | BB3: Qual | BD3: =BA3/2 -> 8 | BE3: Qual | BG3: =BD3/2 -> 4 | BH3: Qual | BJ3: 99 | BN3: =LARGE(OI_FFG!BH:BH,ROW()-1) -> 4164152938 | BO3: =LARGE(OI_FFG!BI:BI,ROW()-1) -> 4224181931
A4: 1 | C4: =IF(E4=0,"",C3+1) -> 1 | D4: =IF(BO2=0,0,VLOOKUP(RIGHT(BO2,3)*1,OI_DATA!$A:$B,2,FALSE)) -> BIDET Sylvain | E4: =IF($BO2=0,0,500-LEFT($BO2,3)*1) -> 76 | F4: =IF(OR(RIGHT(LEFT($BO2,6),3)*1=0,$BO2=0),"",500-RIGHT(LEFT($BO2,6),3)*1) -> 84 | H4: =IF(J4=0,"",H3+1) -> 1 | I4: =IF(BN2=0,0,VLOOKUP(RIGHT(BN2,3)*1,OI_DATA!$A:$B,2,FALSE)) -> DUBOTS Marie | J4: =IF($BN2=0,0,500-LEFT($BN2,3)*1) -> 79 | K4: =IF(OR(RIGHT(LEFT($BN2,6),3)*1=0,$BN2=0),"",500-RIGHT(LEFT($BN2,6),3)*1) -> 82 | M4: 1 | N4: =IF(ISNA(VLOOKUP(M4,$C:$I,$M$2,FALSE)),0,VLOOKUP(M4,$C:$I,$M$2,FALSE)) -> BIDET Sylvain | O4: 16 | P4: =IF(ISNA(VLOOKUP(O4,$C:$I,$M$2,FALSE)),0,VLOOKUP(O4,$C:$I,$M$2,FALSE)) -> LOPEZ Victor | Q4: =IF(AX4=0,"",AX4) -> 1 | R4: =IF(AY4=0,"",VLOOKUP(AY4,$C:$I,$M$2,FALSE)) -> BIDET Sylvain | V4: =IF(AU4=0,"",AU4) -> 16 | W4: =IF(AV4=0,"",VLOOKUP(AV4,$C:$I,$M$2,FALSE)) -> LOPEZ Victor | X4: Q | AA4: =IF(OR(BA4=0,BA4=$BJ$3),"",BA4) -> 16 | AB4: =IF(AA4="","",VLOOKUP(BB4,$C:$I,$M$2,FALSE)) -> LOPEZ Victor | AG4: Rouge 9h13 | AQ4: =CONCATENATE("Palmarès ",'DATA-WE'!A2) -> Palmarès 2019 | AU4: =IF(P4=0,0,O4) -> 16 | AV4: =IF(P4=0,0,AU4) -> 16 | AX4: =IF(N4=0,0,M4) -> 1 | AY4: =IF(N4=0,0,AX4) -> 1 | BA4: =IF(BB4=$BJ$3,$BJ$3,IF(BB4=AV4,AU4,AU5)) -> 16 | BB4: =IF(X5="Q",AV5,IF(OR(AV5=0,X4="Q"),AV4,IF(AV4*AV5>0,$BJ$3,0))) -> 16 | BN4: =LARGE(OI_FFG!BH:BH,ROW()-1) -> 4164142996 | BO4: =LARGE(OI_FFG!BI:BI,ROW()-1) -> 4210001945
A5: 2 | C5: 2 | D5: =IF(BO3=0,0,VLOOKUP(RIGHT(BO3,3)*1,OI_DATA!$A:$B,2,FALSE)) -> GENIT Philippe | E5: =IF($BO3=0,0,500-LEFT($BO3,3)*1) -> 78 | F5: =IF(OR(RIGHT(LEFT($BO3,6),3)*1=0,$BO3=0),"",500-RIGHT(LEFT($BO3,6),3)*1) -> 82 | H5: =IF(J5=0,"",H4+1) -> 2 | I5: =IF(BN3=0,0,VLOOKUP(RIGHT(BN3,3)*1,OI_DATA!$A:$B,2,FALSE)) -> THORPE Jennifer | J5: =IF($BN3=0,0,500-LEFT($BN3,3)*1) -> 84 | K5: =IF(OR(RIGHT(LEFT($BN3,6),3)*1=0,$BN3=0),"",500-RIGHT(LEFT($BN3,6),3)*1) -> 85 | M5: 32 | N5: 0 | O5: 17 | P5: LESTOILLE Thierry | V5: 17 | W5: LESTOILLE Thierry | AA5: 1 | AB5: BIDET Sylvain | AC5: Q | AF5: =IF(OR(BE5=0,BE5=$BJ$3),"",BD5) -> 1 | AG5: =IF(AF5="","",VLOOKUP(BE5,$C:$I,$M$2,FALSE)) -> BIDET Sylvain | AH5: F | AP5: 1 | AQ5: =IF(OR(BJ5=$BJ$3,BJ5=0),"???",VLOOKUP(BJ5,$C:$I,$M$2,FALSE)) -> GENIT Philippe | AU5: 17 | AV5: 17 | AX5: 0 | AY5: 0 | BA5: =IF(BB5=$BJ$3,$BJ$3,IF(BB5=AY4,AX4,AX5)) -> 1 | BB5: =IF(S5="Q",AY5,IF(OR(AY5=0,S4="Q"),AY4,IF(AY4*AY5>0,$BJ$3,0))) -> 1 | BD5: =IF(BE5=$BJ$3,$BJ$3,IF(BE5=0,0,IF(BE5=BB5,BA5,BA4))) -> 1 | BE5: =IF(AC4="Q",BB4,IF(OR(BA4=0,AC5="Q"),BB5,IF(BA4+BA5=0,0,$BJ$3))) -> 1 | BJ5: =IF(AR11="Q",BK11,IF(OR(BJ12=0,AR12="Q"),BK12,$BJ$3)) -> 2 | BN5: =LARGE(OI_FFG!BH:BH,ROW()-1) -> 4104092995 | BO5: =LARGE(OI_FFG!BI:BI,ROW()-1) -> 4210001871
A6: 3 | C6: 3 | D6: =IF(BO4=0,0,VLOOKUP(RIGHT(BO4,3)*1,OI_DATA!$A:$B,2,FALSE)) -> BONNY Gurvann | E6: 79 | H6: 3 | I6: =IF(BN4=0,0,VLOOKUP(RIGHT(BN4,3)*1,OI_DATA!$A:$B,2,FALSE)) -> GALLAIS Catherine | J6: 84 | K6: 86 | M6: 8 | N6: LEMAITRE Joel | O6: 9 | P6: DEHEDIN Pascal | Q6: 8 | R6: LEMAITRE Joel | V6: 9 | W6: DEHEDIN Pascal | AA6: 8 | AB6: LEMAITRE Joel | AF6: =IF(OR(BE6=0,BE6=$BJ$3),"",BD6) -> 9 | AG6: =IF(AF6="","",VLOOKUP(BE6,$C:$I,$M$2,FALSE)) -> DEHEDIN Pascal | AL6: Rouge 8h28 | AP6: 2 | AQ6: =IF(OR(BJ6=$BJ$3,BJ6=0),"",VLOOKUP(BJ6,$C:$I,$M$2,FALSE)) -> CAVAILLE Julien | AU6: 9 | AV6: 9 | AX6: 8 | AY6: 8 | BA6: =IF(BB6=$BJ$3,$BJ$3,IF(BB6=AY6,AX6,AX7)) -> 8 | BB6: =IF(S7="Q",AY7,IF(OR(AY7=0,S6="Q"),AY6,IF(AY6*AY7>0,$BJ$3,0))) -> 8 | BD6: =IF(BE6=$BJ$3,$BJ$3,IF(BE6=0,0,IF(BE6=BB7,BA7,BA6))) -> 9 | BE6: =IF(AC7="Q",BB7,IF(OR(BA7=0,AC6="Q"),BB6,IF(BA6+BA7=0,0,$BJ$3))) -> 9 | BH6: =IF(AH6="Q",BE6,IF(OR(BD6=0,AH5="Q"),BE5,$BJ$3)) -> 99 | BJ6: =IF(AR11="Q",BK12,IF(OR(BJ12=0,AR12="Q"),BK11,$BJ$3)) -> 4 | BN6: =LARGE(OI_FFG!BH:BH,ROW()-1) -> 4084072999 | BO6: =LARGE(OI_FFG!BI:BI,ROW()-1) -> 4194191989
A7: 4 | C7: 4 | D7: =IF(BO5=0,0,VLOOKUP(RIGHT(BO5,3)*1,OI_DATA!$A:$B,2,FALSE)) -> CAVAILLE Julien | E7: 79 | H7: 4 | I7: =IF(BN5=0,0,VLOOKUP(RIGHT(BN5,3)*1,OI_DATA!$A:$B,2,FALSE)) -> GUY Olivia | J7: 90 | K7: 91 | M7: 25 | N7: 0 | O7: 24 | P7: 0 | AA7: 9 | AB7: DEHEDIN Pascal | AC7: Q | AK7: =IF(OR(BH7=0,BH7=$BJ$3),"",BH7) -> 4 | AL7: =IF(AK7="","",VLOOKUP(BH7,$C:$I,$M$2,FALSE)) -> CAVAILLE Julien | AM7: Q | AP7: 3 | AQ7: =IF(OR(BJ7=$BJ$3,BJ7=0),"",VLOOKUP(BJ7,$C:$I,$M$2,FALSE)) -> BONNY Gurvann | AU7: 0 | AV7: 0 | AX7: 0 | AY7: 0 | BA7: =IF(BB7=$BJ$3,$BJ$3,IF(BB7=AV6,AU6,AU7)) -> 9 | BB7: =IF(X7="Q",AV7,IF(OR(AV7=0,X6="Q"),AV6,IF(AV6*AV7>0,$BJ$3,0))) -> 9 | BG7: =IF(BH7=$BJ$3,$BJ$3,IF(BH7=0,0,IF(BH7=BE5,BD5,BD6))) -> 9 | BH7: 4 | BJ7: =IF(AR15="Q",BH11,IF(OR(BG12=0,AR16="Q"),BH12,$BJ$3)) -> 3 | BN7: =LARGE(OI_FFG!BH:BH,ROW()-1) -> 4084032997 | BO7: =LARGE(OI_FFG!BI:BI,ROW()-1) -> 4154141898
A8: 5 | C8: 5 | D8: =IF(BO6=0,0,VLOOKUP(RIGHT(BO6,3)*1,OI_DATA!$A:$B,2,FALSE)) -> JUPPIN Bruno | E8: 81 | F8: 81 | H8: 5 | I8: =IF(BN6=0,0,VLOOKUP(RIGHT(BN6,3)*1,OI_DATA!$A:$B,2,FALSE)) -> CATEL Francoise | J8: 92 | K8: 93 | M8: 4 | N8: CAVAILLE Julien | O8: 13 | P8: RIEUPEYROUX Patrice | Q8: 4 | R8: CAVAILLE Julien | V8: 13 | W8: RIEUPEYROUX Patrice | X8: Q | AA8: 13 | AB8: RIEUPEYROUX Patrice | AG8: Rouge 9h22 | AK8: =IF(OR(BH8=0,BH8=$BJ$3),"",BH8) -> 5 | AL8: =IF(AK8="","",VLOOKUP(BH8,$C:$I,$M$2,FALSE)) -> JUPPIN Bruno | AP8: 4 | AQ8: =IF(OR(BJ8=$BJ$3,BJ8=0),"",VLOOKUP(BJ8,$C:$I,$M$2,FALSE)) -> JUPPIN Bruno | AU8: 13 | AV8: 13 | AX8: 4 | AY8: 4 | BA8: =IF(BB8=$BJ$3,$BJ$3,IF(BB8=AV8,AU8,AU9)) -> 13 | BB8: =IF(X9="Q",AV9,IF(OR(AV9=0,X8="Q"),AV8,IF(AV8*AV9>0,$BJ$3,0))) -> 13 | BG8: =IF(BH8=$BJ$3,$BJ$3,IF(BH8=0,0,IF(BH8=BE9,BD9,BD10))) -> 5 | BH8: =IF(AH10="Q",BE10,IF(OR(BD10=0,AH9="Q"),BE9,$BJ$3)) -> 5 | BJ8: =IF(AR15="Q",BH12,IF(OR(BG12=0,AR16="Q"),BH11,$BJ$3)) -> 5 | BN8: =LARGE(OI_FFG!BH:BH,ROW()-1) -> 4070002859 | BO8: =LARGE(OI_FFG!BI:BI,ROW()-1) -> 4154041990
A9: 6 | C9: 6 | D9: =IF(BO7=0,0,VLOOKUP(RIGHT(BO7,3)*1,OI_DATA!$A:$B,2,FALSE)) -> ABBADIE Didier | E9: 85 | F9: 86 | H9: 6 | I9: =IF(BN7=0,0,VLOOKUP(RIGHT(BN7,3)*1,OI_DATA!$A:$B,2,FALSE)) -> EUVE Joelle | J9: 92 | K9: 97 | M9: 29 | N9: 0 | O9: 20 | P9: VACHER J-Pierre | V9: 20 | W9: VACHER J-Pierre | AA9: 4 | AB9: CAVAILLE Julien | AC9: Q | AF9: =IF(OR(BE9=0,BE9=$BJ$3),"",BD9) -> 4 | AG9: =IF(AF9="","",VLOOKUP(BE9,$C:$I,$M$2,FALSE)) -> CAVAILLE Julien | AQ9: Finale | AU9: 20 | AV9: 20 | AX9: 0 | AY9: 0 | BA9: =IF(BB9=$BJ$3,$BJ$3,IF(BB9=AY8,AX8,AX9)) -> 4 | BB9: =IF(S9="Q",AY9,IF(OR(AY9=0,S8="Q"),AY8,IF(AY8*AY9>0,$BJ$3,0))) -> 4 | BD9: =IF(BE9=$BJ$3,$BJ$3,IF(BE9=0,0,IF(BE9=BB9,BA9,BA8))) -> 4 | BE9: =IF(AC8="Q",BB8,IF(OR(BA8=0,AC9="Q"),BB9,IF(BA8+BA9=0,0,$BJ$3))) -> 4 | BN9: =LARGE(OI_FFG!BH:BH,ROW()-1) -> 4044032998 | BO9: =LARGE(OI_FFG!BI:BI,ROW()-1) -> 4114081943
A10: 7 | C10: 7 | D10: =IF(BO8=0,0,VLOOKUP(RIGHT(BO8,3)*1,OI_DATA!$A:$B,2,FALSE)) -> FEUILLADE Mathieu | E10: 85 | F10: 96 | H10: 7 | I10: =IF(BN8=0,0,VLOOKUP(RIGHT(BN8,3)*1,OI_DATA!$A:$B,2,FALSE)) -> MAHE Joelle | J10: 93 | M10: 5 | N10: JUPPIN Bruno | O10: 12 | P10: DEBERQUE Daniel | Q10: 5 | R10: JUPPIN Bruno | V10: 12 | W10: DEBERQUE Daniel | AA10: 5 | AB10: JUPPIN Bruno | AC10: Q | AF10: =IF(OR(BE10=0,BE10=$BJ$3),"",BD10) -> 5 | AG10: =IF(AF10="","",VLOOKUP(BE10,$C:$I,$M$2,FALSE)) -> JUPPIN Bruno | AH10: Q | AQ10: Rouge 13h43 | AU10: 12 | AV10: 12 | AX10: 5 | AY10: 5 | BA10: =IF(BB10=$BJ$3,$BJ$3,IF(BB10=AY10,AX10,AX11)) -> 5 | BB10: =IF(S11="Q",AY11,IF(OR(AY11=0,S10="Q"),AY10,IF(AY10*AY11>0,$BJ$3,0))) -> 5 | BD10: =IF(BE10=$BJ$3,$BJ$3,IF(BE10=0,0,IF(BE10=BB11,BA11,BA10))) -> 5 | BE10: =IF(AC11="Q",BB11,IF(OR(BA11=0,AC10="Q"),BB10,IF(BA10+BA11=0,0,$BJ$3))) -> 5 | BN10: =LARGE(OI_FFG!BH:BH,ROW()-1) -> 4040002947 | BO10: =LARGE(OI_FFG!BI:BI,ROW()-1) -> 4114011991
A11: 8 | C11: 8 | D11: =IF(BO9=0,0,VLOOKUP(RIGHT(BO9,3)*1,OI_DATA!$A:$B,2,FALSE)) -> LEMAITRE Joel | E11: 89 | F11: 92 | H11: 8 | I11: =IF(BN9=0,0,VLOOKUP(RIGHT(BN9,3)*1,OI_DATA!$A:$B,2,FALSE)) -> DENUZIERE Sophie | J11: 96 | K11: 97 | M11: 28 | N11: 0 | O11: 21 | P11: BOULLE Serge | V11: 21 | W11: BOULLE Serge | X11: Q | AA11: 21 | AB11: BOULLE Serge | AP11: =IF(OR(BK11=0,BK11=$BJ$3),"",BK11) -> 4 | AQ11: =IF(OR(BK11=0,BK11=$BJ$3),"",VLOOKUP(BK11,$C:$I,$M$2,FALSE)) -> CAVAILLE Julien | AU11: 21 | AV11: 21 | AX11: 0 | AY11: 0 | BA11: =IF(BB11=$BJ$3,$BJ$3,IF(BB11=AV10,AU10,AU11)) -> 21 | BB11: =IF(X11="Q",AV11,IF(OR(AV11=0,X10="Q"),AV10,IF(AV10*AV11>0,$BJ$3,0))) -> 21 | BG11: =IF(BH11=$BJ$3,$BJ$3,IF(BH11=0,0,BH11)) -> 5 | BH11: =IF(AM8="Q",BH7,IF(OR(BG8=0,AM7="Q"),BH8,$BJ$3)) -> 5 | BJ11: =IF(BK11=$BJ$3,$BJ$3,IF(BK11=0,0,IF(BK11=BH7,BG7,BG8))) -> 9 | BK11: =IF(AM8="Q",BH8,IF(OR(BG8=0,AM7="Q"),BH7,$BJ$3)) -> 4 | BN11: =LARGE(OI_FFG!BH:BH,ROW()-1) -> 4030002802 | BO11: =LARGE(OI_FFG!BI:BI,ROW()-1) -> 4094021993
A12: 9 | C12: =IF(E12=0,"",C11+1) -> 9 | D12: =IF(BO10=0,0,VLOOKUP(RIGHT(BO10,3)*1,OI_DATA!$A:$B,2,FALSE)) -> DEHEDIN Pascal | E12: 89 | F12: 99 | H12: 9 | I12: =IF(BN10=0,0,VLOOKUP(RIGHT(BN10,3)*1,OI_DATA!$A:$B,2,FALSE)) -> CHAUVIN Skaubrine | J12: 96 | M12: 2 | N12: GENIT Philippe | O12: 15 | P12: CHAUVIN David | Q12: 2 | R12: GENIT Philippe | V12: 15 | W12: CHAUVIN David | X12: Q | AA12: 15 | AB12: CHAUVIN David | AG12: Rouge 9h31 | AP12: =IF(OR(BK12=0,BK12=$BJ$3),"",BK12) -> 2 | AQ12: =IF(OR(BK12=0,BK12=$BJ$3),"",VLOOKUP(BK12,$C:$I,$M$2,FALSE)) -> GENIT Philippe | AR12: Q | AU12: 15 | AV12: 15 | AX12: 2 | AY12: 2 | BA12: =IF(BB12=$BJ$3,$BJ$3,IF(BB12=AV12,AU12,AU13)) -> 15 | BB12: =IF(X13="Q",AV13,IF(OR(AV13=0,X12="Q"),AV12,IF(AV12*AV13>0,$BJ$3,0))) -> 15 | BG12: =IF(BH12=$BJ$3,$BJ$3,IF(BH12=0,0,BH12)) -> 3 | BH12: =IF(AM16="Q",BH15,IF(OR(BG15=0,AM15="Q"),BH16,$BJ$3)) -> 3 | BJ12: =IF(BK12=$BJ$3,$BJ$3,IF(BK12=0,0,IF(BK12=BH15,BG15,BG16))) -> 2 | BK12: =IF(AM16="Q",BH16,IF(OR(BG16=0,AM15="Q"),BH15,$BJ$3)) -> 2 | BN12: =LARGE(OI_FFG!BH:BH,ROW()-1) -> 4023862939 | BO12: =LARGE(OI_FFG!BI:BI,ROW()-1) -> 4074031860
A13: 10 | C13: =IF(E13=0,"",C12+1) -> 10 | D13: =IF(BO11=0,0,VLOOKUP(RIGHT(BO11,3)*1,OI_DATA!$A:$B,2,FALSE)) -> CHARRIERE J-Marie | E13: 91 | F13: 98 | H13: 10 | I13: =IF(BN11=0,0,VLOOKUP(RIGHT(BN11,3)*1,OI_DATA!$A:$B,2,FALSE)) -> DUMAS Dominique | J13: 97 | M13: 31 | N13: 0 | O13: 18 | P13: NOEL Gabin | V13: 18 | W13: NOEL Gabin | AA13: 2 | AB13: GENIT Philippe | AC13: Q | AF13: =IF(OR(BE13=0,BE13=$BJ$3),"",BD13) -> 2 | AG13: =IF(AF13="","",VLOOKUP(BE13,$C:$I,$M$2,FALSE)) -> GENIT Philippe | AH13: Q | AQ13: Places 3 & 4 | AU13: 18 | AV13: 18 | AX13: 0 | AY13: 0 | BA13: =IF(BB13=$BJ$3,$BJ$3,IF(BB13=AY12,AX12,AX13)) -> 2 | BB13: =IF(S13="Q",AY13,IF(OR(AY13=0,S12="Q"),AY12,IF(AY12*AY13>0,$BJ$3,0))) -> 2 | BD13: =IF(BE13=$BJ$3,$BJ$3,IF(BE13=0,0,IF(BE13=BB13,BA13,BA12))) -> 2 | BE13: =IF(AC12="Q",BB12,IF(OR(BA12=0,AC13="Q"),BB13,IF(BA12+BA13=0,0,$BJ$3))) -> 2 | BN13: =LARGE(OI_FFG!BH:BH,ROW()-1) -> 3973972942 | BO13: =LARGE(OI_FFG!BI:BI,ROW()-1) -> 4074001992
A14: 11 | C14: 11 | D14: =IF(BO12=0,0,VLOOKUP(RIGHT(BO12,3)*1,OI_DATA!$A:$B,2,FALSE)) -> RIOTTE Michel | E14: 93 | F14: 97 | H14: 11 | I14: =IF(BN12=0,0,VLOOKUP(RIGHT(BN12,3)*1,OI_DATA!$A:$B,2,FALSE)) -> LAVODRAMA Muriel | J14: 98 | K14: 114 | M14: 7 | N14: FEUILLADE Mathieu | O14: 10 | P14: CHARRIERE J-Marie | Q14: 7 | R14: FEUILLADE Mathieu | V14: 10 | W14: CHARRIERE J-Marie | AA14: 7 | AB14: FEUILLADE Mathieu | AC14: Q | AF14: =IF(OR(BE14=0,BE14=$BJ$3),"",BD14) -> 7 | AG14: =IF(AF14="","",VLOOKUP(BE14,$C:$I,$M$2,FALSE)) -> FEUILLADE Mathieu | AL14: Rouge 8h37 | AQ14: Rouge 13h34 | AU14: 10 | AV14: 10 | AX14: 7 | AY14: 7 | BA14: =IF(BB14=$BJ$3,$BJ$3,IF(BB14=AY14,AX14,AX15)) -> 7 | BB14: =IF(S15="Q",AY15,IF(OR(AY15=0,S14="Q"),AY14,IF(AY14*AY15>0,$BJ$3,0))) -> 7 | BD14: =IF(BE14=$BJ$3,$BJ$3,IF(BE14=0,0,IF(BE14=BB15,BA15,BA14))) -> 7 | BE14: =IF(AC15="Q",BB15,IF(OR(BA15=0,AC14="Q"),BB14,IF(BA14+BA15=0,0,$BJ$3))) -> 7 | BN14: =LARGE(OI_FFG!BH:BH,ROW()-1) -> 3960002941 | BO14: =LARGE(OI_FFG!BI:BI,ROW()-1) -> 4030001949
A15: 12 | C15: 12 | D15: =IF(BO13=0,0,VLOOKUP(RIGHT(BO13,3)*1,OI_DATA!$A:$B,2,FALSE)) -> DEBERQUE Daniel | E15: 93 | F15: 100 | H15: 12 | I15: =IF(BN13=0,0,VLOOKUP(RIGHT(BN13,3)*1,OI_DATA!$A:$B,2,FALSE)) -> BIDET Pascale | J15: 103 | K15: 103 | M15: 26 | N15: 0 | O15: 23 | P15: 0 | AA15: 10 | AB15: CHARRIERE J-Marie | AK15: =IF(OR(BH15=0,BH15=$BJ$3),"",BH15) -> 2 | AL15: =IF(AK15="","",VLOOKUP(BH15,$C:$I,$M$2,FALSE)) -> GENIT Philippe | AM15: Q | AP15: =IF(OR(BH11=0,BH11=$BJ$3),"",BH11) -> 5 | AQ15: =IF(OR(BH11=0,BH11=$BJ$3),"",VLOOKUP(BH11,$C:$I,$M$2,FALSE)) -> JUPPIN Bruno | AU15: 0 | AV15: 0 | AX15: 0 | AY15: 0 | BA15: =IF(BB15=$BJ$3,$BJ$3,IF(BB15=AV14,AU14,AU15)) -> 10 | BB15: =IF(X15="Q",AV15,IF(OR(AV15=0,X14="Q"),AV14,IF(AV14*AV15>0,$BJ$3,0))) -> 10 | BG15: =IF(BH15=$BJ$3,$BJ$3,IF(BH15=0,0,IF(BH15=BE13,BD13,BD14))) -> 2 | BH15: =IF(AH14="Q",BE14,IF(OR(BD14=0,AH13="Q"),BE13,$BJ$3)) -> 2 | BN15: =LARGE(OI_FFG!BH:BH,ROW()-1) -> 3843832994 | BO15: =LARGE(OI_FFG!BI:BI,ROW()-1) -> 4010001888
A16: 13 | C16: 13 | D16: =IF(BO14=0,0,VLOOKUP(RIGHT(BO14,3)*1,OI_DATA!$A:$B,2,FALSE)) -> RIEUPEYROUX Patrice | E16: 97 | H16: 13 | I16: =IF(BN14=0,0,VLOOKUP(RIGHT(BN14,3)*1,OI_DATA!$A:$B,2,FALSE)) -> BOULLE Brigitte | J16: 104 | M16: 3 | N16: BONNY Gurvann | O16: 14 | P16: BARBIER Olivier | Q16: 3 | R16: BONNY Gurvann | V16: 14 | W16: BARBIER Olivier | X16: Q | AA16: 14 | AB16: BARBIER Olivier | AG16: Rouge 9h40 | AK16: =IF(OR(BH16=0,BH16=$BJ$3),"",BH16) -> 3 | AL16: =IF(AK16="","",VLOOKUP(BH16,$C:$I,$M$2,FALSE)) -> BONNY Gurvann | AP16: =IF(OR(BH12=0,BH12=$BJ$3),"",BH12) -> 3 | AQ16: =IF(OR(BH12=0,BH12=$BJ$3),"",VLOOKUP(BH12,$C:$I,$M$2,FALSE)) -> BONNY Gurvann | AR16: Q | AU16: 14 | AV16: 14 | AX16: 3 | AY16: 3 | BA16: =IF(BB16=$BJ$3,$BJ$3,IF(BB16=AV16,AU16,AU17)) -> 14 | BB16: =IF(X17="Q",AV17,IF(OR(AV17=0,X16="Q"),AV16,IF(AV16*AV17>0,$BJ$3,0))) -> 14 | BG16: =IF(BH16=$BJ$3,$BJ$3,IF(BH16=0,0,IF(BH16=BE17,BD17,BD18))) -> 3 | BH16: =IF(AH18="Q",BE18,IF(OR(BD18=0,AH17="Q"),BE17,$BJ$3)) -> 3 | BN16: =LARGE(OI_FFG!BH:BH,ROW()-1) -> 0 | BO16: =LARGE(OI_FFG!BI:BI,ROW()-1) -> 4003991981
A17: 14 | C17: 14 | D17: =IF(BO15=0,0,VLOOKUP(RIGHT(BO15,3)*1,OI_DATA!$A:$B,2,FALSE)) -> BARBIER Olivier | E17: 99 | H17: 14 | I17: =IF(BN15=0,0,VLOOKUP(RIGHT(BN15,3)*1,OI_DATA!$A:$B,2,FALSE)) -> PLANQUE Beatrice | J17: 116 | K17: 117 | M17: 30 | N17: 0 | O17: 19 | P17: NORRIS Alain | V17: 19 | W17: NORRIS Alain | AA17: 3 | AB17: BONNY Gurvann | AC17: Q | AF17: =IF(OR(BE17=0,BE17=$BJ$3),"",BD17) -> 3 | AG17: =IF(AF17="","",VLOOKUP(BE17,$C:$I,$M$2,FALSE)) -> BONNY Gurvann | AH17: Q | AU17: 19 | AV17: 19 | AX17: 0 | AY17: 0 | BA17: =IF(BB17=$BJ$3,$BJ$3,IF(BB17=AY16,AX16,AX17)) -> 3 | BB17: =IF(S17="Q",AY17,IF(OR(AY17=0,S16="Q"),AY16,IF(AY16*AY17>0,$BJ$3,0))) -> 3 | BD17: =IF(BE17=$BJ$3,$BJ$3,IF(BE17=0,0,IF(BE17=BB17,BA17,BA16))) -> 3 | BE17: =IF(AC16="Q",BB16,IF(OR(BA16=0,AC17="Q"),BB17,IF(BA16+BA17=0,0,$BJ$3))) -> 3 | BN17: =LARGE(OI_FFG!BH:BH,ROW()-1) -> 0 | BO17: =LARGE(OI_FFG!BI:BI,ROW()-1) -> 3990001956
A18: 15 | C18: 15 | D18: =IF(BO16=0,0,VLOOKUP(RIGHT(BO16,3)*1,OI_DATA!$A:$B,2,FALSE)) -> CHAUVIN David | E18: 100 | F18: 101 | I18: =IF(BN16=0,0,VLOOKUP(RIGHT(BN16,3)*1,OI_DATA!$A:$B,2,FALSE)) -> 0 | J18: 0 | M18: 6 | N18: ABBADIE Didier | O18: 11 | P18: RIOTTE Michel | Q18: 6 | R18: ABBADIE Didier | V18: 11 | W18: RIOTTE Michel | AA18: 6 | AB18: ABBADIE Didier | AC18: Q | AF18: =IF(OR(BE18=0,BE18=$BJ$3),"",BD18) -> 6 | AG18: =IF(AF18="","",VLOOKUP(BE18,$C:$I,$M$2,FALSE)) -> ABBADIE Didier | AU18: 11 | AV18: 11 | AX18: 6 | AY18: 6 | BA18: =IF(BB18=$BJ$3,$BJ$3,IF(BB18=AY18,AX18,AX19)) -> 6 | BB18: =IF(S19="Q",AY19,IF(OR(AY19=0,S18="Q"),AY18,IF(AY18*AY19>0,$BJ$3,0))) -> 6 | BD18: =IF(BE18=$BJ$3,$BJ$3,IF(BE18=0,0,IF(BE18=BB19,BA19,BA18))) -> 6 | BE18: =IF(AC19="Q",BB19,IF(OR(BA19=0,AC18="Q"),BB18,IF(BA18+BA19=0,0,$BJ$3))) -> 6 | BN18: =LARGE(OI_FFG!BH:BH,ROW()-1) -> 0 | BO18: =LARGE(OI_FFG!BI:BI,ROW()-1) -> 3983981988
A19: 16 | C19: 16 | D19: =IF(BO17=0,0,VLOOKUP(RIGHT(BO17,3)*1,OI_DATA!$A:$B,2,FALSE)) -> LOPEZ Victor | E19: 101 | I19: =IF(BN17=0,0,VLOOKUP(RIGHT(BN17,3)*1,OI_DATA!$A:$B,2,FALSE)) -> 0 | J19: 0 | M19: 27 | N19: 0 | O19: 22 | P19: 0 | AA19: 11 | AB19: RIOTTE Michel | AU19: 0 | AV19: 0 | AX19: 0 | AY19: 0 | BA19: =IF(BB19=$BJ$3,$BJ$3,IF(BB19=AV18,AU18,AU19)) -> 11 | BB19: =IF(X19="Q",AV19,IF(OR(AV19=0,X18="Q"),AV18,IF(AV18*AV19>0,$BJ$3,0))) -> 11 | BN19: =LARGE(OI_FFG!BH:BH,ROW()-1) -> 0 | BO19: =LARGE(OI_FFG!BI:BI,ROW()-1) -> 3963951987
A20: 17 | C20: 17 | D20: =IF(BO18=0,0,VLOOKUP(RIGHT(BO18,3)*1,OI_DATA!$A:$B,2,FALSE)) -> LESTOILLE Thierry | E20: 102 | F20: 102 | I20: =IF(BN18=0,0,VLOOKUP(RIGHT(BN18,3)*1,OI_DATA!$A:$B,2,FALSE)) -> 0 | J20: 0 | BN20: =LARGE(OI_FFG!BH:BH,ROW()-1) -> 0 | BO20: =LARGE(OI_FFG!BI:BI,ROW()-1) -> 3923791986
A21: 18 | C21: 18 | D21: =IF(BO19=0,0,VLOOKUP(RIGHT(BO19,3)*1,OI_DATA!$A:$B,2,FALSE)) -> NOEL Gabin | E21: 104 | F21: 105 | I21: =IF(BN19=0,0,VLOOKUP(RIGHT(BN19,3)*1,OI_DATA!$A:$B,2,FALSE)) -> 0 | J21: 0 | M21: =COLUMN(I3)-COLUMN(C3)+1 -> 7 | R21: 1er Tour | S21: =S2 -> 8 Q | W21: 1er Tour | X21: =X2 -> 0 | AB21: 1/8 FINALE | AG21: 1/4 FINALE | AL21: 1/2 FINALE | AQ21: Dames | AX21: =COUNTIF(AY23:AY38,">0")+COUNTIF(AV23:AV38,">0") -> 14 | AY21: D | BN21: =LARGE(OI_FFG!BH:BH,ROW()-1) -> 0 | BO21: =LARGE(OI_FFG!BI:BI,ROW()-1) -> 3870001985
A22: 19 | C22: 19 | D22: =IF(BO20=0,0,VLOOKUP(RIGHT(BO20,3)*1,OI_DATA!$A:$B,2,FALSE)) -> NORRIS Alain | E22: 108 | F22: 121 | I22: =IF(BN20=0,0,VLOOKUP(RIGHT(BN20,3)*1,OI_DATA!$A:$B,2,FALSE)) -> 0 | J22: 0 | M22: =AY21 -> D | N22: Adh | P22: Adh | W22: =AB22 -> Rouge avant le 29 juin | AB22: =AB3 -> Rouge avant le 29 juin | AG22: =CONCATENATE("le ","29 juin") -> le 29 juin | AU22: =AU3 -> 32 | AV22: =AV3 -> Qual | AX22: =AX3 -> 32 | AY22: =AY3 -> Qual | BA22: =BA3 -> 16 | BB22: =BB3 -> Qual | BD22: =BD3 -> 8 | BE22: =BE3 -> Qual | BG22: =BG3 -> 4 | BH22: =BH3 -> Qual | BI22: =BI3 -> 0 | BN22: =LARGE(OI_FFG!BH:BH,ROW()-1) -> 0 | BO22: =LARGE(OI_FFG!BI:BI,ROW()-1) -> 3780001944
A23: 20 | C23: 20 | D23: =IF(BO21=0,0,VLOOKUP(RIGHT(BO21,3)*1,OI_DATA!$A:$B,2,FALSE)) -> VACHER J-Pierre | E23: 113 | I23: =IF(BN21=0,0,VLOOKUP(RIGHT(BN21,3)*1,OI_DATA!$A:$B,2,FALSE)) -> 0 | J23: 0 | M23: 1 | N23: =IF(ISNA(VLOOKUP(M23,$C:$I,$M$21,FALSE)),0,VLOOKUP(M23,$C:$I,$M$21,FALSE)) -> DUBOTS Marie | O23: 16 | P23: =IF(ISNA(VLOOKUP(O23,$C:$I,$M$21,FALSE)),0,VLOOKUP(O23,$C:$I,$M$21,FALSE)) -> 0 | Q23: =IF(AX23=0,"",AX23) -> 1 | R23: =IF(AY23=0,"",VLOOKUP(AY23,$C:$I,$M$21,FALSE)) -> DUBOTS Marie | V23: =IF(AU23=0,"",AU23) ->  | W23: =IF(AV23=0,"",VLOOKUP(AV23,$C:$I,$M$21,FALSE)) ->  | AA23: =IF(BB23=0,"",BA23) ->  | AB23: =IF(BA23=0,"",VLOOKUP(BB23,$C:$I,$M$21,FALSE)) ->  | AG23: =AG4 -> Rouge 9h13 | AQ23: =AQ4 -> Palmarès 2019 | AU23: =IF(P23=0,0,O23) -> 0 | AV23: =IF(P23=0,0,AU23) -> 0 | AX23: =IF(N23=0,0,M23) -> 1 | AY23: =IF(N23=0,0,AX23) -> 1 | BA23: =IF(BB23=$BJ$3,$BJ$3,IF(BB23=AV23,AU23,AU24)) -> 0 | BB23: =IF(AV23*AV24>0,$BJ$3,IF(X24="Q",AV24,IF(OR(AV24=0,X23="Q"),AV23,0))) -> 0 | BN23: =LARGE(OI_FFG!BH:BH,ROW()-1) -> 0 | BO23: =LARGE(OI_FFG!BI:BI,ROW()-1) -> 0
A24: 21 | C24: 21 | D24: =IF(BO22=0,0,VLOOKUP(RIGHT(BO22,3)*1,OI_DATA!$A:$B,2,FALSE)) -> BOULLE Serge | E24: 122 | I24: =IF(BN22=0,0,VLOOKUP(RIGHT(BN22,3)*1,OI_DATA!$A:$B,2,FALSE)) -> 0 | J24: 0 | M24: 32 | N24: 0 | O24: 17 | P24: 0 | AA24: 1 | AB24: DUBOTS Marie | AF24: =IF(OR(BE24=0,BE24=$BJ$3),"",BD24) -> 1 | AG24: =IF(OR(BD24=0,BD24=$BJ$3),"",VLOOKUP(BE24,$C:$I,$M$21,FALSE)) -> DUBOTS Marie | AH24: Q | AP24: 1 | AQ24: =IF(OR(BJ24=$BJ$3,BJ24=0),"???",VLOOKUP(BJ24,$C:$I,$M$21,FALSE)) -> THORPE Jennifer | AU24: 0 | AV24: 0 | AX24: 0 | AY24: 0 | BA24: =IF(BB24=$BJ$3,$BJ$3,IF(BB24=AY23,AX23,AX24)) -> 1 | BB24: =IF(AY23*AY24>0,$BJ$3,IF(S24="Q",AY24,IF(OR(AY24=0,S23="Q"),AY23,0))) -> 1 | BD24: =IF(BE24=$BJ$3,$BJ$3,IF(BE24=0,0,IF(BE24=BB24,BA24,BA23))) -> 1 | BE24: =IF(AC23="Q",BB23,IF(OR(BA23=0,AC24="Q"),BB24,IF(BA23+BA24=0,0,$BJ$3))) -> 1 | BJ24: =IF(AR30="Q",BK30,IF(OR(BJ31=0,AR31="Q"),BK31,$BJ$3)) -> 2 | BN24: =LARGE(OI_FFG!BH:BH,ROW()-1) -> 0 | BO24: =LARGE(OI_FFG!BI:BI,ROW()-1) -> 0
A25: 22 | D25: =IF(BO23=0,0,VLOOKUP(RIGHT(BO23,3)*1,OI_DATA!$A:$B,2,FALSE)) -> 0 | E25: 0 | I25: =IF(BN23=0,0,VLOOKUP(RIGHT(BN23,3)*1,OI_DATA!$A:$B,2,FALSE)) -> 0 | J25: 0 | M25: 8 | N25: DENUZIERE Sophie | O25: 9 | P25: CHAUVIN Skaubrine | Q25: 8 | R25: DENUZIERE Sophie | V25: 9 | W25: CHAUVIN Skaubrine | AA25: 8 | AB25: DENUZIERE Sophie | AF25: =IF(OR(BE25=0,BE25=$BJ$3),"",BD25) -> 9 | AG25: =IF(OR(BD25=0,BD25=$BJ$3),"",VLOOKUP(BE25,$C:$I,$M$21,FALSE)) -> CHAUVIN Skaubrine | AL25: =AL6 -> Rouge 8h28 | AP25: 2 | AQ25: =IF(OR(BJ25=$BJ$3,BJ25=0),"",VLOOKUP(BJ25,$C:$I,$M$21,FALSE)) -> GUY Olivia | AU25: 9 | AV25: 9 | AX25: 8 | AY25: 8 | BA25: =IF(BB25=$BJ$3,$BJ$3,IF(BB25=AY25,AX25,AX26)) -> 8 | BB25: =IF(AY25*AY26>0,$BJ$3,IF(S26="Q",AY26,IF(OR(AY26=0,S25="Q"),AY25,0))) -> 8 | BD25: =IF(BE25=$BJ$3,$BJ$3,IF(BE25=0,0,IF(BE25=BB26,BA26,BA25))) -> 9 | BE25: =IF(AC26="Q",BB26,IF(OR(BA26=0,AC25="Q"),BB25,IF(BA25+BA26=0,0,$BJ$3))) -> 9 | BJ25: =IF(AR30="Q",BK31,IF(OR(BJ31=0,AR31="Q"),BK30,$BJ$3)) -> 4 | BN25: =LARGE(OI_FFG!BH:BH,ROW()-1) -> 0 | BO25: =LARGE(OI_FFG!BI:BI,ROW()-1) -> 0
A26: 23 | D26: =IF(BO24=0,0,VLOOKUP(RIGHT(BO24,3)*1,OI_DATA!$A:$B,2,FALSE)) -> 0 | E26: 0 | I26: =IF(BN24=0,0,VLOOKUP(RIGHT(BN24,3)*1,OI_DATA!$A:$B,2,FALSE)) -> 0 | J26: 0 | M26: 25 | N26: 0 | O26: 24 | P26: 0 | AA26: 9 | AB26: CHAUVIN Skaubrine | AC26: Q | AK26: =IF(OR(BH26=0,BH26=$BJ$3),"",BH26) -> 1 | AL26: =IF(OR(BH26=$BJ$3,BH26=0),"",VLOOKUP(BH26,$C:$I,$M$21,FALSE)) -> DUBOTS Marie | AP26: 3 | AQ26: =IF(OR(BJ26=$BJ$3,BJ26=0),"",VLOOKUP(BJ26,$C:$I,$M$21,FALSE)) -> DUBOTS Marie | AU26: 0 | AV26: 0 | AX26: 0 | AY26: 0 | BA26: =IF(BB26=$BJ$3,$BJ$3,IF(BB26=AV25,AU25,AU26)) -> 9 | BB26: =IF(AV25*AV26>0,$BJ$3,IF(X26="Q",AV26,IF(OR(AV26=0,X25="Q"),AV25,0))) -> 9 | BG26: =IF(BH26=$BJ$3,$BJ$3,IF(BH26=0,0,IF(BH26=BE24,BD24,BD25))) -> 1 | BH26: =IF(AH25="Q",BE25,IF(OR(BD25=0,AH24="Q"),BE24,$BJ$3)) -> 1 | BJ26: =IF(AR34="Q",BH30,IF(OR(BG31=0,AR35="Q"),BH31,$BJ$3)) -> 1 | BN26: =LARGE(OI_FFG!BH:BH,ROW()-1) -> 0 | BO26: =LARGE(OI_FFG!BI:BI,ROW()-1) -> 0
A27: 24 | D27: =IF(BO25=0,0,VLOOKUP(RIGHT(BO25,3)*1,OI_DATA!$A:$B,2,FALSE)) -> 0 | E27: 0 | I27: =IF(BN25=0,0,VLOOKUP(RIGHT(BN25,3)*1,OI_DATA!$A:$B,2,FALSE)) -> 0 | J27: 0 | M27: 4 | N27: GUY Olivia | O27: 13 | P27: BOULLE Brigitte | Q27: 4 | R27: GUY Olivia | V27: 13 | W27: BOULLE Brigitte | AA27: 13 | AB27: BOULLE Brigitte | AG27: =AG8 -> Rouge 9h22 | AK27: =IF(OR(BH27=0,BH27=$BJ$3),"",BH27) -> 4 | AL27: =IF(OR(BH27=$BJ$3,BH27=0),"",VLOOKUP(BH27,$C:$I,$M$21,FALSE)) -> GUY Olivia | AM27: Q | AP27: 4 | AQ27: =IF(OR(BJ27=$BJ$3,BJ27=0),"",VLOOKUP(BJ27,$C:$I,$M$21,FALSE)) -> EUVE Joelle | AU27: 13 | AV27: 13 | AX27: 4 | AY27: 4 | BA27: =IF(BB27=$BJ$3,$BJ$3,IF(BB27=AV27,AU27,AU28)) -> 13 | BB27: =IF(AV27*AV28>0,$BJ$3,IF(X28="Q",AV28,IF(OR(AV28=0,X27="Q"),AV27,0))) -> 13 | BG27: =IF(BH27=$BJ$3,$BJ$3,IF(BH27=0,0,IF(BH27=BE28,BD28,BD29))) -> 4 | BH27: =IF(AH29="Q",BE29,IF(OR(BD29=0,AH28="Q"),BE28,$BJ$3)) -> 4 | BJ27: =IF(AR34="Q",BH31,IF(OR(BG31=0,AR35="Q"),BH30,$BJ$3)) -> 6 | BN27: =LARGE(OI_FFG!BH:BH,ROW()-1) -> 0 | BO27: =LARGE(OI_FFG!BI:BI,ROW()-1) -> 0
A28: 25 | D28: =IF(BO26=0,0,VLOOKUP(RIGHT(BO26,3)*1,OI_DATA!$A:$B,2,FALSE)) -> 0 | E28: 0 | I28: =IF(BN26=0,0,VLOOKUP(RIGHT(BN26,3)*1,OI_DATA!$A:$B,2,FALSE)) -> 0 | J28: 0 | M28: 29 | N28: 0 | O28: 20 | P28: 0 | AA28: 4 | AB28: GUY Olivia | AC28: Q | AF28: =IF(OR(BE28=0,BE28=$BJ$3),"",BD28) -> 4 | AG28: =IF(OR(BD28=0,BD28=$BJ$3),"",VLOOKUP(BE28,$C:$I,$M$21,FALSE)) -> GUY Olivia | AH28: Q | AQ28: =AQ9 -> Finale | AU28: 0 | AV28: 0 | AX28: 0 | AY28: 0 | BA28: =IF(BB28=$BJ$3,$BJ$3,IF(BB28=AY27,AX27,AX28)) -> 4 | BB28: =IF(AY27*AY28>0,$BJ$3,IF(S28="Q",AY28,IF(OR(AY28=0,S27="Q"),AY27,0))) -> 4 | BD28: =IF(BE28=$BJ$3,$BJ$3,IF(BE28=0,0,IF(BE28=BB28,BA28,BA27))) -> 4 | BE28: =IF(AC27="Q",BB27,IF(OR(BA27=0,AC28="Q"),BB28,IF(BA27+BA28=0,0,$BJ$3))) -> 4 | BN28: =LARGE(OI_FFG!BH:BH,ROW()-1) -> 0 | BO28: =LARGE(OI_FFG!BI:BI,ROW()-1) -> 0
A29: 26 | D29: =IF(BO27=0,0,VLOOKUP(RIGHT(BO27,3)*1,OI_DATA!$A:$B,2,FALSE)) -> 0 | E29: 0 | I29: =IF(BN27=0,0,VLOOKUP(RIGHT(BN27,3)*1,OI_DATA!$A:$B,2,FALSE)) -> 0 | J29: 0 | M29: 5 | N29: CATEL Francoise | O29: 12 | P29: BIDET Pascale | Q29: 5 | R29: CATEL Francoise | V29: 12 | W29: BIDET Pascale | AA29: 5 | AB29: CATEL Francoise | AC29: Q | AF29: =IF(OR(BE29=0,BE29=$BJ$3),"",BD29) -> 5 | AG29: =IF(OR(BD29=0,BD29=$BJ$3),"",VLOOKUP(BE29,$C:$I,$M$21,FALSE)) -> CATEL Francoise | AQ29: =AQ10 -> Rouge 13h43 | AU29: 12 | AV29: 12 | AX29: 5 | AY29: 5 | BA29: =IF(BB29=$BJ$3,$BJ$3,IF(BB29=AY29,AX29,AX30)) -> 5 | BB29: =IF(AY29*AY30>0,$BJ$3,IF(S30="Q",AY30,IF(OR(AY30=0,S29="Q"),AY29,0))) -> 5 | BD29: =IF(BE29=$BJ$3,$BJ$3,IF(BE29=0,0,IF(BE29=BB30,BA30,BA29))) -> 5 | BE29: =IF(AC30="Q",BB30,IF(OR(BA30=0,AC29="Q"),BB29,IF(BA29+BA30=0,0,$BJ$3))) -> 5 | BN29: =LARGE(OI_FFG!BH:BH,ROW()-1) -> 0 | BO29: =LARGE(OI_FFG!BI:BI,ROW()-1) -> 0
A30: 27 | D30: =IF(BO28=0,0,VLOOKUP(RIGHT(BO28,3)*1,OI_DATA!$A:$B,2,FALSE)) -> 0 | E30: 0 | I30: =IF(BN28=0,0,VLOOKUP(RIGHT(BN28,3)*1,OI_DATA!$A:$B,2,FALSE)) -> 0 | J30: 0 | M30: 28 | N30: 0 | O30: 21 | P30: 0 | AA30: 12 | AB30: BIDET Pascale | AP30: =IF(OR(BK30=0,BK30=$BJ$3),"",BK30) -> 4 | AQ30: =IF(OR(BK30=0,BK30=$BJ$3),"",VLOOKUP(BK30,$C:$I,$M$21,FALSE)) -> GUY Olivia | AU30: 0 | AV30: 0 | AX30: 0 | AY30: 0 | BA30: =IF(BB30=$BJ$3,$BJ$3,IF(BB30=AV29,AU29,AU30)) -> 12 | BB30: =IF(AV29*AV30>0,$BJ$3,IF(X30="Q",AV30,IF(OR(AV30=0,X29="Q"),AV29,0))) -> 12 | BG30: =IF(BH30=$BJ$3,$BJ$3,IF(BH30=0,0,BH30)) -> 1 | BH30: =IF(AM27="Q",BH26,IF(OR(BG27=0,AM26="Q"),BH27,$BJ$3)) -> 1 | BJ30: =IF(BK30=$BJ$3,$BJ$3,IF(BK30=0,0,IF(BK30=BH26,BG26,BG27))) -> 4 | BK30: =IF(AM27="Q",BH27,IF(OR(BG27=0,AM26="Q"),BH26,$BJ$3)) -> 4 | BN30: =LARGE(OI_FFG!BH:BH,ROW()-1) -> 0 | BO30: =LARGE(OI_FFG!BI:BI,ROW()-1) -> 0
A31: 28 | D31: =IF(BO29=0,0,VLOOKUP(RIGHT(BO29,3)*1,OI_DATA!$A:$B,2,FALSE)) -> 0 | E31: 0 | I31: =IF(BN29=0,0,VLOOKUP(RIGHT(BN29,3)*1,OI_DATA!$A:$B,2,FALSE)) -> 0 | J31: 0 | M31: 2 | N31: THORPE Jennifer | O31: 15 | P31: 0 | Q31: 2 | R31: THORPE Jennifer | AG31: =AG12 -> Rouge 9h31 | AP31: =IF(OR(BK31=0,BK31=$BJ$3),"",BK31) -> 2 | AQ31: =IF(OR(BK31=0,BK31=$BJ$3),"",VLOOKUP(BK31,$C:$I,$M$21,FALSE)) -> THORPE Jennifer | AR31: Q | AU31: 0 | AV31: 0 | AX31: 2 | AY31: 2 | BA31: =IF(BB31=$BJ$3,$BJ$3,IF(BB31=AV31,AU31,AU32)) -> 0 | BB31: =IF(AV31*AV32>0,$BJ$3,IF(X32="Q",AV32,IF(OR(AV32=0,X31="Q"),AV31,0))) -> 0 | BG31: =IF(BH31=$BJ$3,$BJ$3,IF(BH31=0,0,BH31)) -> 6 | BH31: =IF(AM35="Q",BH34,IF(OR(BG34=0,AM34="Q"),BH35,$BJ$3)) -> 6 | BJ31: =IF(BK31=$BJ$3,$BJ$3,IF(BK31=0,0,IF(BK31=BH34,BG34,BG35))) -> 2 | BK31: =IF(AM35="Q",BH35,IF(OR(BG35=0,AM34="Q"),BH34,$BJ$3)) -> 2 | BN31: =LARGE(OI_FFG!BH:BH,ROW()-1) -> 0 | BO31: =LARGE(OI_FFG!BI:BI,ROW()-1) -> 0
A32: 29 | D32: =IF(BO30=0,0,VLOOKUP(RIGHT(BO30,3)*1,OI_DATA!$A:$B,2,FALSE)) -> 0 | E32: 0 | I32: =IF(BN30=0,0,VLOOKUP(RIGHT(BN30,3)*1,OI_DATA!$A:$B,2,FALSE)) -> 0 | J32: 0 | M32: 31 | N32: 0 | O32: 18 | P32: 0 | AA32: 2 | AB32: THORPE Jennifer | AF32: =IF(OR(BE32=0,BE32=$BJ$3),"",BD32) -> 2 | AG32: =IF(OR(BD32=0,BD32=$BJ$3),"",VLOOKUP(BE32,$C:$I,$M$21,FALSE)) -> THORPE Jennifer | AH32: Q | AQ32: =AQ13 -> Places 3 & 4 | AU32: 0 | AV32: 0 | AX32: 0 | AY32: 0 | BA32: =IF(BB32=$BJ$3,$BJ$3,IF(BB32=AY31,AX31,AX32)) -> 2 | BB32: =IF(AY31*AY32>0,$BJ$3,IF(S32="Q",AY32,IF(OR(AY32=0,S31="Q"),AY31,0))) -> 2 | BD32: =IF(BE32=$BJ$3,$BJ$3,IF(BE32=0,0,IF(BE32=BB32,BA32,BA31))) -> 2 | BE32: =IF(AC31="Q",BB31,IF(OR(BA31=0,AC32="Q"),BB32,IF(BA31+BA32=0,0,$BJ$3))) -> 2 | BN32: =LARGE(OI_FFG!BH:BH,ROW()-1) -> 0 | BO32: =LARGE(OI_FFG!BI:BI,ROW()-1) -> 0
A33: 30 | D33: =IF(BO31=0,0,VLOOKUP(RIGHT(BO31,3)*1,OI_DATA!$A:$B,2,FALSE)) -> 0 | E33: 0 | I33: =IF(BN31=0,0,VLOOKUP(RIGHT(BN31,3)*1,OI_DATA!$A:$B,2,FALSE)) -> 0 | J33: 0 | M33: 7 | N33: MAHE Joelle | O33: 10 | P33: DUMAS Dominique | Q33: 7 | R33: MAHE Joelle | V33: 10 | W33: DUMAS Dominique | AA33: 7 | AB33: MAHE Joelle | AC33: Q | AF33: =IF(OR(BE33=0,BE33=$BJ$3),"",BD33) -> 7 | AG33: =IF(OR(BD33=0,BD33=$BJ$3),"",VLOOKUP(BE33,$C:$I,$M$21,FALSE)) -> MAHE Joelle | AL33: =AL14 -> Rouge 8h37 | AQ33: =AQ14 -> Rouge 13h34 | AU33: 10 | AV33: 10 | AX33: 7 | AY33: 7 | BA33: =IF(BB33=$BJ$3,$BJ$3,IF(BB33=AY33,AX33,AX34)) -> 7 | BB33: =IF(AY33*AY34>0,$BJ$3,IF(S34="Q",AY34,IF(OR(AY34=0,S33="Q"),AY33,0))) -> 7 | BD33: =IF(BE33=$BJ$3,$BJ$3,IF(BE33=0,0,IF(BE33=BB34,BA34,BA33))) -> 7 | BE33: =IF(AC34="Q",BB34,IF(OR(BA34=0,AC33="Q"),BB33,IF(BA33+BA34=0,0,$BJ$3))) -> 7 | BN33: =LARGE(OI_FFG!BH:BH,ROW()-1) -> 0 | BO33: =LARGE(OI_FFG!BI:BI,ROW()-1) -> 0
A34: 31 | D34: =IF(BO32=0,0,VLOOKUP(RIGHT(BO32,3)*1,OI_DATA!$A:$B,2,FALSE)) -> 0 | E34: 0 | I34: =IF(BN32=0,0,VLOOKUP(RIGHT(BN32,3)*1,OI_DATA!$A:$B,2,FALSE)) -> 0 | J34: 0 | M34: 26 | N34: 0 | O34: 23 | P34: 0 | AA34: 10 | AB34: DUMAS Dominique | AK34: =IF(OR(BH34=0,BH34=$BJ$3),"",BH34) -> 2 | AL34: =IF(OR(BH34=$BJ$3,BH34=0),"",VLOOKUP(BH34,$C:$I,$M$21,FALSE)) -> THORPE Jennifer | AM34: Q | AP34: =IF(OR(BH30=0,BH30=$BJ$3),"",BH30) -> 1 | AQ34: =IF(OR(BH30=0,BH30=$BJ$3),"",VLOOKUP(BH30,$C:$I,$M$21,FALSE)) -> DUBOTS Marie | AR34: Q | AU34: 0 | AV34: 0 | AX34: 0 | AY34: 0 | BA34: =IF(BB34=$BJ$3,$BJ$3,IF(BB34=AV33,AU33,AU34)) -> 10 | BB34: =IF(AV33*AV34>0,$BJ$3,IF(X34="Q",AV34,IF(OR(AV34=0,X33="Q"),AV33,0))) -> 10 | BG34: =IF(BH34=$BJ$3,$BJ$3,IF(BH34=0,0,IF(BH34=BE32,BD32,BD33))) -> 2 | BH34: =IF(AH33="Q",BE33,IF(OR(BD33=0,AH32="Q"),BE32,$BJ$3)) -> 2
A35: 32 | D35: =IF(BO33=0,0,VLOOKUP(RIGHT(BO33,3)*1,OI_DATA!$A:$B,2,FALSE)) -> 0 | E35: 0 | I35: =IF(BN33=0,0,VLOOKUP(RIGHT(BN33,3)*1,OI_DATA!$A:$B,2,FALSE)) -> 0 | J35: 0 | M35: 3 | N35: GALLAIS Catherine | O35: 14 | P35: PLANQUE Beatrice | Q35: 3 | R35: GALLAIS Catherine | V35: 14 | W35: PLANQUE Beatrice | AA35: 14 | AB35: PLANQUE Beatrice | AG35: =AG16 -> Rouge 9h40 | AK35: =IF(OR(BH35=0,BH35=$BJ$3),"",BH35) -> 6 | AL35: =IF(OR(BH35=$BJ$3,BH35=0),"",VLOOKUP(BH35,$C:$I,$M$21,FALSE)) -> EUVE Joelle | AP35: =IF(OR(BH31=0,BH31=$BJ$3),"",BH31) -> 6 | AQ35: =IF(OR(BH31=0,BH31=$BJ$3),"",VLOOKUP(BH31,$C:$I,$M$21,FALSE)) -> EUVE Joelle | AU35: 14 | AV35: 14 | AX35: 3 | AY35: 3 | BA35: =IF(BB35=$BJ$3,$BJ$3,IF(BB35=AV35,AU35,AU36)) -> 14 | BB35: =IF(AV35*AV36>0,$BJ$3,IF(X36="Q",AV36,IF(OR(AV36=0,X35="Q"),AV35,0))) -> 14 | BG35: =IF(BH35=$BJ$3,$BJ$3,IF(BH35=0,0,IF(BH35=BE36,BD36,BD37))) -> 6 | BH35: =IF(AH37="Q",BE37,IF(OR(BD37=0,AH36="Q"),BE36,$BJ$3)) -> 6
M36: 30 | N36: 0 | O36: 19 | P36: 0 | AA36: 3 | AB36: GALLAIS Catherine | AC36: Q | AF36: =IF(OR(BE36=0,BE36=$BJ$3),"",BD36) -> 3 | AG36: =IF(OR(BD36=0,BD36=$BJ$3),"",VLOOKUP(BE36,$C:$I,$M$21,FALSE)) -> GALLAIS Catherine | AU36: 0 | AV36: 0 | AX36: 0 | AY36: 0 | BA36: =IF(BB36=$BJ$3,$BJ$3,IF(BB36=AY35,AX35,AX36)) -> 3 | BB36: =IF(AY35*AY36>0,$BJ$3,IF(S36="Q",AY36,IF(OR(AY36=0,S35="Q"),AY35,0))) -> 3 | BD36: =IF(BE36=$BJ$3,$BJ$3,IF(BE36=0,0,IF(BE36=BB36,BA36,BA35))) -> 3 | BE36: =IF(AC35="Q",BB35,IF(OR(BA35=0,AC36="Q"),BB36,IF(BA35+BA36=0,0,$BJ$3))) -> 3
D37: participants | E37: =COUNTIF(E4:E35,">0") -> 21 | I37: participantes | J37: =COUNTIF(J4:J35,">0") -> 14 | M37: 6 | N37: EUVE Joelle | O37: 11 | P37: LAVODRAMA Muriel | Q37: 6 | R37: EUVE Joelle | V37: 11 | W37: LAVODRAMA Muriel | AA37: 6 | AB37: EUVE Joelle | AC37: Q | AF37: =IF(OR(BE37=0,BE37=$BJ$3),"",BD37) -> 6 | AG37: =IF(OR(BD37=0,BD37=$BJ$3),"",VLOOKUP(BE37,$C:$I,$M$21,FALSE)) -> EUVE Joelle | AH37: Q | AU37: 11 | AV37: 11 | AX37: 6 | AY37: 6 | BA37: =IF(BB37=$BJ$3,$BJ$3,IF(BB37=AY37,AX37,AX38)) -> 6 | BB37: =IF(AY37*AY38>0,$BJ$3,IF(S38="Q",AY38,IF(OR(AY38=0,S37="Q"),AY37,0))) -> 6 | BD37: =IF(BE37=$BJ$3,$BJ$3,IF(BE37=0,0,IF(BE37=BB38,BA38,BA37))) -> 6 | BE37: =IF(AC38="Q",BB38,IF(OR(BA38=0,AC37="Q"),BB37,IF(BA37+BA38=0,0,$BJ$3))) -> 6
M38: 27 | N38: 0 | O38: 22 | P38: 0 | AA38: 11 | AB38: LAVODRAMA Muriel | AU38: 0 | AV38: 0 | AX38: 0 | AY38: 0 | BA38: =IF(BB38=$BJ$3,$BJ$3,IF(BB38=AV37,AU37,AU38)) -> 11 | BB38: =IF(AV37*AV38>0,$BJ$3,IF(X38="Q",AV38,IF(OR(AV38=0,X37="Q"),AV37,0))) -> 11
D39: Simples et Doubles Open
I40: Simple Open | J40: 1 | K40: 2 | M40: 3 & 4
E41: Participants | F41: =J37+E37 -> 35 | I41: Hommes | J41: 150 | K41: 75 | M41: 25 | AQ41: statistiques 2019 | AS41: 1 | AT41: 2 | AU41: 3 | AV41: 4 | AW41: 5 | AX41: 6
E42: DJ | F42: 12 | I42: Dames | J42: 150 | K42: 75 | M42: =M41 -> 25 | AS42: =COUNTIF($AT$43:$AT$117,AS41) -> 11 | AT42: 12 | AU42: 10 | AV42: 1 | AW42: 0 | AX42: 1
E43: recettes | F43: =F41*F42 -> 420 | I43: dépenses | J43: =SUM(J41:K42)+2*SUM(M41:M42) -> 550 | AQ43: CATEL Francoise | AR43: =COUNTIF(AQ43:AQ117,AQ43) -> 2 | AS43: =COUNTIF($AQ$43:AQ43,AQ43) -> 1 | AT43: =IF(AS43=1,AR43,0) -> 2
E44: Abondement AS | F44: =J43-F43 -> 130 | AQ44: DENUZIERE Sophie | AR44: =COUNTIF(AQ44:AQ117,AQ44) -> 2 | AS44: =COUNTIF($AQ$43:AQ44,AQ44) -> 1 | AT44: 2
AQ45: EUVE Joelle | AR45: =COUNTIF(AQ45:AQ117,AQ45) -> 2 | AS45: =COUNTIF($AQ$43:AQ45,AQ45) -> 1 | AT45: 2
I46: Double Open | J46: 1 | K46: 2 | AQ46: GALLAIS Catherine | AR46: =COUNTIF(AQ46:AQ117,AQ46) -> 3 | AS46: =COUNTIF($AQ$43:AQ46,AQ46) -> 1 | AT46: 3
E47: =E41 -> Participants | F47: =DOUBLES_WE!H35+DOUBLES_WE!R35 -> 28 | I47: Hommes x2 | J47: 75 | K47: 25 | AQ47: GUY Olivia | AR47: =COUNTIF(AQ47:AQ117,AQ47) -> 3 | AS47: =COUNTIF($AQ$43:AQ47,AQ47) -> 1 | AT47: 3
E48: =E42 -> DJ | F48: 10 | I48: Dames x2 | J48: =J47 -> 75 | K48: =K47 -> 25 | AQ48: PLANQUE Beatrice | AR48: =COUNTIF(AQ48:AQ117,AQ48) -> 2 | AS48: =COUNTIF($AQ$43:AQ48,AQ48) -> 1 | AT48: 2
E49: =E43 -> recettes | F49: =F47*F48 -> 280 | I49: dépenses | J49: =SUM(J47:K48)*2 -> 400 | AQ49: CHARRIERE J-Marie | AR49: =COUNTIF(AQ49:AQ117,AQ49) -> 3 | AS49: =COUNTIF($AQ$43:AQ49,AQ49) -> 1 | AT49: 3
E50: =E44 -> Abondement AS | F50: =J49-F49 -> 120 | AQ50: DEBERQUE Daniel | AR50: =COUNTIF(AQ50:AQ117,AQ50) -> 6 | AS50: =COUNTIF($AQ$43:AQ50,AQ50) -> 1 | AT50: 6
AQ51: DEHEDIN Pascal | AR51: =COUNTIF(AQ51:AQ117,AQ51) -> 3 | AS51: =COUNTIF($AQ$43:AQ51,AQ51) -> 1 | AT51: 3
E52: Abondement AS total | F52: =F50+F44 -> 250 | AQ52: FEUILLADE Mathieu | AR52: =COUNTIF(AQ52:AQ117,AQ52) -> 2 | AS52: =COUNTIF($AQ$43:AQ52,AQ52) -> 1 | AT52: 2
AQ53: JUPPIN Bruno | AR53: =COUNTIF(AQ53:AQ117,AQ53) -> 2 | AS53: =COUNTIF($AQ$43:AQ53,AQ53) -> 1 | AT53: 2
AQ54: LESTOILLE Thierry | AR54: =COUNTIF(AQ54:AQ117,AQ54) -> 3 | AS54: =COUNTIF($AQ$43:AQ54,AQ54) -> 1 | AT54: 3
B55: Nom | AQ55: NOEL Gabin | AR55: =COUNTIF(AQ55:AQ117,AQ55) -> 3 | AS55: =COUNTIF($AQ$43:AQ55,AQ55) -> 1 | AT55: 3
A56: 12 | B56: ABBADIE Didier | AQ56: NORRIS Alain | AR56: =COUNTIF(AQ56:AQ117,AQ56) -> 3 | AS56: =COUNTIF($AQ$43:AQ56,AQ56) -> 1 | AT56: 3
A57: Sc | B57: ARNOULT F Regis | AQ57: VACHER J-Pierre | AR57: =COUNTIF(AQ57:AQ117,AQ57) -> 1 | AS57: =COUNTIF($AQ$43:AQ57,AQ57) -> 1 | AT57: 1
A58: 12 | B58: BARBIER Olivier | AQ58: BONNY Gurvann | AR58: =COUNTIF(AQ58:AQ117,AQ58) -> 1 | AS58: =COUNTIF($AQ$43:AQ58,AQ58) -> 1 | AT58: 1
A59: 12 | B59: BIDET Pascale | AQ59: BOULLE Serge | AR59: =COUNTIF(AQ59:AQ117,AQ59) -> 1 | AS59: =COUNTIF($AQ$43:AQ59,AQ59) -> 1 | AT59: 1
A60: 12 | B60: BIDET Sylvain | AQ60: DEBERQUE Daniel | AR60: =COUNTIF(AQ60:AQ117,AQ60) -> 5 | AS60: =COUNTIF($AQ$43:AQ60,AQ60) -> 2 | AT60: 0
A61: 12 | B61: BONNY Gurvann | AQ61: DEHEDIN Pascal | AR61: =COUNTIF(AQ61:AQ117,AQ61) -> 2 | AS61: =COUNTIF($AQ$43:AQ61,AQ61) -> 2 | AT61: 0
AQ62: LEMAITRE Joel | AR62: =COUNTIF(AQ62:AQ117,AQ62) -> 3 | AS62: =COUNTIF($AQ$43:AQ62,AQ62) -> 1 | AT62: 3
A63: 12 | B63: BOULLE Brigitte | AQ63: LESTOILLE Thierry | AR63: =COUNTIF(AQ63:AQ117,AQ63) -> 2 | AS63: =COUNTIF($AQ$43:AQ63,AQ63) -> 2 | AT63: 0
A64: 12 | B64: BOULLE Serge | AQ64: LOPEZ Victor | AR64: =COUNTIF(AQ64:AQ117,AQ64) -> 1 | AS64: =COUNTIF($AQ$43:AQ64,AQ64) -> 1 | AT64: 1
A65: 12 | B65: CATEL Francoise | AQ65: NORRIS Alain | AR65: =COUNTIF(AQ65:AQ117,AQ65) -> 2 | AS65: =COUNTIF($AQ$43:AQ65,AQ65) -> 2 | AT65: 0
A66: 12 | B66: CAVAILLLE Julien | AQ66: RIEUPEYROUX Patrice | AR66: =COUNTIF(AQ66:AQ117,AQ66) -> 1 | AS66: =COUNTIF($AQ$43:AQ66,AQ66) -> 1 | AT66: 1
A67: 12 | B67: CHARRIERE Jean Marie | AQ67: BIDET Pascale | AR67: =COUNTIF(AQ67:AQ117,AQ67) -> 3 | AS67: =COUNTIF($AQ$43:AQ67,AQ67) -> 1 | AT67: 3
A68: 12 | B68: CHAUVIN David | AQ68: BOULLE Brigitte | AR68: =COUNTIF(AQ68:AQ117,AQ68) -> 1 | AS68: =COUNTIF($AQ$43:AQ68,AQ68) -> 1 | AT68: 1
A69: 12 | B69: CHAUVIN Skaubrine | AQ69: CATEL Francoise | AR69: =COUNTIF(AQ69:AQ117,AQ69) -> 1 | AS69: =COUNTIF($AQ$43:AQ69,AQ69) -> 2 | AT69: 0
A70: 12 | B70: DEBERQUE Daniel | AQ70: DUBOTS Marie | AR70: =COUNTIF(AQ70:AQ117,AQ70) -> 2 | AS70: =COUNTIF($AQ$43:AQ70,AQ70) -> 1 | AT70: 2
A71: 12 | B71: DEHEDIN Pascal | AQ71: GALLAIS Catherine | AR71: =COUNTIF(AQ71:AQ117,AQ71) -> 2 | AS71: =COUNTIF($AQ$43:AQ71,AQ71) -> 2 | AT71: 0
A72: 12 | B72: DENUZIERE Sophie | AQ72: GUY Olivia | AR72: =COUNTIF(AQ72:AQ117,AQ72) -> 2 | AS72: =COUNTIF($AQ$43:AQ72,AQ72) -> 2 | AT72: 0
A73: 12 | B73: DUBOTS Marie | AQ73: LAVODRAMA Muriel | AR73: =COUNTIF(AQ73:AQ117,AQ73) -> 2 | AS73: =COUNTIF($AQ$43:AQ73,AQ73) -> 1 | AT73: 2
A74: 12 | B74: DUMAS Dominique | AQ74: PLANQUE Beatrice | AR74: =COUNTIF(AQ74:AQ117,AQ74) -> 1 | AS74: =COUNTIF($AQ$43:AQ74,AQ74) -> 2 | AT74: 0
A75: ok | B75: EUVE Joëlle | AQ75: THORPE Jennifer | AR75: =COUNTIF(AQ75:AQ117,AQ75) -> 2 | AS75: =COUNTIF($AQ$43:AQ75,AQ75) -> 1 | AT75: =IF(AS75=1,AR75,0) -> 2
A76: 12 | B76: FEUILLADE MATHIEU | AQ76: ABBADIE Didier | AR76: =COUNTIF(AQ76:AQ117,AQ76) -> 3 | AS76: =COUNTIF($AQ$43:AQ76,AQ76) -> 1 | AT76: 3
A77: 12 | B77: GALLAIS Catherine | AQ77: DEBERQUE Daniel | AR77: =COUNTIF(AQ77:AQ117,AQ77) -> 4 | AS77: =COUNTIF($AQ$43:AQ77,AQ77) -> 3 | AT77: 0
A78: 12 | B78: GENIT Philippe | AQ78: DEHEDIN Pascal | AR78: =COUNTIF(AQ78:AQ117,AQ78) -> 1 | AS78: =COUNTIF($AQ$43:AQ78,AQ78) -> 3 | AT78: 0
A79: ok | B79: GINOCCHI Francois | AQ79: FEUILLADE Mathieu | AR79: =COUNTIF(AQ79:AQ117,AQ79) -> 1 | AS79: =COUNTIF($AQ$43:AQ79,AQ79) -> 2 | AT79: 0
A80: 12 | B80: GUY Olivia | AQ80: GENIT Philippe | AR80: =COUNTIF(AQ80:AQ117,AQ80) -> 4 | AS80: =COUNTIF($AQ$43:AQ80,AQ80) -> 1 | AT80: 4
AQ81: LESTOILLE Thierry | AR81: =COUNTIF(AQ81:AQ117,AQ81) -> 1 | AS81: =COUNTIF($AQ$43:AQ81,AQ81) -> 3 | AT81: 0
A82: 12 | B82: JUPPIN Bruno | AQ82: NOEL Gabin | AR82: =COUNTIF(AQ82:AQ117,AQ82) -> 2 | AS82: =COUNTIF($AQ$43:AQ82,AQ82) -> 2 | AT82: 0
A83: 12 | B83: LAVODRAMA Muriel | AQ83: RIOTTE Michel | AR83: =COUNTIF(AQ83:AQ117,AQ83) -> 2 | AS83: =COUNTIF($AQ$43:AQ83,AQ83) -> 1 | AT83: 2
A84: 12 | B84: LEMAITRE Joel | AQ84: EUVE Joelle | AR84: =COUNTIF(AQ84:AQ117,AQ84) -> 1 | AS84: =COUNTIF($AQ$43:AQ84,AQ84) -> 2 | AT84: 0
A85: 12 | B85: LESTOILLE Thierry | AQ85: GALLAIS Catherine | AR85: =COUNTIF(AQ85:AQ117,AQ85) -> 1 | AS85: =COUNTIF($AQ$43:AQ85,AQ85) -> 3 | AT85: 0
A86: 12 | B86: LOPEZ Victor | AQ86: ABBADIE Didier | AR86: =COUNTIF(AQ86:AQ117,AQ86) -> 2 | AS86: =COUNTIF($AQ$43:AQ86,AQ86) -> 2 | AT86: 0
AQ87: CHARRIERE J-Marie | AR87: =COUNTIF(AQ87:AQ117,AQ87) -> 2 | AS87: =COUNTIF($AQ$43:AQ87,AQ87) -> 2 | AT87: 0
A88: ok | B88: MAHE Joëlle | AQ88: DEBERQUE Daniel | AR88: =COUNTIF(AQ88:AQ117,AQ88) -> 3 | AS88: =COUNTIF($AQ$43:AQ88,AQ88) -> 4 | AT88: 0
AQ89: GENIT Philippe | AR89: =COUNTIF(AQ89:AQ117,AQ89) -> 3 | AS89: =COUNTIF($AQ$43:AQ89,AQ89) -> 2 | AT89: 0
A90: 12 | B90: NOEL Gabin | AQ90: JUPPIN Bruno | AR90: =COUNTIF(AQ90:AQ117,AQ90) -> 1 | AS90: =COUNTIF($AQ$43:AQ90,AQ90) -> 2 | AT90: 0
A91: 12 | B91: NORRIS Alain | AQ91: BIDET Pascale | AR91: =COUNTIF(AQ91:AQ117,AQ91) -> 2 | AS91: =COUNTIF($AQ$43:AQ91,AQ91) -> 2 | AT91: 0
A92: 12 | B92: PLANQUE Béatrice | AQ92: DENUZIERE Sophie | AR92: =COUNTIF(AQ92:AQ117,AQ92) -> 1 | AS92: =COUNTIF($AQ$43:AQ92,AQ92) -> 2 | AT92: 0
A93: 12 | B93: RIEUPEYROUX Patrice | AQ93: DUBOTS Marie | AR93: =COUNTIF(AQ93:AQ117,AQ93) -> 1 | AS93: =COUNTIF($AQ$43:AQ93,AQ93) -> 2 | AT93: 0
A94: ok | B94: RIOTTE Michel | AQ94: GUY Olivia | AR94: =COUNTIF(AQ94:AQ117,AQ94) -> 1 | AS94: =COUNTIF($AQ$43:AQ94,AQ94) -> 3 | AT94: 0
AQ95: LAVODRAMA Muriel | AR95: =COUNTIF(AQ95:AQ117,AQ95) -> 1 | AS95: =COUNTIF($AQ$43:AQ95,AQ95) -> 2 | AT95: 0
A96: 12 | B96: THORPE Jennifer | AQ96: MAHE Joelle | AR96: =COUNTIF(AQ96:AQ117,AQ96) -> 1 | AS96: =COUNTIF($AQ$43:AQ96,AQ96) -> 1 | AT96: 1
A97: 12 | B97: VACHER Jean Pierre | AQ97: THORPE Jennifer | AR97: =COUNTIF(AQ97:AQ117,AQ97) -> 1 | AS97: =COUNTIF($AQ$43:AQ97,AQ97) -> 2 | AT97: 0
AQ98: BIDET Sylvain | AR98: =COUNTIF(AQ98:AQ117,AQ98) -> 2 | AS98: =COUNTIF($AQ$43:AQ98,AQ98) -> 1 | AT98: 2
AQ99: CHARRIERE J-Marie | AR99: =COUNTIF(AQ99:AQ117,AQ99) -> 1 | AS99: =COUNTIF($AQ$43:AQ99,AQ99) -> 3 | AT99: 0
AQ100: CHAUVIN David | AR100: =COUNTIF(AQ100:AQ117,AQ100) -> 2 | AS100: =COUNTIF($AQ$43:AQ100,AQ100) -> 1 | AT100: 2
AQ101: DEBERQUE Daniel | AR101: =COUNTIF(AQ101:AQ117,AQ101) -> 2 | AS101: =COUNTIF($AQ$43:AQ101,AQ101) -> 5 | AT101: 0
AQ102: GENIT Philippe | AR102: =COUNTIF(AQ102:AQ117,AQ102) -> 2 | AS102: =COUNTIF($AQ$43:AQ102,AQ102) -> 3 | AT102: 0
AQ103: LEMAITRE Joel | AR103: =COUNTIF(AQ103:AQ117,AQ103) -> 2 | AS103: =COUNTIF($AQ$43:AQ103,AQ103) -> 2 | AT103: 0
AQ104: NOEL Gabin | AR104: =COUNTIF(AQ104:AQ117,AQ104) -> 1 | AS104: =COUNTIF($AQ$43:AQ104,AQ104) -> 3 | AT104: 0
AQ105: NORRIS Alain | AR105: =COUNTIF(AQ105:AQ117,AQ105) -> 1 | AS105: =COUNTIF($AQ$43:AQ105,AQ105) -> 3 | AT105: 0
AQ106: RIOTTE Michel | AR106: =COUNTIF(AQ106:AQ117,AQ106) -> 1 | AS106: =COUNTIF($AQ$43:AQ106,AQ106) -> 2 | AT106: 0
AQ107: BIDET Pascale | AR107: =COUNTIF(AQ107:AQ117,AQ107) -> 1 | AS107: =COUNTIF($AQ$43:AQ107,AQ107) -> 3 | AT107: =IF(AS107=1,AR107,0) -> 0
AQ108: ABBADIE Didier | AR108: =COUNTIF(AQ108:AQ117,AQ108) -> 1 | AS108: =COUNTIF($AQ$43:AQ108,AQ108) -> 3 | AT108: 0
AQ109: BARBIER Olivier | AR109: =COUNTIF(AQ109:AQ117,AQ109) -> 1 | AS109: =COUNTIF($AQ$43:AQ109,AQ109) -> 1 | AT109: 1
AQ110: BIDET Sylvain | AR110: =COUNTIF(AQ110:AQ117,AQ110) -> 1 | AS110: =COUNTIF($AQ$43:AQ110,AQ110) -> 2 | AT110: 0
AQ111: CAVAILLE Julien | AR111: =COUNTIF(AQ111:AQ117,AQ111) -> 1 | AS111: =COUNTIF($AQ$43:AQ111,AQ111) -> 1 | AT111: 1
AQ112: CHAUVIN David | AR112: =COUNTIF(AQ112:AQ117,AQ112) -> 1 | AS112: =COUNTIF($AQ$43:AQ112,AQ112) -> 2 | AT112: 0
AQ113: DEBERQUE Daniel | AR113: =COUNTIF(AQ113:AQ117,AQ113) -> 1 | AS113: =COUNTIF($AQ$43:AQ113,AQ113) -> 6 | AT113: 0
AQ114: GENIT Philippe | AR114: =COUNTIF(AQ114:AQ117,AQ114) -> 1 | AS114: =COUNTIF($AQ$43:AQ114,AQ114) -> 4 | AT114: 0
AQ115: LEMAITRE Joel | AR115: =COUNTIF(AQ115:AQ117,AQ115) -> 1 | AS115: =COUNTIF($AQ$43:AQ115,AQ115) -> 3 | AT115: 0
AQ116: CHAUVIN Skaubrine | AR116: =COUNTIF(AQ116:AQ117,AQ116) -> 1 | AS116: =COUNTIF($AQ$43:AQ116,AQ116) -> 1 | AT116: 1
AQ117: DUMAS Dominique | AR117: =COUNTIF(AQ117:AQ117,AQ117) -> 1 | AS117: =COUNTIF($AQ$43:AQ117,AQ117) -> 1 | AT117: 1

Sheet DOUBLES_WE
A1: H1 | B1: idx | C1: H2 | D1: Idx | E1: H | F1: Homme 1 | G1: figé | H1: Homme 2 | I1: figé | K1: D1 | L1: idx | M1: D2 | N1: idx | O1: D | P1: Dame 1 | Q1: figé | R1: Dame 2 | S1: figé | U1: D1 | V1: idx | W1: H2 | X1: idx | Y1: M | Z1: Dame | AA1: figé | AB1: Homme | AC1: figé | AE1: Parcours | AG1: B | AK1: Hommes | AZ1: 6 équipes et moins | BK1: =COUNTIF(BK3:BK18,">0") -> 6 | BL1: H | BM1: FALSE | BN1: J | BU1: Hcp1 | BV1: Hcp2 | BW1: Hcp Eqp | BX1: =BL1 -> H | BY1: ordre | BZ1: clsst | CA1: Eqp | CB1: =AG1 -> B | CC1: Hcp1 | CD1: Hcp2 | CE1: Hcp Eqp | CF1: D | CG1: Ordre | CH1: clsst | CI1: Eqp | CJ1: =AO1 -> 0 | CK1: clsst | CL1: Eqp
A2: vacj-p | B2: =IF(A2="",0,VLOOKUP(A2,'RMS-DATA'!$B:$F,5,FALSE)) -> 20.3 | C2: debdan | D2: =IF(C2="",0,VLOOKUP(C2,'RMS-DATA'!$B:$F,5,FALSE)) -> 18.5 | E2: 101 | F2: =IF(A2="","",VLOOKUP(A2,'RMS-DATA'!$B:$F,3,FALSE)) -> VACHER Jean Pierre | G2: 18.5 | H2: =IF(C2="","",VLOOKUP(C2,'RMS-DATA'!$B:$F,3,FALSE)) -> DEBERQUE Daniel | I2: 20.5 | K2: roslis | L2: =IF(K2="",0,VLOOKUP(K2,'RMS-DATA'!$B:$F,5,FALSE)) -> 12.3 | M2: dumdom | N2: =IF(M2="",0,VLOOKUP(M2,'RMS-DATA'!$B:$F,5,FALSE)) -> 16.9 | O2: 201 | P2: =IF(K2="","",VLOOKUP(K2,'RMS-DATA'!$B:$F,3,FALSE)) -> ROSSETTO Lisa | Q2: 11 | R2: =IF(M2="","",VLOOKUP(M2,'RMS-DATA'!$B:$F,3,FALSE)) -> DUMAS Dominique | S2: 15.1 | V2: =IF(U2="",0,VLOOKUP(U2,'RMS-DATA'!$B:$F,5,FALSE)) -> 0 | X2: =IF(W2="",0,VLOOKUP(W2,'RMS-DATA'!$B:$F,5,FALSE)) -> 0 | Y2: 301 | Z2: =IF(U2="","",VLOOKUP(U2,'RMS-DATA'!$B:$F,3,FALSE)) ->  | AA2: 0 | AB2: =IF(W2="","",VLOOKUP(W2,'RMS-DATA'!$B:$F,3,FALSE)) ->  | AC2: 0 | AF2: Eqp | AG2: =BL1 -> H | AH2: Adh1 | AI2: Adh2 | AM2: 1er TOUR | BC2: =BG2 -> Championnats Open 2019 | BG2: =CONCATENATE("Championnats Open ",'DATA-WE'!A2) -> Championnats Open 2019 | BK2: 16 | BL2: =BK2/2 -> 8 | BM2: 6 | BN2: =BL2/2 -> 4 | BP2: NQ | BU2: =IF(B2=0,0,ROUND(G2*(INDEX('DATA-WE'!$AH$2:$AO$6,SEARCH($BN$1,'DATA-WE'!$AG$7),SEARCH(CONCATENATE(CB$1,$BL$1),'DATA-WE'!$AF$7))/113)+(INDEX('DATA-WE'!$AH$2:$AO$6,SEARCH($BN$1,'DATA-WE'!$AG$7),1+SEARCH(CONCATENATE(CB$1,$BL$1),'DATA-WE'!$AF$7))-72),0)) -> 17 | BV2: =IF(D2=0,0,ROUND(I2*(INDEX('DATA-WE'!$AH$2:$AO$6,SEARCH($BN$1,'DATA-WE'!$AG$7),SEARCH(CONCATENATE(CB$1,$BL$1),'DATA-WE'!$AF$7))/113)+(INDEX('DATA-WE'!$AH$2:$AO$6,SEARCH($BN$1,'DATA-WE'!$AG$7),1+SEARCH(CONCATENATE(CB$1,$BL$1),'DATA-WE'!$AF$7))-72),0)) -> 19 | BW2: =IF(OR(BU2=0,BV2=0),0,(BU2+BV2)/2) -> 18 | BX2: =IF(BW2=0,0,ROUND((36-BW2)*10,0)*1000+E2) -> 180101 | BY2: =LARGE(BX:BX,ROW()-1) -> 280104 | BZ2: 1 | CA2: =IF(BY2=0,0,RIGHT(BY2,3)*1) -> 104 | CC2: =IF(L2=0,0,ROUND(Q2*(INDEX('DATA-WE'!$AH$2:$AO$6,SEARCH($BN$1,'DATA-WE'!$AG$7),SEARCH(CONCATENATE(CB$1,$BL$1),'DATA-WE'!$AF$7))/113)+(INDEX('DATA-WE'!$AH$2:$AO$6,SEARCH($BN$1,'DATA-WE'!$AG$7),1+SEARCH(CONCATENATE(CB$1,$BL$1),'DATA-WE'!$AF$7))-72),0)) -> 9 | CD2: =IF(N2=0,0,ROUND(S2*(INDEX('DATA-WE'!$AH$2:$AO$6,SEARCH($BN$1,'DATA-WE'!$AG$7),SEARCH(CONCATENATE(CB$1,$BL$1),'DATA-WE'!$AF$7))/113)+(INDEX('DATA-WE'!$AH$2:$AO$6,SEARCH($BN$1,'DATA-WE'!$AG$7),1+SEARCH(CONCATENATE(CB$1,$BL$1),'DATA-WE'!$AF$7))-72),0)) -> 14 | CE2: =IF(OR(CC2=0,CD2=0),0,(CC2+CD2)/2) -> 11.5 | CF2: =IF(CE2=0,0,ROUND((36-CE2)*10,0)*1000+O2) -> 245201 | CG2: =LARGE(CF:CF,ROW()-1) -> 265205 | CH2: 1 | CI2: =IF(CG2=0,0,RIGHT(CG2,3)*1) -> 205 | CK2: 1 | CL2: =IF(Z2=0,0,Y2) -> 301
A3: bongur | B3: =IF(A3="",0,VLOOKUP(A3,'RMS-DATA'!$B:$F,5,FALSE)) -> 6.3 | C3: feumat | D3: =IF(C3="",0,VLOOKUP(C3,'RMS-DATA'!$B:$F,5,FALSE)) -> 11.6 | E3: 102 | F3: =IF(A3="","",VLOOKUP(A3,'RMS-DATA'!$B:$F,3,FALSE)) -> BONNY Gurvann | G3: 9 | H3: =IF(C3="","",VLOOKUP(C3,'RMS-DATA'!$B:$F,3,FALSE)) -> FEUILLADE Mathieu | I3: 11.1 | K3: gobpas | L3: =IF(K3="",0,VLOOKUP(K3,'RMS-DATA'!$B:$F,5,FALSE)) -> 17.2 | M3: lorbea | N3: =IF(M3="",0,VLOOKUP(M3,'RMS-DATA'!$B:$F,5,FALSE)) -> 17.2 | O3: 202 | P3: =IF(K3="","",VLOOKUP(K3,'RMS-DATA'!$B:$F,3,FALSE)) -> GOBERT Pascale | Q3: 15.9 | R3: =IF(M3="","",VLOOKUP(M3,'RMS-DATA'!$B:$F,3,FALSE)) -> LORIOT Beatrice | S3: 17.2 | V3: =IF(U3="",0,VLOOKUP(U3,'RMS-DATA'!$B:$F,5,FALSE)) -> 0 | X3: =IF(W3="",0,VLOOKUP(W3,'RMS-DATA'!$B:$F,5,FALSE)) -> 0 | Y3: =Y2+1 -> 302 | Z3: =IF(U3="","",VLOOKUP(U3,'RMS-DATA'!$B:$F,3,FALSE)) ->  | AA3: 0 | AB3: =IF(W3="","",VLOOKUP(W3,'RMS-DATA'!$B:$F,3,FALSE)) ->  | AC3: 0 | AF3: =VLOOKUP(AG3,BZ:CA,2,FALSE) -> 0 | AG3: 16 | AH3: =IF(AF3=0,"",VLOOKUP(AF3,E:H,2,FALSE)) ->  | AI3: =IF(AF3=0,"",VLOOKUP(AF3,E:H,4,FALSE)) ->  | AL3: =IF(BK3=0,"",VLOOKUP(BK3,$AF:$AI,2,FALSE)) ->  | AM3: =IF(OR(BK3=0,BK4=0),"",VLOOKUP(BK3,$AF:$AI,3,FALSE)) ->  | AN3: =IF(OR(BK3=0,BK4=0),"",VLOOKUP(BK3,$AF:$AI,4,FALSE)) ->  | AS3: ="22/09" -> 22/09 | AT3: 1/4 FINALE | AY3: A | AZ3: 1er TOUR | BA3: Poule A | BE3: =AK1 -> Hommes | BG3: =CONCATENATE("Parcours ",IF(AG1="B","Bleu","Rouge")) -> Parcours Bleu | BK3: =IF(AH3="",0,AF3) -> 0 | BM3: =AND(BM1,BK1<7) -> FALSE | BO3: 1 | BP3: =IF(OR(BH11="Q",BH11="N"),BN11,IF(OR(BN11=0,BH10="Q",BH10="N"),BN10,0)) -> 0 | BU3: =IF(B3=0,0,ROUND(G3*(INDEX('DATA-WE'!$AH$2:$AO$6,SEARCH($BN$1,'DATA-WE'!$AG$7),SEARCH(CONCATENATE(CB$1,$BL$1),'DATA-WE'!$AF$7))/113)+(INDEX('DATA-WE'!$AH$2:$AO$6,SEARCH($BN$1,'DATA-WE'!$AG$7),1+SEARCH(CONCATENATE(CB$1,$BL$1),'DATA-WE'!$AF$7))-72),0)) -> 7 | BV3: =IF(D3=0,0,ROUND(I3*(INDEX('DATA-WE'!$AH$2:$AO$6,SEARCH($BN$1,'DATA-WE'!$AG$7),SEARCH(CONCATENATE(CB$1,$BL$1),'DATA-WE'!$AF$7))/113)+(INDEX('DATA-WE'!$AH$2:$AO$6,SEARCH($BN$1,'DATA-WE'!$AG$7),1+SEARCH(CONCATENATE(CB$1,$BL$1),'DATA-WE'!$AF$7))-72),0)) -> 9 | BW3: =IF(OR(BU3=0,BV3=0),0,(BU3+BV3)/2) -> 8 | BX3: 280102 | BY3: 280102 | BZ3: 2 | CA3: =IF(BY3=0,0,RIGHT(BY3,3)*1) -> 102 | CC3: =IF(L3=0,0,ROUND(Q3*(INDEX('DATA-WE'!$AH$2:$AO$6,SEARCH($BN$1,'DATA-WE'!$AG$7),SEARCH(CONCATENATE(CB$1,$BL$1),'DATA-WE'!$AF$7))/113)+(INDEX('DATA-WE'!$AH$2:$AO$6,SEARCH($BN$1,'DATA-WE'!$AG$7),1+SEARCH(CONCATENATE(CB$1,$BL$1),'DATA-WE'!$AF$7))-72),0)) -> 14 | CD3: =IF(N3=0,0,ROUND(S3*(INDEX('DATA-WE'!$AH$2:$AO$6,SEARCH($BN$1,'DATA-WE'!$AG$7),SEARCH(CONCATENATE(CB$1,$BL$1),'DATA-WE'!$AF$7))/113)+(INDEX('DATA-WE'!$AH$2:$AO$6,SEARCH($BN$1,'DATA-WE'!$AG$7),1+SEARCH(CONCATENATE(CB$1,$BL$1),'DATA-WE'!$AF$7))-72),0)) -> 16 | CE3: =IF(OR(CC3=0,CD3=0),0,(CC3+CD3)/2) -> 15 | CF3: 210202 | CG3: 260204 | CH3: 2 | CI3: =IF(CG3=0,0,RIGHT(CG3,3)*1) -> 204 | CK3: 2 | CL3: 302
A4: lemjoe | B4: =IF(A4="",0,VLOOKUP(A4,'RMS-DATA'!$B:$F,5,FALSE)) -> 10.6 | C4: ch@j-m | D4: =IF(C4="",0,VLOOKUP(C4,'RMS-DATA'!$B:$F,5,FALSE)) -> 12.7 | E4: 103 | F4: =IF(A4="","",VLOOKUP(A4,'RMS-DATA'!$B:$F,3,FALSE)) -> LEMAITRE Joel | G4: 14.4 | H4: =IF(C4="","",VLOOKUP(C4,'RMS-DATA'!$B:$F,3,FALSE)) -> CHARRIERE Jean Marie | I4: 14.7 | K4: galcat | L4: =IF(K4="",0,VLOOKUP(K4,'RMS-DATA'!$B:$F,5,FALSE)) -> 10 | M4: chaska | N4: =IF(M4="",0,VLOOKUP(M4,'RMS-DATA'!$B:$F,5,FALSE)) -> 14.9 | O4: 203 | P4: =IF(K4="","",VLOOKUP(K4,'RMS-DATA'!$B:$F,3,FALSE)) -> GALLAIS Catherine | Q4: 9.5 | R4: =IF(M4="","",VLOOKUP(M4,'RMS-DATA'!$B:$F,3,FALSE)) -> CHAUVIN Skaubrine | S4: 15.6 | V4: =IF(U4="",0,VLOOKUP(U4,'RMS-DATA'!$B:$F,5,FALSE)) -> 0 | X4: =IF(W4="",0,VLOOKUP(W4,'RMS-DATA'!$B:$F,5,FALSE)) -> 0 | Y4: =Y3+1 -> 303 | Z4: =IF(U4="","",VLOOKUP(U4,'RMS-DATA'!$B:$F,3,FALSE)) ->  | AA4: 0 | AB4: =IF(W4="","",VLOOKUP(W4,'RMS-DATA'!$B:$F,3,FALSE)) ->  | AC4: 0 | AF4: 104 | AG4: 1 | AH4: BIDET Sylvain | AI4: GINOCCHI Francois | AL4: 1 | AM4: =IF(OR(BK3=0,BK4=0),"",VLOOKUP(BK4,$AF:$AI,3,FALSE)) ->  | AN4: =IF(OR(BK3=0,BK4=0),"",VLOOKUP(BK4,$AF:$AI,4,FALSE)) ->  | AS4: =IF(OR(BL4=0,BL5=0),"",IF(BL4=99,999,VLOOKUP(BL4,$AF:$AI,2,FALSE))) ->  | AT4: =IF(BL4=0,"",IF(BL4=99,"???",VLOOKUP(BL4,$AF:$AI,3,FALSE))) -> BIDET Sylvain | AU4: =IF(BL4=0,"",IF(BL4=99,"???",VLOOKUP(BL4,$AF:$AI,4,FALSE))) -> GINOCCHI Francois | AY4: =IF(BM$3,IF(BM4=0,0,VLOOKUP(BM4,$AF:$AI,2,FALSE))) -> FALSE | AZ4: =IF(OR(BM4=0,BM5=0),"",VLOOKUP(BM4,$AF:$AI,3,FALSE)) -> BIDET Sylvain | BA4: =IF(OR(BM4=0,BM5=0),"",VLOOKUP(BM4,$AF:$AI,4,FALSE)) -> GINOCCHI Francois | BK4: 104 | BL4: =IF(BM$3,0,IF(AO3="Q",BK3,IF(OR(BK3=0,AO4="Q"),BK4,IF(BK3*BK4>0,99,0)))) -> 104 | BM4: =IF(AH4="",0,AF4) -> 104 | BO4: 2 | BP4: =IF(OR(BP3=0,BN10=99,BN11=99),0,IF(BN11=BP3,BN10,BN11)) -> 0 | BU4: =IF(B4=0,0,ROUND(G4*(INDEX('DATA-WE'!$AH$2:$AO$6,SEARCH($BN$1,'DATA-WE'!$AG$7),SEARCH(CONCATENATE(CB$1,$BL$1),'DATA-WE'!$AF$7))/113)+(INDEX('DATA-WE'!$AH$2:$AO$6,SEARCH($BN$1,'DATA-WE'!$AG$7),1+SEARCH(CONCATENATE(CB$1,$BL$1),'DATA-WE'!$AF$7))-72),0)) -> 13 | BV4: =IF(D4=0,0,ROUND(I4*(INDEX('DATA-WE'!$AH$2:$AO$6,SEARCH($BN$1,'DATA-WE'!$AG$7),SEARCH(CONCATENATE(CB$1,$BL$1),'DATA-WE'!$AF$7))/113)+(INDEX('DATA-WE'!$AH$2:$AO$6,SEARCH($BN$1,'DATA-WE'!$AG$7),1+SEARCH(CONCATENATE(CB$1,$BL$1),'DATA-WE'!$AF$7))-72),0)) -> 13 | BW4: =IF(OR(BU4=0,BV4=0),0,(BU4+BV4)/2) -> 13 | BX4: 230103 | BY4: 250105 | BZ4: 3 | CA4: 105 | CC4: =IF(L4=0,0,ROUND(Q4*(INDEX('DATA-WE'!$AH$2:$AO$6,SEARCH($BN$1,'DATA-WE'!$AG$7),SEARCH(CONCATENATE(CB$1,$BL$1),'DATA-WE'!$AF$7))/113)+(INDEX('DATA-WE'!$AH$2:$AO$6,SEARCH($BN$1,'DATA-WE'!$AG$7),1+SEARCH(CONCATENATE(CB$1,$BL$1),'DATA-WE'!$AF$7))-72),0)) -> 8 | CD4: =IF(N4=0,0,ROUND(S4*(INDEX('DATA-WE'!$AH$2:$AO$6,SEARCH($BN$1,'DATA-WE'!$AG$7),SEARCH(CONCATENATE(CB$1,$BL$1),'DATA-WE'!$AF$7))/113)+(INDEX('DATA-WE'!$AH$2:$AO$6,SEARCH($BN$1,'DATA-WE'!$AG$7),1+SEARCH(CONCATENATE(CB$1,$BL$1),'DATA-WE'!$AF$7))-72),0)) -> 14 | CE4: 11 | CF4: 250203 | CG4: 250203 | CH4: 3 | CI4: 203 | CK4: 3 | CL4: 303
A5: bidsyl | B5: =IF(A5="",0,VLOOKUP(A5,'RMS-DATA'!$B:$F,5,FALSE)) -> 6.3 | C5: ginfra | D5: =IF(C5="",0,VLOOKUP(C5,'RMS-DATA'!$B:$F,5,FALSE)) -> 12.7 | E5: 104 | F5: =IF(A5="","",VLOOKUP(A5,'RMS-DATA'!$B:$F,3,FALSE)) -> BIDET Sylvain | G5: 6.8 | H5: =IF(C5="","",VLOOKUP(C5,'RMS-DATA'!$B:$F,3,FALSE)) -> GINOCCHI Francois | I5: 12.5 | K5: euvjoe | L5: =IF(K5="",0,VLOOKUP(K5,'RMS-DATA'!$B:$F,5,FALSE)) -> 11.4 | M5: catfra | N5: =IF(M5="",0,VLOOKUP(M5,'RMS-DATA'!$B:$F,5,FALSE)) -> 14.5 | O5: 204 | P5: =IF(K5="","",VLOOKUP(K5,'RMS-DATA'!$B:$F,3,FALSE)) -> EUVE Joëlle | Q5: 8.2 | R5: =IF(M5="","",VLOOKUP(M5,'RMS-DATA'!$B:$F,3,FALSE)) -> CATEL Francoise | S5: 15.2 | V5: =IF(U5="",0,VLOOKUP(U5,'RMS-DATA'!$B:$F,5,FALSE)) -> 0 | X5: =IF(W5="",0,VLOOKUP(W5,'RMS-DATA'!$B:$F,5,FALSE)) -> 0 | Y5: 304 | Z5: =IF(U5="","",VLOOKUP(U5,'RMS-DATA'!$B:$F,3,FALSE)) ->  | AA5: 0 | AB5: =IF(W5="","",VLOOKUP(W5,'RMS-DATA'!$B:$F,3,FALSE)) ->  | AC5: 0 | AF5: 0 | AG5: 8 | AM5: =IF(OR(BK5=0,BK6=0),"",VLOOKUP(BK5,$AF:$AI,3,FALSE)) ->  | AN5: =IF(OR(BK5=0,BK6=0),"",VLOOKUP(BK5,$AF:$AI,4,FALSE)) ->  | AS5: =IF(BL5=0,"",IF(BL5=99,BL5,VLOOKUP(BL5,$AF:$AI,2,FALSE))) ->  | AT5: =IF(BL5=0,"",IF(BL5=99,"???",VLOOKUP(BL5,$AF:$AI,3,FALSE))) ->  | AU5: =IF(BL5=0,"",IF(BL5=99,"???",VLOOKUP(BL5,$AF:$AI,4,FALSE))) ->  | AY5: FALSE | AZ5: =IF(OR(BM5=0,BM4=0),"",VLOOKUP(BM5,$AF:$AI,3,FALSE)) -> LEMAITRE Joel | BA5: =IF(OR(BM5=0,BM4=0),"",VLOOKUP(BM5,$AF:$AI,4,FALSE)) -> CHARRIERE Jean Marie | BC5: Qual | BE5: ="6/10" -> 6/10 | BF5: 1/2 FINALE | BK5: 0 | BL5: =IF(BM$3,0,IF(AO6="Q",BK6,IF(OR(BK6=0,AO5="Q"),BK5,IF(BK5*BK6>0,99,0)))) -> 0 | BM5: =IF(AH8="",0,AF8) -> 103 | BO5: 3 | BP5: =IF(BN10=99,0,IF(BN10=BN7,BN6,BN7)) -> 104 | BU5: =IF(B5=0,0,ROUND(G5*(INDEX('DATA-WE'!$AH$2:$AO$6,SEARCH($BN$1,'DATA-WE'!$AG$7),SEARCH(CONCATENATE(CB$1,$BL$1),'DATA-WE'!$AF$7))/113)+(INDEX('DATA-WE'!$AH$2:$AO$6,SEARCH($BN$1,'DATA-WE'!$AG$7),1+SEARCH(CONCATENATE(CB$1,$BL$1),'DATA-WE'!$AF$7))-72),0)) -> 5 | BV5: =IF(D5=0,0,ROUND(I5*(INDEX('DATA-WE'!$AH$2:$AO$6,SEARCH($BN$1,'DATA-WE'!$AG$7),SEARCH(CONCATENATE(CB$1,$BL$1),'DATA-WE'!$AF$7))/113)+(INDEX('DATA-WE'!$AH$2:$AO$6,SEARCH($BN$1,'DATA-WE'!$AG$7),1+SEARCH(CONCATENATE(CB$1,$BL$1),'DATA-WE'!$AF$7))-72),0)) -> 11 | BW5: 8 | BX5: 280104 | BY5: 230103 | BZ5: 4 | CA5: 103 | CC5: =IF(L5=0,0,ROUND(Q5*(INDEX('DATA-WE'!$AH$2:$AO$6,SEARCH($BN$1,'DATA-WE'!$AG$7),SEARCH(CONCATENATE(CB$1,$BL$1),'DATA-WE'!$AF$7))/113)+(INDEX('DATA-WE'!$AH$2:$AO$6,SEARCH($BN$1,'DATA-WE'!$AG$7),1+SEARCH(CONCATENATE(CB$1,$BL$1),'DATA-WE'!$AF$7))-72),0)) -> 6 | CD5: =IF(N5=0,0,ROUND(S5*(INDEX('DATA-WE'!$AH$2:$AO$6,SEARCH($BN$1,'DATA-WE'!$AG$7),SEARCH(CONCATENATE(CB$1,$BL$1),'DATA-WE'!$AF$7))/113)+(INDEX('DATA-WE'!$AH$2:$AO$6,SEARCH($BN$1,'DATA-WE'!$AG$7),1+SEARCH(CONCATENATE(CB$1,$BL$1),'DATA-WE'!$AF$7))-72),0)) -> 14 | CE5: 10 | CF5: 260204 | CG5: 245201 | CH5: 4 | CI5: 201 | CK5: 4 | CL5: 304
A6: jupbru | B6: =IF(A6="",0,VLOOKUP(A6,'RMS-DATA'!$B:$F,5,FALSE)) -> 9.9 | C6: cavjul | D6: =IF(C6="",0,VLOOKUP(C6,'RMS-DATA'!$B:$F,5,FALSE)) -> 6.3 | E6: 105 | F6: =IF(A6="","",VLOOKUP(A6,'RMS-DATA'!$B:$F,3,FALSE)) -> JUPPIN Bruno | G6: 10.5 | H6: =IF(C6="","",VLOOKUP(C6,'RMS-DATA'!$B:$F,3,FALSE)) -> CAVAILLE Julien | I6: 14.9 | K6: dubmar | L6: =IF(K6="",0,VLOOKUP(K6,'RMS-DATA'!$B:$F,5,FALSE)) -> 5.5 | M6: guyoli | N6: =IF(M6="",0,VLOOKUP(M6,'RMS-DATA'!$B:$F,5,FALSE)) -> 13.2 | O6: 205 | P6: =IF(K6="","",VLOOKUP(K6,'RMS-DATA'!$B:$F,3,FALSE)) -> DUBOTS Marie | Q6: 7 | R6: =IF(M6="","",VLOOKUP(M6,'RMS-DATA'!$B:$F,3,FALSE)) -> GUY Olivia | S6: 15.2 | V6: =IF(U6="",0,VLOOKUP(U6,'RMS-DATA'!$B:$F,5,FALSE)) -> 0 | X6: =IF(W6="",0,VLOOKUP(W6,'RMS-DATA'!$B:$F,5,FALSE)) -> 0 | Y6: 305 | Z6: =IF(U6="","",VLOOKUP(U6,'RMS-DATA'!$B:$F,3,FALSE)) ->  | AA6: 0 | AB6: =IF(W6="","",VLOOKUP(W6,'RMS-DATA'!$B:$F,3,FALSE)) ->  | AC6: 0 | AF6: 0 | AG6: 9 | AM6: =IF(OR(BK5=0,BK6=0),"",VLOOKUP(BK6,$AF:$AI,3,FALSE)) ->  | AN6: =IF(OR(BK5=0,BK6=0),"",VLOOKUP(BK6,$AF:$AI,4,FALSE)) ->  | AY6: FALSE | AZ6: =IF(OR(BM6=0,BM7=0),"",VLOOKUP(BM6,$AF:$AI,3,FALSE)) -> BIDET Sylvain | BA6: =IF(OR(BM6=0,BM7=0),"",VLOOKUP(BM6,$AF:$AI,4,FALSE)) -> GINOCCHI Francois | BE6: =IF(BN6=0,"",IF(BN6=99,99,VLOOKUP(BN6,$AF:$AI,2,FALSE))) -> 1 | BF6: =IF(BN6=0,"",IF(BN6=99,"???",VLOOKUP(BN6,$AF:$AI,3,FALSE))) -> BIDET Sylvain | BG6: =IF(BN6=0,"",IF(BN6=99,"???",VLOOKUP(BN6,$AF:$AI,4,FALSE))) -> GINOCCHI Francois | BK6: 0 | BM6: =IF(AH4="",0,AF4) -> 104 | BN6: =IF(AV5="Q",BL5,IF(OR(BL5=0,AV4="Q"),BL4,IF(OR(BL4*BL5>0,BL5=0),99,0))) -> 104 | BO6: 4 | BP6: =IF(BN11=99,0,IF(BN11=BN14,BN15,BN14)) -> 102 | BU6: =IF(B6=0,0,ROUND(G6*(INDEX('DATA-WE'!$AH$2:$AO$6,SEARCH($BN$1,'DATA-WE'!$AG$7),SEARCH(CONCATENATE(CB$1,$BL$1),'DATA-WE'!$AF$7))/113)+(INDEX('DATA-WE'!$AH$2:$AO$6,SEARCH($BN$1,'DATA-WE'!$AG$7),1+SEARCH(CONCATENATE(CB$1,$BL$1),'DATA-WE'!$AF$7))-72),0)) -> 9 | BV6: =IF(D6=0,0,ROUND(I6*(INDEX('DATA-WE'!$AH$2:$AO$6,SEARCH($BN$1,'DATA-WE'!$AG$7),SEARCH(CONCATENATE(CB$1,$BL$1),'DATA-WE'!$AF$7))/113)+(INDEX('DATA-WE'!$AH$2:$AO$6,SEARCH($BN$1,'DATA-WE'!$AG$7),1+SEARCH(CONCATENATE(CB$1,$BL$1),'DATA-WE'!$AF$7))-72),0)) -> 13 | BW6: 11 | BX6: 250105 | BY6: 215106 | BZ6: 5 | CA6: 106 | CC6: =IF(L6=0,0,ROUND(Q6*(INDEX('DATA-WE'!$AH$2:$AO$6,SEARCH($BN$1,'DATA-WE'!$AG$7),SEARCH(CONCATENATE(CB$1,$BL$1),'DATA-WE'!$AF$7))/113)+(INDEX('DATA-WE'!$AH$2:$AO$6,SEARCH($BN$1,'DATA-WE'!$AG$7),1+SEARCH(CONCATENATE(CB$1,$BL$1),'DATA-WE'!$AF$7))-72),0)) -> 5 | CD6: =IF(N6=0,0,ROUND(S6*(INDEX('DATA-WE'!$AH$2:$AO$6,SEARCH($BN$1,'DATA-WE'!$AG$7),SEARCH(CONCATENATE(CB$1,$BL$1),'DATA-WE'!$AF$7))/113)+(INDEX('DATA-WE'!$AH$2:$AO$6,SEARCH($BN$1,'DATA-WE'!$AG$7),1+SEARCH(CONCATENATE(CB$1,$BL$1),'DATA-WE'!$AF$7))-72),0)) -> 14 | CE6: 9.5 | CF6: 265205 | CG6: 240207 | CH6: 5 | CI6: 207 | CK6: 5 | CL6: 305
A7: chadav | B7: =IF(A7="",0,VLOOKUP(A7,'RMS-DATA'!$B:$F,5,FALSE)) -> 16 | C7: dehpas | D7: =IF(C7="",0,VLOOKUP(C7,'RMS-DATA'!$B:$F,5,FALSE)) -> 13.6 | E7: 106 | F7: =IF(A7="","",VLOOKUP(A7,'RMS-DATA'!$B:$F,3,FALSE)) -> CHAUVIN David | G7: 16.4 | H7: =IF(C7="","",VLOOKUP(C7,'RMS-DATA'!$B:$F,3,FALSE)) -> DEHEDIN Pascal | I7: 15.6 | K7: mahjoe | L7: =IF(K7="",0,VLOOKUP(K7,'RMS-DATA'!$B:$F,5,FALSE)) -> 17 | M7: lavmur | N7: =IF(M7="",0,VLOOKUP(M7,'RMS-DATA'!$B:$F,5,FALSE)) -> 20 | O7: 206 | P7: =IF(K7="","",VLOOKUP(K7,'RMS-DATA'!$B:$F,3,FALSE)) -> MAHE Joëlle | Q7: 16.8 | R7: =IF(M7="","",VLOOKUP(M7,'RMS-DATA'!$B:$F,3,FALSE)) -> LAVODRAMA Muriel | S7: 20 | V7: =IF(U7="",0,VLOOKUP(U7,'RMS-DATA'!$B:$F,5,FALSE)) -> 0 | X7: =IF(W7="",0,VLOOKUP(W7,'RMS-DATA'!$B:$F,5,FALSE)) -> 0 | Y7: 306 | Z7: =IF(U7="","",VLOOKUP(U7,'RMS-DATA'!$B:$F,3,FALSE)) ->  | AA7: 0 | AB7: =IF(W7="","",VLOOKUP(W7,'RMS-DATA'!$B:$F,3,FALSE)) ->  | AC7: 0 | AF7: 0 | AG7: 13 | AM7: =IF(OR(BK7=0,BK8=0),"",VLOOKUP(BK7,$AF:$AI,3,FALSE)) ->  | AN7: =IF(OR(BK7=0,BK8=0),"",VLOOKUP(BK7,$AF:$AI,4,FALSE)) ->  | AT7: 1/4 FINALE | AY7: FALSE | AZ7: =IF(OR(BM7=0,BM6=0),"",VLOOKUP(BM7,$AF:$AI,3,FALSE)) -> CHAUVIN David | BA7: =IF(OR(BM7=0,BM6=0),"",VLOOKUP(BM7,$AF:$AI,4,FALSE)) -> DEHEDIN Pascal | BE7: =IF(BN7=0,"",IF(BN7=99,99,VLOOKUP(BN7,$AF:$AI,2,FALSE))) -> 5 | BF7: =IF(BN7=0,"",IF(BN7=99,"???",VLOOKUP(BN7,$AF:$AI,3,FALSE))) -> CHAUVIN David | BG7: =IF(BN7=0,"",IF(BN7=99,"???",VLOOKUP(BN7,$AF:$AI,4,FALSE))) -> DEHEDIN Pascal | BH7: Q | BK7: 0 | BM7: =IF(AH9="",0,AF9) -> 106 | BN7: =IF(AV9="Q",BL9,IF(OR(BL9=0,AV8="Q"),BL8,IF(OR(BL8*BL9>0,BL9=0),99,0))) -> 106 | BP7: =IF(BN6=99,0,IF(BN6=BL4,BL5,BL4)) -> 0 | BU7: =IF(B7=0,0,ROUND(G7*(INDEX('DATA-WE'!$AH$2:$AO$6,SEARCH($BN$1,'DATA-WE'!$AG$7),SEARCH(CONCATENATE(CB$1,$BL$1),'DATA-WE'!$AF$7))/113)+(INDEX('DATA-WE'!$AH$2:$AO$6,SEARCH($BN$1,'DATA-WE'!$AG$7),1+SEARCH(CONCATENATE(CB$1,$BL$1),'DATA-WE'!$AF$7))-72),0)) -> 15 | BV7: =IF(D7=0,0,ROUND(I7*(INDEX('DATA-WE'!$AH$2:$AO$6,SEARCH($BN$1,'DATA-WE'!$AG$7),SEARCH(CONCATENATE(CB$1,$BL$1),'DATA-WE'!$AF$7))/113)+(INDEX('DATA-WE'!$AH$2:$AO$6,SEARCH($BN$1,'DATA-WE'!$AG$7),1+SEARCH(CONCATENATE(CB$1,$BL$1),'DATA-WE'!$AF$7))-72),0)) -> 14 | BW7: 14.5 | BX7: 215106 | BY7: 180101 | BZ7: 6 | CA7: 101 | CC7: =IF(L7=0,0,ROUND(Q7*(INDEX('DATA-WE'!$AH$2:$AO$6,SEARCH($BN$1,'DATA-WE'!$AG$7),SEARCH(CONCATENATE(CB$1,$BL$1),'DATA-WE'!$AF$7))/113)+(INDEX('DATA-WE'!$AH$2:$AO$6,SEARCH($BN$1,'DATA-WE'!$AG$7),1+SEARCH(CONCATENATE(CB$1,$BL$1),'DATA-WE'!$AF$7))-72),0)) -> 15 | CD7: =IF(N7=0,0,ROUND(S7*(INDEX('DATA-WE'!$AH$2:$AO$6,SEARCH($BN$1,'DATA-WE'!$AG$7),SEARCH(CONCATENATE(CB$1,$BL$1),'DATA-WE'!$AF$7))/113)+(INDEX('DATA-WE'!$AH$2:$AO$6,SEARCH($BN$1,'DATA-WE'!$AG$7),1+SEARCH(CONCATENATE(CB$1,$BL$1),'DATA-WE'!$AF$7))-72),0)) -> 19 | CE7: 17 | CF7: 190206 | CG7: 210202 | CH7: 6 | CI7: 202 | CK7: 6 | CL7: 306
B8: =IF(A8="",0,VLOOKUP(A8,'RMS-DATA'!$B:$F,5,FALSE)) -> 0 | D8: =IF(C8="",0,VLOOKUP(C8,'RMS-DATA'!$B:$F,5,FALSE)) -> 0 | E8: 107 | F8: =IF(A8="","",VLOOKUP(A8,'RMS-DATA'!$B:$F,3,FALSE)) ->  | G8: 0 | H8: =IF(C8="","",VLOOKUP(C8,'RMS-DATA'!$B:$F,3,FALSE)) ->  | I8: 0 | K8: thojen | L8: =IF(K8="",0,VLOOKUP(K8,'RMS-DATA'!$B:$F,5,FALSE)) -> 4.2 | M8: densop | N8: =IF(M8="",0,VLOOKUP(M8,'RMS-DATA'!$B:$F,5,FALSE)) -> 15.2 | O8: 207 | P8: =IF(K8="","",VLOOKUP(K8,'RMS-DATA'!$B:$F,3,FALSE)) -> THORPE Jennifer | Q8: 8 | R8: =IF(M8="","",VLOOKUP(M8,'RMS-DATA'!$B:$F,3,FALSE)) -> DENUZIERE Sophie | S8: 18.8 | V8: =IF(U8="",0,VLOOKUP(U8,'RMS-DATA'!$B:$F,5,FALSE)) -> 0 | X8: =IF(W8="",0,VLOOKUP(W8,'RMS-DATA'!$B:$F,5,FALSE)) -> 0 | Y8: 307 | Z8: =IF(U8="","",VLOOKUP(U8,'RMS-DATA'!$B:$F,3,FALSE)) ->  | AA8: 0 | AB8: =IF(W8="","",VLOOKUP(W8,'RMS-DATA'!$B:$F,3,FALSE)) ->  | AC8: 0 | AF8: 103 | AG8: 4 | AH8: LEMAITRE Joel | AI8: CHARRIERE Jean Marie | AL8: 4 | AM8: =IF(OR(BK7=0,BK8=0),"",VLOOKUP(BK8,$AF:$AI,3,FALSE)) ->  | AN8: =IF(OR(BK7=0,BK8=0),"",VLOOKUP(BK8,$AF:$AI,4,FALSE)) ->  | AS8: =IF(OR(BL8=0,BL9=0),"",IF(BL8=99,999,VLOOKUP(BL8,$AF:$AI,2,FALSE))) -> 4 | AT8: =IF(BL8=0,"",IF(BL8=99,"???",VLOOKUP(BL8,$AF:$AI,3,FALSE))) -> LEMAITRE Joel | AU8: =IF(BL8=0,"",IF(BL8=99,"???",VLOOKUP(BL8,$AF:$AI,4,FALSE))) -> CHARRIERE Jean Marie | AY8: FALSE | AZ8: =IF(OR(BM8=0,BM9=0),"",VLOOKUP(BM8,$AF:$AI,3,FALSE)) -> LEMAITRE Joel | BA8: =IF(OR(BM8=0,BM9=0),"",VLOOKUP(BM8,$AF:$AI,4,FALSE)) -> CHARRIERE Jean Marie | BK8: 103 | BL8: =IF(BM$3,0,IF(AO7="Q",BK7,IF(OR(BK7=0,AO8="Q"),BK8,IF(BK7*BK8>0,99,0)))) -> 103 | BM8: =IF(AH8="",0,AF8) -> 103 | BP8: =IF(BN7=99,0,IF(BN7=BL9,BL8,BL9)) -> 103 | BU8: =IF(B8=0,0,ROUND(G8*(INDEX('DATA-WE'!$AH$2:$AO$6,SEARCH($BN$1,'DATA-WE'!$AG$7),SEARCH(CONCATENATE(CB$1,$BL$1),'DATA-WE'!$AF$7))/113)+(INDEX('DATA-WE'!$AH$2:$AO$6,SEARCH($BN$1,'DATA-WE'!$AG$7),1+SEARCH(CONCATENATE(CB$1,$BL$1),'DATA-WE'!$AF$7))-72),0)) -> 0 | BV8: =IF(D8=0,0,ROUND(I8*(INDEX('DATA-WE'!$AH$2:$AO$6,SEARCH($BN$1,'DATA-WE'!$AG$7),SEARCH(CONCATENATE(CB$1,$BL$1),'DATA-WE'!$AF$7))/113)+(INDEX('DATA-WE'!$AH$2:$AO$6,SEARCH($BN$1,'DATA-WE'!$AG$7),1+SEARCH(CONCATENATE(CB$1,$BL$1),'DATA-WE'!$AF$7))-72),0)) -> 0 | BW8: 0 | BX8: 0 | BY8: 0 | BZ8: 7 | CA8: 0 | CC8: =IF(L8=0,0,ROUND(Q8*(INDEX('DATA-WE'!$AH$2:$AO$6,SEARCH($BN$1,'DATA-WE'!$AG$7),SEARCH(CONCATENATE(CB$1,$BL$1),'DATA-WE'!$AF$7))/113)+(INDEX('DATA-WE'!$AH$2:$AO$6,SEARCH($BN$1,'DATA-WE'!$AG$7),1+SEARCH(CONCATENATE(CB$1,$BL$1),'DATA-WE'!$AF$7))-72),0)) -> 6 | CD8: =IF(N8=0,0,ROUND(S8*(INDEX('DATA-WE'!$AH$2:$AO$6,SEARCH($BN$1,'DATA-WE'!$AG$7),SEARCH(CONCATENATE(CB$1,$BL$1),'DATA-WE'!$AF$7))/113)+(INDEX('DATA-WE'!$AH$2:$AO$6,SEARCH($BN$1,'DATA-WE'!$AG$7),1+SEARCH(CONCATENATE(CB$1,$BL$1),'DATA-WE'!$AF$7))-72),0)) -> 18 | CE8: 12 | CF8: 240207 | CG8: 190206 | CH8: 7 | CI8: 206 | CK8: 7 | CL8: 307
B9: =IF(A9="",0,VLOOKUP(A9,'RMS-DATA'!$B:$F,5,FALSE)) -> 0 | D9: =IF(C9="",0,VLOOKUP(C9,'RMS-DATA'!$B:$F,5,FALSE)) -> 0 | E9: 108 | F9: =IF(A9="","",VLOOKUP(A9,'RMS-DATA'!$B:$F,3,FALSE)) ->  | G9: 0 | H9: =IF(C9="","",VLOOKUP(C9,'RMS-DATA'!$B:$F,3,FALSE)) ->  | I9: 0 | K9: plabea | L9: =IF(K9="",0,VLOOKUP(K9,'RMS-DATA'!$B:$F,5,FALSE)) -> 23.6 | M9: boubri | N9: =IF(M9="",0,VLOOKUP(M9,'RMS-DATA'!$B:$F,5,FALSE)) -> 20.8 | O9: 208 | P9: =IF(K9="","",VLOOKUP(K9,'RMS-DATA'!$B:$F,3,FALSE)) -> PLANQUE Béatrice | Q9: 26 | R9: =IF(M9="","",VLOOKUP(M9,'RMS-DATA'!$B:$F,3,FALSE)) -> BOULLE Brigitte | S9: 20.8 | V9: =IF(U9="",0,VLOOKUP(U9,'RMS-DATA'!$B:$F,5,FALSE)) -> 0 | X9: =IF(W9="",0,VLOOKUP(W9,'RMS-DATA'!$B:$F,5,FALSE)) -> 0 | Y9: 308 | Z9: =IF(U9="","",VLOOKUP(U9,'RMS-DATA'!$B:$F,3,FALSE)) ->  | AA9: 0 | AB9: =IF(W9="","",VLOOKUP(W9,'RMS-DATA'!$B:$F,3,FALSE)) ->  | AC9: 0 | AF9: 106 | AG9: 5 | AH9: CHAUVIN David | AI9: DEHEDIN Pascal | AL9: 5 | AM9: =IF(OR(BK9=0,BK10=0),"",VLOOKUP(BK9,$AF:$AI,3,FALSE)) ->  | AN9: =IF(OR(BK9=0,BK10=0),"",VLOOKUP(BK9,$AF:$AI,4,FALSE)) ->  | AS9: =IF(BL9=0,"",IF(BL9=99,BL9,VLOOKUP(BL9,$AF:$AI,2,FALSE))) -> 5 | AT9: =IF(BL9=0,"",IF(BL9=99,"???",VLOOKUP(BL9,$AF:$AI,3,FALSE))) -> CHAUVIN David | AU9: =IF(BL9=0,"",IF(BL9=99,"???",VLOOKUP(BL9,$AF:$AI,4,FALSE))) -> DEHEDIN Pascal | AV9: Q | AY9: FALSE | AZ9: =IF(OR(BM9=0,BM8=0),"",VLOOKUP(BM9,$AF:$AI,3,FALSE)) -> CHAUVIN David | BA9: =IF(OR(BM9=0,BM8=0),"",VLOOKUP(BM9,$AF:$AI,4,FALSE)) -> DEHEDIN Pascal | BE9: ="3/11" -> 3/11 | BF9: =CONCATENATE("FINALE ",BE3) -> FINALE Hommes | BK9: 106 | BL9: =IF(BM$3,0,IF(AO10="Q",BK10,IF(OR(BK10=0,AO9="Q"),BK9,IF(BK9*BK10>0,99,0)))) -> 106 | BM9: =IF(AH9="",0,AF9) -> 106 | BP9: =IF(BN14=99,0,IF(BN14=BL12,BL13,BL12)) -> 0 | BU9: =IF(B9=0,0,ROUND(G9*(INDEX('DATA-WE'!$AH$2:$AO$6,SEARCH($BN$1,'DATA-WE'!$AG$7),SEARCH(CONCATENATE(CB$1,$BL$1),'DATA-WE'!$AF$7))/113)+(INDEX('DATA-WE'!$AH$2:$AO$6,SEARCH($BN$1,'DATA-WE'!$AG$7),1+SEARCH(CONCATENATE(CB$1,$BL$1),'DATA-WE'!$AF$7))-72),0)) -> 0 | BV9: =IF(D9=0,0,ROUND(I9*(INDEX('DATA-WE'!$AH$2:$AO$6,SEARCH($BN$1,'DATA-WE'!$AG$7),SEARCH(CONCATENATE(CB$1,$BL$1),'DATA-WE'!$AF$7))/113)+(INDEX('DATA-WE'!$AH$2:$AO$6,SEARCH($BN$1,'DATA-WE'!$AG$7),1+SEARCH(CONCATENATE(CB$1,$BL$1),'DATA-WE'!$AF$7))-72),0)) -> 0 | BW9: 0 | BX9: 0 | BY9: 0 | BZ9: 8 | CA9: 0 | CC9: =IF(L9=0,0,ROUND(Q9*(INDEX('DATA-WE'!$AH$2:$AO$6,SEARCH($BN$1,'DATA-WE'!$AG$7),SEARCH(CONCATENATE(CB$1,$BL$1),'DATA-WE'!$AF$7))/113)+(INDEX('DATA-WE'!$AH$2:$AO$6,SEARCH($BN$1,'DATA-WE'!$AG$7),1+SEARCH(CONCATENATE(CB$1,$BL$1),'DATA-WE'!$AF$7))-72),0)) -> 25 | CD9: =IF(N9=0,0,ROUND(S9*(INDEX('DATA-WE'!$AH$2:$AO$6,SEARCH($BN$1,'DATA-WE'!$AG$7),SEARCH(CONCATENATE(CB$1,$BL$1),'DATA-WE'!$AF$7))/113)+(INDEX('DATA-WE'!$AH$2:$AO$6,SEARCH($BN$1,'DATA-WE'!$AG$7),1+SEARCH(CONCATENATE(CB$1,$BL$1),'DATA-WE'!$AF$7))-72),0)) -> 20 | CE9: 22.5 | CF9: 135208 | CG9: 135208 | CH9: 8 | CI9: 208 | CK9: 8 | CL9: 308
B10: =IF(A10="",0,VLOOKUP(A10,'RMS-DATA'!$B:$F,5,FALSE)) -> 0 | D10: =IF(C10="",0,VLOOKUP(C10,'RMS-DATA'!$B:$F,5,FALSE)) -> 0 | E10: 109 | F10: =IF(A10="","",VLOOKUP(A10,'RMS-DATA'!$B:$F,3,FALSE)) ->  | G10: 0 | H10: =IF(C10="","",VLOOKUP(C10,'RMS-DATA'!$B:$F,3,FALSE)) ->  | I10: 0 | L10: =IF(K10="",0,VLOOKUP(K10,'RMS-DATA'!$B:$F,5,FALSE)) -> 0 | N10: =IF(M10="",0,VLOOKUP(M10,'RMS-DATA'!$B:$F,5,FALSE)) -> 0 | O10: 209 | P10: =IF(K10="","",VLOOKUP(K10,'RMS-DATA'!$B:$F,3,FALSE)) ->  | Q10: 0 | R10: =IF(M10="","",VLOOKUP(M10,'RMS-DATA'!$B:$F,3,FALSE)) ->  | S10: 0 | V10: =IF(U10="",0,VLOOKUP(U10,'RMS-DATA'!$B:$F,5,FALSE)) -> 0 | X10: =IF(W10="",0,VLOOKUP(W10,'RMS-DATA'!$B:$F,5,FALSE)) -> 0 | Y10: 309 | Z10: =IF(U10="","",VLOOKUP(U10,'RMS-DATA'!$B:$F,3,FALSE)) ->  | AA10: 0 | AB10: =IF(W10="","",VLOOKUP(W10,'RMS-DATA'!$B:$F,3,FALSE)) ->  | AC10: 0 | AF10: 0 | AG10: 12 | AM10: =IF(OR(BK9=0,BK10=0),"",VLOOKUP(BK10,$AF:$AI,3,FALSE)) ->  | AN10: =IF(OR(BK9=0,BK10=0),"",VLOOKUP(BK10,$AF:$AI,4,FALSE)) ->  | BE10: =IF(BN10=0,"",IF(BN10=99,99,VLOOKUP(BN10,$AF:$AI,2,FALSE))) -> 5 | BF10: =IF(BN10=0,"",IF(BN10=99,"???",VLOOKUP(BN10,$AF:$AI,3,FALSE))) -> CHAUVIN David | BG10: =IF(BN10=0,"",IF(BN10=99,"???",VLOOKUP(BN10,$AF:$AI,4,FALSE))) -> DEHEDIN Pascal | BK10: 0 | BN10: =IF(BH7="Q",BN7,IF(OR(BN7=0,BH6="Q"),BN6,IF(OR(BN7*BN6>0,BN7=0),99,0))) -> 106 | BP10: =IF(BN15=99,0,IF(BN15=BL17,BL16,BL17)) -> 101 | BU10: =IF(B10=0,0,ROUND(G10*(INDEX('DATA-WE'!$AH$2:$AO$6,SEARCH($BN$1,'DATA-WE'!$AG$7),SEARCH(CONCATENATE(CB$1,$BL$1),'DATA-WE'!$AF$7))/113)+(INDEX('DATA-WE'!$AH$2:$AO$6,SEARCH($BN$1,'DATA-WE'!$AG$7),1+SEARCH(CONCATENATE(CB$1,$BL$1),'DATA-WE'!$AF$7))-72),0)) -> 0 | BV10: =IF(D10=0,0,ROUND(I10*(INDEX('DATA-WE'!$AH$2:$AO$6,SEARCH($BN$1,'DATA-WE'!$AG$7),SEARCH(CONCATENATE(CB$1,$BL$1),'DATA-WE'!$AF$7))/113)+(INDEX('DATA-WE'!$AH$2:$AO$6,SEARCH($BN$1,'DATA-WE'!$AG$7),1+SEARCH(CONCATENATE(CB$1,$BL$1),'DATA-WE'!$AF$7))-72),0)) -> 0 | BW10: 0 | BX10: 0 | BY10: 0 | BZ10: 9 | CA10: 0 | CC10: =IF(L10=0,0,ROUND(Q10*(INDEX('DATA-WE'!$AH$2:$AO$6,SEARCH($BN$1,'DATA-WE'!$AG$7),SEARCH(CONCATENATE(CB$1,$BL$1),'DATA-WE'!$AF$7))/113)+(INDEX('DATA-WE'!$AH$2:$AO$6,SEARCH($BN$1,'DATA-WE'!$AG$7),1+SEARCH(CONCATENATE(CB$1,$BL$1),'DATA-WE'!$AF$7))-72),0)) -> 0 | CD10: =IF(N10=0,0,ROUND(S10*(INDEX('DATA-WE'!$AH$2:$AO$6,SEARCH($BN$1,'DATA-WE'!$AG$7),SEARCH(CONCATENATE(CB$1,$BL$1),'DATA-WE'!$AF$7))/113)+(INDEX('DATA-WE'!$AH$2:$AO$6,SEARCH($BN$1,'DATA-WE'!$AG$7),1+SEARCH(CONCATENATE(CB$1,$BL$1),'DATA-WE'!$AF$7))-72),0)) -> 0 | CE10: 0 | CF10: 0 | CG10: 0 | CH10: 9 | CI10: 0 | CK10: 9 | CL10: 309
B11: =IF(A11="",0,VLOOKUP(A11,'RMS-DATA'!$B:$F,5,FALSE)) -> 0 | D11: =IF(C11="",0,VLOOKUP(C11,'RMS-DATA'!$B:$F,5,FALSE)) -> 0 | E11: 110 | F11: =IF(A11="","",VLOOKUP(A11,'RMS-DATA'!$B:$F,3,FALSE)) ->  | G11: 0 | H11: =IF(C11="","",VLOOKUP(C11,'RMS-DATA'!$B:$F,3,FALSE)) ->  | I11: 0 | L11: =IF(K11="",0,VLOOKUP(K11,'RMS-DATA'!$B:$F,5,FALSE)) -> 0 | N11: =IF(M11="",0,VLOOKUP(M11,'RMS-DATA'!$B:$F,5,FALSE)) -> 0 | O11: 210 | P11: =IF(K11="","",VLOOKUP(K11,'RMS-DATA'!$B:$F,3,FALSE)) ->  | Q11: 0 | R11: =IF(M11="","",VLOOKUP(M11,'RMS-DATA'!$B:$F,3,FALSE)) ->  | S11: 0 | V11: =IF(U11="",0,VLOOKUP(U11,'RMS-DATA'!$B:$F,5,FALSE)) -> 0 | X11: =IF(W11="",0,VLOOKUP(W11,'RMS-DATA'!$B:$F,5,FALSE)) -> 0 | Y11: 310 | Z11: =IF(U11="","",VLOOKUP(U11,'RMS-DATA'!$B:$F,3,FALSE)) ->  | AA11: 0 | AB11: =IF(W11="","",VLOOKUP(W11,'RMS-DATA'!$B:$F,3,FALSE)) ->  | AC11: 0 | AF11: 0 | AG11: 15 | AM11: =IF(OR(BK11=0,BK12=0),"",VLOOKUP(BK11,$AF:$AI,3,FALSE)) ->  | AN11: =IF(OR(BK11=0,BK12=0),"",VLOOKUP(BK11,$AF:$AI,4,FALSE)) ->  | AT11: 1/4 FINALE | AY11: B | AZ11: 1er TOUR | BA11: Poule B | BE11: =IF(BN11=0,"",IF(BN11=99,99,VLOOKUP(BN11,$AF:$AI,2,FALSE))) -> 3 | BF11: =IF(BN11=0,"",IF(BN11=99,"???",VLOOKUP(BN11,$AF:$AI,3,FALSE))) -> JUPPIN Bruno | BG11: =IF(BN11=0,"",IF(BN11=99,"???",VLOOKUP(BN11,$AF:$AI,4,FALSE))) -> CAVAILLE Julien | BK11: 0 | BM11: =AND(BM1,BK1>4,BK1<7) -> FALSE | BN11: =IF(BH15="Q",BN15,IF(OR(BN15=0,BH14="Q"),BN14,IF(OR(BN14*BN15>0,BN14=0),99,0))) -> 105 | BP11: =IF(BL4=99,0,IF(BL4=BK4,BK3)) -> 0 | BU11: =IF(B11=0,0,ROUND(G11*(INDEX('DATA-WE'!$AH$2:$AO$6,SEARCH($BN$1,'DATA-WE'!$AG$7),SEARCH(CONCATENATE(CB$1,$BL$1),'DATA-WE'!$AF$7))/113)+(INDEX('DATA-WE'!$AH$2:$AO$6,SEARCH($BN$1,'DATA-WE'!$AG$7),1+SEARCH(CONCATENATE(CB$1,$BL$1),'DATA-WE'!$AF$7))-72),0)) -> 0 | BV11: =IF(D11=0,0,ROUND(I11*(INDEX('DATA-WE'!$AH$2:$AO$6,SEARCH($BN$1,'DATA-WE'!$AG$7),SEARCH(CONCATENATE(CB$1,$BL$1),'DATA-WE'!$AF$7))/113)+(INDEX('DATA-WE'!$AH$2:$AO$6,SEARCH($BN$1,'DATA-WE'!$AG$7),1+SEARCH(CONCATENATE(CB$1,$BL$1),'DATA-WE'!$AF$7))-72),0)) -> 0 | BW11: 0 | BX11: 0 | BY11: 0 | BZ11: 10 | CA11: 0 | CC11: =IF(L11=0,0,ROUND(Q11*(INDEX('DATA-WE'!$AH$2:$AO$6,SEARCH($BN$1,'DATA-WE'!$AG$7),SEARCH(CONCATENATE(CB$1,$BL$1),'DATA-WE'!$AF$7))/113)+(INDEX('DATA-WE'!$AH$2:$AO$6,SEARCH($BN$1,'DATA-WE'!$AG$7),1+SEARCH(CONCATENATE(CB$1,$BL$1),'DATA-WE'!$AF$7))-72),0)) -> 0 | CD11: =IF(N11=0,0,ROUND(S11*(INDEX('DATA-WE'!$AH$2:$AO$6,SEARCH($BN$1,'DATA-WE'!$AG$7),SEARCH(CONCATENATE(CB$1,$BL$1),'DATA-WE'!$AF$7))/113)+(INDEX('DATA-WE'!$AH$2:$AO$6,SEARCH($BN$1,'DATA-WE'!$AG$7),1+SEARCH(CONCATENATE(CB$1,$BL$1),'DATA-WE'!$AF$7))-72),0)) -> 0 | CE11: 0 | CF11: 0 | CG11: 0 | CH11: 10 | CI11: 0 | CK11: 10 | CL11: 310
B12: =IF(A12="",0,VLOOKUP(A12,'RMS-DATA'!$B:$F,5,FALSE)) -> 0 | D12: =IF(C12="",0,VLOOKUP(C12,'RMS-DATA'!$B:$F,5,FALSE)) -> 0 | E12: 111 | F12: =IF(A12="","",VLOOKUP(A12,'RMS-DATA'!$B:$F,3,FALSE)) ->  | G12: 0 | H12: =IF(C12="","",VLOOKUP(C12,'RMS-DATA'!$B:$F,3,FALSE)) ->  | I12: 0 | L12: =IF(K12="",0,VLOOKUP(K12,'RMS-DATA'!$B:$F,5,FALSE)) -> 0 | N12: =IF(M12="",0,VLOOKUP(M12,'RMS-DATA'!$B:$F,5,FALSE)) -> 0 | O12: 211 | P12: =IF(K12="","",VLOOKUP(K12,'RMS-DATA'!$B:$F,3,FALSE)) ->  | Q12: 0 | R12: =IF(M12="","",VLOOKUP(M12,'RMS-DATA'!$B:$F,3,FALSE)) ->  | S12: 0 | V12: =IF(U12="",0,VLOOKUP(U12,'RMS-DATA'!$B:$F,5,FALSE)) -> 0 | X12: =IF(W12="",0,VLOOKUP(W12,'RMS-DATA'!$B:$F,5,FALSE)) -> 0 | Y12: 311 | Z12: =IF(U12="","",VLOOKUP(U12,'RMS-DATA'!$B:$F,3,FALSE)) ->  | AA12: 0 | AB12: =IF(W12="","",VLOOKUP(W12,'RMS-DATA'!$B:$F,3,FALSE)) ->  | AC12: 0 | AF12: 102 | AG12: 2 | AH12: BONNY Gurvann | AI12: FEUILLADE Mathieu | AL12: 2 | AM12: =IF(OR(BK11=0,BK12=0),"",VLOOKUP(BK12,$AF:$AI,3,FALSE)) ->  | AN12: =IF(OR(BK11=0,BK12=0),"",VLOOKUP(BK12,$AF:$AI,4,FALSE)) ->  | AS12: =IF(OR(BL12=0,BL13=0),"",IF(BL12=99,999,VLOOKUP(BL12,$AF:$AI,2,FALSE))) ->  | AT12: =IF(BL12=0,"",IF(BL12=99,"???",VLOOKUP(BL12,$AF:$AI,3,FALSE))) -> BONNY Gurvann | AU12: =IF(BL12=0,"",IF(BL12=99,"???",VLOOKUP(BL12,$AF:$AI,4,FALSE))) -> FEUILLADE Mathieu | AY12: =IF(BM$3,IF(BM12=0,0,VLOOKUP(BM12,$AF:$AI,2,FALSE))) -> FALSE | AZ12: =IF(OR(BM12=0,BM13=0),"",VLOOKUP(BM12,$AF:$AI,3,FALSE)) -> BONNY Gurvann | BA12: =IF(OR(BM12=0,BM13=0),"",VLOOKUP(BM12,$AF:$AI,4,FALSE)) -> FEUILLADE Mathieu | BK12: 102 | BL12: =IF(BM$3,0,IF(AO11="Q",BK11,IF(OR(BK11=0,AO12="Q"),BK12,IF(BK11*BK12>0,99,0)))) -> 102 | BM12: =IF(AH12="",0,AF12) -> 102 | BP12: =IF(BL5=99,0,IF(BL5=BK5,BK6,BK5)) -> 0 | BU12: =IF(B12=0,0,ROUND(G12*(INDEX('DATA-WE'!$AH$2:$AO$6,SEARCH($BN$1,'DATA-WE'!$AG$7),SEARCH(CONCATENATE(CB$1,$BL$1),'DATA-WE'!$AF$7))/113)+(INDEX('DATA-WE'!$AH$2:$AO$6,SEARCH($BN$1,'DATA-WE'!$AG$7),1+SEARCH(CONCATENATE(CB$1,$BL$1),'DATA-WE'!$AF$7))-72),0)) -> 0 | BV12: =IF(D12=0,0,ROUND(I12*(INDEX('DATA-WE'!$AH$2:$AO$6,SEARCH($BN$1,'DATA-WE'!$AG$7),SEARCH(CONCATENATE(CB$1,$BL$1),'DATA-WE'!$AF$7))/113)+(INDEX('DATA-WE'!$AH$2:$AO$6,SEARCH($BN$1,'DATA-WE'!$AG$7),1+SEARCH(CONCATENATE(CB$1,$BL$1),'DATA-WE'!$AF$7))-72),0)) -> 0 | BW12: 0 | BX12: 0 | BY12: 0 | BZ12: 11 | CA12: 0 | CC12: =IF(L12=0,0,ROUND(Q12*(INDEX('DATA-WE'!$AH$2:$AO$6,SEARCH($BN$1,'DATA-WE'!$AG$7),SEARCH(CONCATENATE(CB$1,$BL$1),'DATA-WE'!$AF$7))/113)+(INDEX('DATA-WE'!$AH$2:$AO$6,SEARCH($BN$1,'DATA-WE'!$AG$7),1+SEARCH(CONCATENATE(CB$1,$BL$1),'DATA-WE'!$AF$7))-72),0)) -> 0 | CD12: =IF(N12=0,0,ROUND(S12*(INDEX('DATA-WE'!$AH$2:$AO$6,SEARCH($BN$1,'DATA-WE'!$AG$7),SEARCH(CONCATENATE(CB$1,$BL$1),'DATA-WE'!$AF$7))/113)+(INDEX('DATA-WE'!$AH$2:$AO$6,SEARCH($BN$1,'DATA-WE'!$AG$7),1+SEARCH(CONCATENATE(CB$1,$BL$1),'DATA-WE'!$AF$7))-72),0)) -> 0 | CE12: 0 | CF12: 0 | CG12: 0 | CH12: 11 | CI12: 0 | CK12: 11 | CL12: 311
B13: =IF(A13="",0,VLOOKUP(A13,'RMS-DATA'!$B:$F,5,FALSE)) -> 0 | D13: =IF(C13="",0,VLOOKUP(C13,'RMS-DATA'!$B:$F,5,FALSE)) -> 0 | E13: 112 | F13: =IF(A13="","",VLOOKUP(A13,'RMS-DATA'!$B:$F,3,FALSE)) ->  | G13: 0 | H13: =IF(C13="","",VLOOKUP(C13,'RMS-DATA'!$B:$F,3,FALSE)) ->  | I13: 0 | L13: =IF(K13="",0,VLOOKUP(K13,'RMS-DATA'!$B:$F,5,FALSE)) -> 0 | N13: =IF(M13="",0,VLOOKUP(M13,'RMS-DATA'!$B:$F,5,FALSE)) -> 0 | O13: 212 | P13: =IF(K13="","",VLOOKUP(K13,'RMS-DATA'!$B:$F,3,FALSE)) ->  | Q13: 0 | R13: =IF(M13="","",VLOOKUP(M13,'RMS-DATA'!$B:$F,3,FALSE)) ->  | S13: 0 | V13: =IF(U13="",0,VLOOKUP(U13,'RMS-DATA'!$B:$F,5,FALSE)) -> 0 | X13: =IF(W13="",0,VLOOKUP(W13,'RMS-DATA'!$B:$F,5,FALSE)) -> 0 | Y13: 312 | Z13: =IF(U13="","",VLOOKUP(U13,'RMS-DATA'!$B:$F,3,FALSE)) ->  | AA13: 0 | AB13: =IF(W13="","",VLOOKUP(W13,'RMS-DATA'!$B:$F,3,FALSE)) ->  | AC13: 0 | AF13: 0 | AG13: 7 | AM13: =IF(OR(BK13=0,BK14=0),"",VLOOKUP(BK13,$AF:$AI,3,FALSE)) ->  | AN13: =IF(OR(BK13=0,BK14=0),"",VLOOKUP(BK13,$AF:$AI,4,FALSE)) ->  | AS13: =IF(BL13=0,"",IF(BL13=99,BL13,VLOOKUP(BL13,$AF:$AI,2,FALSE))) ->  | AT13: =IF(BL13=0,"",IF(BL13=99,"???",VLOOKUP(BL13,$AF:$AI,3,FALSE))) ->  | AU13: =IF(BL13=0,"",IF(BL13=99,"???",VLOOKUP(BL13,$AF:$AI,4,FALSE))) ->  | AY13: FALSE | AZ13: =IF(OR(BM13=0,BM12=0),"",VLOOKUP(BM13,$AF:$AI,3,FALSE)) -> VACHER Jean Pierre | BA13: =IF(OR(BM13=0,BM12=0),"",VLOOKUP(BM13,$AF:$AI,4,FALSE)) -> DEBERQUE Daniel | BC13: Qual | BF13: =BF5 -> 1/2 FINALE | BK13: 0 | BL13: =IF(BM$3,0,IF(AO14="Q",BK14,IF(OR(BK14=0,AO13="Q"),BK13,IF(BK13*BK14>0,99,0)))) -> 0 | BM13: =IF(AH17="",0,AF17) -> 101 | BP13: =IF(BL8=99,0,IF(BL8=BK8,BK7)) -> 0 | BU13: =IF(B13=0,0,ROUND(G13*(INDEX('DATA-WE'!$AH$2:$AO$6,SEARCH($BN$1,'DATA-WE'!$AG$7),SEARCH(CONCATENATE(CB$1,$BL$1),'DATA-WE'!$AF$7))/113)+(INDEX('DATA-WE'!$AH$2:$AO$6,SEARCH($BN$1,'DATA-WE'!$AG$7),1+SEARCH(CONCATENATE(CB$1,$BL$1),'DATA-WE'!$AF$7))-72),0)) -> 0 | BV13: =IF(D13=0,0,ROUND(I13*(INDEX('DATA-WE'!$AH$2:$AO$6,SEARCH($BN$1,'DATA-WE'!$AG$7),SEARCH(CONCATENATE(CB$1,$BL$1),'DATA-WE'!$AF$7))/113)+(INDEX('DATA-WE'!$AH$2:$AO$6,SEARCH($BN$1,'DATA-WE'!$AG$7),1+SEARCH(CONCATENATE(CB$1,$BL$1),'DATA-WE'!$AF$7))-72),0)) -> 0 | BW13: 0 | BX13: 0 | BY13: 0 | BZ13: 12 | CA13: 0 | CC13: =IF(L13=0,0,ROUND(Q13*(INDEX('DATA-WE'!$AH$2:$AO$6,SEARCH($BN$1,'DATA-WE'!$AG$7),SEARCH(CONCATENATE(CB$1,$BL$1),'DATA-WE'!$AF$7))/113)+(INDEX('DATA-WE'!$AH$2:$AO$6,SEARCH($BN$1,'DATA-WE'!$AG$7),1+SEARCH(CONCATENATE(CB$1,$BL$1),'DATA-WE'!$AF$7))-72),0)) -> 0 | CD13: =IF(N13=0,0,ROUND(S13*(INDEX('DATA-WE'!$AH$2:$AO$6,SEARCH($BN$1,'DATA-WE'!$AG$7),SEARCH(CONCATENATE(CB$1,$BL$1),'DATA-WE'!$AF$7))/113)+(INDEX('DATA-WE'!$AH$2:$AO$6,SEARCH($BN$1,'DATA-WE'!$AG$7),1+SEARCH(CONCATENATE(CB$1,$BL$1),'DATA-WE'!$AF$7))-72),0)) -> 0 | CE13: 0 | CF13: 0 | CG13: 0 | CH13: 12 | CI13: 0 | CK13: 12 | CL13: 312
B14: =IF(A14="",0,VLOOKUP(A14,'RMS-DATA'!$B:$F,5,FALSE)) -> 0 | D14: =IF(C14="",0,VLOOKUP(C14,'RMS-DATA'!$B:$F,5,FALSE)) -> 0 | E14: 113 | F14: =IF(A14="","",VLOOKUP(A14,'RMS-DATA'!$B:$F,3,FALSE)) ->  | G14: 0 | H14: =IF(C14="","",VLOOKUP(C14,'RMS-DATA'!$B:$F,3,FALSE)) ->  | I14: 0 | L14: =IF(K14="",0,VLOOKUP(K14,'RMS-DATA'!$B:$F,5,FALSE)) -> 0 | N14: =IF(M14="",0,VLOOKUP(M14,'RMS-DATA'!$B:$F,5,FALSE)) -> 0 | O14: 213 | P14: =IF(K14="","",VLOOKUP(K14,'RMS-DATA'!$B:$F,3,FALSE)) ->  | Q14: 0 | R14: =IF(M14="","",VLOOKUP(M14,'RMS-DATA'!$B:$F,3,FALSE)) ->  | S14: 0 | V14: =IF(U14="",0,VLOOKUP(U14,'RMS-DATA'!$B:$F,5,FALSE)) -> 0 | X14: =IF(W14="",0,VLOOKUP(W14,'RMS-DATA'!$B:$F,5,FALSE)) -> 0 | Y14: 313 | Z14: =IF(U14="","",VLOOKUP(U14,'RMS-DATA'!$B:$F,3,FALSE)) ->  | AA14: 0 | AB14: =IF(W14="","",VLOOKUP(W14,'RMS-DATA'!$B:$F,3,FALSE)) ->  | AC14: 0 | AF14: 0 | AG14: 10 | AM14: =IF(OR(BK13=0,BK14=0),"",VLOOKUP(BK14,$AF:$AI,3,FALSE)) ->  | AN14: =IF(OR(BK13=0,BK14=0),"",VLOOKUP(BK14,$AF:$AI,4,FALSE)) ->  | AY14: FALSE | AZ14: =IF(OR(BM14=0,BM15=0),"",VLOOKUP(BM14,$AF:$AI,3,FALSE)) -> BONNY Gurvann | BA14: =IF(OR(BM14=0,BM15=0),"",VLOOKUP(BM14,$AF:$AI,4,FALSE)) -> FEUILLADE Mathieu | BE14: =IF(BN14=0,"",IF(BN14=99,99,VLOOKUP(BN14,$AF:$AI,2,FALSE))) -> 2 | BF14: =IF(BN14=0,"",IF(BN14=99,"???",VLOOKUP(BN14,$AF:$AI,3,FALSE))) -> BONNY Gurvann | BG14: =IF(BN14=0,"",IF(BN14=99,"???",VLOOKUP(BN14,$AF:$AI,4,FALSE))) -> FEUILLADE Mathieu | BK14: 0 | BM14: =IF(AH12="",0,AF12) -> 102 | BN14: =IF(AV13="Q",BL13,IF(OR(BL13=0,AV12="Q"),BL12,IF(OR(BL12*BL13>0,BL13=0),99,0))) -> 102 | BP14: =IF(BL9=99,0,IF(BL9=BK9,BK10,BK9)) -> 0 | BU14: =IF(B14=0,0,ROUND(G14*(INDEX('DATA-WE'!$AH$2:$AO$6,SEARCH($BN$1,'DATA-WE'!$AG$7),SEARCH(CONCATENATE(CB$1,$BL$1),'DATA-WE'!$AF$7))/113)+(INDEX('DATA-WE'!$AH$2:$AO$6,SEARCH($BN$1,'DATA-WE'!$AG$7),1+SEARCH(CONCATENATE(CB$1,$BL$1),'DATA-WE'!$AF$7))-72),0)) -> 0 | BV14: =IF(D14=0,0,ROUND(I14*(INDEX('DATA-WE'!$AH$2:$AO$6,SEARCH($BN$1,'DATA-WE'!$AG$7),SEARCH(CONCATENATE(CB$1,$BL$1),'DATA-WE'!$AF$7))/113)+(INDEX('DATA-WE'!$AH$2:$AO$6,SEARCH($BN$1,'DATA-WE'!$AG$7),1+SEARCH(CONCATENATE(CB$1,$BL$1),'DATA-WE'!$AF$7))-72),0)) -> 0 | BW14: 0 | BX14: 0 | BY14: 0 | BZ14: 13 | CA14: 0 | CC14: =IF(L14=0,0,ROUND(Q14*(INDEX('DATA-WE'!$AH$2:$AO$6,SEARCH($BN$1,'DATA-WE'!$AG$7),SEARCH(CONCATENATE(CB$1,$BL$1),'DATA-WE'!$AF$7))/113)+(INDEX('DATA-WE'!$AH$2:$AO$6,SEARCH($BN$1,'DATA-WE'!$AG$7),1+SEARCH(CONCATENATE(CB$1,$BL$1),'DATA-WE'!$AF$7))-72),0)) -> 0 | CD14: =IF(N14=0,0,ROUND(S14*(INDEX('DATA-WE'!$AH$2:$AO$6,SEARCH($BN$1,'DATA-WE'!$AG$7),SEARCH(CONCATENATE(CB$1,$BL$1),'DATA-WE'!$AF$7))/113)+(INDEX('DATA-WE'!$AH$2:$AO$6,SEARCH($BN$1,'DATA-WE'!$AG$7),1+SEARCH(CONCATENATE(CB$1,$BL$1),'DATA-WE'!$AF$7))-72),0)) -> 0 | CE14: 0 | CF14: 0 | CG14: 0 | CH14: 13 | CI14: 0 | CK14: 13 | CL14: 313
B15: =IF(A15="",0,VLOOKUP(A15,'RMS-DATA'!$B:$F,5,FALSE)) -> 0 | D15: =IF(C15="",0,VLOOKUP(C15,'RMS-DATA'!$B:$F,5,FALSE)) -> 0 | E15: 114 | F15: =IF(A15="","",VLOOKUP(A15,'RMS-DATA'!$B:$F,3,FALSE)) ->  | G15: 0 | H15: =IF(C15="","",VLOOKUP(C15,'RMS-DATA'!$B:$F,3,FALSE)) ->  | I15: 0 | L15: =IF(K15="",0,VLOOKUP(K15,'RMS-DATA'!$B:$F,5,FALSE)) -> 0 | N15: =IF(M15="",0,VLOOKUP(M15,'RMS-DATA'!$B:$F,5,FALSE)) -> 0 | O15: 214 | P15: =IF(K15="","",VLOOKUP(K15,'RMS-DATA'!$B:$F,3,FALSE)) ->  | Q15: 0 | R15: =IF(M15="","",VLOOKUP(M15,'RMS-DATA'!$B:$F,3,FALSE)) ->  | S15: 0 | V15: =IF(U15="",0,VLOOKUP(U15,'RMS-DATA'!$B:$F,5,FALSE)) -> 0 | X15: =IF(W15="",0,VLOOKUP(W15,'RMS-DATA'!$B:$F,5,FALSE)) -> 0 | Y15: 314 | Z15: =IF(U15="","",VLOOKUP(U15,'RMS-DATA'!$B:$F,3,FALSE)) ->  | AA15: 0 | AB15: =IF(W15="","",VLOOKUP(W15,'RMS-DATA'!$B:$F,3,FALSE)) ->  | AC15: 0 | AF15: 0 | AG15: 14 | AM15: =IF(OR(BK15=0,BK16=0),"",VLOOKUP(BK15,$AF:$AI,3,FALSE)) ->  | AN15: =IF(OR(BK15=0,BK16=0),"",VLOOKUP(BK15,$AF:$AI,4,FALSE)) ->  | AT15: 1/4 FINALE | AY15: FALSE | AZ15: =IF(OR(BM15=0,BM14=0),"",VLOOKUP(BM15,$AF:$AI,3,FALSE)) -> JUPPIN Bruno | BA15: =IF(OR(BM15=0,BM14=0),"",VLOOKUP(BM15,$AF:$AI,4,FALSE)) -> CAVAILLE Julien | BE15: =IF(BN15=0,"",IF(BN15=99,99,VLOOKUP(BN15,$AF:$AI,2,FALSE))) -> 3 | BF15: =IF(BN15=0,"",IF(BN15=99,"???",VLOOKUP(BN15,$AF:$AI,3,FALSE))) -> JUPPIN Bruno | BG15: =IF(BN15=0,"",IF(BN15=99,"???",VLOOKUP(BN15,$AF:$AI,4,FALSE))) -> CAVAILLE Julien | BH15: Q | BK15: 0 | BM15: =IF(AH16="",0,AF16) -> 105 | BN15: =IF(AV17="Q",BL17,IF(OR(BL17=0,AV16="Q"),BL16,IF(OR(BL16*BL17>0,BL17=0),99,0))) -> 105 | BP15: =IF(BL12=99,0,IF(BL12=BK12,BK11)) -> 0 | BU15: =IF(B15=0,0,ROUND(G15*(INDEX('DATA-WE'!$AH$2:$AO$6,SEARCH($BN$1,'DATA-WE'!$AG$7),SEARCH(CONCATENATE(CB$1,$BL$1),'DATA-WE'!$AF$7))/113)+(INDEX('DATA-WE'!$AH$2:$AO$6,SEARCH($BN$1,'DATA-WE'!$AG$7),1+SEARCH(CONCATENATE(CB$1,$BL$1),'DATA-WE'!$AF$7))-72),0)) -> 0 | BV15: =IF(D15=0,0,ROUND(I15*(INDEX('DATA-WE'!$AH$2:$AO$6,SEARCH($BN$1,'DATA-WE'!$AG$7),SEARCH(CONCATENATE(CB$1,$BL$1),'DATA-WE'!$AF$7))/113)+(INDEX('DATA-WE'!$AH$2:$AO$6,SEARCH($BN$1,'DATA-WE'!$AG$7),1+SEARCH(CONCATENATE(CB$1,$BL$1),'DATA-WE'!$AF$7))-72),0)) -> 0 | BW15: 0 | BX15: 0 | BY15: 0 | BZ15: 14 | CA15: 0 | CC15: =IF(L15=0,0,ROUND(Q15*(INDEX('DATA-WE'!$AH$2:$AO$6,SEARCH($BN$1,'DATA-WE'!$AG$7),SEARCH(CONCATENATE(CB$1,$BL$1),'DATA-WE'!$AF$7))/113)+(INDEX('DATA-WE'!$AH$2:$AO$6,SEARCH($BN$1,'DATA-WE'!$AG$7),1+SEARCH(CONCATENATE(CB$1,$BL$1),'DATA-WE'!$AF$7))-72),0)) -> 0 | CD15: =IF(N15=0,0,ROUND(S15*(INDEX('DATA-WE'!$AH$2:$AO$6,SEARCH($BN$1,'DATA-WE'!$AG$7),SEARCH(CONCATENATE(CB$1,$BL$1),'DATA-WE'!$AF$7))/113)+(INDEX('DATA-WE'!$AH$2:$AO$6,SEARCH($BN$1,'DATA-WE'!$AG$7),1+SEARCH(CONCATENATE(CB$1,$BL$1),'DATA-WE'!$AF$7))-72),0)) -> 0 | CE15: 0 | CF15: 0 | CG15: 0 | CH15: 14 | CI15: 0 | CK15: 14 | CL15: 314
B16: =IF(A16="",0,VLOOKUP(A16,'RMS-DATA'!$B:$F,5,FALSE)) -> 0 | D16: =IF(C16="",0,VLOOKUP(C16,'RMS-DATA'!$B:$F,5,FALSE)) -> 0 | E16: 115 | F16: =IF(A16="","",VLOOKUP(A16,'RMS-DATA'!$B:$F,3,FALSE)) ->  | G16: 0 | H16: =IF(C16="","",VLOOKUP(C16,'RMS-DATA'!$B:$F,3,FALSE)) ->  | I16: 0 | L16: =IF(K16="",0,VLOOKUP(K16,'RMS-DATA'!$B:$F,5,FALSE)) -> 0 | N16: =IF(M16="",0,VLOOKUP(M16,'RMS-DATA'!$B:$F,5,FALSE)) -> 0 | O16: 215 | P16: =IF(K16="","",VLOOKUP(K16,'RMS-DATA'!$B:$F,3,FALSE)) ->  | Q16: 0 | R16: =IF(M16="","",VLOOKUP(M16,'RMS-DATA'!$B:$F,3,FALSE)) ->  | S16: 0 | V16: =IF(U16="",0,VLOOKUP(U16,'RMS-DATA'!$B:$F,5,FALSE)) -> 0 | X16: =IF(W16="",0,VLOOKUP(W16,'RMS-DATA'!$B:$F,5,FALSE)) -> 0 | Y16: 315 | Z16: =IF(U16="","",VLOOKUP(U16,'RMS-DATA'!$B:$F,3,FALSE)) ->  | AA16: 0 | AB16: =IF(W16="","",VLOOKUP(W16,'RMS-DATA'!$B:$F,3,FALSE)) ->  | AC16: 0 | AF16: 105 | AG16: 3 | AH16: JUPPIN Bruno | AI16: CAVAILLE Julien | AL16: 3 | AM16: =IF(OR(BK15=0,BK16=0),"",VLOOKUP(BK16,$AF:$AI,3,FALSE)) ->  | AN16: =IF(OR(BK15=0,BK16=0),"",VLOOKUP(BK16,$AF:$AI,4,FALSE)) ->  | AS16: =IF(OR(BL16=0,BL17=0),"",IF(BL16=99,999,VLOOKUP(BL16,$AF:$AI,2,FALSE))) -> 3 | AT16: =IF(BL16=0,"",IF(BL16=99,"???",VLOOKUP(BL16,$AF:$AI,3,FALSE))) -> JUPPIN Bruno | AU16: =IF(BL16=0,"",IF(BL16=99,"???",VLOOKUP(BL16,$AF:$AI,4,FALSE))) -> CAVAILLE Julien | AV16: Q | AY16: FALSE | AZ16: =IF(OR(BM16=0,BM17=0),"",VLOOKUP(BM16,$AF:$AI,3,FALSE)) -> JUPPIN Bruno | BA16: =IF(OR(BM16=0,BM17=0),"",VLOOKUP(BM16,$AF:$AI,4,FALSE)) -> CAVAILLE Julien | BK16: 105 | BL16: =IF(BM$3,0,IF(AO15="Q",BK15,IF(OR(BK15=0,AO16="Q"),BK16,IF(BK15*BK16>0,99,0)))) -> 105 | BM16: =IF(AH16="",0,AF16) -> 105 | BP16: =IF(BL13=99,0,IF(BL13=BK13,BK14,BK13)) -> 0 | BU16: =IF(B16=0,0,ROUND(G16*(INDEX('DATA-WE'!$AH$2:$AO$6,SEARCH($BN$1,'DATA-WE'!$AG$7),SEARCH(CONCATENATE(CB$1,$BL$1),'DATA-WE'!$AF$7))/113)+(INDEX('DATA-WE'!$AH$2:$AO$6,SEARCH($BN$1,'DATA-WE'!$AG$7),1+SEARCH(CONCATENATE(CB$1,$BL$1),'DATA-WE'!$AF$7))-72),0)) -> 0 | BV16: =IF(D16=0,0,ROUND(I16*(INDEX('DATA-WE'!$AH$2:$AO$6,SEARCH($BN$1,'DATA-WE'!$AG$7),SEARCH(CONCATENATE(CB$1,$BL$1),'DATA-WE'!$AF$7))/113)+(INDEX('DATA-WE'!$AH$2:$AO$6,SEARCH($BN$1,'DATA-WE'!$AG$7),1+SEARCH(CONCATENATE(CB$1,$BL$1),'DATA-WE'!$AF$7))-72),0)) -> 0 | BW16: 0 | BX16: 0 | BY16: 0 | BZ16: 15 | CA16: 0 | CC16: =IF(L16=0,0,ROUND(Q16*(INDEX('DATA-WE'!$AH$2:$AO$6,SEARCH($BN$1,'DATA-WE'!$AG$7),SEARCH(CONCATENATE(CB$1,$BL$1),'DATA-WE'!$AF$7))/113)+(INDEX('DATA-WE'!$AH$2:$AO$6,SEARCH($BN$1,'DATA-WE'!$AG$7),1+SEARCH(CONCATENATE(CB$1,$BL$1),'DATA-WE'!$AF$7))-72),0)) -> 0 | CD16: =IF(N16=0,0,ROUND(S16*(INDEX('DATA-WE'!$AH$2:$AO$6,SEARCH($BN$1,'DATA-WE'!$AG$7),SEARCH(CONCATENATE(CB$1,$BL$1),'DATA-WE'!$AF$7))/113)+(INDEX('DATA-WE'!$AH$2:$AO$6,SEARCH($BN$1,'DATA-WE'!$AG$7),1+SEARCH(CONCATENATE(CB$1,$BL$1),'DATA-WE'!$AF$7))-72),0)) -> 0 | CE16: 0 | CF16: 0 | CG16: 0 | CH16: 15 | CI16: 0 | CK16: 15 | CL16: 315
B17: =IF(A17="",0,VLOOKUP(A17,'RMS-DATA'!$B:$F,5,FALSE)) -> 0 | D17: =IF(C17="",0,VLOOKUP(C17,'RMS-DATA'!$B:$F,5,FALSE)) -> 0 | E17: 116 | F17: =IF(A17="","",VLOOKUP(A17,'RMS-DATA'!$B:$F,3,FALSE)) ->  | G17: 0 | H17: =IF(C17="","",VLOOKUP(C17,'RMS-DATA'!$B:$F,3,FALSE)) ->  | I17: 0 | L17: =IF(K17="",0,VLOOKUP(K17,'RMS-DATA'!$B:$F,5,FALSE)) -> 0 | N17: =IF(M17="",0,VLOOKUP(M17,'RMS-DATA'!$B:$F,5,FALSE)) -> 0 | O17: 216 | P17: =IF(K17="","",VLOOKUP(K17,'RMS-DATA'!$B:$F,3,FALSE)) ->  | Q17: 0 | R17: =IF(M17="","",VLOOKUP(M17,'RMS-DATA'!$B:$F,3,FALSE)) ->  | S17: 0 | V17: =IF(U17="",0,VLOOKUP(U17,'RMS-DATA'!$B:$F,5,FALSE)) -> 0 | X17: =IF(W17="",0,VLOOKUP(W17,'RMS-DATA'!$B:$F,5,FALSE)) -> 0 | Y17: 316 | Z17: =IF(U17="","",VLOOKUP(U17,'RMS-DATA'!$B:$F,3,FALSE)) ->  | AA17: 0 | AB17: =IF(W17="","",VLOOKUP(W17,'RMS-DATA'!$B:$F,3,FALSE)) ->  | AC17: 0 | AF17: 101 | AG17: 6 | AH17: VACHER Jean Pierre | AI17: DEBERQUE Daniel | AL17: 6 | AM17: =IF(OR(BK17=0,BK18=0),"",VLOOKUP(BK17,$AF:$AI,3,FALSE)) ->  | AN17: =IF(OR(BK17=0,BK18=0),"",VLOOKUP(BK17,$AF:$AI,4,FALSE)) ->  | AS17: =IF(BL17=0,"",IF(BL17=99,BL17,VLOOKUP(BL17,$AF:$AI,2,FALSE))) -> 6 | AT17: =IF(BL17=0,"",IF(BL17=99,"???",VLOOKUP(BL17,$AF:$AI,3,FALSE))) -> VACHER Jean Pierre | AU17: =IF(BL17=0,"",IF(BL17=99,"???",VLOOKUP(BL17,$AF:$AI,4,FALSE))) -> DEBERQUE Daniel | AY17: FALSE | AZ17: =IF(OR(BM17=0,BM16=0),"",VLOOKUP(BM17,$AF:$AI,3,FALSE)) -> VACHER Jean Pierre | BA17: =IF(OR(BM17=0,BM16=0),"",VLOOKUP(BM17,$AF:$AI,4,FALSE)) -> DEBERQUE Daniel | BF17: =CONCATENATE("Champions ",'DATA-WE'!A2) -> Champions 2019 | BK17: 101 | BL17: =IF(BM$3,0,IF(AO18="Q",BK18,IF(OR(BK18=0,AO17="Q"),BK17,IF(BK17*BK18>0,99,0)))) -> 101 | BM17: =IF(AH17="",0,AF17) -> 101 | BP17: =IF(BL16=99,0,IF(BL16=BK16,BK15)) -> 0 | BU17: =IF(B17=0,0,ROUND(G17*(INDEX('DATA-WE'!$AH$2:$AO$6,SEARCH($BN$1,'DATA-WE'!$AG$7),SEARCH(CONCATENATE(CB$1,$BL$1),'DATA-WE'!$AF$7))/113)+(INDEX('DATA-WE'!$AH$2:$AO$6,SEARCH($BN$1,'DATA-WE'!$AG$7),1+SEARCH(CONCATENATE(CB$1,$BL$1),'DATA-WE'!$AF$7))-72),0)) -> 0 | BV17: =IF(D17=0,0,ROUND(I17*(INDEX('DATA-WE'!$AH$2:$AO$6,SEARCH($BN$1,'DATA-WE'!$AG$7),SEARCH(CONCATENATE(CB$1,$BL$1),'DATA-WE'!$AF$7))/113)+(INDEX('DATA-WE'!$AH$2:$AO$6,SEARCH($BN$1,'DATA-WE'!$AG$7),1+SEARCH(CONCATENATE(CB$1,$BL$1),'DATA-WE'!$AF$7))-72),0)) -> 0 | BW17: 0 | BX17: 0 | BY17: 0 | BZ17: 16 | CA17: 0 | CC17: =IF(L17=0,0,ROUND(Q17*(INDEX('DATA-WE'!$AH$2:$AO$6,SEARCH($BN$1,'DATA-WE'!$AG$7),SEARCH(CONCATENATE(CB$1,$BL$1),'DATA-WE'!$AF$7))/113)+(INDEX('DATA-WE'!$AH$2:$AO$6,SEARCH($BN$1,'DATA-WE'!$AG$7),1+SEARCH(CONCATENATE(CB$1,$BL$1),'DATA-WE'!$AF$7))-72),0)) -> 0 | CD17: =IF(N17=0,0,ROUND(S17*(INDEX('DATA-WE'!$AH$2:$AO$6,SEARCH($BN$1,'DATA-WE'!$AG$7),SEARCH(CONCATENATE(CB$1,$BL$1),'DATA-WE'!$AF$7))/113)+(INDEX('DATA-WE'!$AH$2:$AO$6,SEARCH($BN$1,'DATA-WE'!$AG$7),1+SEARCH(CONCATENATE(CB$1,$BL$1),'DATA-WE'!$AF$7))-72),0)) -> 0 | CE17: 0 | CF17: 0 | CG17: 0 | CH17: 16 | CI17: 0 | CK17: 16 | CL17: 316
E18: 117 | O18: 217 | Y18: 317 | AF18: 0 | AG18: 11 | AM18: =IF(OR(BK17=0,BK18=0),"",VLOOKUP(BK18,$AF:$AI,3,FALSE)) ->  | AN18: =IF(OR(BK17=0,BK18=0),"",VLOOKUP(BK18,$AF:$AI,4,FALSE)) ->  | BF18: =IF(OR(BN18=99,BN18=0),"???",IF(BH10="N","Finale",VLOOKUP(BN18,$AF:$AI,3,FALSE))) -> ??? | BG18: =IF(OR(BN18=99,BN18=0),"???",IF(BH10="N"," non jouée",VLOOKUP(BN18,$AF:$AI,4,FALSE))) -> ??? | BK18: 0 | BN18: =IF(BH11="Q",BN11,IF(OR(BN11=0,BH10="Q",BH10="N"),BN10,IF(OR(BN10*BN11>0,BN11=0),99,0))) -> 99 | BP18: =IF(BL17=99,0,IF(BL17=BK17,BK18,BK17)) -> 0 | BU18: =IF(B18=0,0,ROUND(G18*(INDEX('DATA-WE'!$AH$2:$AO$6,SEARCH($BN$1,'DATA-WE'!$AG$7),SEARCH(CONCATENATE(CB$1,$BL$1),'DATA-WE'!$AF$7))/113)+(INDEX('DATA-WE'!$AH$2:$AO$6,SEARCH($BN$1,'DATA-WE'!$AG$7),1+SEARCH(CONCATENATE(CB$1,$BL$1),'DATA-WE'!$AF$7))-72),0)) -> 0 | BV18: =IF(D18=0,0,ROUND(I18*(INDEX('DATA-WE'!$AH$2:$AO$6,SEARCH($BN$1,'DATA-WE'!$AG$7),SEARCH(CONCATENATE(CB$1,$BL$1),'DATA-WE'!$AF$7))/113)+(INDEX('DATA-WE'!$AH$2:$AO$6,SEARCH($BN$1,'DATA-WE'!$AG$7),1+SEARCH(CONCATENATE(CB$1,$BL$1),'DATA-WE'!$AF$7))-72),0)) -> 0 | BW18: 0 | BX18: 0 | BY18: 0 | BZ18: 17 | CA18: 0 | CC18: =IF(L18=0,0,ROUND(Q18*(INDEX('DATA-WE'!$AH$2:$AO$6,SEARCH($BN$1,'DATA-WE'!$AG$7),SEARCH(CONCATENATE(CB$1,$BL$1),'DATA-WE'!$AF$7))/113)+(INDEX('DATA-WE'!$AH$2:$AO$6,SEARCH($BN$1,'DATA-WE'!$AG$7),1+SEARCH(CONCATENATE(CB$1,$BL$1),'DATA-WE'!$AF$7))-72),0)) -> 0 | CD18: =IF(N18=0,0,ROUND(S18*(INDEX('DATA-WE'!$AH$2:$AO$6,SEARCH($BN$1,'DATA-WE'!$AG$7),SEARCH(CONCATENATE(CB$1,$BL$1),'DATA-WE'!$AF$7))/113)+(INDEX('DATA-WE'!$AH$2:$AO$6,SEARCH($BN$1,'DATA-WE'!$AG$7),1+SEARCH(CONCATENATE(CB$1,$BL$1),'DATA-WE'!$AF$7))-72),0)) -> 0 | CE18: 0 | CF18: 0 | CG18: 0 | CH18: 17 | CI18: 0 | CK18: 17 | CL18: 0
E19: 118 | O19: 218 | Y19: 318 | BU19: =IF(B19=0,0,ROUND(G19*(INDEX('DATA-WE'!$AH$2:$AO$6,SEARCH($BN$1,'DATA-WE'!$AG$7),SEARCH(CONCATENATE(CB$1,$BL$1),'DATA-WE'!$AF$7))/113)+(INDEX('DATA-WE'!$AH$2:$AO$6,SEARCH($BN$1,'DATA-WE'!$AG$7),1+SEARCH(CONCATENATE(CB$1,$BL$1),'DATA-WE'!$AF$7))-72),0)) -> 0 | BV19: =IF(D19=0,0,ROUND(I19*(INDEX('DATA-WE'!$AH$2:$AO$6,SEARCH($BN$1,'DATA-WE'!$AG$7),SEARCH(CONCATENATE(CB$1,$BL$1),'DATA-WE'!$AF$7))/113)+(INDEX('DATA-WE'!$AH$2:$AO$6,SEARCH($BN$1,'DATA-WE'!$AG$7),1+SEARCH(CONCATENATE(CB$1,$BL$1),'DATA-WE'!$AF$7))-72),0)) -> 0 | BW19: 0 | BX19: 0 | BY19: 0 | BZ19: 18 | CA19: 0 | CC19: =IF(L19=0,0,ROUND(Q19*(INDEX('DATA-WE'!$AH$2:$AO$6,SEARCH($BN$1,'DATA-WE'!$AG$7),SEARCH(CONCATENATE(CB$1,$BL$1),'DATA-WE'!$AF$7))/113)+(INDEX('DATA-WE'!$AH$2:$AO$6,SEARCH($BN$1,'DATA-WE'!$AG$7),1+SEARCH(CONCATENATE(CB$1,$BL$1),'DATA-WE'!$AF$7))-72),0)) -> 0 | CD19: =IF(N19=0,0,ROUND(S19*(INDEX('DATA-WE'!$AH$2:$AO$6,SEARCH($BN$1,'DATA-WE'!$AG$7),SEARCH(CONCATENATE(CB$1,$BL$1),'DATA-WE'!$AF$7))/113)+(INDEX('DATA-WE'!$AH$2:$AO$6,SEARCH($BN$1,'DATA-WE'!$AG$7),1+SEARCH(CONCATENATE(CB$1,$BL$1),'DATA-WE'!$AF$7))-72),0)) -> 0 | CE19: 0 | CF19: 0 | CG19: 0 | CH19: 18 | CI19: 0 | CK19: 18 | CL19: 0
E20: 119 | O20: 219 | Y20: 319 | AK20: Dames | BK20: =COUNTIF(BK22:BK37,">0") -> 8 | BL20: D | BM20: =AND(BK20>2,BK20<7) -> FALSE | BN20: R | BU20: =IF(B20=0,0,ROUND(G20*(INDEX('DATA-WE'!$AH$2:$AO$6,SEARCH($BN$1,'DATA-WE'!$AG$7),SEARCH(CONCATENATE(CB$1,$BL$1),'DATA-WE'!$AF$7))/113)+(INDEX('DATA-WE'!$AH$2:$AO$6,SEARCH($BN$1,'DATA-WE'!$AG$7),1+SEARCH(CONCATENATE(CB$1,$BL$1),'DATA-WE'!$AF$7))-72),0)) -> 0 | BV20: =IF(D20=0,0,ROUND(I20*(INDEX('DATA-WE'!$AH$2:$AO$6,SEARCH($BN$1,'DATA-WE'!$AG$7),SEARCH(CONCATENATE(CB$1,$BL$1),'DATA-WE'!$AF$7))/113)+(INDEX('DATA-WE'!$AH$2:$AO$6,SEARCH($BN$1,'DATA-WE'!$AG$7),1+SEARCH(CONCATENATE(CB$1,$BL$1),'DATA-WE'!$AF$7))-72),0)) -> 0 | BW20: 0 | BX20: 0 | BY20: 0 | BZ20: 19 | CA20: 0 | CC20: =IF(L20=0,0,ROUND(Q20*(INDEX('DATA-WE'!$AH$2:$AO$6,SEARCH($BN$1,'DATA-WE'!$AG$7),SEARCH(CONCATENATE(CB$1,$BL$1),'DATA-WE'!$AF$7))/113)+(INDEX('DATA-WE'!$AH$2:$AO$6,SEARCH($BN$1,'DATA-WE'!$AG$7),1+SEARCH(CONCATENATE(CB$1,$BL$1),'DATA-WE'!$AF$7))-72),0)) -> 0 | CD20: =IF(N20=0,0,ROUND(S20*(INDEX('DATA-WE'!$AH$2:$AO$6,SEARCH($BN$1,'DATA-WE'!$AG$7),SEARCH(CONCATENATE(CB$1,$BL$1),'DATA-WE'!$AF$7))/113)+(INDEX('DATA-WE'!$AH$2:$AO$6,SEARCH($BN$1,'DATA-WE'!$AG$7),1+SEARCH(CONCATENATE(CB$1,$BL$1),'DATA-WE'!$AF$7))-72),0)) -> 0 | CE20: 0 | CF20: 0 | CG20: 0 | CH20: 19 | CI20: 0 | CK20: 19 | CL20: 0
E21: 120 | O21: 220 | Y21: 320 | AG21: =BL20 -> D | AH21: Adh1 | AI21: Adh2 | AM21: 1er TOUR | BC21: =BG21 -> Championnats Open 2019 | BG21: =BG2 -> Championnats Open 2019 | BK21: 16 | BL21: =BK21/2 -> 8 | BM21: 6 | BN21: =BL21/2 -> 4 | BU21: =IF(B21=0,0,ROUND(G21*(INDEX('DATA-WE'!$AH$2:$AO$6,SEARCH($BN$1,'DATA-WE'!$AG$7),SEARCH(CONCATENATE(CB$1,$BL$1),'DATA-WE'!$AF$7))/113)+(INDEX('DATA-WE'!$AH$2:$AO$6,SEARCH($BN$1,'DATA-WE'!$AG$7),1+SEARCH(CONCATENATE(CB$1,$BL$1),'DATA-WE'!$AF$7))-72),0)) -> 0 | BV21: =IF(D21=0,0,ROUND(I21*(INDEX('DATA-WE'!$AH$2:$AO$6,SEARCH($BN$1,'DATA-WE'!$AG$7),SEARCH(CONCATENATE(CB$1,$BL$1),'DATA-WE'!$AF$7))/113)+(INDEX('DATA-WE'!$AH$2:$AO$6,SEARCH($BN$1,'DATA-WE'!$AG$7),1+SEARCH(CONCATENATE(CB$1,$BL$1),'DATA-WE'!$AF$7))-72),0)) -> 0 | BW21: 0 | BX21: 0 | BY21: 0 | BZ21: 20 | CA21: 0 | CC21: =IF(L21=0,0,ROUND(Q21*(INDEX('DATA-WE'!$AH$2:$AO$6,SEARCH($BN$1,'DATA-WE'!$AG$7),SEARCH(CONCATENATE(CB$1,$BL$1),'DATA-WE'!$AF$7))/113)+(INDEX('DATA-WE'!$AH$2:$AO$6,SEARCH($BN$1,'DATA-WE'!$AG$7),1+SEARCH(CONCATENATE(CB$1,$BL$1),'DATA-WE'!$AF$7))-72),0)) -> 0 | CD21: =IF(N21=0,0,ROUND(S21*(INDEX('DATA-WE'!$AH$2:$AO$6,SEARCH($BN$1,'DATA-WE'!$AG$7),SEARCH(CONCATENATE(CB$1,$BL$1),'DATA-WE'!$AF$7))/113)+(INDEX('DATA-WE'!$AH$2:$AO$6,SEARCH($BN$1,'DATA-WE'!$AG$7),1+SEARCH(CONCATENATE(CB$1,$BL$1),'DATA-WE'!$AF$7))-72),0)) -> 0 | CE21: 0 | CF21: 0 | CG21: 0 | CH21: 20 | CI21: 0 | CK21: 20 | CL21: 0
E22: 121 | O22: 221 | Y22: 321 | AF22: =VLOOKUP(AG22,CH:CI,2,FALSE) -> 0 | AG22: 16 | AH22: =IF(AF22=0,"",VLOOKUP(AF22,O:R,2,FALSE)) ->  | AI22: =IF(AF22=0,"",VLOOKUP(AF22,O:R,4,FALSE)) ->  | AL22: =IF(BK22=0,"",VLOOKUP(BK22,$AF:$AI,2,FALSE)) ->  | AM22: =IF(OR(BK22=0,BK23=0),"",VLOOKUP(BK22,$AF:$AI,3,FALSE)) ->  | AN22: =IF(OR(BK22=0,BK23=0),"",VLOOKUP(BK22,$AF:$AI,4,FALSE)) ->  | AS22: =AS3 -> 22/09 | AT22: 1/4 FINALE | AY22: A | AZ22: 1er TOUR | BA22: Poule A | BE22: =AK20 -> Dames | BG22: =BG3 -> Parcours Bleu | BK22: =IF(AH22="",0,AF22) -> 0 | BM22: =AND(BM20,BK20<4) -> FALSE | BO22: 1 | BP22: =IF(OR(BH30="Q",BH30="N"),BN30,IF(OR(BN30=0,BH29="Q",BH29="N"),BN29,0)) -> 0 | BU22: =IF(B22=0,0,ROUND(G22*(INDEX('DATA-WE'!$AH$2:$AO$6,SEARCH($BN$1,'DATA-WE'!$AG$7),SEARCH(CONCATENATE(CB$1,$BL$1),'DATA-WE'!$AF$7))/113)+(INDEX('DATA-WE'!$AH$2:$AO$6,SEARCH($BN$1,'DATA-WE'!$AG$7),1+SEARCH(CONCATENATE(CB$1,$BL$1),'DATA-WE'!$AF$7))-72),0)) -> 0 | BV22: =IF(D22=0,0,ROUND(I22*(INDEX('DATA-WE'!$AH$2:$AO$6,SEARCH($BN$1,'DATA-WE'!$AG$7),SEARCH(CONCATENATE(CB$1,$BL$1),'DATA-WE'!$AF$7))/113)+(INDEX('DATA-WE'!$AH$2:$AO$6,SEARCH($BN$1,'DATA-WE'!$AG$7),1+SEARCH(CONCATENATE(CB$1,$BL$1),'DATA-WE'!$AF$7))-72),0)) -> 0 | BW22: 0 | BX22: 0 | BY22: 0 | BZ22: 21 | CA22: 0 | CC22: =IF(L22=0,0,ROUND(Q22*(INDEX('DATA-WE'!$AH$2:$AO$6,SEARCH($BN$1,'DATA-WE'!$AG$7),SEARCH(CONCATENATE(CB$1,$BL$1),'DATA-WE'!$AF$7))/113)+(INDEX('DATA-WE'!$AH$2:$AO$6,SEARCH($BN$1,'DATA-WE'!$AG$7),1+SEARCH(CONCATENATE(CB$1,$BL$1),'DATA-WE'!$AF$7))-72),0)) -> 0 | CD22: =IF(N22=0,0,ROUND(S22*(INDEX('DATA-WE'!$AH$2:$AO$6,SEARCH($BN$1,'DATA-WE'!$AG$7),SEARCH(CONCATENATE(CB$1,$BL$1),'DATA-WE'!$AF$7))/113)+(INDEX('DATA-WE'!$AH$2:$AO$6,SEARCH($BN$1,'DATA-WE'!$AG$7),1+SEARCH(CONCATENATE(CB$1,$BL$1),'DATA-WE'!$AF$7))-72),0)) -> 0 | CE22: 0 | CF22: 0 | CG22: 0 | CH22: 21 | CI22: 0 | CK22: 21 | CL22: 0
E23: 122 | O23: 222 | Y23: 322 | AF23: 205 | AG23: 1 | AH23: DUBOTS Marie | AI23: GUY Olivia | AL23: 1 | AM23: =IF(OR(BK22=0,BK23=0),"",VLOOKUP(BK23,$AF:$AI,3,FALSE)) ->  | AN23: =IF(OR(BK22=0,BK23=0),"",VLOOKUP(BK23,$AF:$AI,4,FALSE)) ->  | AS23: =IF(OR(BL23=0,BL24=0),"",IF(BL23=99,999,VLOOKUP(BL23,$AF:$AI,2,FALSE))) -> 1 | AT23: =IF(BL23=0,"",IF(BL23=99,"???",VLOOKUP(BL23,$AF:$AI,3,FALSE))) -> DUBOTS Marie | AU23: =IF(BL23=0,"",IF(BL23=99,"???",VLOOKUP(BL23,$AF:$AI,4,FALSE))) -> GUY Olivia | AV23: Q | AY23: =IF(BM$20,IF(BM23=0,0,VLOOKUP(BM23,$AF:$AI,2,FALSE)),0) -> 0 | AZ23: =IF(BV24=0,"",IF(BV24=99,"???",VLOOKUP(BV24,$AF:$AI,3,FALSE))) ->  | BA23: =IF(BV24=0,"",IF(BV24=99,"???",VLOOKUP(BV24,$AF:$AI,4,FALSE))) ->  | BK23: 205 | BL23: =IF(AO22="Q",BK22,IF(OR(BK22=0,AO23="Q"),BK23,IF(BK22*BK23>0,#REF!,0))) -> 205 | BM23: =IF(AH23="",0,AF23) -> 205 | BO23: 2 | BP23: =IF(OR(BP22=0,BN29=99,BN30=99),0,IF(BN30=BP22,BN29,BN30)) -> 0 | BU23: =IF(B23=0,0,ROUND(G23*(INDEX('DATA-WE'!$AH$2:$AO$6,SEARCH($BN$1,'DATA-WE'!$AG$7),SEARCH(CONCATENATE(CB$1,$BL$1),'DATA-WE'!$AF$7))/113)+(INDEX('DATA-WE'!$AH$2:$AO$6,SEARCH($BN$1,'DATA-WE'!$AG$7),1+SEARCH(CONCATENATE(CB$1,$BL$1),'DATA-WE'!$AF$7))-72),0)) -> 0 | BV23: =IF(D23=0,0,ROUND(I23*(INDEX('DATA-WE'!$AH$2:$AO$6,SEARCH($BN$1,'DATA-WE'!$AG$7),SEARCH(CONCATENATE(CB$1,$BL$1),'DATA-WE'!$AF$7))/113)+(INDEX('DATA-WE'!$AH$2:$AO$6,SEARCH($BN$1,'DATA-WE'!$AG$7),1+SEARCH(CONCATENATE(CB$1,$BL$1),'DATA-WE'!$AF$7))-72),0)) -> 0 | BW23: 0 | BX23: 0 | BY23: 0 | BZ23: 22 | CA23: 0 | CC23: =IF(L23=0,0,ROUND(Q23*(INDEX('DATA-WE'!$AH$2:$AO$6,SEARCH($BN$1,'DATA-WE'!$AG$7),SEARCH(CONCATENATE(CB$1,$BL$1),'DATA-WE'!$AF$7))/113)+(INDEX('DATA-WE'!$AH$2:$AO$6,SEARCH($BN$1,'DATA-WE'!$AG$7),1+SEARCH(CONCATENATE(CB$1,$BL$1),'DATA-WE'!$AF$7))-72),0)) -> 0 | CD23: =IF(N23=0,0,ROUND(S23*(INDEX('DATA-WE'!$AH$2:$AO$6,SEARCH($BN$1,'DATA-WE'!$AG$7),SEARCH(CONCATENATE(CB$1,$BL$1),'DATA-WE'!$AF$7))/113)+(INDEX('DATA-WE'!$AH$2:$AO$6,SEARCH($BN$1,'DATA-WE'!$AG$7),1+SEARCH(CONCATENATE(CB$1,$BL$1),'DATA-WE'!$AF$7))-72),0)) -> 0 | CE23: 0 | CF23: 0 | CG23: 0 | CH23: 22 | CI23: 0 | CK23: 22 | CL23: 0
